Workbook

Sheet Overview

Sheet NOTES
A1: Notes for Year-at-a-Glance Data Report
A2: Assessment | B2: Enrollment as of Date | C2: Results as of Date | D2: All Average % Correct of less than 51 are denoted in red.
D3: Assessment Description | E3: % Performance (% Perf.)
A4: FCAT 2011 | B4: 2011-05-01 | C4: 2012-06-07 | D4: 2012 FCAT 2.0 Reading and Math /2012 EOC/2012 FCAT Writing | E4: % of students scoring at Levels 3 or higher in Reading, Math, Science, and Algebra EOC
A5: Winter IA | B5: 2012-01-20 | C5: 2012-01-20 | D5: Winter Interim Assessment | E5: Reading Grades 3-10: % of students scoring at Satisfactory Progress Math Grades 3-8, and Algebra: % of students scoring at Satifactory Progress Geometry: % of students scoring at 70% or higher Science Grades 5, 8, and Biology: % of students scoring at 70% or higher Writing: % of students scoring at 4 or higher For the cut scores of "Satisfactory Progress", see the Winter IA and Fall IA Cut Scores sheet tabs.
A6: Fall IA | B6: 2011-11-10 | C6: 2011-11-11 | D6: Fall Interim Assessment
A7: Baseline | B7: 2011-09-02 | C7: 2011-09-17 | D7: Baseline Assessment | E7: Reading, Math, and Science: % of students scoring at 70% or higher
A8: FCAT 2011 | B8: 2011-05-31 | C8: 2011-06-07 | D8: FCAT/FCAT 2.0 2011 and EOC Algebra | E8: % of students scoring at Levels 3 or higher in Reading Retrofitted, Math Retrofitted, Algebra EOC Retrofitted, and Science

Sheet Select School
B3: =VLOOKUP(C3,SchList!$I$1:$J$497,2,FALSE) -> 9999 | C3: 1

Sheet Winter IA Cut Scores
A1: Math - 2011-12 Winter Interim Assessment
A2: Grade | B2: Low | C2: Medium | D2: Total Points | E2: Insufficient Progress | F2: Limited Progress | G2: Satisfactory Progress | H2: %Insufficient Progress | I2: % Limited Progress | J2: % Satisfactory Progress
D3: Raw Score | H3: % Scores
A4: 3 | B4: 13 | C4: 15 | D4: 34 | E4: 0 - 13 | F4: 14 - 15 | G4: 16 - 34 | H4: 0 to 38% | I4: 41% - 44% | J4: 47% or higher
A5: 4 | B5: 15 | C5: 18 | D5: 40 | E5: 0 - 15 | F5: 16 - 18 | G5: 19 - 40 | H5: 0 to 38% | I5: 40% - 45% | J5: 48% or higher
A6: 5 | B6: 21 | C6: 23 | D6: 38 | E6: 0 - 21 | F6: 22 - 23 | G6: 24 - 38 | H6: 0 to 55% | I6: 58% - 61% | J6: 63% or higher
A7: 6 | B7: 16 | C7: 18 | D7: 40 | E7: 0 - 16 | F7: 17 - 18 | G7: 19 - 40 | H7: 0 to 40% | I7: 43% - 45% | J7: 48% or higher
A8: 7 | B8: 21 | C8: 24 | D8: 47 | E8: 0 - 21 | F8: 22 - 24 | G8: 25 - 47 | H8: 0 to 45% | I8: 47% - 51% | J8: 53% or higher
A9: 8 | B9: 19 | C9: 22 | D9: 40 | E9: 0 - 19 | F9: 20 - 22 | G9: 23 - 40 | H9: 0 to 48% | I9: 50% - 55% | J9: 58% or higher
A10: Alg | B10: 13 | C10: 16 | D10: 40 | E10: 0 - 13 | F10: 14 - 16 | G10: 17 - 40 | H10: 0 to 33% | I10: 35% - 40% | J10: 43% or higher
A11: Reading - 2011-12 Winter Interim Assessment
A12: Grade | B12: Low | C12: Medium | D12: Total Points | E12: Insufficient Progress | F12: Limited Progress | G12: Satisfactory Progress | H12: %Insufficient Progress | I12: % Limited Progress | J12: % Satisfactory Progress
D13: Raw Score | H13: % Scores
A14: 3 | B14: 32 | C14: 35 | D14: 56 | E14: 0 - 32 | F14: 33 - 35 | G14: 36 - 56 | H14: 0 to 57% | I14: 59% - 63% | J14: 64% or higher
A15: 4 | B15: 34 | C15: 37 | D15: 58 | E15: 0 - 34 | F15: 35 - 37 | G15: 38 - 58 | H15: 0 to 59% | I15: 60% - 64% | J15: 66% or higher
A16: 5 | B16: 35 | C16: 38 | D16: 59 | E16: 0 - 35 | F16: 36 - 38 | G16: 39 - 59 | H16: 0 to 59% | I16: 61% - 64% | J16: 66% or higher
A17: 6 | B17: 31 | C17: 35 | D17: 53 | E17: 0 - 31 | F17: 32 - 35 | G17: 36 - 53 | H17: 0 to 58% | I17: 60% - 66% | J17: 68% or higher
A18: 7 | B18: 26 | C18: 29 | D18: 47 | E18: 0 - 26 | F18: 27 - 29 | G18: 30 - 47 | H18: 0 to 55% | I18: 57% - 62% | J18: 64% or higher
A19: 8 | B19: 28 | C19: 31 | D19: 48 | E19: 0 - 28 | F19: 29 - 31 | G19: 32 - 48 | H19: 0 to 58% | I19: 60% - 65% | J19: 67% or higher
A20: 9 | B20: 29 | C20: 32 | D20: 50 | E20: 0 - 29 | F20: 30 - 32 | G20: 33 - 50 | H20: 0 to 58% | I20: 60% - 64% | J20: 66% or higher
A21: 10 | B21: 28 | C21: 32 | D21: 49 | E21: 0 - 28 | F21: 29 - 32 | G21: 33 - 49 | H21: 0 to 57% | I21: 59% - 65% | J21: 67% or higher

Sheet Fall IA Cut Scores
A1: Math - 2011-12 Fall Interim Assessment
A2: Grade | B2: Low | C2: Medium | D2: Total Points | E2: Insufficient Progress | F2: Limited Progress | G2: Satisfactory Progress | H2: %Insufficient Progress | I2: % Limited Progress | J2: % Satisfactory Progress
D3: Raw Score | H3: % Scores
A4: 3 | B4: 14 | C4: 17 | D4: 30 | E4: 0 - 14 | F4: 15 - 17 | G4: 18 - 30 | H4: 0 to 47% | I4: 50% - 57% | J4: 60% or higher
A5: 4 | B5: 15 | C5: 18 | D5: 34 | E5: 0 - 15 | F5: 16 - 18 | G5: 19 - 34 | H5: 0 to 44% | I5: 47% - 53% | J5: 56% or higher
A6: 5 | B6: 18 | C6: 20 | D6: 34 | E6: 0 - 18 | F6: 19 - 20 | G6: 21 - 34 | H6: 0 to 53% | I6: 56% - 59% | J6: 62% or higher
A7: 6 | B7: 15 | C7: 18 | D7: 37 | E7: 0 - 15 | F7: 16 - 18 | G7: 19 - 37 | H7: 0 to 41% | I7: 43% - 49% | J7: 51% or higher
A8: 7 | B8: 15 | C8: 18 | D8: 39 | E8: 0 - 15 | F8: 16 - 18 | G8: 19 - 39 | H8: 0 to 38% | I8: 41% - 46% | J8: 49% or higher
A9: 8 | B9: 17 | C9: 20 | D9: 40 | E9: 0 - 17 | F9: 18 - 20 | G9: 21 - 40 | H9: 0 to 43% | I9: 45% - 50% | J9: 53% or higher
A10: Alg | B10: 11 | C10: 14 | D10: 34 | E10: 0 - 11 | F10: 12 - 14 | G10: 15 - 34 | H10: 0 to 32% | I10: 35% - 41% | J10: 44% or higher
A11: Reading - 2011-12 Fall Interim Assessment
A12: Grade | B12: Low | C12: Medium | D12: Total Points | E12: Insufficient Progress | F12: Limited Progress | G12: Satisfactory Progress | H12: %Insufficient Progress | I12: % Limited Progress | J12: % Satisfactory Progress
D13: Raw Score | H13: % Scores
A14: 3 | B14: 27 | C14: 31 | D14: 56 | E14: 0 - 27 | F14: 28 - 31 | G14: 32 - 56 | H14: 0 to 48% | I14: 50% - 55% | J14: 57% or higher
A15: 4 | B15: 30 | C15: 34 | D15: 56 | E15: 0 - 30 | F15: 31 - 34 | G15: 35 - 56 | H15: 0 to 54% | I15: 55% - 61% | J15: 63% or higher
A16: 5 | B16: 31 | C16: 35 | D16: 56 | E16: 0 - 31 | F16: 32 - 35 | G16: 36 - 56 | H16: 0 to 55% | I16: 57% - 63% | J16: 64% or higher
A17: 6 | B17: 29 | C17: 33 | D17: 54 | E17: 0 - 29 | F17: 30 - 33 | G17: 34 - 54 | H17: 0 to 54% | I17: 56% - 61% | J17: 63% or higher
A18: 7 | B18: 27 | C18: 32 | D18: 56 | E18: 0 - 27 | F18: 28 - 32 | G18: 33 - 56 | H18: 0 to 48% | I18: 50% - 57% | J18: 59% or higher
A19: 8* | B19: 31 | C19: 36 | D19: 61 | E19: 0 - 31 | F19: 32 - 36 | G19: 37 - 61 | H19: 0 to 51% | I19: 52% - 59% | J19: 61% or higher
A20: 9* | B20: 29 | C20: 34 | D20: 57 | E20: 0 - 29 | F20: 30 - 34 | G20: 35 - 57 | H20: 0 to 51% | I20: 53% - 60% | J20: 61% or higher
A21: 10* | B21: 24 | C21: 29 | D21: 53 | E21: 0 - 24 | F21: 25 - 29 | G21: 30 - 53 | H21: 0 to 45% | I21: 47% - 55% | J21: 57% or higher
A22: * Tentative pending on the final cut scores of FCAT 2.0

Sheet G3-5 Summary Report
A2: Click here to return to the school and sheet selection interface | AF2: District | AG2: Average % Correct | AT2: District | AU2: % Proficient
A3: ='Select School'!B3 -> 9999 | AG3: District | AU3: District
A4: =TEXT(A3,"0000")&"-"&VLOOKUP(A3,SchList!$A$2:$B$502,2,FALSE) -> 9999-District | AG4: Average % Correct | AP4: Average Score | AU4: % Proficient | BD4: % of Students Scoring at 4.0 and higher
A5: 2011-12 Fall and Winter Interim Assessments, Grades 3-5 | AG5: Reading | AJ5: Math | AM5: Science | AP5: Writing | AU5: Reading | AX5: Math | BA5: Science | BD5: Writing
AF6: Grade | AG6: Baseline | AH6: Fall IA | AI6: Winter IA | AJ6: Baseline | AK6: Fall IA | AL6: Winter IA | AM6: BL | AN6: Fall | AO6: Winter | AP6: Prompt | AQ6: Pre-Test | AR6: Midyear | AT6: Grade | AU6: Baseline | AV6: Fall IA | AW6: Winter IA | AX6: Baseline | AY6: Fall IA | AZ6: Winter IA | BA6: BL | BB6: Fall | BC6: Winter | BD6: Prompt | BE6: Baseline | BF6: Midyear
AF7: 3 | AG7: =IFERROR(IF(VLOOKUP(9999,'BLG3-RALL'!$A$14:$CZ$500,3,FALSE)="",#N/A,VLOOKUP(9999,'BLG3-RALL'!$A$14:$CZ$500,5,FALSE)*100),#N/A) -> 54 | AH7: =IFERROR(IF(VLOOKUP(9999,'FIAG3-RALL'!$A$14:$CV$500,3,FALSE)="",#N/A,VLOOKUP(9999,'FIAG3-RALL'!$A$14:$CV$500,5,FALSE)*100),#N/A) -> 53 | AI7: =IFERROR(IF(VLOOKUP(9999,'WIAG3-RALL'!$A$14:$CZ$500,3,FALSE)="",#N/A,VLOOKUP(9999,'WIAG3-RALL'!$A$14:$CZ$500,5,FALSE)*100),#N/A) -> 61 | AJ7: =IFERROR(IF(VLOOKUP(9999,'BLG3-MALL'!$A$14:$CZ$500,3,FALSE)="",#N/A,VLOOKUP(9999,'BLG3-MALL'!$A$14:$CZ$500,5,FALSE)*100),#N/A) -> 39 | AK7: =IFERROR(IF(VLOOKUP(9999,'FIAG3-MALL'!$A$14:$DB$500,3,FALSE)="",#N/A,VLOOKUP(9999,'FIAG3-MALL'!$A$14:$DB$500,5,FALSE)*100),#N/A) -> 60 | AL7: =IFERROR(IF(VLOOKUP(9999,'WIAG3-MALL'!$A$14:$CZ$500,3,FALSE)="",#N/A,VLOOKUP(9999,'WIAG3-MALL'!$A$14:$CZ$500,5,FALSE)*100),#N/A) -> 51 | AP7: Expository | AQ7: =IFERROR(IF(VLOOKUP(9999,'BLG4-WALL'!$A$14:$CZ$503,3,FALSE)="",#N/A,VLOOKUP(9999,'BLG4-WALL'!$A$14:$CZ$503,4,FALSE)),#N/A) -> 1.713537118 | AR7: =IFERROR(IF(VLOOKUP(9999,'MYG4-WALL'!$A$14:$CZ$500,3,FALSE)="",#N/A,VLOOKUP(9999,'MYG4-WALL'!$A$14:$CZ$500,4,FALSE)),#N/A) -> 2.75585869 | AT7: 3 | AU7: =IFERROR(IF(VLOOKUP(9999,'BLG3-RALL'!$A$14:$CZ$500,3,FALSE)="",#N/A,VLOOKUP(9999,'BLG3-RALL'!$A$14:$CZ$500,9,FALSE)*100),#N/A) -> 26.61 | AV7: =IFERROR(IF(VLOOKUP(9999,'FIAG3-RALL'!$A$14:$CV$500,3,FALSE)="",#N/A,VLOOKUP(9999,'FIAG3-RALL'!$A$14:$CV$500,11,FALSE)*100),#N/A) -> 44.42 | AW7: =IFERROR(IF(VLOOKUP(9999,'WIAG3-RALL'!$A$14:$CZ$500,3,FALSE)="",#N/A,VLOOKUP(9999,'WIAG3-RALL'!$A$14:$CZ$500,11,FALSE)*100),#N/A) -> 49.76 | AX7: =IFERROR(IF(VLOOKUP(9999,'BLG3-MALL'!$A$14:$CZ$500,3,FALSE)="",#N/A,VLOOKUP(9999,'BLG3-MALL'!$A$14:$CZ$500,9,FALSE)*100),#N/A) -> 1.79 | AY7: =IFERROR(IF(VLOOKUP(9999,'FIAG3-MALL'!$A$14:$DB$500,3,FALSE)="",#N/A,VLOOKUP(9999,'FIAG3-MALL'!$A$14:$DB$500,11,FALSE)*100),#N/A) -> 53.06 | AZ7: =IFERROR(IF(VLOOKUP(9999,'WIAG3-MALL'!$A$14:$CZ$500,3,FALSE)="",#N/A,VLOOKUP(9999,'WIAG3-MALL'!$A$14:$CZ$500,11,FALSE)*100),#N/A) -> 56.98 | BD7: Expository | BE7: =IFERROR(IF(VLOOKUP(9999,'BLG4-WALL'!$A$14:$CZ$503,3,FALSE)="",#N/A,VLOOKUP(9999,'BLG4-WALL'!$A$14:$CZ$503,11,FALSE)*100),#N/A) -> 3.155412862 | BF7: =IFERROR(IF(VLOOKUP(9999,'MYG4-WALL'!$A$14:$CZ$500,3,FALSE)="",#N/A,VLOOKUP(9999,'MYG4-WALL'!$A$14:$CZ$500,11,FALSE)*100),#N/A) -> 26.03919546
AF8: 4 | AG8: =IFERROR(IF(VLOOKUP(9999,'BLG4-RALL'!$A$14:$CZ$500,3,FALSE)="",#N/A,VLOOKUP(9999,'BLG4-RALL'!$A$14:$CZ$500,5,FALSE)*100),#N/A) -> 59 | AH8: =IFERROR(IF(VLOOKUP(9999,'FIAG4-RALL'!$A$14:$CV$500,3,FALSE)="",#N/A,VLOOKUP(9999,'FIAG4-RALL'!$A$14:$CV$500,5,FALSE)*100),#N/A) -> 62 | AI8: =IFERROR(IF(VLOOKUP(9999,'WIAG4-RALL'!$A$14:$CZ$500,3,FALSE)="",#N/A,VLOOKUP(9999,'WIAG4-RALL'!$A$14:$CZ$500,5,FALSE)*100),#N/A) -> 65 | AJ8: =IFERROR(IF(VLOOKUP(9999,'BLG4-MALL'!$A$14:$CZ$500,3,FALSE)="",#N/A,VLOOKUP(9999,'BLG4-MALL'!$A$14:$CZ$500,5,FALSE)*100),#N/A) -> 40 | AK8: =IFERROR(IF(VLOOKUP(9999,'FIAG4-MALL'!$A$14:$DB$500,3,FALSE)="",#N/A,VLOOKUP(9999,'FIAG4-MALL'!$A$14:$DB$500,5,FALSE)*100),#N/A) -> 57 | AL8: =IFERROR(IF(VLOOKUP(9999,'WIAG4-MALL'!$A$14:$CZ$500,3,FALSE)="",#N/A,VLOOKUP(9999,'WIAG4-MALL'!$A$14:$CZ$500,5,FALSE)*100),#N/A) -> 53 | AP8: Narrative | AQ8: =IFERROR(IF(VLOOKUP(9999,'BLG4-WALL'!$A$14:$CZ$503,12,FALSE)="",#N/A,VLOOKUP(9999,'BLG4-WALL'!$A$14:$CZ$503,13,FALSE)),#N/A) -> 1.668722465 | AR8: =IFERROR(IF(VLOOKUP(9999,'MYG4-WALL'!$A$14:$CZ$500,12,FALSE)="",#N/A,VLOOKUP(9999,'MYG4-WALL'!$A$14:$CZ$500,13,FALSE)),#N/A) -> 2.838634728 | AT8: 4 | AU8: =IFERROR(IF(VLOOKUP(9999,'BLG4-RALL'!$A$14:$CZ$500,3,FALSE)="",#N/A,VLOOKUP(9999,'BLG4-RALL'!$A$14:$CZ$500,9,FALSE)*100),#N/A) -> 31.92 | AV8: =IFERROR(IF(VLOOKUP(9999,'FIAG4-RALL'!$A$14:$CV$500,3,FALSE)="",#N/A,VLOOKUP(9999,'FIAG4-RALL'!$A$14:$CV$500,11,FALSE)*100),#N/A) -> 54.76 | AW8: =IFERROR(IF(VLOOKUP(9999,'WIAG4-RALL'!$A$14:$CZ$500,3,FALSE)="",#N/A,VLOOKUP(9999,'WIAG4-RALL'!$A$14:$CZ$500,11,FALSE)*100),#N/A) -> 57.76 | AX8: =IFERROR(IF(VLOOKUP(9999,'BLG4-MALL'!$A$14:$CZ$500,3,FALSE)="",#N/A,VLOOKUP(9999,'BLG4-MALL'!$A$14:$CZ$500,9,FALSE)*100),#N/A) -> 3.46 | AY8: =IFERROR(IF(VLOOKUP(9999,'FIAG4-MALL'!$A$14:$DB$500,3,FALSE)="",#N/A,VLOOKUP(9999,'FIAG4-MALL'!$A$14:$DB$500,11,FALSE)*100),#N/A) -> 54.36 | AZ8: =IFERROR(IF(VLOOKUP(9999,'WIAG4-MALL'!$A$14:$CZ$500,3,FALSE)="",#N/A,VLOOKUP(9999,'WIAG4-MALL'!$A$14:$CZ$500,11,FALSE)*100),#N/A) -> 57.2 | BD8: Narrative | BE8: =IFERROR(IF(VLOOKUP(9999,'BLG4-WALL'!$A$14:$CZ$503,12,FALSE)="",#N/A,VLOOKUP(9999,'BLG4-WALL'!$A$14:$CZ$503,20,FALSE)*100),#N/A) -> 4.250514377 | BF8: =IFERROR(IF(VLOOKUP(9999,'MYG4-WALL'!$A$14:$CZ$500,12,FALSE)="",#N/A,VLOOKUP(9999,'MYG4-WALL'!$A$14:$CZ$500,20,FALSE)*100),#N/A) -> 30.04750594
AF9: 5 | AG9: =IFERROR(IF(VLOOKUP(9999,'BLG5-RALL'!$A$14:$CZ$500,3,FALSE)="",#N/A,VLOOKUP(9999,'BLG5-RALL'!$A$14:$CZ$500,5,FALSE)*100),#N/A) -> 61 | AH9: =IFERROR(IF(VLOOKUP(9999,'FIAG5-RALL'!$A$14:$CV$500,3,FALSE)="",#N/A,VLOOKUP(9999,'FIAG5-RALL'!$A$14:$CV$500,5,FALSE)*100),#N/A) -> 63 | AI9: =IFERROR(IF(VLOOKUP(9999,'WIAG5-RALL'!$A$14:$CZ$500,3,FALSE)="",#N/A,VLOOKUP(9999,'WIAG5-RALL'!$A$14:$CZ$500,5,FALSE)*100),#N/A) -> 64 | AJ9: =IFERROR(IF(VLOOKUP(9999,'BLG5-MALL'!$A$14:$CZ$500,3,FALSE)="",#N/A,VLOOKUP(9999,'BLG5-MALL'!$A$14:$CZ$500,5,FALSE)*100),#N/A) -> 42 | AK9: =IFERROR(IF(VLOOKUP(9999,'FIAG5-MALL'!$A$14:$CX$500,3,FALSE)="",#N/A,VLOOKUP(9999,'FIAG5-MALL'!$A$14:$CX$500,5,FALSE)*100),#N/A) -> 60 | AL9: =IFERROR(IF(VLOOKUP(9999,'WIAG5-MALL'!$A$14:$CF$500,3,FALSE)="",#N/A,VLOOKUP(9999,'WIAG5-MALL'!$A$14:$CF$500,5,FALSE)*100),#N/A) -> 62 | AM9: =IFERROR(IF(VLOOKUP(9999,'BLG5-SALL'!$A$14:$CZ$500,3,FALSE)="",#N/A,VLOOKUP(9999,'BLG5-SALL'!$A$14:$CZ$500,5,FALSE)*100),#N/A) -> 45 | AN9: =IFERROR(IF(VLOOKUP(9999,'FIAG5-SALL'!$A$14:$CZ$500,3,FALSE)="",#N/A,VLOOKUP(9999,'FIAG5-SALL'!$A$14:$CZ$500,5,FALSE)*100),#N/A) -> 49 | AO9: =IFERROR(IF(VLOOKUP(9999,'WIAG5-SALL'!$A$14:$CZ$500,3,FALSE)="",#N/A,VLOOKUP(9999,'WIAG5-SALL'!$A$14:$CZ$500,5,FALSE)*100),#N/A) -> 51 | AT9: 5 | AU9: =IFERROR(IF(VLOOKUP(9999,'BLG5-RALL'!$A$14:$CZ$500,3,FALSE)="",#N/A,VLOOKUP(9999,'BLG5-RALL'!$A$14:$CZ$500,9,FALSE)*100),#N/A) -> 34.68 | AV9: =IFERROR(IF(VLOOKUP(9999,'FIAG5-RALL'!$A$14:$CV$500,3,FALSE)="",#N/A,VLOOKUP(9999,'FIAG5-RALL'!$A$14:$CV$500,11,FALSE)*100),#N/A) -> 53.09 | AW9: =IFERROR(IF(VLOOKUP(9999,'WIAG5-RALL'!$A$14:$CZ$500,3,FALSE)="",#N/A,VLOOKUP(9999,'WIAG5-RALL'!$A$14:$CZ$500,11,FALSE)*100),#N/A) -> 54.69 | AX9: =IFERROR(IF(VLOOKUP(9999,'BLG5-MALL'!$A$14:$CZ$500,3,FALSE)="",#N/A,VLOOKUP(9999,'BLG5-MALL'!$A$14:$CZ$500,9,FALSE)*100),#N/A) -> 4.87 | AY9: =IFERROR(IF(VLOOKUP(9999,'FIAG5-MALL'!$A$14:$CX$500,3,FALSE)="",#N/A,VLOOKUP(9999,'FIAG5-MALL'!$A$14:$CX$500,11,FALSE)*100),#N/A) -> 50.96 | AZ9: =IFERROR(IF(VLOOKUP(9999,'WIAG5-MALL'!$A$14:$CF$500,3,FALSE)="",#N/A,VLOOKUP(9999,'WIAG5-MALL'!$A$14:$CF$500,11,FALSE)*100),#N/A) -> 51.59 | BA9: =IFERROR(IF(VLOOKUP(9999,'BLG5-SALL'!$A$14:$CZ$500,3,FALSE)="",#N/A,VLOOKUP(9999,'BLG5-SALL'!$A$14:$CZ$500,9,FALSE)*100),#N/A) -> 4.3 | BB9: =IFERROR(IF(VLOOKUP(9999,'FIAG5-SALL'!$A$14:$CZ$500,3,FALSE)="",#N/A,VLOOKUP(9999,'FIAG5-SALL'!$A$14:$CZ$500,9,FALSE)*100),#N/A) -> 10.7 | BC9: =IFERROR(IF(VLOOKUP(9999,'WIAG5-SALL'!$A$14:$CZ$500,3,FALSE)="",#N/A,VLOOKUP(9999,'WIAG5-SALL'!$A$14:$CZ$500,9,FALSE)*100),#N/A) -> 11.68
AF11: School | AG11: =A4 -> 9999-District | AT11: School | AU11: =A4 -> 9999-District
AG12: Average % Correct | AP12: Average Score | AU12: % Proficient | BD12: % of Students Scoring at 4.0 and higher
AG13: Reading | AJ13: Math | AM13: Science | AP13: Writing | AU13: Reading | AX13: Math | BA13: Science | BD13: Writing
AF14: Grade | AG14: Baseline | AH14: Fall IA | AI14: Winter IA | AJ14: Baseline | AK14: Fall IA | AL14: Winter IA | AM14: BL | AN14: Fall | AO14: Winter | AP14: Prompt | AQ14: Pre-Test | AR14: Midyear | AT14: Grade | AU14: Baseline | AV14: Fall IA | AW14: Winter IA | AX14: Baseline | AY14: Fall IA | AZ14: Winter IA | BA14: BL | BB14: Fall | BC14: Winter | BD14: Prompt | BE14: Baseline | BF14: Midyear
AF15: 3 | AG15: =IFERROR(IF(VLOOKUP($A$3,'BLG3-RALL'!$A$14:$CZ$500,3,FALSE)="",#N/A,VLOOKUP($A$3,'BLG3-RALL'!$A$14:$CZ$500,5,FALSE)*100),#N/A) -> 54 | AH15: =IFERROR(IF(VLOOKUP($A$3,'FIAG3-RALL'!$A$14:$CV$500,3,FALSE)="",#N/A,VLOOKUP($A$3,'FIAG3-RALL'!$A$14:$CV$500,5,FALSE)*100),#N/A) -> 53 | AI15: =IFERROR(IF(VLOOKUP($A$3,'WIAG3-RALL'!$A$14:$CZ$500,3,FALSE)="",#N/A,VLOOKUP($A$3,'WIAG3-RALL'!$A$14:$CZ$500,5,FALSE)*100),#N/A) -> 61 | AJ15: =IFERROR(IF(VLOOKUP($A$3,'BLG3-MALL'!$A$14:$CZ$500,3,FALSE)="",#N/A,VLOOKUP($A$3,'BLG3-MALL'!$A$14:$CZ$500,5,FALSE)*100),#N/A) -> 39 | AK15: =IFERROR(IF(VLOOKUP($A$3,'FIAG3-MALL'!$A$14:$DB$500,3,FALSE)="",#N/A,VLOOKUP($A$3,'FIAG3-MALL'!$A$14:$DB$500,5,FALSE)*100),#N/A) -> 60 | AL15: =IFERROR(IF(VLOOKUP($A$3,'WIAG3-MALL'!$A$14:$CZ$500,3,FALSE)="",#N/A,VLOOKUP($A$3,'WIAG3-MALL'!$A$14:$CZ$500,5,FALSE)*100),#N/A) -> 51 | AP15: Expository | AQ15: =IFERROR(IF(VLOOKUP($A$3,'BLG4-WALL'!$A$14:$CZ$503,3,FALSE)="",#N/A,VLOOKUP($A$3,'BLG4-WALL'!$A$14:$CZ$503,4,FALSE)),#N/A) -> 1.713537118 | AR15: =IFERROR(IF(VLOOKUP($A$3,'MYG4-WALL'!$A$14:$CZ$500,3,FALSE)="",#N/A,VLOOKUP($A$3,'MYG4-WALL'!$A$14:$CZ$500,4,FALSE)),#N/A) -> 2.75585869 | AT15: 3 | AU15: =IFERROR(IF(VLOOKUP($A$3,'BLG3-RALL'!$A$14:$CZ$500,3,FALSE)="",#N/A,VLOOKUP($A$3,'BLG3-RALL'!$A$14:$CZ$500,9,FALSE)*100),#N/A) -> 26.61 | AV15: =IFERROR(IF(VLOOKUP($A$3,'FIAG3-RALL'!$A$14:$CV$500,3,FALSE)="",#N/A,VLOOKUP($A$3,'FIAG3-RALL'!$A$14:$CV$500,11,FALSE)*100),#N/A) -> 44.42 | AW15: =IFERROR(IF(VLOOKUP($A$3,'WIAG3-RALL'!$A$14:$CZ$500,3,FALSE)="",#N/A,VLOOKUP($A$3,'WIAG3-RALL'!$A$14:$CZ$500,11,FALSE)*100),#N/A) -> 49.76 | AX15: =IFERROR(IF(VLOOKUP($A$3,'BLG3-MALL'!$A$14:$CZ$500,3,FALSE)="",#N/A,VLOOKUP($A$3,'BLG3-MALL'!$A$14:$CZ$500,9,FALSE)*100),#N/A) -> 1.79 | AY15: =IFERROR(IF(VLOOKUP($A$3,'FIAG3-MALL'!$A$14:$DB$500,3,FALSE)="",#N/A,VLOOKUP($A$3,'FIAG3-MALL'!$A$14:$DB$500,11,FALSE)*100),#N/A) -> 53.06 | AZ15: =IFERROR(IF(VLOOKUP($A$3,'WIAG3-MALL'!$A$14:$CZ$500,3,FALSE)="",#N/A,VLOOKUP($A$3,'WIAG3-MALL'!$A$14:$CZ$500,11,FALSE)*100),#N/A) -> 56.98 | BD15: Expository | BE15: =IFERROR(IF(VLOOKUP($A$3,'BLG4-WALL'!$A$14:$CZ$503,3,FALSE)="",#N/A,VLOOKUP($A$3,'BLG4-WALL'!$A$14:$CZ$503,11,FALSE)*100),#N/A) -> 3.155412862 | BF15: =IFERROR(IF(VLOOKUP($A$3,'MYG4-WALL'!$A$14:$CZ$500,3,FALSE)="",#N/A,VLOOKUP($A$3,'MYG4-WALL'!$A$14:$CZ$500,11,FALSE)*100),#N/A) -> 26.03919546
AF16: 4 | AG16: =IFERROR(IF(VLOOKUP($A$3,'BLG4-RALL'!$A$14:$CZ$500,3,FALSE)="",#N/A,VLOOKUP($A$3,'BLG4-RALL'!$A$14:$CZ$500,5,FALSE)*100),#N/A) -> 59 | AH16: =IFERROR(IF(VLOOKUP($A$3,'FIAG4-RALL'!$A$14:$CV$500,3,FALSE)="",#N/A,VLOOKUP($A$3,'FIAG4-RALL'!$A$14:$CV$500,5,FALSE)*100),#N/A) -> 62 | AI16: =IFERROR(IF(VLOOKUP($A$3,'WIAG4-RALL'!$A$14:$CZ$500,3,FALSE)="",#N/A,VLOOKUP($A$3,'WIAG4-RALL'!$A$14:$CZ$500,5,FALSE)*100),#N/A) -> 65 | AJ16: =IFERROR(IF(VLOOKUP($A$3,'BLG4-MALL'!$A$14:$CZ$500,3,FALSE)="",#N/A,VLOOKUP($A$3,'BLG4-MALL'!$A$14:$CZ$500,5,FALSE)*100),#N/A) -> 40 | AK16: =IFERROR(IF(VLOOKUP($A$3,'FIAG4-MALL'!$A$14:$DB$500,3,FALSE)="",#N/A,VLOOKUP($A$3,'FIAG4-MALL'!$A$14:$DB$500,5,FALSE)*100),#N/A) -> 57 | AL16: =IFERROR(IF(VLOOKUP($A$3,'WIAG4-MALL'!$A$14:$CZ$500,3,FALSE)="",#N/A,VLOOKUP($A$3,'WIAG4-MALL'!$A$14:$CZ$500,5,FALSE)*100),#N/A) -> 53 | AP16: Narrative | AQ16: =IFERROR(IF(VLOOKUP($A$3,'BLG4-WALL'!$A$14:$CZ$503,12,FALSE)="",#N/A,VLOOKUP($A$3,'BLG4-WALL'!$A$14:$CZ$503,13,FALSE)),#N/A) -> 1.668722465 | AR16: =IFERROR(IF(VLOOKUP($A$3,'MYG4-WALL'!$A$14:$CZ$500,12,FALSE)="",#N/A,VLOOKUP($A$3,'MYG4-WALL'!$A$14:$CZ$500,13,FALSE)),#N/A) -> 2.838634728 | AT16: 4 | AU16: =IFERROR(IF(VLOOKUP($A$3,'BLG4-RALL'!$A$14:$CZ$500,3,FALSE)="",#N/A,VLOOKUP($A$3,'BLG4-RALL'!$A$14:$CZ$500,9,FALSE)*100),#N/A) -> 31.92 | AV16: =IFERROR(IF(VLOOKUP($A$3,'FIAG4-RALL'!$A$14:$CV$500,3,FALSE)="",#N/A,VLOOKUP($A$3,'FIAG4-RALL'!$A$14:$CV$500,11,FALSE)*100),#N/A) -> 54.76 | AW16: =IFERROR(IF(VLOOKUP($A$3,'WIAG4-RALL'!$A$14:$CZ$500,3,FALSE)="",#N/A,VLOOKUP($A$3,'WIAG4-RALL'!$A$14:$CZ$500,11,FALSE)*100),#N/A) -> 57.76 | AX16: =IFERROR(IF(VLOOKUP($A$3,'BLG4-MALL'!$A$14:$CZ$500,3,FALSE)="",#N/A,VLOOKUP($A$3,'BLG4-MALL'!$A$14:$CZ$500,9,FALSE)*100),#N/A) -> 3.46 | AY16: =IFERROR(IF(VLOOKUP($A$3,'FIAG4-MALL'!$A$14:$DB$500,3,FALSE)="",#N/A,VLOOKUP($A$3,'FIAG4-MALL'!$A$14:$DB$500,11,FALSE)*100),#N/A) -> 54.36 | AZ16: =IFERROR(IF(VLOOKUP($A$3,'WIAG4-MALL'!$A$14:$CZ$500,3,FALSE)="",#N/A,VLOOKUP($A$3,'WIAG4-MALL'!$A$14:$CZ$500,11,FALSE)*100),#N/A) -> 57.2 | BD16: Narrative | BE16: =IFERROR(IF(VLOOKUP($A$3,'BLG4-WALL'!$A$14:$CZ$503,12,FALSE)="",#N/A,VLOOKUP($A$3,'BLG4-WALL'!$A$14:$CZ$503,20,FALSE)*100),#N/A) -> 4.250514377 | BF16: =IFERROR(IF(VLOOKUP($A$3,'MYG4-WALL'!$A$14:$CZ$500,12,FALSE)="",#N/A,VLOOKUP($A$3,'MYG4-WALL'!$A$14:$CZ$500,20,FALSE)*100),#N/A) -> 30.04750594
AF17: 5 | AG17: =IFERROR(IF(VLOOKUP($A$3,'BLG5-RALL'!$A$14:$CZ$500,3,FALSE)="",#N/A,VLOOKUP($A$3,'BLG5-RALL'!$A$14:$CZ$500,5,FALSE)*100),#N/A) -> 61 | AH17: =IFERROR(IF(VLOOKUP($A$3,'FIAG5-RALL'!$A$14:$CV$500,3,FALSE)="",#N/A,VLOOKUP($A$3,'FIAG5-RALL'!$A$14:$CV$500,5,FALSE)*100),#N/A) -> 63 | AI17: =IFERROR(IF(VLOOKUP($A$3,'WIAG5-RALL'!$A$14:$CZ$500,3,FALSE)="",#N/A,VLOOKUP($A$3,'WIAG5-RALL'!$A$14:$CZ$500,5,FALSE)*100),#N/A) -> 64 | AJ17: =IFERROR(IF(VLOOKUP($A$3,'BLG5-MALL'!$A$14:$CZ$500,3,FALSE)="",#N/A,VLOOKUP($A$3,'BLG5-MALL'!$A$14:$CZ$500,5,FALSE)*100),#N/A) -> 42 | AK17: =IFERROR(IF(VLOOKUP($A$3,'FIAG5-MALL'!$A$14:$CX$500,3,FALSE)="",#N/A,VLOOKUP($A$3,'FIAG5-MALL'!$A$14:$CX$500,5,FALSE)*100),#N/A) -> 60 | AL17: =IFERROR(IF(VLOOKUP($A$3,'WIAG5-MALL'!$A$14:$CF$500,3,FALSE)="",#N/A,VLOOKUP($A$3,'WIAG5-MALL'!$A$14:$CF$500,5,FALSE)*100),#N/A) -> 62 | AM17: =IFERROR(IF(VLOOKUP($A$3,'BLG5-SALL'!$A$14:$CZ$500,3,FALSE)="",#N/A,VLOOKUP($A$3,'BLG5-SALL'!$A$14:$CZ$500,5,FALSE)*100),#N/A) -> 45 | AN17: =IFERROR(IF(VLOOKUP($A$3,'FIAG5-SALL'!$A$14:$CZ$500,3,FALSE)="",#N/A,VLOOKUP($A$3,'FIAG5-SALL'!$A$14:$CZ$500,5,FALSE)*100),#N/A) -> 49 | AO17: =IFERROR(IF(VLOOKUP($A$3,'WIAG5-SALL'!$A$14:$CZ$500,3,FALSE)="",#N/A,VLOOKUP($A$3,'WIAG5-SALL'!$A$14:$CZ$500,5,FALSE)*100),#N/A) -> 51 | AT17: 5 | AU17: =IFERROR(IF(VLOOKUP($A$3,'BLG5-RALL'!$A$14:$CZ$500,3,FALSE)="",#N/A,VLOOKUP($A$3,'BLG5-RALL'!$A$14:$CZ$500,9,FALSE)*100),#N/A) -> 34.68 | AV17: =IFERROR(IF(VLOOKUP($A$3,'FIAG5-RALL'!$A$14:$CV$500,3,FALSE)="",#N/A,VLOOKUP($A$3,'FIAG5-RALL'!$A$14:$CV$500,11,FALSE)*100),#N/A) -> 53.09 | AW17: =IFERROR(IF(VLOOKUP($A$3,'WIAG5-RALL'!$A$14:$CZ$500,3,FALSE)="",#N/A,VLOOKUP($A$3,'WIAG5-RALL'!$A$14:$CZ$500,11,FALSE)*100),#N/A) -> 54.69 | AX17: =IFERROR(IF(VLOOKUP($A$3,'BLG5-MALL'!$A$14:$CZ$500,3,FALSE)="",#N/A,VLOOKUP($A$3,'BLG5-MALL'!$A$14:$CZ$500,9,FALSE)*100),#N/A) -> 4.87 | AY17: =IFERROR(IF(VLOOKUP($A$3,'FIAG5-MALL'!$A$14:$CX$500,3,FALSE)="",#N/A,VLOOKUP($A$3,'FIAG5-MALL'!$A$14:$CX$500,11,FALSE)*100),#N/A) -> 50.96 | AZ17: =IFERROR(IF(VLOOKUP($A$3,'WIAG5-MALL'!$A$14:$CF$500,3,FALSE)="",#N/A,VLOOKUP($A$3,'WIAG5-MALL'!$A$14:$CF$500,11,FALSE)*100),#N/A) -> 51.59 | BA17: =IFERROR(IF(VLOOKUP($A$3,'BLG5-SALL'!$A$14:$CZ$500,3,FALSE)="",#N/A,VLOOKUP($A$3,'BLG5-SALL'!$A$14:$CZ$500,9,FALSE)*100),#N/A) -> 4.3 | BB17: =IFERROR(IF(VLOOKUP($A$3,'FIAG5-SALL'!$A$14:$CZ$500,3,FALSE)="",#N/A,VLOOKUP($A$3,'FIAG5-SALL'!$A$14:$CZ$500,9,FALSE)*100),#N/A) -> 10.7 | BC17: =IFERROR(IF(VLOOKUP($A$3,'WIAG5-SALL'!$A$14:$CZ$500,3,FALSE)="",#N/A,VLOOKUP($A$3,'WIAG5-SALL'!$A$14:$CZ$500,9,FALSE)*100),#N/A) -> 11.68

Sheet G3-5 Detailed Report
A2: Click here to return to the school and sheet selection interface
A3: ='Select School'!B3 -> 9999 | AJ3: =TYPE(A3) -> 1
A4: =TEXT(A3,"0000")&"-"&VLOOKUP(A3,SchList!$A$2:$B$497,2,FALSE) -> 9999-District
A5: Reading - Grade 3 (*2011 FCAT Retrofitted Scores) | S5: Mathematics - Grade 3 (*2011 FCAT Retrofitted Scores)
A6: Assessment | B6: Enroll-ment | C6: % Tested | D6: Avg. % Correct | E6: % Perf. | F6: Vocabulary | I6: Reading Application | L6: Literary Analysis Fiction/Non Fiction | O6: Informational Text/ Research Process | S6: Assessment | T6: Enroll-ment | U6: % Tested | V6: Avg. % Correct | W6: % Perf. | X6: Number: Oper., Problems & Stat. | AB6: Number: Fractions | AF6: Geometry and Measurement | AJ6: Number Tested Grade 3
F7: Avg.% Correct | G7: Pts. Max | H7: % Perf. | I7: Avg.% Correct | J7: Pts. Max | K7: % Perf. | L7: Avg.% Correct | M7: Pts. Max | N7: % Perf. | O7: Avg.% Correct | P7: Pts. Max | Q7: % Perf. | X7: Avg.% Correct | Y7: Pts. Max | AA7: % Perf. | AB7: Avg.% Correct | AD7: Pts. Max | AE7: % Perf. | AF7: Avg.% Correct | AG7: Pts. Max | AH7: % Perf. | AJ7: Reading | AK7: Math
A8: FCAT 2012 | B8: =IFERROR(VLOOKUP(TEXT($A$3,"0000"),'MemMay1-2012'!$A$2:$O$500,7,FALSE),"") -> 27262 | C8: =IFERROR(IF(VLOOKUP($A$3,'R-2012'!$A$7:$N$500,3,FALSE)>B8,1,VLOOKUP($A$3,'R-2012'!$A$7:$N$500,3,FALSE)/B8),"") -> 0.9976524099 | D8: NA | E8: =IFERROR(VLOOKUP($A$3,'R-2012'!$A$7:$N$500,10,FALSE),"") -> 53 | F8: =IFERROR(VLOOKUP($A$3,'R-2012'!$A$7:$N$500,11,FALSE)/G8,"") -> 0.7142857143 | G8: ='R-2012'!$K$6 -> 7 | H8: NA | I8: =IFERROR(VLOOKUP($A$3,'R-2012'!$A$7:$N$500,12,FALSE)/J8,"") -> 0.6 | J8: ='R-2012'!$L$6 -> 20 | K8: NA | L8: =IFERROR(VLOOKUP($A$3,'R-2012'!$A$7:$N$500,13,FALSE)/M8,"") -> 0.7 | M8: ='R-2012'!$M$6 -> 10 | N8: NA | O8: =IFERROR(VLOOKUP($A$3,'R-2012'!$A$7:$N$500,14,FALSE)/P8,"") -> 0.75 | P8: ='R-2012'!$N$6 -> 8 | Q8: NA | S8: FCAT 2012 | T8: =IFERROR(VLOOKUP(TEXT($A$3,"0000"),'MemMay1-2012'!$A$2:$O$500,7,FALSE),"") -> 27262 | U8: =IFERROR(IF(VLOOKUP($A$3,'M-2012'!$A$7:$M$500,3,FALSE)>T8,1,VLOOKUP($A$3,'M-2012'!$A$7:$M$500,3,FALSE)/T8),"") -> 0.9973222801 | V8: NA | W8: =IFERROR(VLOOKUP($A$3,'M-2012'!$A$7:$M$500,10,FALSE),"") -> 60 | X8: =IFERROR(VLOOKUP($A$3,'M-2012'!$A$7:$M$500,11,FALSE)/Y8,"") -> 0.7142857143 | Y8: ='M-2012'!$K$6 -> 21 | Z8: NA | AA8: NA | AB8: =IFERROR(VLOOKUP($A$3,'M-2012'!$A$7:$M$500,12,FALSE)/AD8,"") -> 0.6 | AC8: =IFERROR(VLOOKUP($A$3,'M-2012'!$A$7:$N$500,11,FALSE)/AD8,"") -> 1.5 | AD8: ='M-2012'!$L$6 -> 10 | AE8: NA | AF8: =IFERROR(VLOOKUP($A$3,'M-2012'!$A$7:$M$500,13,FALSE)/AG8,"") -> 0.7692307692 | AG8: ='M-2012'!$M$6 -> 13 | AH8: NA | AJ8: =VLOOKUP($A$3,'R-2012'!$A$7:$N$500,3,FALSE) -> 27198 | AK8: =VLOOKUP($A$3,'M-2012'!$A$7:$M$500,3,FALSE) -> 27189
A9: Winter IA | B9: =IFERROR(VLOOKUP(TEXT($A$3,"0000"),MemJan20!$A$2:$O$500,7,FALSE),"NA") -> 27250 | C9: =IF($B9="NT","NT",IF(VLOOKUP($A$3,'WIAG3-RALL'!$A$14:$AC$500,3,FALSE)>$B9,1,VLOOKUP($A$3,'WIAG3-RALL'!$A$14:$AC$500,3,FALSE)/$B9)) -> 0.9652477064 | D9: =IF($B9="NT","NT",VLOOKUP($A$3,'WIAG3-RALL'!$A$14:$AC$500,5,FALSE)*100) -> 61 | E9: =IF($C9="NT","NT",VLOOKUP($A$3,'WIAG3-RALL'!$A$14:$AC$500,11,FALSE)*100) -> 49.76 | F9: =IFERROR(IF($D9="NT","NT",VLOOKUP($A$3,'WIAG3-RALL'!$A$14:$AI$500,13,FALSE)),"NT") -> 0.7 | G9: 15 | H9: NA | I9: =IFERROR(IF($D9="NT","NT",VLOOKUP($A$3,'WIAG3-RALL'!$A$14:$AI$500,17,FALSE)),"NT") -> 0.59 | J9: 25 | K9: NA | L9: =IFERROR(IF($D9="NT","NT",VLOOKUP($A$3,'WIAG3-RALL'!$A$14:$AI$500,21,FALSE)),"NT") -> 0.55 | M9: 12 | N9: NA | O9: =IFERROR(IF($D9="NT","NT",VLOOKUP($A$3,'WIAG3-RALL'!$A$14:$AI$500,25,FALSE)),"NT") -> 0.53 | P9: 4 | Q9: NA | S9: Winter IA | T9: =IFERROR(VLOOKUP(TEXT($A$3,"0000"),MemJan20!$A$2:$O$500,7,FALSE),"NA") -> 27250 | U9: =IF($T9="NT","NT",IF(VLOOKUP($A$3,'WIAG3-MALL'!$A$14:$AI$500,3,FALSE)>$T9,1,VLOOKUP($A$3,'WIAG3-MALL'!$A$14:$AI$500,3,FALSE)/$T9)) -> 0.9591192661 | V9: =IF($T9="NT","NT",VLOOKUP($A$3,'WIAG3-MALL'!$A$14:$AI$500,5,FALSE)*100) -> 51 | W9: =IF(U9="NT","NT",VLOOKUP($A$3,'WIAG3-MALL'!$A$14:$AI$500,11,FALSE)*100) -> 56.98 | X9: =IFERROR(IF($V9="NT","NT",VLOOKUP($A$3,'WIAG3-MALL'!$A$14:$AO$500,13,FALSE)),"NT") -> 0.56 | Y9: 16 | AA9: NA | AB9: =IFERROR(IF($V9="NT","NT",VLOOKUP($A$3,'WIAG3-MALL'!$A$14:$AO$500,17,FALSE)),"NT") -> 0.47 | AD9: 18 | AE9: NA | AF9: NA | AG9: NA | AH9: NA | AJ9: =VLOOKUP($A$3,'WIAG3-RALL'!$A$14:$AG$500,3,FALSE) -> 26303 | AK9: =VLOOKUP($A$3,'WIAG3-MALL'!$A$14:$AG$500,3,FALSE) -> 26136
A10: Fall IA | B10: =IFERROR(VLOOKUP(TEXT($A$3,"0000"),MemNov10!$A$2:$O$500,7,FALSE),"NA") -> 27403 | C10: =IF($B10="NT","NT",IF(VLOOKUP($A$3,'FIAG3-RALL'!$A$14:$AC$500,3,FALSE)>$B10,1,VLOOKUP($A$3,'FIAG3-RALL'!$A$14:$AC$500,3,FALSE)/$B10)) -> 0.9663540488 | D10: =IF($B10="NT","NT",VLOOKUP($A$3,'FIAG3-RALL'!$A$14:$AC$500,5,FALSE)*100) -> 53 | E10: =IF($C10="NT","NT",VLOOKUP($A$3,'FIAG3-RALL'!$A$14:$AC$500,11,FALSE)*100) -> 44.42 | F10: =IFERROR(IF($D10="NT","NT",VLOOKUP($A$3,'FIAG3-RALL'!$A$14:$AI$500,13,FALSE)),"NT") -> 0.62 | G10: 16 | H10: NA | I10: =IFERROR(IF($D10="NT","NT",VLOOKUP($A$3,'FIAG3-RALL'!$A$14:$AI$500,17,FALSE)),"NT") -> 0.52 | J10: 24 | K10: NA | L10: =IFERROR(IF($D10="NT","NT",VLOOKUP($A$3,'FIAG3-RALL'!$A$14:$AI$500,21,FALSE)),"NT") -> 0.4 | M10: 12 | N10: NA | O10: =IFERROR(IF($D10="NT","NT",VLOOKUP($A$3,'FIAG3-RALL'!$A$14:$AI$500,25,FALSE)),"NT") -> 0.62 | P10: 4 | Q10: NA | S10: Fall IA | T10: =IFERROR(VLOOKUP(TEXT($A$3,"0000"),MemNov10!$A$2:$O$500,7,FALSE),"NA") -> 27403 | U10: =IF($T10="NT","NT",IF(VLOOKUP($A$3,'FIAG3-MALL'!$A$14:$AI$500,3,FALSE)>$T10,1,VLOOKUP($A$3,'FIAG3-MALL'!$A$14:$AI$500,3,FALSE)/$T10)) -> 0.9580702843 | V10: =IF($T10="NT","NT",VLOOKUP($A$3,'FIAG3-MALL'!$A$14:$AI$500,5,FALSE)*100) -> 60 | W10: =IF(U10="NT","NT",VLOOKUP($A$3,'FIAG3-MALL'!$A$14:$AI$500,11,FALSE)*100) -> 53.06 | X10: =IFERROR(IF($V10="NT","NT",VLOOKUP($A$3,'FIAG3-MALL'!$A$14:$AO$500,13,FALSE)),"NT") -> 0.6 | Y10: 30 | AA10: NA | AB10: NA | AD10: NA | AE10: NA | AF10: NA | AG10: NA | AH10: NA | AJ10: =VLOOKUP($A$3,'FIAG3-RALL'!$A$14:$AC$500,3,FALSE) -> 26481 | AK10: =VLOOKUP($A$3,'FIAG3-MALL'!$A$14:$AI$500,3,FALSE) -> 26254
A11: Baseline | B11: =IFERROR(VLOOKUP(TEXT($A$3,"0000"),MemSep02!$A$2:$O$500,7,FALSE),"NA") -> 27252 | C11: =IF($B11="NT","NT",IF(VLOOKUP($A$3,'BLG3-RALL'!$A$14:$AG$500,3,FALSE)>$B11,1,VLOOKUP($A$3,'BLG3-RALL'!$A$14:$AG$500,3,FALSE)/$B11)) -> 0.9431968296 | D11: =IF($B11="NT","NT",VLOOKUP($A$3,'BLG3-RALL'!$A$14:$AG$500,5,FALSE)*100) -> 54 | E11: =IF($C11="NT","NT",VLOOKUP($A$3,'BLG3-RALL'!$A$14:$AG$500,9,FALSE)*100) -> 26.61 | F11: =IFERROR(IF($D11="NT","NT",VLOOKUP($A$3,'BLG3-RALL'!$A$14:$AM$500,11,FALSE)),"NT") -> 0.61 | G11: 6 | H11: =IFERROR((IF($D11="NA","NA",VLOOKUP($A$3,'BLG3-RALL'!$A$14:$AM$500,15,FALSE)*100)),"NA") -> 37.27 | I11: =IFERROR(IF($D11="NT","NT",VLOOKUP($A$3,'BLG3-RALL'!$A$14:$AM$500,17,FALSE)),"NT") -> 0.54 | J11: 17 | K11: =IFERROR((IF($D11="NA","NA",VLOOKUP($A$3,'BLG3-RALL'!$A$14:$AM$500,21,FALSE)*100)),"NA") -> 27.81 | L11: =IFERROR(IF($D11="NT","NT",VLOOKUP($A$3,'BLG3-RALL'!$A$14:$AM$500,23,FALSE)),"NT") -> 0.52 | M11: 6 | N11: =IFERROR((IF($D11="NA","NA",VLOOKUP($A$3,'BLG3-RALL'!$A$14:$AM$500,27,FALSE)*100)),"NA") -> 23.77 | O11: =IFERROR(IF($D11="NT","NT",VLOOKUP($A$3,'BLG3-RALL'!$A$14:$AM$500,29,FALSE)),"NT") -> 0.4 | P11: 2 | Q11: =IFERROR((IF($D11="NA","NA",VLOOKUP($A$3,'BLG3-RALL'!$A$14:$AM$500,33,FALSE)*100)),"NA") -> 14.08 | S11: Baseline | T11: =IFERROR(VLOOKUP(TEXT($A$3,"0000"),MemSep02!$A$2:$O$500,7,FALSE),"NA") -> 27252 | U11: =IF($T11="NT","NT",IF(VLOOKUP($A$3,'BLG3-MALL'!$A$14:$AG$500,3,FALSE)>$T11,1,VLOOKUP($A$3,'BLG3-MALL'!$A$14:$AG$500,3,FALSE)/$T11)) -> 0.9422427712 | V11: =IF($T11="NT","NT",VLOOKUP($A$3,'BLG3-MALL'!$A$14:$AG$500,5,FALSE)*100) -> 39 | W11: =IF(U11="NT","NT",VLOOKUP($A$3,'BLG3-MALL'!$A$14:$AG$500,9,FALSE)*100) -> 1.79 | X11: =IFERROR(IF($V11="NT","NT",VLOOKUP($A$3,'BLG3-MALL'!$A$14:$AM$500,23,FALSE)),"NT") -> 0.34 | Y11: 15 | AA11: =IFERROR((IF($V11="NA","NA",VLOOKUP($A$3,'BLG3-MALL'!$A$14:$AM$500,27,FALSE)*100)),"NA") -> 1.95 | AB11: =IFERROR(IF($V11="NT","NT",VLOOKUP($A$3,'BLG3-MALL'!$A$14:$AM$500,17,FALSE)),"NT") -> 0.45 | AD11: 3 | AE11: =IFERROR((IF($V11="NA","NA",VLOOKUP($A$3,'BLG3-MALL'!$A$14:$AM$500,21,FALSE)*100)),"NA") -> 9.48 | AF11: =IFERROR(IF($V11="NT","NT",VLOOKUP($A$3,'BLG3-MALL'!$A$14:$AM$500,11,FALSE)),"NT") -> 0.42 | AG11: 16 | AH11: =IFERROR((IF($V11="NA","NA",VLOOKUP($A$3,'BLG3-MALL'!$A$14:$AM$500,15,FALSE)*100)),"NA") -> 2.66 | AJ11: =VLOOKUP($A$3,'BLG3-RALL'!$A$14:$AG$500,3,FALSE) -> 25704 | AK11: =VLOOKUP($A$3,'BLG3-MALL'!$A$14:$AG$500,3,FALSE) -> 25678
A12: *FCAT 2011 | B12: =IFERROR(VLOOKUP(TEXT($A$3,"0000"),MemMay31!$A$2:$O$500,7,FALSE),"") -> 27597 | C12: =IFERROR(IF(VLOOKUP($A$3,'R-2011'!$A$7:$O$500,3,FALSE)>B12,1,VLOOKUP($A$3,'R-2011'!$A$7:$O$500,3,FALSE)/B12),"") -> 0.9862303874 | D12: NA | E12: =IFERROR(VLOOKUP($A$3,'R-2011'!$A$7:$O$500,11,FALSE),"") -> 52 | F12: =IFERROR(VLOOKUP($A$3,'R-2011'!$A$7:$O$500,12,FALSE)/G12,"") -> 0.75 | G12: ='R-2011'!$L$6 -> 8 | H12: NA | I12: =IFERROR(VLOOKUP($A$3,'R-2011'!$A$7:$O$500,13,FALSE)/J12,"") -> 0.625 | J12: ='R-2011'!$M$6 -> 16 | K12: NA | L12: =IFERROR(VLOOKUP($A$3,'R-2011'!$A$7:$O$500,14,FALSE)/M12,"") -> 0.75 | M12: ='R-2011'!$N$6 -> 12 | N12: NA | O12: =IFERROR(VLOOKUP($A$3,'R-2011'!$A$7:$O$500,15,FALSE)/P12,"") -> 0.6666666667 | P12: ='R-2011'!$O$6 -> 9 | Q12: NA | S12: *FCAT 2011 | T12: =IFERROR(VLOOKUP(TEXT($A$3,"0000"),MemMay31!$A$2:$O$500,7,FALSE),"") -> 27597 | U12: =IFERROR(IF(VLOOKUP($A$3,'M-2011'!$A$7:$N$500,3,FALSE)/$T12>1,1,VLOOKUP($A$3,'M-2011'!$A$7:$N$500,3,FALSE)/$T12),"") -> 0.9869551038 | V12: NA | W12: =IFERROR(VLOOKUP($A$3,'M-2011'!$A$7:$N$500,11,FALSE),"") -> 58 | X12: =IFERROR(VLOOKUP($A$3,'M-2011'!$A$7:$N$500,12,FALSE)/Y12,"") -> 0.7142857143 | Y12: ='M-2011'!$L$6 -> 21 | AA12: NA | AB12: =IFERROR(VLOOKUP($A$3,'M-2011'!$A$7:$N$500,13,FALSE)/AD12,"") -> 0.6 | AC12: =IFERROR(VLOOKUP($A$3,'M-2011'!$A$7:$N$300,12,FALSE)/AD12,"") -> 1.5 | AD12: ='M-2011'!$M$6 -> 10 | AE12: NA | AF12: =IFERROR(VLOOKUP($A$3,'M-2011'!$A$7:$N$500,14,FALSE)/AG12,"") -> 0.7692307692 | AG12: ='M-2011'!$N$6 -> 13 | AH12: NA | AJ12: =VLOOKUP($A$3,'R-2011'!$A$7:$O$500,3,FALSE) -> 27217 | AK12: =VLOOKUP($A$3,'M-2011'!$A$7:$N$500,3,FALSE) -> 27237
A13: Reading - Grade 4 (*2011 FCAT Retrofitted Scores) | S13: Mathematics - Grade 4 (*2011 FCAT Retrofitted Scores)
A14: Assessment | B14: Enroll-ment | C14: % Tested | D14: Avg. % Correct | E14: % Perf. | F14: Vocabulary | I14: Reading Application | L14: Literary Analysis Fiction/Non Fiction | O14: Informational Text/ Research Process | S14: Assessment | T14: Enroll-ment | U14: % Tested | V14: Avg. % Correct | W14: % Perf. | X14: Number: Operations & Problems | AB14: Number: Base Ten & Fractions | AF14: Geometry and Measurement | AJ14: Number Tested Grade 4
F15: Avg.% Correct | G15: Pts. Max | H15: % Perf. | I15: Avg.% Correct | J15: Pts. Max | K15: % Perf. | L15: Avg.% Correct | M15: Pts. Max | N15: % Perf. | O15: Avg.% Correct | P15: Pts. Max | Q15: % Perf. | X15: Avg.% Correct | Y15: Pts. Max | AA15: % Perf. | AB15: Avg.% Correct | AD15: Pts. Max | AE15: % Perf. | AF15: Avg.% Correct | AG15: Pts. Max | AH15: % Perf. | AJ15: Reading | AK15: Math
A16: FCAT 2012 | B16: =IFERROR(VLOOKUP(TEXT($A$3,"0000"),'MemMay1-2012'!$A$2:$O$500,8,FALSE),"") -> 25451 | C16: =IFERROR(IF(VLOOKUP($A$3,'R-2012'!$P$7:$AC$500,3,FALSE)>B16,1,VLOOKUP($A$3,'R-2012'!$P$7:$AC$500,3,FALSE)/B16),"") -> 0.996856705 | D16: NA | E16: =IFERROR(VLOOKUP($A$3,'R-2012'!$P$7:$AC$500,10,FALSE),"") -> 60 | F16: =IFERROR(VLOOKUP($A$3,'R-2012'!$P$7:$AC$500,11,FALSE)/G16,"") -> 0.75 | G16: ='R-2012'!$Z$6 -> 8 | H16: NA | I16: =IFERROR(VLOOKUP($A$3,'R-2012'!$P$7:$AC$500,12,FALSE)/J16,"") -> 0.75 | J16: ='R-2012'!$AA$6 -> 16 | K16: NA | L16: =IFERROR(VLOOKUP($A$3,'R-2012'!$P$7:$AC$500,13,FALSE)/M16,"") -> 0.6153846154 | M16: ='R-2012'!$AB$6 -> 13 | N16: NA | O16: =IFERROR(VLOOKUP($A$3,'R-2012'!$P$7:$AC$500,14,FALSE)/P16,"") -> 0.75 | P16: ='R-2012'!$AC$6 -> 8 | Q16: NA | S16: FCAT 2012 | T16: =IFERROR(VLOOKUP(TEXT($A$3,"0000"),'MemMay1-2012'!$A$2:$O$500,8,FALSE),"") -> 25451 | U16: =IFERROR(IF(VLOOKUP($A$3,'M-2012'!$O$7:$AA$500,3,FALSE)>T16,1,VLOOKUP($A$3,'M-2012'!$O$7:$AA$500,3,FALSE)/T16),"") -> 0.9967388315 | V16: NA | W16: =IFERROR(VLOOKUP($A$3,'M-2012'!$O$7:$AA$500,10,FALSE),"") -> 62 | X16: =IFERROR(VLOOKUP($A$3,'M-2012'!$O$7:$AA$500,11,FALSE)/Y16,"") -> 0.7222222222 | Y16: ='M-2012'!$Y$6 -> 18 | Z16: NA | AA16: NA | AB16: =IFERROR(VLOOKUP($A$3,'M-2012'!$O$7:$AA$500,12,FALSE)/AD16,"") -> 0.8 | AC16: =IFERROR(VLOOKUP($A$3,'M-2012'!$A$7:$N$500,11,FALSE)/AD16,"") -> 1.5 | AD16: ='M-2012'!$Z$6 -> 10 | AE16: NA | AF16: =IFERROR(VLOOKUP($A$3,'M-2012'!$O$7:$AA$500,13,FALSE)/AG16,"") -> 0.6666666667 | AG16: ='M-2012'!$AA$6 -> 12 | AH16: NA | AJ16: =IFERROR(VLOOKUP($A$3,'R-2012'!$P$7:$AC$500,3,FALSE),"NT") -> 25371 | AK16: =IFERROR(VLOOKUP($A$3,'M-2012'!$O$7:$AA$500,3,FALSE),"NT") -> 25368
A17: Winter IA | B17: =IFERROR(VLOOKUP(TEXT($A$3,"0000"),MemJan20!$A$2:$O$500,8,FALSE),"NA") -> 25368 | C17: =IF($B17="NT","NT",IF(VLOOKUP($A$3,'WIAG4-RALL'!$A$14:$AC$500,3,FALSE)>$B17,1,VLOOKUP($A$3,'WIAG4-RALL'!$A$14:$AC$500,3,FALSE)/$B17)) -> 0.9661384421 | D17: =IF($B17="NT","NT",VLOOKUP($A$3,'WIAG4-RALL'!$A$14:$AC$500,5,FALSE)*100) -> 65 | E17: =IF($C17="NT","NT",VLOOKUP($A$3,'WIAG4-RALL'!$A$14:$AC$500,11,FALSE)*100) -> 57.76 | F17: =IFERROR(IF($D17="NT","NT",VLOOKUP($A$3,'WIAG4-RALL'!$A$14:$AI$500,13,FALSE)),"NT") -> 0.74 | G17: 16 | H17: NA | I17: =IFERROR(IF($D17="NT","NT",VLOOKUP($A$3,'WIAG4-RALL'!$A$14:$AI$500,17,FALSE)),"NT") -> 0.67 | J17: 26 | K17: NA | L17: =IFERROR(IF($D17="NT","NT",VLOOKUP($A$3,'WIAG4-RALL'!$A$14:$AI$500,21,FALSE)),"NT") -> 0.55 | M17: 11 | N17: NA | O17: =IFERROR(IF($D17="NT","NT",VLOOKUP($A$3,'WIAG4-RALL'!$A$14:$AI$500,25,FALSE)),"NT") -> 0.53 | P17: 5 | Q17: NA | S17: Winter IA | T17: =IFERROR(VLOOKUP(TEXT($A$3,"0000"),MemJan20!$A$2:$O$500,8,FALSE),"NA") -> 25368 | U17: =IF($T17="NT","NT",IF(VLOOKUP($A$3,'WIAG4-MALL'!$A$14:$AI$500,3,FALSE)>$T17,1,VLOOKUP($A$3,'WIAG4-MALL'!$A$14:$AI$500,3,FALSE)/$T17)) -> 0.9596736045 | V17: =IF($T17="NT","NT",VLOOKUP($A$3,'WIAG4-MALL'!$A$14:$AI$500,5,FALSE)*100) -> 53 | W17: =IF(U17="NT","NT",VLOOKUP($A$3,'WIAG4-MALL'!$A$14:$AI$500,11,FALSE)*100) -> 57.2 | X17: =IFERROR(IF($V17="NT","NT",VLOOKUP($A$3,'WIAG4-MALL'!$A$14:$AO$500,13,FALSE)),"NT") -> 0.56 | Y17: 20 | AA17: NA | AB17: =IFERROR(IF($V17="NT","NT",VLOOKUP($A$3,'WIAG4-MALL'!$A$14:$AO$500,17,FALSE)),"NT") -> 0.5 | AD17: 20 | AE17: NA | AF17: NA | AG17: NA | AH17: NA | AJ17: =IFERROR(VLOOKUP($A$3,'WIAG4-RALL'!$A$14:$AG$500,3,FALSE),"NT") -> 24509 | AK17: =IFERROR(VLOOKUP($A$3,'WIAG4-MALL'!$A$14:$AG$500,3,FALSE),"NT") -> 24345
A18: Fall IA | B18: =IFERROR(VLOOKUP(TEXT($A$3,"0000"),MemNov10!$A$2:$O$500,8,FALSE),"NA") -> 25174 | C18: =IF($B18="NT","NT",IF(VLOOKUP($A$3,'FIAG4-RALL'!$A$14:$AC$500,3,FALSE)>$B18,1,VLOOKUP($A$3,'FIAG4-RALL'!$A$14:$AC$500,3,FALSE)/$B18)) -> 0.9716771272 | D18: =IF($B18="NT","NT",VLOOKUP($A$3,'FIAG4-RALL'!$A$14:$AC$500,5,FALSE)*100) -> 62 | E18: =IF($C18="NT","NT",VLOOKUP($A$3,'FIAG4-RALL'!$A$14:$AC$500,11,FALSE)*100) -> 54.76 | F18: =IFERROR(IF($D18="NT","NT",VLOOKUP($A$3,'FIAG4-RALL'!$A$14:$AI$500,13,FALSE)),"NT") -> 0.71 | G18: 15 | H18: NA | I18: =IFERROR(IF($D18="NT","NT",VLOOKUP($A$3,'FIAG4-RALL'!$A$14:$AI$500,17,FALSE)),"NT") -> 0.58 | J18: 24 | K18: NA | L18: =IFERROR(IF($D18="NT","NT",VLOOKUP($A$3,'FIAG4-RALL'!$A$14:$AI$500,21,FALSE)),"NT") -> 0.57 | M18: 13 | N18: NA | O18: =IFERROR(IF($D18="NT","NT",VLOOKUP($A$3,'FIAG4-RALL'!$A$14:$AI$500,25,FALSE)),"NT") -> 0.58 | P18: 4 | Q18: NA | S18: Fall IA | T18: =IFERROR(VLOOKUP(TEXT($A$3,"0000"),MemNov10!$A$2:$O$500,8,FALSE),"NA") -> 25174 | U18: =IF($T18="NT","NT",IF(VLOOKUP($A$3,'FIAG4-MALL'!$A$14:$AI$500,3,FALSE)>$T18,1,VLOOKUP($A$3,'FIAG4-MALL'!$A$14:$AI$500,3,FALSE)/$T18)) -> 0.9626201637 | V18: =IF($T18="NT","NT",VLOOKUP($A$3,'FIAG4-MALL'!$A$14:$AI$500,5,FALSE)*100) -> 57 | W18: =IF(U18="NT","NT",VLOOKUP($A$3,'FIAG4-MALL'!$A$14:$AI$500,11,FALSE)*100) -> 54.36 | X18: =IFERROR(IF($V18="NT","NT",VLOOKUP($A$3,'FIAG4-MALL'!$A$14:$AO$500,13,FALSE)),"NT") -> 0.57 | Y18: 34 | AA18: NA | AB18: NA | AD18: NA | AE18: NA | AF18: NA | AG18: NA | AH18: NA | AJ18: =IFERROR(VLOOKUP($A$3,'FIAG4-RALL'!$A$14:$AC$500,3,FALSE),"NT") -> 24461 | AK18: =IFERROR(VLOOKUP($A$3,'FIAG4-MALL'!$A$14:$AI$500,3,FALSE),"NT") -> 24233
A19: Baseline | B19: =IFERROR(VLOOKUP(TEXT($A$3,"0000"),MemSep02!$A$2:$O$500,8,FALSE),"NA") -> 25060 | C19: =IF($B19="NT","NT",IF(VLOOKUP($A$3,'BLG4-RALL'!$A$14:$AG$500,3,FALSE)>$B19,1,VLOOKUP($A$3,'BLG4-RALL'!$A$14:$AG$500,3,FALSE)/$B19)) -> 0.9390263368 | D19: =IF($B19="NT","NT",VLOOKUP($A$3,'BLG4-RALL'!$A$14:$AG$500,5,FALSE)*100) -> 59 | E19: =IF($C19="NT","NT",VLOOKUP($A$3,'BLG4-RALL'!$A$14:$AG$500,9,FALSE)*100) -> 31.92 | F19: =IFERROR(IF($D19="NT","NT",VLOOKUP($A$3,'BLG4-RALL'!$A$14:$AM$500,11,FALSE)),"NT") -> 0.62 | G19: 7 | H19: =IFERROR((IF($D19="NA","NA",VLOOKUP($A$3,'BLG4-RALL'!$A$14:$AM$500,15,FALSE)*100)),"NA") -> 50.96 | I19: =IFERROR(IF($D19="NT","NT",VLOOKUP($A$3,'BLG4-RALL'!$A$14:$AM$500,17,FALSE)),"NT") -> 0.55 | J19: 25 | K19: =IFERROR((IF($D19="NA","NA",VLOOKUP($A$3,'BLG4-RALL'!$A$14:$AM$500,21,FALSE)*100)),"NA") -> 27.42 | L19: =IFERROR(IF($D19="NT","NT",VLOOKUP($A$3,'BLG4-RALL'!$A$14:$AM$500,23,FALSE)),"NT") -> 0.6 | M19: 6 | N19: =IFERROR((IF($D19="NA","NA",VLOOKUP($A$3,'BLG4-RALL'!$A$14:$AM$500,27,FALSE)*100)),"NA") -> 34.03 | O19: =IFERROR(IF($D19="NT","NT",VLOOKUP($A$3,'BLG4-RALL'!$A$14:$AM$500,29,FALSE)),"NT") -> 0.69 | P19: 5 | Q19: =IFERROR((IF($D19="NA","NA",VLOOKUP($A$3,'BLG4-RALL'!$A$14:$AM$500,33,FALSE)*100)),"NA") -> 54.86 | S19: Baseline | T19: =IFERROR(VLOOKUP(TEXT($A$3,"0000"),MemSep02!$A$2:$O$500,8,FALSE),"NA") -> 25060 | U19: =IF($T19="NT","NT",IF(VLOOKUP($A$3,'BLG4-MALL'!$A$14:$AG$500,3,FALSE)>$T19,1,VLOOKUP($A$3,'BLG4-MALL'!$A$14:$AG$500,3,FALSE)/$T19)) -> 0.9323224262 | V19: =IF($T19="NT","NT",VLOOKUP($A$3,'BLG4-MALL'!$A$14:$AG$500,5,FALSE)*100) -> 40 | W19: =IF(U19="NT","NT",VLOOKUP($A$3,'BLG4-MALL'!$A$14:$AG$500,9,FALSE)*100) -> 3.46 | X19: =IFERROR(IF($V19="NT","NT",VLOOKUP($A$3,'BLG4-MALL'!$A$14:$AM$500,17,FALSE)),"NT") -> 0.48 | Y19: 16 | AA19: =IFERROR((IF($V19="NA","NA",VLOOKUP($A$3,'BLG4-MALL'!$A$14:$AM$500,21,FALSE)*100)),"NA") -> 11 | AB19: =IFERROR(IF($V19="NT","NT",VLOOKUP($A$3,'BLG4-MALL'!$A$14:$AM$500,23,FALSE)),"NT") -> 0.3 | AD19: 8 | AE19: =IFERROR((IF($V19="NA","NA",VLOOKUP($A$3,'BLG4-MALL'!$A$14:$AM$500,27,FALSE)*100)),"NA") -> 3.68 | AF19: =IFERROR(IF($V19="NT","NT",VLOOKUP($A$3,'BLG4-MALL'!$A$14:$AM$500,11,FALSE)),"NT") -> 0.37 | AG19: 10 | AH19: =IFERROR((IF($V19="NA","NA",VLOOKUP($A$3,'BLG4-MALL'!$A$14:$AM$500,15,FALSE)*100)),"NA") -> 5.75 | AJ19: =IFERROR(VLOOKUP($A$3,'BLG4-RALL'!$A$14:$AG$500,3,FALSE),"NT") -> 23532 | AK19: =IFERROR(VLOOKUP($A$3,'BLG4-MALL'!$A$14:$AG$500,3,FALSE),"NT") -> 23364
A20: *FCAT 2011 | B20: =IFERROR(VLOOKUP(TEXT($A$3,"0000"),MemMay31!$A$2:$O$500,8,FALSE),"") -> 26344 | C20: =IFERROR(IF(VLOOKUP($A$3,'R-2011'!$Q$7:$AE$500,3,FALSE)>B20,1,VLOOKUP($A$3,'R-2011'!$Q$7:$AE$500,3,FALSE)/B20),"") -> 0.9859170969 | D20: NA | E20: =IFERROR(VLOOKUP($A$3,'R-2011'!$Q$7:$AE$500,11,FALSE),"") -> 57 | F20: =IFERROR(VLOOKUP($A$3,'R-2011'!$Q$7:$AE$500,12,FALSE)/G20,"") -> 0.7142857143 | G20: ='R-2011'!$AB$6 -> 7 | H20: NA | I20: =IFERROR(VLOOKUP($A$3,'R-2011'!$Q$7:$AE$500,13,FALSE)/J20,"") -> 0.6842105263 | J20: ='R-2011'!$AC$6 -> 19 | K20: NA | L20: =IFERROR(VLOOKUP($A$3,'R-2011'!$Q$7:$AE$500,14,FALSE)/M20,"") -> 0.6363636364 | M20: ='R-2011'!$AD$6 -> 11 | N20: NA | O20: =IFERROR(VLOOKUP($A$3,'R-2011'!$Q$7:$AE$500,15,FALSE)/P20,"") -> 0.75 | P20: ='R-2011'!$AE$6 -> 8 | Q20: NA | S20: *FCAT 2011 | T20: =IFERROR(VLOOKUP(TEXT($A$3,"0000"),MemMay31!$A$2:$O$500,8,FALSE),"") -> 26344 | U20: =IFERROR(IF(VLOOKUP($A$3,'M-2011'!$P$7:$AC$500,3,FALSE)/$T20>1,1,VLOOKUP($A$3,'M-2011'!$P$7:$AC$500,3,FALSE)/$T20),"") -> 0.9861068934 | V20: NA | W20: =IFERROR(VLOOKUP($A$3,'M-2011'!$P$7:$AC$500,11,FALSE),"") -> 61 | X20: =IFERROR(VLOOKUP($A$3,'M-2011'!$P$7:$AC$500,12,FALSE)/Y20,"") -> 0.7058823529 | Y20: ='M-2011'!$AA$6 -> 17 | AA20: NA | AB20: =IFERROR(VLOOKUP($A$3,'M-2011'!$P$7:$AC$500,13,FALSE)/AD20,"") -> 0.7272727273 | AC20: =IFERROR(VLOOKUP($A$3,'M-2011'!$A$7:$N$300,12,FALSE)/AD20,"") -> 1.363636364 | AD20: ='M-2011'!$AB$6 -> 11 | AE20: NA | AF20: =IFERROR(VLOOKUP($A$3,'M-2011'!$P$7:$AC$500,14,FALSE)/AG20,"") -> 0.6666666667 | AG20: ='M-2011'!$AC$6 -> 12 | AH20: NA | AJ20: =IFERROR(VLOOKUP($A$3,'R-2011'!$Q$7:$AE$500,3,FALSE),"NT") -> 25973 | AK20: =IFERROR(VLOOKUP($A$3,'M-2011'!$P$7:$AC$500,3,FALSE),"NT") -> 25978
A21: Reading - Grade 5 (*2011 FCAT Retrofitted Scores) | S21: Mathematics - Grade 5 (*2011 FCAT Retrofitted Scores)
A22: Assessment | B22: Enroll-ment | C22: % Tested | D22: Avg. % Correct | E22: % Perf. | F22: Vocabulary | I22: Reading Application | L22: Literary Analysis Fiction/Non Fiction | O22: Informational Text/ Research Process | S22: Assessment | T22: Enroll-ment | U22: % Tested | V22: Avg. % Correct | W22: % Perf. | X22: Number: Base Ten & Fractions | AB22: Expressions, Equations, & Stat. | AF22: Geometry and Measurement | AJ22: Number Tested Grade 5
F23: Avg.% Correct | G23: Pts. Max | H23: % Perf. | I23: Avg.% Correct | J23: Pts. Max | K23: % Perf. | L23: Avg.% Correct | M23: Pts. Max | N23: % Perf. | O23: Avg.% Correct | P23: Pts. Max | Q23: % Perf. | X23: Avg.% Correct | Y23: Pts. Max | AA23: % Perf. | AB23: Avg.% Correct | AD23: Pts. Max | AE23: % Perf. | AF23: Avg.% Correct | AG23: Pts. Max | AH23: % Perf. | AJ23: Reading | AK23: Math
A24: FCAT 2012 | B24: =IFERROR(VLOOKUP(TEXT($A$3,"0000"),'MemMay1-2012'!$A$2:$O$500,9,FALSE),"") -> 26208 | C24: =IFERROR(IF(VLOOKUP($A$3,'R-2012'!$AE$7:$AR$500,3,FALSE)>B24,1,VLOOKUP($A$3,'R-2012'!$AE$7:$AR$500,3,FALSE)/B24),"") -> 0.9979395604 | D24: NA | E24: =IFERROR(VLOOKUP($A$3,'R-2012'!$AE$7:$AR$500,10,FALSE),"") -> 60 | F24: =IFERROR(VLOOKUP($A$3,'R-2012'!$AE$7:$AR$500,11,FALSE)/G24,"") -> 0.6666666667 | G24: ='R-2012'!$AO$6 -> 9 | H24: NA | I24: =IFERROR(VLOOKUP($A$3,'R-2012'!$AE$7:$AR$500,12,FALSE)/J24,"") -> 0.7142857143 | J24: ='R-2012'!$AP$6 -> 14 | K24: NA | L24: =IFERROR(VLOOKUP($A$3,'R-2012'!$AE$7:$AR$500,13,FALSE)/M24,"") -> 0.75 | M24: ='R-2012'!$AQ$6 -> 8 | N24: NA | O24: =IFERROR(VLOOKUP($A$3,'R-2012'!$AE$7:$AR$500,14,FALSE)/P24,"") -> 0.6428571429 | P24: ='R-2012'!$AR$6 -> 14 | Q24: NA | S24: FCAT 2012 | T24: =IFERROR(VLOOKUP(TEXT($A$3,"0000"),'MemMay1-2012'!$A$2:$O$500,9,FALSE),"") -> 26208 | U24: =IFERROR(IF(VLOOKUP($A$3,'M-2012'!$AC$7:$AO$500,3,FALSE)>T24,1,VLOOKUP($A$3,'M-2012'!$AC$7:$AO$500,3,FALSE)/T24),"") -> 0.9970619658 | V24: NA | W24: =IFERROR(VLOOKUP($A$3,'M-2012'!$AC$7:$AO$500,10,FALSE),"") -> 58 | X24: =IFERROR(VLOOKUP($A$3,'M-2012'!$AC$7:$AO$500,11,FALSE)/Y24,"") -> 0.5909090909 | Y24: ='M-2012'!$AM$6 -> 22 | Z24: NA | AA24: NA | AB24: =IFERROR(VLOOKUP($A$3,'M-2012'!$AC$7:$AO$500,12,FALSE)/AD24,"") -> 0.6 | AC24: =IFERROR(VLOOKUP($A$3,'M-2012'!$A$7:$N$500,11,FALSE)/AD24,"") -> 1.5 | AD24: ='M-2012'!$AN$6 -> 10 | AE24: NA | AF24: =IFERROR(VLOOKUP($A$3,'M-2012'!$AC$7:$AO$500,13,FALSE)/AG24,"") -> 0.5714285714 | AG24: ='M-2012'!$AO$6 -> 14 | AH24: NA | AJ24: =IFERROR(VLOOKUP($A$3,'R-2012'!$AE$7:$AR$500,3,FALSE),"NT") -> 26154 | AK24: =IFERROR(VLOOKUP($A$3,'M-2012'!$AC$7:$AO$500,3,FALSE),"NT") -> 26131
A25: Winter IA | B25: =IFERROR(VLOOKUP(TEXT($A$3,"0000"),MemJan20!$A$2:$O$500,9,FALSE),"NA") -> 26201 | C25: =IF($B25="NT","NT",IF(VLOOKUP($A$3,'WIAG5-RALL'!$A$14:$AC$500,3,FALSE)>$B25,1,VLOOKUP($A$3,'WIAG5-RALL'!$A$14:$AC$500,3,FALSE)/$B25)) -> 0.967940155 | D25: =IF($B25="NT","NT",VLOOKUP($A$3,'WIAG5-RALL'!$A$14:$AC$500,5,FALSE)*100) -> 64 | E25: =IF($C25="NT","NT",VLOOKUP($A$3,'WIAG5-RALL'!$A$14:$AC$500,11,FALSE)*100) -> 54.69 | F25: =IFERROR(IF($D25="NT","NT",VLOOKUP($A$3,'WIAG5-RALL'!$A$14:$AI$500,13,FALSE)),"NT") -> 0.71 | G25: 15 | H25: NA | I25: =IFERROR(IF($D25="NT","NT",VLOOKUP($A$3,'WIAG5-RALL'!$A$14:$AI$500,17,FALSE)),"NT") -> 0.65 | J25: 25 | K25: NA | L25: =IFERROR(IF($D25="NT","NT",VLOOKUP($A$3,'WIAG5-RALL'!$A$14:$AI$500,21,FALSE)),"NT") -> 0.6 | M25: 11 | N25: NA | O25: =IFERROR(IF($D25="NT","NT",VLOOKUP($A$3,'WIAG5-RALL'!$A$14:$AI$500,25,FALSE)),"NT") -> 0.54 | P25: 8 | Q25: NA | S25: Winter IA | T25: =IFERROR(VLOOKUP(TEXT($A$3,"0000"),MemJan20!$A$2:$O$500,9,FALSE),"NA") -> 26201 | U25: =IF($T25="NT","NT",IF(VLOOKUP($A$3,'WIAG5-MALL'!$A$14:$X$500,3,FALSE)>$T25,1,VLOOKUP($A$3,'WIAG5-MALL'!$A$14:$X$500,3,FALSE)/$T25)) -> 0.9608793557 | V25: =IF($T25="NT","NT",VLOOKUP($A$3,'WIAG5-MALL'!$A$14:$X$500,5,FALSE)*100) -> 62 | W25: =IF(U25="NT","NT",VLOOKUP($A$3,'WIAG5-MALL'!$A$14:$X$500,11,FALSE)*100) -> 51.59 | X25: =IFERROR(IF($V25="NT","NT",VLOOKUP($A$3,'WIAG5-MALL'!$A$14:$X$500,13,FALSE)),"NT") -> 0.54 | Y25: 21 | AA25: NA | AB25: =IFERROR(IF($V25="NT","NT",VLOOKUP($A$3,'WIAG5-MALL'!$A$14:$X$500,17,FALSE)),"NT") -> 0.7 | AD25: 11 | AE25: NA | AF25: =IFERROR(IF($V25="NT","NT",VLOOKUP($A$3,'WIAG5-MALL'!$A$14:$X$500,21,FALSE)),"NT") -> 0.77 | AG25: 6 | AH25: NA | AJ25: =IFERROR(VLOOKUP($A$3,'WIAG5-RALL'!$A$14:$AG$500,3,FALSE),"NT") -> 25361 | AK25: =IFERROR(VLOOKUP($A$3,'WIAG5-MALL'!$A$14:$X$500,3,FALSE),"NT") -> 25176
A26: Fall IA | B26: =IFERROR(VLOOKUP(TEXT($A$3,"0000"),MemNov10!$A$2:$O$500,9,FALSE),"NA") -> 26144 | C26: =IF($B26="NT","NT",IF(VLOOKUP($A$3,'FIAG5-RALL'!$A$14:$AC$500,3,FALSE)>$B26,1,VLOOKUP($A$3,'FIAG5-RALL'!$A$14:$AC$500,3,FALSE)/$B26)) -> 0.9689794982 | D26: =IF($B26="NT","NT",VLOOKUP($A$3,'FIAG5-RALL'!$A$14:$AC$500,5,FALSE)*100) -> 63 | E26: =IF($C26="NT","NT",VLOOKUP($A$3,'FIAG5-RALL'!$A$14:$AC$500,11,FALSE)*100) -> 53.09 | F26: =IFERROR(IF($D26="NT","NT",VLOOKUP($A$3,'FIAG5-RALL'!$A$14:$AI$500,13,FALSE)),"NT") -> 0.61 | G26: 15 | H26: NA | I26: =IFERROR(IF($D26="NT","NT",VLOOKUP($A$3,'FIAG5-RALL'!$A$14:$AI$500,17,FALSE)),"NT") -> 0.68 | J26: 24 | K26: NA | L26: =IFERROR(IF($D26="NT","NT",VLOOKUP($A$3,'FIAG5-RALL'!$A$14:$AI$500,21,FALSE)),"NT") -> 0.56 | M26: 11 | N26: NA | O26: =IFERROR(IF($D26="NT","NT",VLOOKUP($A$3,'FIAG5-RALL'!$A$14:$AI$500,25,FALSE)),"NT") -> 0.56 | P26: 6 | Q26: NA | S26: Fall IA | T26: =IFERROR(VLOOKUP(TEXT($A$3,"0000"),MemNov10!$A$2:$O$500,9,FALSE),"NA") -> 26144 | U26: =IF($T26="NT","NT",IF(VLOOKUP($A$3,'FIAG5-MALL'!$A$14:$Y$500,3,FALSE)>$T26,1,VLOOKUP($A$3,'FIAG5-MALL'!$A$14:$Y$500,3,FALSE)/$T26)) -> 0.9624770502 | V26: =IF($T26="NT","NT",VLOOKUP($A$3,'FIAG5-MALL'!$A$14:$Y$500,5,FALSE)*100) -> 60 | W26: =IF(U26="NT","NT",VLOOKUP($A$3,'FIAG5-MALL'!$A$14:$Y$500,11,FALSE)*100) -> 50.96 | X26: =IFERROR(IF($V26="NT","NT",VLOOKUP($A$3,'FIAG5-MALL'!$A$14:$AE$500,13,FALSE)),"NT") -> 0.59 | Y26: 24 | AA26: NA | AB26: =IFERROR(IF($V26="NT","NT",VLOOKUP($A$3,'FIAG5-MALL'!$A$14:$AE$500,17,FALSE)),"NT") -> 0.61 | AD26: 10 | AE26: NA | AF26: NA | AG26: NA | AH26: NA | AJ26: =IFERROR(VLOOKUP($A$3,'FIAG5-RALL'!$A$14:$AC$500,3,FALSE),"NT") -> 25333 | AK26: =IFERROR(VLOOKUP($A$3,'FIAG5-MALL'!$A$14:$AE$500,3,FALSE),"NT") -> 25163
A27: Baseline | B27: =IFERROR(VLOOKUP(TEXT($A$3,"0000"),MemSep02!$A$2:$O$500,9,FALSE),"NA") -> 25958 | C27: =IF($B27="NT","NT",IF(VLOOKUP($A$3,'BLG5-RALL'!$A$14:$AG$500,3,FALSE)>$B27,1,VLOOKUP($A$3,'BLG5-RALL'!$A$14:$AG$500,3,FALSE)/$B27)) -> 0.9462978658 | D27: =IF($B27="NT","NT",VLOOKUP($A$3,'BLG5-RALL'!$A$14:$AG$500,5,FALSE)*100) -> 61 | E27: =IF($C27="NT","NT",VLOOKUP($A$3,'BLG5-RALL'!$A$14:$AG$500,9,FALSE)*100) -> 34.68 | F27: =IFERROR(IF($D27="NT","NT",VLOOKUP($A$3,'BLG5-RALL'!$A$14:$AM$500,11,FALSE)),"NT") -> 0.65 | G27: 7 | H27: =IFERROR((IF($D27="NA","NA",VLOOKUP($A$3,'BLG5-RALL'!$A$14:$AM$500,15,FALSE)*100)),"NA") -> 55.21 | I27: =IFERROR(IF($D27="NT","NT",VLOOKUP($A$3,'BLG5-RALL'!$A$14:$AM$500,17,FALSE)),"NT") -> 0.61 | J27: 23 | K27: =IFERROR((IF($D27="NA","NA",VLOOKUP($A$3,'BLG5-RALL'!$A$14:$AM$500,21,FALSE)*100)),"NA") -> 36.11 | L27: =IFERROR(IF($D27="NT","NT",VLOOKUP($A$3,'BLG5-RALL'!$A$14:$AM$500,23,FALSE)),"NT") -> 0.55 | M27: 8 | N27: =IFERROR((IF($D27="NA","NA",VLOOKUP($A$3,'BLG5-RALL'!$A$14:$AM$500,27,FALSE)*100)),"NA") -> 31.35 | O27: =IFERROR(IF($D27="NT","NT",VLOOKUP($A$3,'BLG5-RALL'!$A$14:$AM$500,29,FALSE)),"NT") -> 0.62 | P27: 5 | Q27: =IFERROR((IF($D27="NA","NA",VLOOKUP($A$3,'BLG5-RALL'!$A$14:$AM$500,33,FALSE)*100)),"NA") -> 40.82 | S27: Baseline | T27: =IFERROR(VLOOKUP(TEXT($A$3,"0000"),MemSep02!$A$2:$O$500,9,FALSE),"NA") -> 25958 | U27: =IF($T27="NT","NT",IF(VLOOKUP($A$3,'BLG5-MALL'!$A$14:$AA$500,3,FALSE)>$T27,1,VLOOKUP($A$3,'BLG5-MALL'!$A$14:$AA$500,3,FALSE)/$T27)) -> 0.9452192002 | V27: =IF($T27="NT","NT",VLOOKUP($A$3,'BLG5-MALL'!$A$14:$AA$500,5,FALSE)*100) -> 42 | W27: =IF(U27="NT","NT",VLOOKUP($A$3,'BLG5-MALL'!$A$14:$AA$500,9,FALSE)*100) -> 4.87 | X27: =IFERROR(IF($V27="NT","NT",VLOOKUP($A$3,'BLG5-MALL'!$A$14:$AG$500,23,FALSE)),"NT") -> 0.46 | Y27: 16 | AA27: =IFERROR((IF($V27="NA","NA",VLOOKUP($A$3,'BLG5-MALL'!$A$14:$AG$500,27,FALSE)*100)),"NA") -> 11.6 | AB27: =IFERROR(IF($V27="NT","NT",VLOOKUP($A$3,'BLG5-MALL'!$A$14:$AG$500,11,FALSE)),"NT") -> 0.4 | AD27: 9 | AE27: =IFERROR((IF($V27="NA","NA",VLOOKUP($A$3,'BLG5-MALL'!$A$14:$AG$500,15,FALSE)*100)),"NA") -> 3.09 | AF27: =IFERROR(IF($V27="NT","NT",VLOOKUP($A$3,'BLG5-MALL'!$A$14:$AG$500,17,FALSE)),"NT") -> 0.4 | AG27: 14 | AH27: =IFERROR((IF($V27="NA","NA",VLOOKUP($A$3,'BLG5-MALL'!$A$14:$AG$500,21,FALSE)*100)),"NA") -> 6.98 | AJ27: =IFERROR(VLOOKUP($A$3,'BLG5-RALL'!$A$14:$AG$500,3,FALSE),"NT") -> 24564 | AK27: =IFERROR(VLOOKUP($A$3,'BLG5-MALL'!$A$14:$AG$500,3,FALSE),"NT") -> 24536
A28: *FCAT 2011 | B28: =IFERROR(VLOOKUP(TEXT($A$3,"0000"),MemMay31!$A$2:$O$500,9,FALSE),"") -> 26873 | C28: =IFERROR(IF(VLOOKUP($A$3,'R-2011'!$AG$7:$AU$500,3,FALSE)>B28,1,VLOOKUP($A$3,'R-2011'!$AG$7:$AU$500,3,FALSE)/B28),"") -> 0.9853012317 | D28: NA | E28: =IFERROR(VLOOKUP($A$3,'R-2011'!$AG$7:$AU$500,11,FALSE),"") -> 55 | F28: =IFERROR(VLOOKUP($A$3,'R-2011'!$AG$7:$AU$500,12,FALSE)/G28,"") -> 0.75 | G28: ='R-2011'!$AR$6 -> 8 | H28: NA | I28: =IFERROR(VLOOKUP($A$3,'R-2011'!$AG$7:$AU$500,13,FALSE)/J28,"") -> 0.5882352941 | J28: ='R-2011'!$AS$6 -> 17 | K28: NA | L28: =IFERROR(VLOOKUP($A$3,'R-2011'!$AG$7:$AU$500,14,FALSE)/M28,"") -> 0.6666666667 | M28: ='R-2011'!$AT$6 -> 12 | N28: NA | O28: =IFERROR(VLOOKUP($A$3,'R-2011'!$AG$7:$AU$500,15,FALSE)/P28,"") -> 0.625 | P28: ='R-2011'!$AU$6 -> 8 | Q28: NA | S28: *FCAT 2011 | T28: =IFERROR(VLOOKUP(TEXT($A$3,"0000"),MemMay31!$A$2:$O$500,9,FALSE),"") -> 26873 | U28: =IFERROR(IF(VLOOKUP($A$3,'M-2011'!$AE$7:$AR$500,3,FALSE)/$T28>1,1,VLOOKUP($A$3,'M-2011'!$AE$7:$AR$500,3,FALSE)/$T28),"") -> 0.9857477766 | V28: NA | W28: =IFERROR(VLOOKUP($A$3,'M-2011'!$AE$7:$AR$500,11,FALSE),"") -> 54 | X28: =IFERROR(VLOOKUP($A$3,'M-2011'!$AE$7:$AR$500,12,FALSE)/Y28,"") -> 0.5909090909 | Y28: ='M-2011'!$AP$6 -> 22 | AA28: NA | AB28: =IFERROR(VLOOKUP($A$3,'M-2011'!$AE$7:$AR$500,13,FALSE)/AD28,"") -> 0.7 | AC28: =IFERROR(VLOOKUP($A$3,'M-2011'!$A$7:$N$300,12,FALSE)/AD28,"") -> 1.5 | AD28: ='M-2011'!$AQ$6 -> 10 | AE28: NA | AF28: =IFERROR(VLOOKUP($A$3,'M-2011'!$AE$7:$AR$500,14,FALSE)/AG28,"") -> 0.5 | AG28: ='M-2011'!$AR$6 -> 14 | AH28: NA | AJ28: =IFERROR(VLOOKUP($A$3,'R-2011'!$AG$7:$AU$500,3,FALSE),"NT") -> 26478 | AK28: =IFERROR(VLOOKUP($A$3,'M-2011'!$AE$7:$AR$500,3,FALSE),"NT") -> 26490
A29: Science - Grade 5 | S29: Writing - Grade 4
A30: Assessment | B30: Enroll-ment | C30: % Tested | D30: Avg. % Correct | E30: % Perf. | F30: Nature of Science | I30: Earth and Space Science | L30: Physical Science | O30: Life Science | S30: Assessment | T30: Enroll-ment | U30: Expository | AA30: Narrative | AJ30: Number Tested
F31: Avg.% Correct | G31: Pts. Max | H31: % Perf. | I31: Avg.% Correct | J31: Pts. Max | K31: % Perf. | L31: Avg.% Correct | M31: Pts. Max | N31: % Perf. | O31: Avg.% Correct | P31: Pts. Max | Q31: % Perf. | U31: Total Tested | V31: % Tested | W31: % 3 or higher | X31: % 4 or higher | Y31: Average Score | AA31: Total Tested | AC31: % Tested | AE31: % 3 or higher | AG31: % 4 or higher | AH31: Average Score | AJ31: Science, G5 | AK31: Writing Expository, G4 | AL31: Writing Narrative, G4
A32: FCAT 2012 | B32: =IFERROR(VLOOKUP(TEXT($A$3,"0000"),'MemMay1-2012'!$A$2:$O$500,9,FALSE),"") -> 26208 | C32: =IFERROR(IF(VLOOKUP($A$3,'S-2012'!$A$7:$N$500,3,FALSE)>B32,1,VLOOKUP($A$3,'S-2012'!$A$7:$N$500,3,FALSE)/B32),"") -> 0.9960699023 | D32: NA | E32: =IFERROR(VLOOKUP($A$3,'S-2012'!$A$7:$N$500,10,FALSE),"") -> 48 | F32: =IFERROR(VLOOKUP($A$3,'S-2012'!$A$7:$N$500,11,FALSE)/G32,"") -> 0.7 | G32: ='S-2012'!$K$6 -> 10 | H32: NA | I32: =IFERROR(VLOOKUP($A$3,'S-2012'!$A$7:$N$500,12,FALSE)/J32,"") -> 0.6875 | J32: ='S-2012'!$L$6 -> 16 | K32: NA | L32: =IFERROR(VLOOKUP($A$3,'S-2012'!$A$7:$N$500,13,FALSE)/M32,"") -> 0.625 | M32: ='S-2012'!$M$6 -> 16 | N32: NA | O32: =IFERROR(VLOOKUP($A$3,'S-2012'!$A$7:$N$500,14,FALSE)/P32,"") -> 0.7142857143 | P32: ='S-2012'!$N$6 -> 14 | Q32: NA | S32: FCAT 2012 | T32: =IFERROR(VLOOKUP(TEXT($A$3,"0000"),'MemMay1-2012'!$A$2:$O$500,8,FALSE),"") -> 25451 | U32: NA | V32: NA | W32: NA | X32: NA | Y32: NA | AA32: =IFERROR(VLOOKUP($A$3,'W12'!$A$7:$S$500,3,FALSE),"") -> 25283 | AC32: =IFERROR(IF(VLOOKUP($A$3,'W12'!$A$7:$S$500,3,FALSE)>T32,1,VLOOKUP($A$3,'W12'!$A$7:$S$500,3,FALSE)/T32),"") -> 0.9933990806 | AE32: =IFERROR(VLOOKUP($A$3,'W12'!$A$7:$S$500,17,FALSE),"") -> 81 | AG32: =IFERROR(VLOOKUP($A$3,'W12'!$A$7:$S$500,19,FALSE),"") -> 26 | AH32: =IFERROR(VLOOKUP($A$3,'W12'!$A$7:$S$500,4,FALSE),"") -> 3.2 | AJ32: =IFERROR(VLOOKUP($A$3,'S-2012'!$A$7:$N$500,3,FALSE),"NT") -> 26105 | AK32: =U32 -> NA | AL32: =AA32 -> 25283
A33: Winter IA | B33: =IFERROR(VLOOKUP(TEXT($A$3,"0000"),MemJan20!$A$2:$O$500,9,FALSE),"NA") -> 26201 | C33: =IFERROR(IF($B33="NT","NT",IF(VLOOKUP($A$3,'WIAG5-SALL'!$A$14:$AG$500,3,FALSE)>$B33,1,VLOOKUP($A$3,'WIAG5-SALL'!$A$14:$AG$500,3,FALSE)/$B33)),"NT") -> 0.95931453 | D33: =IFERROR(IF($B33="NT","NT",VLOOKUP($A$3,'WIAG5-SALL'!$A$14:$AG$500,5,FALSE)*100),"NT") -> 51 | E33: =IF(C33="NT","NT",VLOOKUP($A$3,'WIAG5-SALL'!$A$14:$AG$500,9,FALSE)*100) -> 11.68 | F33: =IFERROR(IF($V33="NT","NT",VLOOKUP($A$3,'WIAG5-SALL'!$A$14:$AM$500,11,FALSE)),"NT") -> 0.46 | G33: 9 | H33: =IFERROR((IF($V33="NA","NA",VLOOKUP($A$3,'WIAG5-SALL'!$A$14:$AM$500,15,FALSE)*100)),"NA") -> 10.32 | I33: =IFERROR(IF($V33="NT","NT",VLOOKUP($A$3,'WIAG5-SALL'!$A$14:$AM$500,17,FALSE)),"NT") -> 0.54 | J33: 20 | K33: =IFERROR((IF($V33="NA","NA",VLOOKUP($A$3,'WIAG5-SALL'!$A$14:$AM$500,21,FALSE)*100)),"NA") -> 22.28 | L33: =IFERROR(IF($D33="NT","NT",VLOOKUP($A$3,'WIAG5-SALL'!$A$14:$AM$500,23,FALSE)),"NT") -> 0.53 | M33: 24 | N33: =IFERROR((IF($V33="NA","NA",VLOOKUP($A$3,'WIAG5-SALL'!$A$14:$AM$500,27,FALSE)*100)),"NA") -> 18.7 | O33: =IFERROR(IF($D33="NT","NT",VLOOKUP($A$3,'WIAG5-SALL'!$A$14:$AM$500,29,FALSE)),"NT") -> 0.48 | P33: 15 | Q33: =IFERROR(IF($D33="NT","NT",VLOOKUP($A$3,'WIAG5-SALL'!$A$14:$AM$500,33,FALSE)*100),"NT") -> 12.23 | S33: Mid-Year | T33: =IFERROR(VLOOKUP(TEXT($A$3,"0000"),MemJan20!$A$2:$O$500,8,FALSE),"NA") -> 25368 | U33: =IFERROR(IF(VLOOKUP($A$3,'MYG4-WALL'!$A$14:$AJ$523,3,FALSE)=0,"NT",VLOOKUP($A$3,'MYG4-WALL'!$A$14:$AJ$523,3,FALSE)),"NT") -> 19390 | V33: =IF(U33="NT","NT",IF(U33>T33,1,U33/T33)) -> 0.7643487859 | W33: =IFERROR(IF(U33="NT","NT",VLOOKUP($A$3,'MYG4-WALL'!$A$14:$AJ$523,28,FALSE)),"NT") -> 62 | X33: =IFERROR(IF(U33="NT","NT",VLOOKUP($A$3,'MYG4-WALL'!$A$14:$AJ$523,11,FALSE)*100),"NT") -> 26.03919546 | Y33: =IFERROR(IF(U33="NT","NT",VLOOKUP($A$3,'MYG4-WALL'!$A$14:$AJ$523,32,FALSE)),"NT") -> 2.75585869 | AA33: =IFERROR(IF(VLOOKUP($A$3,'MYG4-WALL'!$A$14:$AJ$523,12,FALSE)=0,"NT",VLOOKUP($A$3,'MYG4-WALL'!$A$14:$AJ$523,12,FALSE)),"NT") -> 19366 | AC33: =IFERROR(IF(AA33="NT","NT",IF(AA33/T33>1,1,AA33/T33)),"") -> 0.7634027121 | AE33: =IFERROR(IF(AA33="NT","NT",VLOOKUP($A$3,'MYG4-WALL'!$A$14:$AJ$523,30,FALSE)),"NT") -> 65 | AG33: =IFERROR(IF(AA33="NT","NT",VLOOKUP($A$3,'MYG4-WALL'!$A$14:$AJ$523,20,FALSE)*100),"NT") -> 30.04750594 | AH33: =IFERROR(IF(U33="NT","NT",VLOOKUP($A$3,'MYG4-WALL'!$A$14:$AJ$523,34,FALSE)),"NT") -> 2.838634728 | AJ33: =IFERROR(VLOOKUP($A$3,'WIAG5-SALL'!$A$14:$AG$500,3,FALSE),"NT") -> 25135 | AK33: =U33 -> 19390 | AL33: =AA33 -> 19366
A34: Fall IA | B34: =IFERROR(VLOOKUP(TEXT($A$3,"0000"),MemNov10!$A$2:$O$500,9,FALSE),"NA") -> 26144 | C34: =IFERROR(IF($B34="NT","NT",IF(VLOOKUP($A$3,'FIAG5-SALL'!$A$14:$AG$500,3,FALSE)>$B34,1,VLOOKUP($A$3,'FIAG5-SALL'!$A$14:$AG$500,3,FALSE)/$B34)),"NT") -> 0.9597613219 | D34: =IFERROR(IF($B34="NT","NT",VLOOKUP($A$3,'FIAG5-SALL'!$A$14:$AG$500,5,FALSE)*100),"NT") -> 49 | E34: =IF(C34="NT","NT",VLOOKUP($A$3,'FIAG5-SALL'!$A$14:$AG$500,9,FALSE)*100) -> 10.7 | F34: =IFERROR(IF($V34="NT","NT",VLOOKUP($A$3,'FIAG5-SALL'!$A$14:$AM$500,11,FALSE)),"NT") -> 0.4 | G34: 9 | H34: =IFERROR((IF($V34="NA","NA",VLOOKUP($A$3,'FIAG5-SALL'!$A$14:$AM$500,15,FALSE)*100)),"NA") -> 9.49 | I34: =IFERROR(IF($V34="NT","NT",VLOOKUP($A$3,'FIAG5-SALL'!$A$14:$AM$500,17,FALSE)),"NT") -> 0.44 | J34: 20 | K34: =IFERROR((IF($V34="NA","NA",VLOOKUP($A$3,'FIAG5-SALL'!$A$14:$AM$500,21,FALSE)*100)),"NA") -> 9.88 | L34: =IFERROR(IF($D34="NT","NT",VLOOKUP($A$3,'FIAG5-SALL'!$A$14:$AM$500,23,FALSE)),"NT") -> 0.52 | M34: 24 | N34: =IFERROR((IF($V34="NA","NA",VLOOKUP($A$3,'FIAG5-SALL'!$A$14:$AM$500,27,FALSE)*100)),"NA") -> 18.83 | O34: =IFERROR(IF($D34="NT","NT",VLOOKUP($A$3,'FIAG5-SALL'!$A$14:$AM$500,29,FALSE)),"NT") -> 0.55 | P34: 15 | Q34: =IFERROR(IF($D34="NT","NT",VLOOKUP($A$3,'FIAG5-SALL'!$A$14:$AM$500,33,FALSE)*100),"NT") -> 24.15 | AJ34: =IFERROR(VLOOKUP($A$3,'FIAG5-SALL'!$A$14:$AG$500,3,FALSE),"NT") -> 25092 | AK34: =U34 -> 0 | AL34: =AA34 -> 0
A35: Baseline | B35: =IFERROR(VLOOKUP(TEXT($A$3,"0000"),MemSep02!$A$2:$O$500,9,FALSE),"NA") -> 25958 | C35: =IFERROR(IF($B35="NT","NT",IF(VLOOKUP($A$3,'BLG5-SALL'!$A$14:$AG$500,3,FALSE)>$B35,1,VLOOKUP($A$3,'BLG5-SALL'!$A$14:$AG$500,3,FALSE)/$B35)),"NT") -> 0.9341243547 | D35: =IFERROR(IF($B35="NT","NT",VLOOKUP($A$3,'BLG5-SALL'!$A$14:$AG$500,5,FALSE)*100),"NT") -> 45 | E35: =IF(C35="NT","NT",VLOOKUP($A$3,'BLG5-SALL'!$A$14:$AG$500,9,FALSE)*100) -> 4.3 | F35: =IFERROR(IF($V35="NT","NT",VLOOKUP($A$3,'BLG5-SALL'!$A$14:$AM$500,23,FALSE)),"NT") -> 0.34 | G35: 9 | H35: =IFERROR((IF($V35="NA","NA",VLOOKUP($A$3,'BLG5-SALL'!$A$14:$AM$500,27,FALSE)*100)),"NA") -> 2.84 | I35: =IFERROR(IF($V35="NT","NT",VLOOKUP($A$3,'BLG5-SALL'!$A$14:$AM$500,11,FALSE)),"NT") -> 0.42 | J35: 20 | K35: =IFERROR((IF($V35="NA","NA",VLOOKUP($A$3,'BLG5-SALL'!$A$14:$AM$500,15,FALSE)*100)),"NA") -> 4.87 | L35: =IFERROR(IF($D35="NT","NT",VLOOKUP($A$3,'BLG5-SALL'!$A$14:$AM$500,29,FALSE)),"NT") -> 0.51 | M35: 24 | N35: =IFERROR((IF($V35="NA","NA",VLOOKUP($A$3,'BLG5-SALL'!$A$14:$AM$500,33,FALSE)*100)),"NA") -> 16.61 | O35: =IFERROR(IF($D35="NT","NT",VLOOKUP($A$3,'BLG5-SALL'!$A$14:$AM$500,17,FALSE)),"NT") -> 0.45 | P35: 15 | Q35: =IFERROR(IF($D35="NT","NT",VLOOKUP($A$3,'BLG5-SALL'!$A$14:$AM$500,21,FALSE)*100),"NT") -> 10.22 | S35: Pre-Test | T35: =IFERROR(VLOOKUP(TEXT($A$3,"0000"),MemSep02!$A$2:$O$500,8,FALSE),"NA") -> 25060 | U35: =IFERROR(IF(VLOOKUP($A$3,'BLG4-WALL'!$A$14:$AJ$526,3,FALSE)=0,"NT",VLOOKUP($A$3,'BLG4-WALL'!$A$14:$AJ$526,3,FALSE)),"NT") -> 19934 | V35: =IF(U35="NT","NT",IF(U35>T35,1,U35/T35)) -> 0.7954509178 | W35: =IFERROR(IF(U35="NT","NT",VLOOKUP($A$3,'BLG4-WALL'!$A$14:$AJ$526,28,FALSE)),"NT") -> 20 | X35: =IFERROR(IF(U35="NT","NT",VLOOKUP($A$3,'BLG4-WALL'!$A$14:$AJ$526,11,FALSE)*100),"NT") -> 3.155412862 | Y35: =IFERROR(IF(U35="NT","NT",VLOOKUP($A$3,'BLG4-WALL'!$A$14:$AJ$526,32,FALSE)),"NT") -> 1.713537118 | AA35: =IFERROR(IF(VLOOKUP($A$3,'BLG4-WALL'!$A$14:$AJ$526,12,FALSE)=0,"NT",VLOOKUP($A$3,'BLG4-WALL'!$A$14:$AJ$526,12,FALSE)),"NT") -> 19927 | AC35: =IFERROR(IF(AA35="NT","NT",IF(AA35/T35>1,1,AA35/T35)),"") -> 0.7951715882 | AE35: =IFERROR(IF(AA35="NT","NT",VLOOKUP($A$3,'BLG4-WALL'!$A$14:$AJ$526,30,FALSE)),"NT") -> 21 | AG35: =IFERROR(IF(AA35="NT","NT",VLOOKUP($A$3,'BLG4-WALL'!$A$14:$AJ$526,20,FALSE)*100),"NT") -> 4.250514377 | AH35: =IFERROR(IF(U35="NT","NT",VLOOKUP($A$3,'BLG4-WALL'!$A$14:$AJ$526,34,FALSE)),"NT") -> 1.668722465 | AJ35: =IFERROR(VLOOKUP($A$3,'BLG5-SALL'!$A$14:$AG$500,3,FALSE),"NT") -> 24248 | AK35: 19934 | AL35: 19927
A36: FCAT 2011 | B36: =IFERROR(VLOOKUP(TEXT($A$3,"0000"),MemMay31!$A$2:$O$500,9,FALSE),"") -> 26873 | C36: =IFERROR(IF(VLOOKUP($A$3,'S-2011'!$A$7:$O$500,3,FALSE)>B36,1,VLOOKUP($A$3,'S-2011'!$A$7:$O$500,3,FALSE)/B36),"") -> 0.9832173557 | D36: NA | E36: =IFERROR(VLOOKUP($A$3,'S-2011'!$A$7:$O$500,10,FALSE),"") -> 49 | F36: NA | G36: NA | H36: NA | I36: NA | J36: NA | K36: NA | L36: NA | M36: NA | N36: NA | O36: NA | P36: NA | Q36: NA | S36: FCAT 2011 | T36: =IFERROR(VLOOKUP(TEXT($A$3,"0000"),MemMay31!$A$2:$O$500,8,FALSE),"") -> 26344 | U36: =IFERROR(IF(OR(VLOOKUP($A$3,'W11'!$A$7:$M$500,3,FALSE)=".",VLOOKUP($A$3,'W11'!$A$7:$M$500,3,FALSE)=""),"NA",VLOOKUP($A$3,'W11'!$A$7:$M$500,3,FALSE)),"NA") -> 25877 | V36: =IFERROR(IF(U36/T36>1,1,U36/T36),"") -> 0.9822730033 | W36: =IFERROR(IF(OR(VLOOKUP($A$3,'W11'!$A$7:$M$500,12,FALSE)=".",VLOOKUP($A$3,'W11'!$A$7:$M$500,12,FALSE)=""),"NA",VLOOKUP($A$3,'W11'!$A$7:$M$500,12,FALSE)),"NA") -> 96 | X36: =IFERROR(IF(OR(VLOOKUP($A$3,'W11'!$A$7:$M$500,13,FALSE)=".",VLOOKUP($A$3,'W11'!$A$7:$M$500,13,FALSE)=""),"NA",VLOOKUP($A$3,'W11'!$A$7:$M$500,13,FALSE)),"NA") -> 80 | Y36: =IFERROR(IF(OR(VLOOKUP($A$3,'W11'!$A$7:$M$500,4,FALSE)=".",VLOOKUP($A$3,'W11'!$A$7:$M$500,4,FALSE)=""),"NA",VLOOKUP($A$3,'W11'!$A$7:$M$500,4,FALSE)),"NA") -> 4 | AA36: NA | AC36: NA | AE36: NA | AG36: NA | AH36: NA | AJ36: =VLOOKUP($A$3,'S-2011'!$A$7:$G$260,3,FALSE) -> 26422 | AK36: =U36 -> 25877 | AL36: NA
A37: 2008 to 2012 School Grade Performance | U37: School Grading Scale
A38: Year | B38: School Grade | C38: Adj. Points Earned | D38: Applied Points Earned | E38: % Meeting High Standards | J38: Learning Gains Points | M38: Learning Gains Points for Lowest 25% | Q38: Middle School Acceleration Points | T38: % Tested | U38: School Type | X38: Year | Y38: Total Points | AA38: A | AC38: B | AE38: C | AG38: D | AH38: F
E39: Read-ing | F39: Math | G39: Writing | I39: Science | J39: Reading | L39: Math | M39: Reading | O39: Math | Q39: Partici- pation | S39: Performance | U39: Elementary | X39: 2008-2012 | Y39: 800 | AA39: 525 - 800 | AC39: 495 - 524 | AE39: 435 - 494 | AG39: 395 - 434 | AH39: 0 - 394
A40: 2012 | B40: =IF(VLOOKUP(TEXT($A$3,"0000"),'2012 SG'!$D$9:$AW$500,25,FALSE)="","NG",IFERROR(VLOOKUP(TEXT($A$3,"0000"),'2012 SG'!$D$9:$AW$500,25,FALSE),"")) -> B | C40: =IF(VLOOKUP(TEXT($A$3,"0000"),'2012 SG'!$D$9:$AW$500,23,FALSE)="","NG",IFERROR(VLOOKUP(TEXT($A$3,"0000"),'2012 SG'!$D$9:$AW$500,23,FALSE),"")) -> 512 | D40: =IF(VLOOKUP(TEXT($A$3,"0000"),'2012 SG'!$D$9:$AW$500,19,FALSE)="","NG",IFERROR(VLOOKUP(TEXT($A$3,"0000"),'2012 SG'!$D$9:$AW$500,19,FALSE),"")) -> 512 | E40: =IF(VLOOKUP(TEXT($A$3,"0000"),'2012 SG'!$D$9:$AW$500,3,FALSE)="","NG",IFERROR(VLOOKUP(TEXT($A$3,"0000"),'2012 SG'!$D$9:$AW$500,3,FALSE),"")) -> 55 | F40: =IF(VLOOKUP(TEXT($A$3,"0000"),'2012 SG'!$D$9:$AW$500,4,FALSE)="","NG",IFERROR(VLOOKUP(TEXT($A$3,"0000"),'2012 SG'!$D$9:$AW$500,4,FALSE),"")) -> 57 | G40: =IF(VLOOKUP(TEXT($A$3,"0000"),'2012 SG'!$D$9:$AW$500,5,FALSE)="","NG",IFERROR(VLOOKUP(TEXT($A$3,"0000"),'2012 SG'!$D$9:$AW$500,5,FALSE),"")) -> 81 | H40: =IF(VLOOKUP(TEXT($A$3,"0000"),'2012 SG'!$D$9:$AW$500,24,FALSE)="","NG",IFERROR(VLOOKUP(TEXT($A$3,"0000"),'2012 SG'!$D$9:$AW$500,24,FALSE),"")) -> 99 | I40: =IF(VLOOKUP(TEXT($A$3,"0000"),'2012 SG'!$D$9:$AW$500,6,FALSE)="","NG",IFERROR(VALUE(VLOOKUP(TEXT($A$3,"0000"),'2012 SG'!$D$9:$AW$500,6,FALSE)),"")) -> 47 | J40: =IF(VLOOKUP(TEXT($A$3,"0000"),'2012 SG'!$D$9:$AW$500,7,FALSE)="","NG",IFERROR(VLOOKUP(TEXT($A$3,"0000"),'2012 SG'!$D$9:$AW$500,7,FALSE),"")) -> 68 | K40: =IF(VLOOKUP(TEXT($A$3,"0000"),'2012 SG'!$D$9:$AW$500,24,FALSE)="","NG",IFERROR(VLOOKUP(TEXT($A$3,"0000"),'2012 SG'!$D$9:$AW$500,24,FALSE),"")) -> 99 | L40: =IF(VLOOKUP(TEXT($A$3,"0000"),'2012 SG'!$D$9:$AW$500,8,FALSE)="","NG",IFERROR(VALUE(VLOOKUP(TEXT($A$3,"0000"),'2012 SG'!$D$9:$AW$500,8,FALSE)),"")) -> 68 | M40: =IF(VLOOKUP(TEXT($A$3,"0000"),'2012 SG'!$D$9:$AW$500,9,FALSE)="","NG",IFERROR(VLOOKUP(TEXT($A$3,"0000"),'2012 SG'!$D$9:$AW$500,9,FALSE),"")) -> 70 | O40: =IF(VLOOKUP(TEXT($A$3,"0000"),'2012 SG'!$D$9:$AW$500,10,FALSE)="","NG",IFERROR(VALUE(VLOOKUP(TEXT($A$3,"0000"),'2012 SG'!$D$9:$AW$500,10,FALSE)),"")) -> 66 | Q40: =IF(VLOOKUP(TEXT($A$3,"0000"),'2012 SG'!$D$9:$AW$500,12,FALSE)="","NA",IFERROR(VLOOKUP(TEXT($A$3,"0000"),'2012 SG'!$D$9:$AW$500,12,FALSE),"")) -> NA | S40: =IF(VLOOKUP(TEXT($A$3,"0000"),'2012 SG'!$D$9:$AW$500,13,FALSE)="","NA",IFERROR(VLOOKUP(TEXT($A$3,"0000"),'2012 SG'!$D$9:$AW$500,13,FALSE),"")) -> NA | T40: =IF(VLOOKUP(TEXT($A$3,"0000"),'2012 SG'!$D$9:$AW$500,24,FALSE)="","NG",IFERROR(VLOOKUP(TEXT($A$3,"0000"),'2012 SG'!$D$9:$AW$500,24,FALSE),"")) -> 99 | U40: Middle Schools and K-8, if grade 8 is included. | X40: 2012 | Y40: 900 | AA40: 590 - 900 | AC40: 560 - 589 | AE40: 490 - 559 | AG40: 445 - 489 | AH40: 0 - 444
A41: 2011 | B41: =IF(VLOOKUP(TEXT($A$3,"0000"),'2011 SG'!$A$3:$AN$500,20,FALSE)="","NG",IFERROR(VLOOKUP(TEXT($A$3,"0000"),'2011 SG'!$A$3:$AN$500,20,FALSE),"")) -> B | C41: NA | D41: =IF(VLOOKUP(TEXT($A$3,"0000"),'2011 SG'!$A$3:$AN$500,12,FALSE)="","NG",IFERROR(VLOOKUP(TEXT($A$3,"0000"),'2011 SG'!$A$3:$AN$500,12,FALSE),"")) -> 519 | E41: =IF(VLOOKUP(TEXT($A$3,"0000"),'2011 SG'!$A$3:$AN$500,3,FALSE)="","NG",IFERROR(VLOOKUP(TEXT($A$3,"0000"),'2011 SG'!$A$3:$AN$500,3,FALSE),"")) -> 64 | F41: =IF(VLOOKUP(TEXT($A$3,"0000"),'2011 SG'!$A$3:$AN$500,4,FALSE)="","NG",IFERROR(VLOOKUP(TEXT($A$3,"0000"),'2011 SG'!$A$3:$AN$500,4,FALSE),"")) -> 71 | G41: =IF(VLOOKUP(TEXT($A$3,"0000"),'2011 SG'!$A$3:$AN$500,5,FALSE)="","NG",IFERROR(VLOOKUP(TEXT($A$3,"0000"),'2011 SG'!$A$3:$AN$500,5,FALSE),"")) -> 83 | I41: =IF(VLOOKUP(TEXT($A$3,"0000"),'2011 SG'!$A$3:$AN$500,6,FALSE)="","NG",IFERROR(VLOOKUP(TEXT($A$3,"0000"),'2011 SG'!$A$3:$AN$500,6,FALSE),"")) -> 47 | J41: =IF(VLOOKUP(TEXT($A$3,"0000"),'2011 SG'!$A$3:$AN$500,7,FALSE)="","NG",IFERROR(VLOOKUP(TEXT($A$3,"0000"),'2011 SG'!$A$3:$AN$500,7,FALSE),"")) -> 61 | L41: =IF(VLOOKUP(TEXT($A$3,"0000"),'2011 SG'!$A$3:$AN$500,8,FALSE)="","NG",IFERROR(VLOOKUP(TEXT($A$3,"0000"),'2011 SG'!$A$3:$AN$500,8,FALSE),"")) -> 67 | M41: =IF(VLOOKUP(TEXT($A$3,"0000"),'2011 SG'!$A$3:$AN$500,9,FALSE)="","NG",IFERROR(VLOOKUP(TEXT($A$3,"0000"),'2011 SG'!$A$3:$AN$500,9,FALSE),"")) -> 60 | O41: =IF(VLOOKUP(TEXT($A$3,"0000"),'2011 SG'!$A$3:$AN$500,10,FALSE)="","NG",IFERROR(VLOOKUP(TEXT($A$3,"0000"),'2011 SG'!$A$3:$AN$500,10,FALSE),"")) -> 66 | Q41: NA | S41: NA | T41: =IF(VLOOKUP(TEXT($A$3,"0000"),'2011 SG'!$A$3:$AN$500,13,FALSE)="","NG",IFERROR(VLOOKUP(TEXT($A$3,"0000"),'2011 SG'!$A$3:$AN$500,13,FALSE),"")) -> 99 | X41: 2008-2011 | Y41: 800 | AA41: 525 - 800 | AC41: 495 - 524 | AE41: 435 - 494 | AG41: 395 - 434 | AH41: 0 - 394
A42: 2010 | B42: =IF(VLOOKUP($A$3,'2010 SG'!$A$3:$AI$500,3,FALSE)="","NG",IFERROR(VLOOKUP($A$3,'2010 SG'!$A$3:$AI$500,3,FALSE),"")) -> B | C42: NA | D42: =IFERROR(VLOOKUP($A$3,'2010 SG'!$A$3:$AI$500,23,FALSE),"") -> 521 | E42: =IFERROR(VLOOKUP($A$3,'2010 SG'!$A$3:$AI$500,14,FALSE),"") -> 64 | F42: =IFERROR(VLOOKUP($A$3,'2010 SG'!$A$3:$AI$500,15,FALSE),"") -> 71 | G42: =IFERROR(VLOOKUP($A$3,'2010 SG'!$A$3:$AI$500,16,FALSE),"") -> 88 | I42: =IFERROR(VLOOKUP($A$3,'2010 SG'!$A$3:$AI$500,17,FALSE),"") -> 41 | J42: =IFERROR(VLOOKUP($A$3,'2010 SG'!$A$3:$AI$500,18,FALSE),"") -> 63 | L42: =IFERROR(VLOOKUP($A$3,'2010 SG'!$A$3:$AI$500,19,FALSE),"") -> 69 | M42: =IFERROR(VLOOKUP($A$3,'2010 SG'!$A$3:$AI$500,20,FALSE),"") -> 58 | O42: =IFERROR(VLOOKUP($A$3,'2010 SG'!$A$3:$AI$500,21,FALSE),"") -> 67 | Q42: NA | S42: NA | T42: =IFERROR(VLOOKUP($A$3,'2010 SG'!$A$3:$AI$500,24,FALSE),"") -> 99 | U42: High Schools | X42: 2010-2012 | Y42: 1600 | AA42: 1050-1600 | AC42: 990 - 1049 | AE42: 870 - 989 | AG42: 790 - 869 | AH42: 0 - 789
A43: 2009 | B43: =IF(VLOOKUP($A$3,'2009 SG'!$A$2:$AI$381,3,FALSE)="","NG",IFERROR(VLOOKUP($A$3,'2009 SG'!$A$2:$AI$381,3,FALSE),"")) -> B | C43: NA | D43: =IFERROR(VLOOKUP($A$3,'2009 SG'!$A$2:$AI$381,23,FALSE),"") -> 521 | E43: =IFERROR(VLOOKUP($A$3,'2009 SG'!$A$2:$AI$381,14,FALSE),"") -> 62 | F43: =IFERROR(VLOOKUP($A$3,'2009 SG'!$A$2:$AI$381,15,FALSE),"") -> 69 | G43: =IFERROR(VLOOKUP($A$3,'2009 SG'!$A$2:$AI$381,16,FALSE),"") -> 88 | I43: =IFERROR(VLOOKUP($A$3,'2009 SG'!$A$2:$AI$381,17,FALSE),"") -> 40 | J43: =IFERROR(VLOOKUP($A$3,'2009 SG'!$A$2:$AI$381,18,FALSE),"") -> 63 | L43: =IFERROR(VLOOKUP($A$3,'2009 SG'!$A$2:$AI$381,19,FALSE),"") -> 69 | M43: =IFERROR(VLOOKUP($A$3,'2009 SG'!$A$2:$AI$381,20,FALSE),"") -> 63 | O43: =IFERROR(VLOOKUP($A$3,'2009 SG'!$A$2:$AI$381,21,FALSE),"") -> 67 | Q43: NA | S43: NA | T43: =IFERROR(VLOOKUP($A$3,'2009 SG'!$A$2:$AI$381,24,FALSE),"") -> 99 | U43: K-12 and 6-12 | X43: 2012 | Y43: 1700 | AA43: 1115 - 1700 | AC43: 1050 - 1114 | AE43: 925 - 1049 | AG43: 840 - 924 | AH43: 0 - 839
A44: 2008 | B44: =VLOOKUP($A$3,'School Grade'!$A$1025:$N$1376,4,FALSE) -> B | C44: NA | D44: =VLOOKUP($A$3,'School Grade'!$A$1025:$N$1376,14,FALSE) -> 515 | E44: =VLOOKUP($A$3,'School Grade'!$A$1025:$N$1376,5,FALSE) -> 60 | F44: =VLOOKUP($A$3,'School Grade'!$A$1025:$N$1376,6,FALSE) -> 67 | G44: =VLOOKUP($A$3,'School Grade'!$A$1025:$N$1376,7,FALSE) -> 87 | I44: =VLOOKUP($A$3,'School Grade'!$A$1025:$N$1376,8,FALSE) -> 39 | J44: =VLOOKUP($A$3,'School Grade'!$A$1025:$N$1376,9,FALSE) -> 61 | L44: =VLOOKUP($A$3,'School Grade'!$A$1025:$N$1376,10,FALSE) -> 71 | M44: =VLOOKUP($A$3,'School Grade'!$A$1025:$N$1376,11,FALSE) -> 60 | O44: =VLOOKUP($A$3,'School Grade'!$A$1025:$N$1376,13,FALSE) -> NA | Q44: NA | S44: NA | T44: NA | U44: High Schools and K-12/6-12 | X44: 2008-2009 | Y44: 800 | AA44: 525 - 800 | AC44: 495 - 524 | AE44: 435 - 494 | AG44: 395 - 434 | AH44: 0 - 394
F46: Sum points earned | G46: =SUM(E40,F40,G40,I40,J40,L40,M40,O40,Q40,S40) -> 512
F47: Middle School Acceleration Qualification | G47: =IFERROR(VLOOKUP(TEXT($A$3,"0000"),'2012 SG'!$D$9:$AW$500,11,FALSE),"") -> NA

Sheet G6-8 Summary Report
A2: Click here to return to the school and sheet selection interface | AF2: District | AG2: Average % Correct | AT2: District | AU2: % Proficient
A3: ='Select School'!B3 -> 9999 | AG3: District | AU3: District
A4: =TEXT(A3,"0000")&"-"&VLOOKUP(A3,SchList!$A$2:$B$502,2,FALSE) -> 9999-District | AG4: Average % Correct | AP4: Average Score | AU4: % Proficient | BD4: % of Students Scoring at 4.0 and higher
A5: 2011-12 Fall and Winter Interim Assessments, Grades 6-8 | AG5: Reading | AJ5: Math | AM5: Science | AP5: Writing | AU5: Reading | AX5: Math | BA5: Science | BD5: Writing
AF6: Grade | AG6: Baseline | AH6: Fall IA | AI6: Winter IA | AJ6: Baseline | AK6: Fall IA | AL6: Winter IA | AM6: BL | AN6: Fall | AO6: Winter | AP6: Prompt | AQ6: Pre-Test | AR6: Midyear | AT6: Grade | AU6: Baseline | AV6: Fall IA | AW6: Winter IA | AX6: Baseline | AY6: Fall IA | AZ6: Winter IA | BA6: BL | BB6: Fall | BC6: Winter | BD6: Prompt | BE6: Baseline | BF6: Midyear
AF7: 6 | AG7: =IFERROR(IF(VLOOKUP(9999,'BLG6-RALL'!$A$14:$CZ$500,3,FALSE)="",#N/A,VLOOKUP(9999,'BLG6-RALL'!$A$14:$CZ$500,5,FALSE)*100),#N/A) -> 57 | AH7: =IFERROR(IF(VLOOKUP(9999,'FIAG6-RALL'!$A$14:$CT$500,3,FALSE)="",#N/A,VLOOKUP(9999,'FIAG6-RALL'!$A$14:$CT$500,5,FALSE)*100),#N/A) -> 61 | AI7: =IFERROR(IF(VLOOKUP(9999,'WIAG6-RALL'!$A$14:$CZ$500,3,FALSE)="",#N/A,VLOOKUP(9999,'WIAG6-RALL'!$A$14:$CZ$500,5,FALSE)*100),#N/A) -> 65 | AJ7: =IFERROR(IF(VLOOKUP(9999,'BLG6-MALL'!$A$14:$CZ$500,3,FALSE)="",#N/A,VLOOKUP(9999,'BLG6-MALL'!$A$14:$CZ$500,5,FALSE)*100),#N/A) -> 29 | AK7: =IFERROR(IF(VLOOKUP(9999,'FIAG6-MALL'!$A$14:$CX$500,3,FALSE)="",#N/A,VLOOKUP(9999,'FIAG6-MALL'!$A$14:$CX$500,5,FALSE)*100),#N/A) -> 48 | AL7: =IFERROR(IF(VLOOKUP(9999,'WIAG6-MALL'!$A$14:$CZ$500,3,FALSE)="",#N/A,VLOOKUP(9999,'WIAG6-MALL'!$A$14:$CZ$500,5,FALSE)*100),#N/A) -> 47 | AP7: Expository | AQ7: =IFERROR(IF(VLOOKUP(9999,'BLG8-WALL'!$A$14:$CZ$500,3,FALSE)="",#N/A,VLOOKUP(9999,'BLG8-WALL'!$A$14:$CZ$500,4,FALSE)),#N/A) -> 2.816102192 | AR7: =IFERROR(IF(VLOOKUP(9999,'MYG4-WALL'!$A$14:$CZ$500,3,FALSE)="",#N/A,VLOOKUP(9999,'MYG4-WALL'!$A$14:$CZ$500,4,FALSE)),#N/A) -> 2.75585869 | AT7: 6 | AU7: =IFERROR(IF(VLOOKUP(9999,'BLG6-RALL'!$A$14:$CZ$500,3,FALSE)="",#N/A,VLOOKUP(9999,'BLG6-RALL'!$A$14:$CZ$500,9,FALSE)*100),#N/A) -> 26.77 | AV7: =IFERROR(IF(VLOOKUP(9999,'FIAG6-RALL'!$A$14:$CT$500,3,FALSE)="",#N/A,VLOOKUP(9999,'FIAG6-RALL'!$A$14:$CT$500,11,FALSE)*100),#N/A) -> 51.29 | AW7: =IFERROR(IF(VLOOKUP(9999,'WIAG6-RALL'!$A$14:$CZ$500,3,FALSE)="",#N/A,VLOOKUP(9999,'WIAG6-RALL'!$A$14:$CZ$500,11,FALSE)*100),#N/A) -> 52.55 | AX7: =IFERROR(IF(VLOOKUP(9999,'BLG6-MALL'!$A$14:$CZ$500,3,FALSE)="",#N/A,VLOOKUP(9999,'BLG6-MALL'!$A$14:$CZ$500,9,FALSE)*100),#N/A) -> 0.66 | AY7: =IFERROR(IF(VLOOKUP(9999,'FIAG6-MALL'!$A$14:$CX$500,3,FALSE)="",#N/A,VLOOKUP(9999,'FIAG6-MALL'!$A$14:$CX$500,11,FALSE)*100),#N/A) -> 42.11 | AZ7: =IFERROR(IF(VLOOKUP(9999,'WIAG6-MALL'!$A$14:$CZ$500,3,FALSE)="",#N/A,VLOOKUP(9999,'WIAG6-MALL'!$A$14:$CZ$500,11,FALSE)*100),#N/A) -> 45.13 | BD7: Expository | BE7: =IFERROR(IF(VLOOKUP(9999,'BLG8-WALL'!$A$14:$CZ$500,3,FALSE)="",#N/A,VLOOKUP(9999,'BLG8-WALL'!$A$14:$CZ$500,11,FALSE)*100),#N/A) -> 27.45889534
AF8: 7 | AG8: =IFERROR(IF(VLOOKUP(9999,'BLG7-RALL'!$A$14:$CZ$500,3,FALSE)="",#N/A,VLOOKUP(9999,'BLG7-RALL'!$A$14:$CZ$500,5,FALSE)*100),#N/A) -> 63 | AH8: =IFERROR(IF(VLOOKUP(9999,'FIAG7-RALL'!$A$14:$CT$500,3,FALSE)="",#N/A,VLOOKUP(9999,'FIAG7-RALL'!$A$14:$CT$500,5,FALSE)*100),#N/A) -> 57 | AI8: =IFERROR(IF(VLOOKUP(9999,'WIAG7-RALL'!$A$14:$CZ$500,3,FALSE)="",#N/A,VLOOKUP(9999,'WIAG7-RALL'!$A$14:$CZ$500,5,FALSE)*100),#N/A) -> 63 | AJ8: =IFERROR(IF(VLOOKUP(9999,'BLG7-MALL'!$A$14:$CZ$500,3,FALSE)="",#N/A,VLOOKUP(9999,'BLG7-MALL'!$A$14:$CZ$500,5,FALSE)*100),#N/A) -> 38 | AK8: =IFERROR(IF(VLOOKUP(9999,'FIAG7-MALL'!$A$14:$CZ$500,3,FALSE)="",#N/A,VLOOKUP(9999,'FIAG7-MALL'!$A$14:$CZ$500,5,FALSE)*100),#N/A) -> 48 | AL8: =IFERROR(IF(VLOOKUP(9999,'WIAG7-MALL'!$A$14:$CZ$500,3,FALSE)="",#N/A,VLOOKUP(9999,'WIAG7-MALL'!$A$14:$CZ$500,5,FALSE)*100),#N/A) -> 53 | AP8: Persuasive | AQ8: =IFERROR(IF(VLOOKUP(9999,'BLG8-WALL'!$A$14:$CZ$500,12,FALSE)="",#N/A,VLOOKUP(9999,'BLG8-WALL'!$A$14:$CZ$500,13,FALSE)),#N/A) -> 2.683164605 | AR8: =IFERROR(IF(VLOOKUP(9999,'MYG4-WALL'!$A$14:$CZ$500,12,FALSE)="",#N/A,VLOOKUP(9999,'MYG4-WALL'!$A$14:$CZ$500,13,FALSE)),#N/A) -> 2.838634728 | AT8: 7 | AU8: =IFERROR(IF(VLOOKUP(9999,'BLG7-RALL'!$A$14:$CZ$500,3,FALSE)="",#N/A,VLOOKUP(9999,'BLG7-RALL'!$A$14:$CZ$500,9,FALSE)*100),#N/A) -> 42.32 | AV8: =IFERROR(IF(VLOOKUP(9999,'FIAG7-RALL'!$A$14:$CT$500,3,FALSE)="",#N/A,VLOOKUP(9999,'FIAG7-RALL'!$A$14:$CT$500,11,FALSE)*100),#N/A) -> 50.66 | AW8: =IFERROR(IF(VLOOKUP(9999,'WIAG7-RALL'!$A$14:$CZ$500,3,FALSE)="",#N/A,VLOOKUP(9999,'WIAG7-RALL'!$A$14:$CZ$500,11,FALSE)*100),#N/A) -> 55.7 | AX8: =IFERROR(IF(VLOOKUP(9999,'BLG7-MALL'!$A$14:$CZ$500,3,FALSE)="",#N/A,VLOOKUP(9999,'BLG7-MALL'!$A$14:$CZ$500,9,FALSE)*100),#N/A) -> 4.67 | AY8: =IFERROR(IF(VLOOKUP(9999,'FIAG7-MALL'!$A$14:$CZ$500,3,FALSE)="",#N/A,VLOOKUP(9999,'FIAG7-MALL'!$A$14:$CZ$500,11,FALSE)*100),#N/A) -> 46.41 | AZ8: =IFERROR(IF(VLOOKUP(9999,'WIAG7-MALL'!$A$14:$CZ$500,3,FALSE)="",#N/A,VLOOKUP(9999,'WIAG7-MALL'!$A$14:$CZ$500,11,FALSE)*100),#N/A) -> 48.53 | BD8: Persuasive | BE8: =IFERROR(IF(VLOOKUP(9999,'BLG8-WALL'!$A$14:$CZ$500,12,FALSE)="",#N/A,VLOOKUP(9999,'BLG8-WALL'!$A$14:$CZ$500,20,FALSE)*100),#N/A) -> 24.20024296
AF9: 8 | AG9: =IFERROR(IF(VLOOKUP(9999,'BLG8-RALL'!$A$14:$CZ$500,3,FALSE)="",#N/A,VLOOKUP(9999,'BLG8-RALL'!$A$14:$CZ$500,5,FALSE)*100),#N/A) -> 55 | AH9: =IFERROR(IF(VLOOKUP(9999,'FIAG8-RALL'!$A$14:$CU$500,3,FALSE)="",#N/A,VLOOKUP(9999,'FIAG8-RALL'!$A$14:$CU$500,5,FALSE)*100),#N/A) -> 57 | AI9: =IFERROR(IF(VLOOKUP(9999,'WIAG8-RALL'!$A$14:$CZ$500,3,FALSE)="",#N/A,VLOOKUP(9999,'WIAG8-RALL'!$A$14:$CZ$500,5,FALSE)*100),#N/A) -> 63 | AJ9: =IFERROR(IF(VLOOKUP(9999,'BLG8-MALL'!$A$14:$CZ$500,3,FALSE)="",#N/A,VLOOKUP(9999,'BLG8-MALL'!$A$14:$CZ$500,5,FALSE)*100),#N/A) -> 46 | AK9: =IFERROR(IF(VLOOKUP(9999,'FIAG8-MALL'!$A$14:$CZ$500,3,FALSE)="",#N/A,VLOOKUP(9999,'FIAG8-MALL'!$A$14:$CZ$500,5,FALSE)*100),#N/A) -> 52 | AL9: =IFERROR(IF(VLOOKUP(9999,'WIAG8-MALL'!$A$14:$CZ$500,3,FALSE)="",#N/A,VLOOKUP(9999,'WIAG8-MALL'!$A$14:$CZ$500,5,FALSE)*100),#N/A) -> 58 | AM9: =IFERROR(IF(VLOOKUP(9999,'BLG8-SALL'!$A$14:$CZ$500,3,FALSE)="",#N/A,VLOOKUP(9999,'BLG8-SALL'!$A$14:$CZ$500,5,FALSE)*100),#N/A) -> 40 | AN9: =IFERROR(IF(VLOOKUP(9999,'FIAG8-SALL'!$A$14:$CZ$500,3,FALSE)="",#N/A,VLOOKUP(9999,'FIAG8-SALL'!$A$14:$CZ$500,5,FALSE)*100),#N/A) -> 43 | AO9: =IFERROR(IF(VLOOKUP(9999,'WIAG8-SALL'!$A$14:$CZ$500,3,FALSE)="",#N/A,VLOOKUP(9999,'WIAG8-SALL'!$A$14:$CZ$500,5,FALSE)*100),#N/A) -> 48 | AT9: 8 | AU9: =IFERROR(IF(VLOOKUP(9999,'BLG8-RALL'!$A$14:$CZ$500,3,FALSE)="",#N/A,VLOOKUP(9999,'BLG8-RALL'!$A$14:$CZ$500,9,FALSE)*100),#N/A) -> 22.4 | AV9: =IFERROR(IF(VLOOKUP(9999,'FIAG8-RALL'!$A$14:$CU$500,3,FALSE)="",#N/A,VLOOKUP(9999,'FIAG8-RALL'!$A$14:$CU$500,11,FALSE)*100),#N/A) -> 48.19 | AW9: =IFERROR(IF(VLOOKUP(9999,'WIAG8-RALL'!$A$14:$CZ$500,3,FALSE)="",#N/A,VLOOKUP(9999,'WIAG8-RALL'!$A$14:$CZ$500,11,FALSE)*100),#N/A) -> 50.35 | AX9: =IFERROR(IF(VLOOKUP(9999,'BLG8-MALL'!$A$14:$CZ$500,3,FALSE)="",#N/A,VLOOKUP(9999,'BLG8-MALL'!$A$14:$CZ$500,9,FALSE)*100),#N/A) -> 10.48 | AY9: =IFERROR(IF(VLOOKUP(9999,'FIAG8-MALL'!$A$14:$CZ$500,3,FALSE)="",#N/A,VLOOKUP(9999,'FIAG8-MALL'!$A$14:$CZ$500,11,FALSE)*100),#N/A) -> 47.88 | AZ9: =IFERROR(IF(VLOOKUP(9999,'WIAG8-MALL'!$A$14:$CZ$500,3,FALSE)="",#N/A,VLOOKUP(9999,'WIAG8-MALL'!$A$14:$CZ$500,11,FALSE)*100),#N/A) -> 52.41 | BA9: =IFERROR(IF(VLOOKUP(9999,'BLG8-SALL'!$A$14:$CZ$500,3,FALSE)="",#N/A,VLOOKUP(9999,'BLG8-SALL'!$A$14:$CZ$500,9,FALSE)*100),#N/A) -> 4.8 | BB9: =IFERROR(IF(VLOOKUP(9999,'FIAG8-SALL'!$A$14:$CZ$500,3,FALSE)="",#N/A,VLOOKUP(9999,'FIAG8-SALL'!$A$14:$CZ$500,9,FALSE)*100),#N/A) -> 6.85 | BC9: =IFERROR(IF(VLOOKUP(9999,'WIAG8-SALL'!$A$14:$CZ$500,3,FALSE)="",#N/A,VLOOKUP(9999,'WIAG8-SALL'!$A$14:$CZ$500,9,FALSE)*100),#N/A) -> 9.61
AF11: School | AG11: =A4 -> 9999-District | AT11: School | AU11: =A4 -> 9999-District
AG12: Average % Correct | AP12: Average Score | AU12: % Proficient | BD12: % of Students Scoring at 4.0 and higher
AG13: Reading | AJ13: Math | AM13: Science | AP13: Writing | AU13: Reading | AX13: Math | BA13: Science | BD13: Writing
AF14: Grade | AG14: Baseline | AH14: Fall IA | AI14: Winter IA | AJ14: Baseline | AK14: Fall IA | AL14: Winter IA | AM14: BL | AN14: Fall | AO14: Winter | AP14: Prompt | AQ14: Pre-Test | AR14: Midyear | AT14: Grade | AU14: Baseline | AV14: Fall IA | AW14: Winter IA | AX14: Baseline | AY14: Fall IA | AZ14: Winter IA | BA14: BL | BB14: Fall | BC14: Winter | BD14: Prompt | BE14: Baseline | BF14: Midyear
AF15: 6 | AG15: =IFERROR(IF(VLOOKUP($A$3,'BLG6-RALL'!$A$14:$CZ$500,3,FALSE)="",#N/A,VLOOKUP($A$3,'BLG6-RALL'!$A$14:$CZ$500,5,FALSE)*100),#N/A) -> 57 | AH15: =IFERROR(IF(VLOOKUP($A$3,'FIAG6-RALL'!$A$14:$CT$500,3,FALSE)="",#N/A,VLOOKUP($A$3,'FIAG6-RALL'!$A$14:$CT$500,5,FALSE)*100),#N/A) -> 61 | AI15: =IFERROR(IF(VLOOKUP($A$3,'WIAG6-RALL'!$A$14:$CZ$500,3,FALSE)="",#N/A,VLOOKUP($A$3,'WIAG6-RALL'!$A$14:$CZ$500,5,FALSE)*100),#N/A) -> 65 | AJ15: =IFERROR(IF(VLOOKUP($A$3,'BLG6-MALL'!$A$14:$CZ$500,3,FALSE)="",#N/A,VLOOKUP($A$3,'BLG6-MALL'!$A$14:$CZ$500,5,FALSE)*100),#N/A) -> 29 | AK15: =IFERROR(IF(VLOOKUP($A$3,'FIAG6-MALL'!$A$14:$CX$500,3,FALSE)="",#N/A,VLOOKUP($A$3,'FIAG6-MALL'!$A$14:$CX$500,5,FALSE)*100),#N/A) -> 48 | AL15: =IFERROR(IF(VLOOKUP($A$3,'WIAG6-MALL'!$A$14:$CZ$500,3,FALSE)="",#N/A,VLOOKUP($A$3,'WIAG6-MALL'!$A$14:$CZ$500,5,FALSE)*100),#N/A) -> 47 | AP15: Expository | AQ15: =IFERROR(IF(VLOOKUP($A$3,'BLG8-WALL'!$A$14:$CZ$500,3,FALSE)="",#N/A,VLOOKUP($A$3,'BLG8-WALL'!$A$14:$CZ$500,4,FALSE)),#N/A) -> 2.816102192 | AR15: =IFERROR(IF(VLOOKUP($A$3,'MYG8-WALL'!$A$14:$CZ$500,3,FALSE)="",#N/A,VLOOKUP($A$3,'MYG8-WALL'!$A$14:$CZ$500,4,FALSE)),#N/A) -> 3.298856451 | AT15: 6 | AU15: =IFERROR(IF(VLOOKUP($A$3,'BLG6-RALL'!$A$14:$CZ$500,3,FALSE)="",#N/A,VLOOKUP($A$3,'BLG6-RALL'!$A$14:$CZ$500,9,FALSE)*100),#N/A) -> 26.77 | AV15: =IFERROR(IF(VLOOKUP($A$3,'FIAG6-RALL'!$A$14:$CT$500,3,FALSE)="",#N/A,VLOOKUP($A$3,'FIAG6-RALL'!$A$14:$CT$500,11,FALSE)*100),#N/A) -> 51.29 | AW15: =IFERROR(IF(VLOOKUP($A$3,'WIAG6-RALL'!$A$14:$CZ$500,3,FALSE)="",#N/A,VLOOKUP($A$3,'WIAG6-RALL'!$A$14:$CZ$500,11,FALSE)*100),#N/A) -> 52.55 | AX15: =IFERROR(IF(VLOOKUP($A$3,'BLG6-MALL'!$A$14:$CZ$500,3,FALSE)="",#N/A,VLOOKUP($A$3,'BLG6-MALL'!$A$14:$CZ$500,9,FALSE)*100),#N/A) -> 0.66 | AY15: =IFERROR(IF(VLOOKUP($A$3,'FIAG6-MALL'!$A$14:$CX$500,3,FALSE)="",#N/A,VLOOKUP($A$3,'FIAG6-MALL'!$A$14:$CX$500,11,FALSE)*100),#N/A) -> 42.11 | AZ15: =IFERROR(IF(VLOOKUP($A$3,'WIAG6-MALL'!$A$14:$CZ$500,3,FALSE)="",#N/A,VLOOKUP($A$3,'WIAG6-MALL'!$A$14:$CZ$500,11,FALSE)*100),#N/A) -> 45.13 | BD15: Expository | BE15: =IFERROR(IF(VLOOKUP($A$3,'BLG8-WALL'!$A$14:$CZ$500,3,FALSE)="",#N/A,VLOOKUP($A$3,'BLG8-WALL'!$A$14:$CZ$500,11,FALSE)*100),#N/A) -> 27.45889534 | BF15: =IFERROR(IF(VLOOKUP($A$3,'MYG8-WALL'!$A$14:$CZ$500,3,FALSE)="",#N/A,VLOOKUP($A$3,'MYG8-WALL'!$A$14:$CZ$500,11,FALSE)*100),#N/A) -> 46.97252722
AF16: 7 | AG16: =IFERROR(IF(VLOOKUP($A$3,'BLG7-RALL'!$A$14:$CZ$500,3,FALSE)="",#N/A,VLOOKUP($A$3,'BLG7-RALL'!$A$14:$CZ$500,5,FALSE)*100),#N/A) -> 63 | AH16: =IFERROR(IF(VLOOKUP($A$3,'FIAG7-RALL'!$A$14:$CT$500,3,FALSE)="",#N/A,VLOOKUP($A$3,'FIAG7-RALL'!$A$14:$CT$500,5,FALSE)*100),#N/A) -> 57 | AI16: =IFERROR(IF(VLOOKUP($A$3,'WIAG7-RALL'!$A$14:$CZ$500,3,FALSE)="",#N/A,VLOOKUP($A$3,'WIAG7-RALL'!$A$14:$CZ$500,5,FALSE)*100),#N/A) -> 63 | AJ16: =IFERROR(IF(VLOOKUP($A$3,'BLG7-MALL'!$A$14:$CZ$500,3,FALSE)="",#N/A,VLOOKUP($A$3,'BLG7-MALL'!$A$14:$CZ$500,5,FALSE)*100),#N/A) -> 38 | AK16: =IFERROR(IF(VLOOKUP($A$3,'FIAG7-MALL'!$A$14:$CZ$500,3,FALSE)="",#N/A,VLOOKUP($A$3,'FIAG7-MALL'!$A$14:$CZ$500,5,FALSE)*100),#N/A) -> 48 | AL16: =IFERROR(IF(VLOOKUP($A$3,'WIAG7-MALL'!$A$14:$CZ$500,3,FALSE)="",#N/A,VLOOKUP($A$3,'WIAG7-MALL'!$A$14:$CZ$500,5,FALSE)*100),#N/A) -> 53 | AP16: Persuasive | AQ16: =IFERROR(IF(VLOOKUP($A$3,'BLG8-WALL'!$A$14:$CZ$500,12,FALSE)="",#N/A,VLOOKUP($A$3,'BLG8-WALL'!$A$14:$CZ$500,13,FALSE)),#N/A) -> 2.683164605 | AR16: =IFERROR(IF(VLOOKUP($A$3,'MYG8-WALL'!$A$14:$CZ$500,12,FALSE)="",#N/A,VLOOKUP($A$3,'MYG8-WALL'!$A$14:$CZ$500,13,FALSE)),#N/A) -> 3.265191178 | AT16: 7 | AU16: =IFERROR(IF(VLOOKUP($A$3,'BLG7-RALL'!$A$14:$CZ$500,3,FALSE)="",#N/A,VLOOKUP($A$3,'BLG7-RALL'!$A$14:$CZ$500,9,FALSE)*100),#N/A) -> 42.32 | AV16: =IFERROR(IF(VLOOKUP($A$3,'FIAG7-RALL'!$A$14:$CT$500,3,FALSE)="",#N/A,VLOOKUP($A$3,'FIAG7-RALL'!$A$14:$CT$500,11,FALSE)*100),#N/A) -> 50.66 | AW16: =IFERROR(IF(VLOOKUP($A$3,'WIAG7-RALL'!$A$14:$CZ$500,3,FALSE)="",#N/A,VLOOKUP($A$3,'WIAG7-RALL'!$A$14:$CZ$500,11,FALSE)*100),#N/A) -> 55.7 | AX16: =IFERROR(IF(VLOOKUP($A$3,'BLG7-MALL'!$A$14:$CZ$500,3,FALSE)="",#N/A,VLOOKUP($A$3,'BLG7-MALL'!$A$14:$CZ$500,9,FALSE)*100),#N/A) -> 4.67 | AY16: =IFERROR(IF(VLOOKUP($A$3,'FIAG7-MALL'!$A$14:$CZ$500,3,FALSE)="",#N/A,VLOOKUP($A$3,'FIAG7-MALL'!$A$14:$CZ$500,11,FALSE)*100),#N/A) -> 46.41 | AZ16: =IFERROR(IF(VLOOKUP($A$3,'WIAG7-MALL'!$A$14:$CZ$500,3,FALSE)="",#N/A,VLOOKUP($A$3,'WIAG7-MALL'!$A$14:$CZ$500,11,FALSE)*100),#N/A) -> 48.53 | BD16: Persuasive | BE16: =IFERROR(IF(VLOOKUP($A$3,'BLG8-WALL'!$A$14:$CZ$500,12,FALSE)="",#N/A,VLOOKUP($A$3,'BLG8-WALL'!$A$14:$CZ$500,20,FALSE)*100),#N/A) -> 24.20024296 | BF16: =IFERROR(IF(VLOOKUP($A$3,'MYG8-WALL'!$A$14:$CZ$500,12,FALSE)="",#N/A,VLOOKUP($A$3,'MYG8-WALL'!$A$14:$CZ$500,20,FALSE)*100),#N/A) -> 46.12040759
AF17: 8 | AG17: =IFERROR(IF(VLOOKUP($A$3,'BLG8-RALL'!$A$14:$CZ$500,3,FALSE)="",#N/A,VLOOKUP($A$3,'BLG8-RALL'!$A$14:$CZ$500,5,FALSE)*100),#N/A) -> 55 | AH17: =IFERROR(IF(VLOOKUP($A$3,'FIAG8-RALL'!$A$14:$CU$500,3,FALSE)="",#N/A,VLOOKUP($A$3,'FIAG8-RALL'!$A$14:$CU$500,5,FALSE)*100),#N/A) -> 57 | AI17: =IFERROR(IF(VLOOKUP($A$3,'WIAG8-RALL'!$A$14:$CZ$500,3,FALSE)="",#N/A,VLOOKUP($A$3,'WIAG8-RALL'!$A$14:$CZ$500,5,FALSE)*100),#N/A) -> 63 | AJ17: =IFERROR(IF(VLOOKUP($A$3,'BLG8-MALL'!$A$14:$CZ$500,3,FALSE)="",#N/A,VLOOKUP($A$3,'BLG8-MALL'!$A$14:$CZ$500,5,FALSE)*100),#N/A) -> 46 | AK17: =IFERROR(IF(VLOOKUP($A$3,'FIAG8-MALL'!$A$14:$CZ$500,3,FALSE)="",#N/A,VLOOKUP($A$3,'FIAG8-MALL'!$A$14:$CZ$500,5,FALSE)*100),#N/A) -> 52 | AL17: =IFERROR(IF(VLOOKUP($A$3,'WIAG8-MALL'!$A$14:$CZ$500,3,FALSE)="",#N/A,VLOOKUP($A$3,'WIAG8-MALL'!$A$14:$CZ$500,5,FALSE)*100),#N/A) -> 58 | AM17: =IFERROR(IF(VLOOKUP($A$3,'BLG8-SALL'!$A$14:$CZ$500,3,FALSE)="",#N/A,VLOOKUP($A$3,'BLG8-SALL'!$A$14:$CZ$500,5,FALSE)*100),#N/A) -> 40 | AN17: =IFERROR(IF(VLOOKUP($A$3,'FIAG8-SALL'!$A$14:$CZ$500,3,FALSE)="",#N/A,VLOOKUP($A$3,'FIAG8-SALL'!$A$14:$CZ$500,5,FALSE)*100),#N/A) -> 43 | AO17: =IFERROR(IF(VLOOKUP($A$3,'WIAG8-SALL'!$A$14:$CZ$500,3,FALSE)="",#N/A,VLOOKUP($A$3,'WIAG8-SALL'!$A$14:$CZ$500,5,FALSE)*100),#N/A) -> 48 | AT17: 8 | AU17: =IFERROR(IF(VLOOKUP($A$3,'BLG8-RALL'!$A$14:$CZ$500,3,FALSE)="",#N/A,VLOOKUP($A$3,'BLG8-RALL'!$A$14:$CZ$500,9,FALSE)*100),#N/A) -> 22.4 | AV17: =IFERROR(IF(VLOOKUP($A$3,'FIAG8-RALL'!$A$14:$CU$500,3,FALSE)="",#N/A,VLOOKUP($A$3,'FIAG8-RALL'!$A$14:$CU$500,11,FALSE)*100),#N/A) -> 48.19 | AW17: =IFERROR(IF(VLOOKUP($A$3,'WIAG8-RALL'!$A$14:$CZ$500,3,FALSE)="",#N/A,VLOOKUP($A$3,'WIAG8-RALL'!$A$14:$CZ$500,11,FALSE)*100),#N/A) -> 50.35 | AX17: =IFERROR(IF(VLOOKUP($A$3,'BLG8-MALL'!$A$14:$CZ$500,3,FALSE)="",#N/A,VLOOKUP($A$3,'BLG8-MALL'!$A$14:$CZ$500,9,FALSE)*100),#N/A) -> 10.48 | AY17: =IFERROR(IF(VLOOKUP($A$3,'FIAG8-MALL'!$A$14:$CZ$500,3,FALSE)="",#N/A,VLOOKUP($A$3,'FIAG8-MALL'!$A$14:$CZ$500,11,FALSE)*100),#N/A) -> 47.88 | AZ17: =IFERROR(IF(VLOOKUP($A$3,'WIAG8-MALL'!$A$14:$CZ$500,3,FALSE)="",#N/A,VLOOKUP($A$3,'WIAG8-MALL'!$A$14:$CZ$500,11,FALSE)*100),#N/A) -> 52.41 | BA17: =IFERROR(IF(VLOOKUP($A$3,'BLG8-SALL'!$A$14:$CZ$500,3,FALSE)="",#N/A,VLOOKUP($A$3,'BLG8-SALL'!$A$14:$CZ$500,9,FALSE)*100),#N/A) -> 4.8 | BB17: =IFERROR(IF(VLOOKUP($A$3,'FIAG8-SALL'!$A$14:$CZ$500,3,FALSE)="",#N/A,VLOOKUP($A$3,'FIAG8-SALL'!$A$14:$CZ$500,9,FALSE)*100),#N/A) -> 6.85 | BC17: =IFERROR(IF(VLOOKUP($A$3,'WIAG8-SALL'!$A$14:$CZ$500,3,FALSE)="",#N/A,VLOOKUP($A$3,'WIAG8-SALL'!$A$14:$CZ$500,9,FALSE)*100),#N/A) -> 9.61

Sheet G6-8 Detailed Report
A2: Click here to return to the school and sheet selection interface
A3: ='Select School'!B3 -> 9999
A4: =TEXT(A3,"0000")&"-"&VLOOKUP(A3,SchList!$A$2:$B$497,2,FALSE) -> 9999-District
A5: Reading - Grade 6 (*2011 FCAT Retrofitted Scores) | S5: Mathematics - Grade 6 (*2011 FCAT Retrofitted Scores)
A6: Assessment | B6: Enroll-ment | C6: % Tested | D6: Avg. % Correct | E6: % Perf. | F6: Vocabulary | I6: Reading Application | L6: Literary Analysis Fiction/Non Fiction | O6: Informational Text/ Research Process | S6: Assessment | T6: Enroll-ment | U6: % Tested | V6: Avg. % Correct | W6: % Perf. | X6: Fractions, Ratios/Proportional Relationships, & Statistics | AC6: Expression & Equations | AG6: Geometry & Measurement | AL6: Number Tested Grade 6
F7: Avg.% Correct | G7: Pts. Max | H7: % Perf. | I7: Avg.% Correct | J7: Pts. Max | K7: % Perf. | L7: Avg.% Correct | M7: Pts. Max | N7: % Perf. | O7: Avg.% Correct | P7: Pts. Max | Q7: % Perf. | X7: Avg.% Correct | Y7: Pts. Max | AA7: % Perf. | AC7: Avg.% Correct | AD7: Pts. Max | AF7: % Perf. | AG7: Avg.% Correct | AH7: Pts. Max | AJ7: % Perf. | AL7: Reading | AM7: Math
A8: FCAT 2012 | B8: =IFERROR(VLOOKUP(TEXT($A$3,"0000"),'MemMay1-2012'!$A$2:$O$500,10,FALSE),"") -> 26909 | C8: =IFERROR(IF(VLOOKUP($A$3,'R-2012'!$AT$7:$BG$500,3,FALSE)>B8,1,VLOOKUP($A$3,'R-2012'!$AT$7:$BG$500,3,FALSE)/B8),"") -> 0.991341187 | D8: NA | E8: =IFERROR(VLOOKUP($A$3,'R-2012'!$AT$7:$BG$500,10,FALSE),"") -> 53 | F8: =IFERROR(VLOOKUP($A$3,'R-2012'!$AT$7:$BG$500,11,FALSE)/G8,"") -> 0.625 | G8: ='R-2012'!$BD$6 -> 8 | H8: NA | I8: =IFERROR(VLOOKUP($A$3,'R-2012'!$AT$7:$BG$500,12,FALSE)/J8,"") -> 0.6470588235 | J8: ='R-2012'!$BE$6 -> 17 | K8: NA | L8: =IFERROR(VLOOKUP($A$3,'R-2012'!$AT$7:$BG$500,13,FALSE)/M8,"") -> 0.6428571429 | M8: ='R-2012'!$BF$6 -> 14 | N8: NA | O8: =IFERROR(VLOOKUP($A$3,'R-2012'!$AT$7:$BG$500,14,FALSE)/P8,"") -> 0.6666666667 | P8: ='R-2012'!$BG$6 -> 6 | Q8: NA | S8: FCAT 2012 | T8: =IFERROR(VLOOKUP(TEXT($A$3,"0000"),'MemMay1-2012'!$A$2:$O$500,10,FALSE),"") -> 26909 | U8: =IFERROR(IF(VLOOKUP($A$3,'M-2012'!$AQ$7:$BC$500,3,FALSE)/$T8>1,1,VLOOKUP($A$3,'M-2012'!$AQ$7:$BC$500,3,FALSE)/$T8),"") -> 0.991341187 | V8: NA | W8: =IFERROR(VLOOKUP($A$3,'M-2012'!$AQ$7:$BC$500,10,FALSE),"") -> 50 | X8: =IFERROR(VLOOKUP($A$3,'M-2012'!$AQ$7:$BC$500,11,FALSE)/Y8,"") -> 0.5 | Y8: ='M-2012'!$BA$6 -> 18 | AA8: NA | AC8: =IFERROR(VLOOKUP($A$3,'M-2012'!$AQ$7:$BC$500,12,FALSE)/AD8,"") -> 0.5882352941 | AD8: ='M-2012'!$BB$6 -> 17 | AF8: NA | AG8: =IFERROR(VLOOKUP($A$3,'M-2012'!$AQ$7:$BC$500,13,FALSE)/AH8,"") -> 0.4444444444 | AH8: ='M-2012'!$BC$6 -> 9 | AJ8: NA | AL8: =VLOOKUP($A$3,'R-2012'!$AT$7:$BG$500,3,FALSE) -> 26676 | AM8: =VLOOKUP($A$3,'M-2012'!$AQ$7:$BC$500,3,FALSE) -> 26676
A9: Winter IA | B9: =IFERROR(VLOOKUP(TEXT($A$3,"0000"),MemJan20!$A$2:$O$500,10,FALSE),"NA") -> 26864 | C9: =IF($B9="NT","NT",IF(VLOOKUP($A$3,'WIAG6-RALL'!$A$14:$AA$500,3,FALSE)>$B9,1,VLOOKUP($A$3,'WIAG6-RALL'!$A$14:$AA$500,3,FALSE)/$B9)) -> 0.9463594401 | D9: =IF($B9="NT","NT",VLOOKUP($A$3,'WIAG6-RALL'!$A$14:$AA$500,5,FALSE)*100) -> 65 | E9: =IF(C9="NT","NT",VLOOKUP($A$3,'WIAG6-RALL'!$A$14:$AA$500,11,FALSE)*100) -> 52.55 | F9: =IFERROR(IF($D9="NT","NT",VLOOKUP($A$3,'WIAG6-RALL'!$A$14:$AG$500,13,FALSE)),"NT") -> 0.69 | G9: 11 | H9: NA | I9: =IFERROR(IF($D9="NT","NT",VLOOKUP($A$3,'WIAG6-RALL'!$A$14:$AG$500,17,FALSE)),"NT") -> 0.64 | J9: 21 | K9: NA | L9: =IFERROR(IF($D9="NT","NT",VLOOKUP($A$3,'WIAG6-RALL'!$A$14:$AG$500,21,FALSE)),"NT") -> 0.69 | M9: 10 | N9: NA | O9: =IFERROR(IF($D9="NT","NT",VLOOKUP($A$3,'WIAG6-RALL'!$A$14:$AG$500,25,FALSE)),"NT") -> 0.58 | P9: 11 | Q9: NA | S9: Winter IA | T9: =IFERROR(VLOOKUP(TEXT($A$3,"0000"),MemJan20!$A$2:$O$500,10,FALSE),"NA") -> 26864 | U9: =IF($T9="NT","NT",IF(VLOOKUP($A$3,'WIAG6-MALL'!$A$14:$AE$500,3,FALSE)>$T9,1,VLOOKUP($A$3,'WIAG6-MALL'!$A$14:$AE$500,3,FALSE)/$T9)) -> 0.948630137 | V9: =IF($T9="NT","NT",VLOOKUP($A$3,'WIAG6-MALL'!$A$14:$AE$500,5,FALSE)*100) -> 47 | W9: =IF(U9="NT","NT",VLOOKUP($A$3,'WIAG6-MALL'!$A$14:$AE$500,11,FALSE)*100) -> 45.13 | X9: =IFERROR(IF($V9="NT","NT",VLOOKUP($A$3,'WIAG6-MALL'!$A$14:$AK$500,13,FALSE)),"NT") -> 0.47 | Y9: 40 | AA9: NA | AC9: NA | AD9: NA | AF9: NA | AG9: NA | AH9: NA | AJ9: NA | AL9: =VLOOKUP($A$3,'WIAG6-RALL'!$A$14:$AG$500,3,FALSE) -> 25423 | AM9: =VLOOKUP($A$3,'WIAG6-MALL'!$A$14:$AG$500,3,FALSE) -> 25484
A10: Fall IA | B10: =IFERROR(VLOOKUP(TEXT($A$3,"0000"),MemNov10!$A$2:$O$500,10,FALSE),"NA") -> 26875 | C10: =IF($B10="NT","NT",IF(VLOOKUP($A$3,'FIAG6-RALL'!$A$14:$AA$500,3,FALSE)>$B10,1,VLOOKUP($A$3,'FIAG6-RALL'!$A$14:$AA$500,3,FALSE)/$B10)) -> 0.9472 | D10: =IF($B10="NT","NT",VLOOKUP($A$3,'FIAG6-RALL'!$A$14:$AA$500,5,FALSE)*100) -> 61 | E10: =IF(C10="NT","NT",VLOOKUP($A$3,'FIAG6-RALL'!$A$14:$AA$500,11,FALSE)*100) -> 51.29 | F10: =IFERROR(IF($D10="NT","NT",VLOOKUP($A$3,'FIAG6-RALL'!$A$14:$AG$500,13,FALSE)),"NT") -> 0.6 | G10: 9 | H10: NA | I10: =IFERROR(IF($D10="NT","NT",VLOOKUP($A$3,'FIAG6-RALL'!$A$14:$AG$500,17,FALSE)),"NT") -> 0.62 | J10: 23 | K10: NA | L10: =IFERROR(IF($D10="NT","NT",VLOOKUP($A$3,'FIAG6-RALL'!$A$14:$AG$500,21,FALSE)),"NT") -> 0.61 | M10: 14 | N10: NA | O10: =IFERROR(IF($D10="NT","NT",VLOOKUP($A$3,'FIAG6-RALL'!$A$14:$AG$500,25,FALSE)),"NT") -> 0.57 | P10: 8 | Q10: NA | S10: Fall IA | T10: =IFERROR(VLOOKUP(TEXT($A$3,"0000"),MemNov10!$A$2:$O$500,10,FALSE),"NA") -> 26875 | U10: =IF($T10="NT","NT",IF(VLOOKUP($A$3,'FIAG6-MALL'!$A$14:$AE$500,3,FALSE)>$T10,1,VLOOKUP($A$3,'FIAG6-MALL'!$A$14:$AE$500,3,FALSE)/$T10)) -> 0.9479069767 | V10: =IF($T10="NT","NT",VLOOKUP($A$3,'FIAG6-MALL'!$A$14:$AE$500,5,FALSE)*100) -> 48 | W10: =IF(U10="NT","NT",VLOOKUP($A$3,'FIAG6-MALL'!$A$14:$AE$500,11,FALSE)*100) -> 42.11 | X10: =IFERROR(IF($V10="NT","NT",VLOOKUP($A$3,'FIAG6-MALL'!$A$14:$AK$500,13,FALSE)),"NT") -> 0.43 | Y10: 18 | AA10: NA | AC10: =IFERROR(IF($V10="NT","NT",VLOOKUP($A$3,'FIAG6-MALL'!$A$14:$AK$500,17,FALSE)),"NT") -> 0.53 | AD10: 19 | AF10: NA | AG10: NA | AH10: NA | AJ10: NA | AL10: =VLOOKUP($A$3,'FIAG6-RALL'!$A$14:$AA$500,3,FALSE) -> 25456 | AM10: =VLOOKUP($A$3,'FIAG6-MALL'!$A$14:$AE$500,3,FALSE) -> 25475
A11: Baseline | B11: =IFERROR(VLOOKUP(TEXT($A$3,"0000"),MemSep02!$A$2:$O$500,10,FALSE),"NA") -> 26741 | C11: =IF($B11="NT","NT",IF(VLOOKUP($A$3,'BLG6-RALL'!$A$14:$AG$500,3,FALSE)>$B11,1,VLOOKUP($A$3,'BLG6-RALL'!$A$14:$AG$500,3,FALSE)/$B11)) -> 0.9151116263 | D11: =IF($B11="NT","NT",VLOOKUP($A$3,'BLG6-RALL'!$A$14:$AG$500,5,FALSE)*100) -> 57 | E11: =IF(C11="NT","NT",VLOOKUP($A$3,'BLG6-RALL'!$A$14:$AG$500,9,FALSE)*100) -> 26.77 | F11: =IFERROR(IF($D11="NT","NT",VLOOKUP($A$3,'BLG6-RALL'!$A$14:$AM$500,11,FALSE)),"NT") -> 0.63 | G11: 5 | H11: =IFERROR((IF($D11="NA","NA",VLOOKUP($A$3,'BLG6-RALL'!$A$14:$AM$500,15,FALSE)*100)),"NA") -> 43.5 | I11: =IFERROR(IF($D11="NT","NT",VLOOKUP($A$3,'BLG6-RALL'!$A$14:$AM$500,17,FALSE)),"NT") -> 0.59 | J11: 16 | K11: =IFERROR((IF($D11="NA","NA",VLOOKUP($A$3,'BLG6-RALL'!$A$14:$AM$500,21,FALSE)*100)),"NA") -> 30.63 | L11: =IFERROR(IF($D11="NT","NT",VLOOKUP($A$3,'BLG6-RALL'!$A$14:$AM$500,23,FALSE)),"NT") -> 0.55 | M11: 10 | N11: =IFERROR((IF($D11="NA","NA",VLOOKUP($A$3,'BLG6-RALL'!$A$14:$AM$500,27,FALSE)*100)),"NA") -> 32.99 | O11: =IFERROR(IF($D11="NT","NT",VLOOKUP($A$3,'BLG6-RALL'!$A$14:$AM$500,29,FALSE)),"NT") -> 0.47 | P11: 4 | Q11: =IFERROR((IF($D11="NA","NA",VLOOKUP($A$3,'BLG6-RALL'!$A$14:$AM$500,33,FALSE)*100)),"NA") -> 27.49 | S11: Baseline | T11: =IFERROR(VLOOKUP(TEXT($A$3,"0000"),MemSep02!$A$2:$O$500,10,FALSE),"NA") -> 26741 | U11: =IF($T11="NT","NT",IF(VLOOKUP($A$3,'BLG6-MALL'!$A$14:$AG$500,3,FALSE)>$T11,1,VLOOKUP($A$3,'BLG6-MALL'!$A$14:$AG$500,3,FALSE)/$T11)) -> 0.9222168206 | V11: =IF($T11="NT","NT",VLOOKUP($A$3,'BLG6-MALL'!$A$14:$AG$500,5,FALSE)*100) -> 29 | W11: =IF(U11="NT","NT",VLOOKUP($A$3,'BLG6-MALL'!$A$14:$AG$500,9,FALSE)*100) -> 0.66 | X11: =IFERROR(IF($V11="NT","NT",VLOOKUP($A$3,'BLG6-MALL'!$A$14:$AM$500,17,FALSE)),"NT") -> 0.27 | Y11: 20 | AA11: =IFERROR((IF($V11="NA","NA",VLOOKUP($A$3,'BLG6-MALL'!$A$14:$AM$500,21,FALSE)*100)),"NA") -> 0.98 | AC11: =IFERROR(IF($V11="NT","NT",VLOOKUP($A$3,'BLG6-MALL'!$A$14:$AM$500,11,FALSE)),"NT") -> 0.41 | AD11: 8 | AF11: =IFERROR((IF($V11="NA","NA",VLOOKUP($A$3,'BLG6-MALL'!$A$14:$AM$500,15,FALSE)*100)),"NA") -> 10.61 | AG11: =IFERROR(IF($V11="NT","NT",VLOOKUP($A$3,'BLG6-MALL'!$A$14:$AM$500,23,FALSE)),"NT") -> 0.23 | AH11: 7 | AJ11: =IFERROR((IF($V11="NA","NA",VLOOKUP($A$3,'BLG6-MALL'!$A$14:$AM$500,27,FALSE)*100)),"NA") -> 1.65 | AL11: =VLOOKUP($A$3,'BLG6-RALL'!$A$14:$AG$500,3,FALSE) -> 24471 | AM11: =VLOOKUP($A$3,'BLG6-MALL'!$A$14:$AG$500,3,FALSE) -> 24661
A12: *FCAT 2011 | B12: =IFERROR(VLOOKUP(TEXT($A$3,"0000"),MemMay31!$A$2:$O$500,10,FALSE),"") -> 27067 | C12: =IFERROR(IF(VLOOKUP($A$3,'R-2011'!$AW$7:$BK$500,3,FALSE)>B12,1,VLOOKUP($A$3,'R-2011'!$AW$7:$BK$500,3,FALSE)/B12),"") -> 0.9834484797 | D12: NA | E12: =IFERROR(VLOOKUP($A$3,'R-2011'!$AW$7:$BK$500,11,FALSE),"") -> 55 | F12: =IFERROR(VLOOKUP($A$3,'R-2011'!$AW$7:$BK$500,12,FALSE)/G12,"") -> 0.75 | G12: 8 | H12: NA | I12: =IFERROR(VLOOKUP($A$3,'R-2011'!$AW$7:$BK$500,13,FALSE)/J12,"") -> 0.5882352941 | J12: 17 | K12: NA | L12: =IFERROR(VLOOKUP($A$3,'R-2011'!$AW$7:$BK$500,14,FALSE)/M12,"") -> 0.6666666667 | M12: 12 | N12: NA | O12: =IFERROR(VLOOKUP($A$3,'R-2011'!$AW$7:$BK$500,15,FALSE)/P12,"") -> 0.625 | P12: 8 | Q12: NA | S12: *FCAT 2011 | T12: =IFERROR(VLOOKUP(TEXT($A$3,"0000"),MemMay31!$A$2:$O$500,10,FALSE),"") -> 27067 | U12: =IFERROR(IF(VLOOKUP($A$3,'M-2011'!$AT$7:$BG$500,3,FALSE)/$T12>1,1,VLOOKUP($A$3,'M-2011'!$AT$7:$BG$500,3,FALSE)/$T12),"") -> 0.9820076107 | V12: NA | W12: =IFERROR(VLOOKUP($A$3,'M-2011'!$AT$7:$BG$500,11,FALSE),"") -> 47 | X12: =IFERROR(VLOOKUP($A$3,'M-2011'!$AT$7:$BG$500,12,FALSE)/Y12,"") -> 0.5555555556 | Y12: 18 | AA12: NA | AC12: =IFERROR(VLOOKUP($A$3,'M-2011'!$AT$7:$BG$500,13,FALSE)/AD12,"") -> 0.5882352941 | AD12: 17 | AF12: NA | AG12: =IFERROR(VLOOKUP($A$3,'M-2011'!$AT$7:$BG$500,14,FALSE)/AH12,"") -> 0.4444444444 | AH12: 9 | AJ12: NA | AL12: =VLOOKUP($A$3,'R-2011'!$AW$7:$BK$500,3,FALSE) -> 26619 | AM12: =VLOOKUP($A$3,'M-2011'!$AT$7:$BG$500,3,FALSE) -> 26580
A13: Reading - Grade 7 (*2011 FCAT Retrofitted Scores) | S13: Mathematics - Grade 7 (*2011 FCAT Retrofitted Scores)
A14: Assessment | B14: Enroll-ment | C14: % Tested | D14: Avg. % Correct | E14: % Perf. | F14: Vocabulary | I14: Reading Application | L14: Literary Analysis Fiction/Non Fiction | O14: Informational Text/ Research Process | S14: Assessment | T14: Enroll-ment | U14: % Tested | V14: Avg. % Correct | W14: % Perf. | X14: Number: Base Ten | AA14: Ratios/Proportional Relationships | AD14: Geometry & Measurement | AG14: Statistics & Probability | AL14: Number Tested Grade 7
F15: Avg.% Correct | G15: Pts. Max | H15: % Perf. | I15: Avg.% Correct | J15: Pts. Max | K15: % Perf. | L15: Avg.% Correct | M15: Pts. Max | N15: % Perf. | O15: Avg.% Correct | P15: Pts. Max | Q15: % Perf. | X15: Avg.% Correct | Y15: Pts. Max | Z15: % Perf. | AA15: Avg.% Correct | AB15: Pts. Max | AC15: % Perf. | AD15: Avg.% Correct | AE15: Pts. Max | AF15: % Perf. | AG15: Avg.% Correct | AH15: Pts. Max | AJ15: % Perf. | AL15: Reading | AM15: Math
A16: FCAT 2012 | B16: =IFERROR(VLOOKUP(TEXT($A$3,"0000"),'MemMay1-2012'!$A$2:$O$500,11,FALSE),"") -> 27193 | C16: =IFERROR(IF(VLOOKUP($A$3,'R-2012'!$BI$7:$BV$500,3,FALSE)>B16,1,VLOOKUP($A$3,'R-2012'!$BI$7:$BV$500,3,FALSE)/B16),"") -> 0.9918729085 | D16: NA | E16: =IFERROR(VLOOKUP($A$3,'R-2012'!$BI$7:$BV$500,10,FALSE),"") -> 54 | F16: =IFERROR(VLOOKUP($A$3,'R-2012'!$BI$7:$BV$500,11,FALSE)/G16,"") -> 0.6666666667 | G16: ='R-2012'!$BS$6 -> 9 | H16: NA | I16: =IFERROR(VLOOKUP($A$3,'R-2012'!$BI$7:$BV$500,12,FALSE)/J16,"") -> 0.6666666667 | J16: ='R-2012'!$BT$6 -> 15 | K16: NA | L16: =IFERROR(VLOOKUP($A$3,'R-2012'!$BI$7:$BV$500,13,FALSE)/M16,"") -> 0.7 | M16: ='R-2012'!$BU$6 -> 10 | N16: NA | O16: =IFERROR(VLOOKUP($A$3,'R-2012'!$BI$7:$BV$500,14,FALSE)/P16,"") -> 0.6363636364 | P16: ='R-2012'!$BV$6 -> 11 | Q16: NA | S16: FCAT 2012 | T16: =IFERROR(VLOOKUP(TEXT($A$3,"0000"),'MemMay1-2012'!$A$2:$O$500,11,FALSE),"") -> 27193 | U16: =IFERROR(IF(VLOOKUP($A$3,'M-2012'!$BE$7:$BR$500,3,FALSE)/$T16>1,1,VLOOKUP($A$3,'M-2012'!$BE$7:$BR$500,3,FALSE)/$T16),"") -> 0.9914683926 | V16: NA | W16: =IFERROR(VLOOKUP($A$3,'M-2012'!$BE$7:$BR$500,10,FALSE),"") -> 52 | X16: =IFERROR(VLOOKUP($A$3,'M-2012'!$BE$7:$BR$500,11,FALSE)/Y16,"") -> 0.5454545455 | Y16: ='M-2012'!$BO$6 -> 11 | Z16: NA | AA16: =IFERROR(VLOOKUP($A$3,'M-2012'!$BE$7:$BR$500,12,FALSE)/AB16,"") -> 0.5833333333 | AB16: ='M-2012'!$BP$6 -> 12 | AC16: NA | AD16: =IFERROR(VLOOKUP($A$3,'M-2012'!$BE$7:$BR$500,13,FALSE)/AE16,"") -> 0.5384615385 | AE16: ='M-2012'!$BQ$6 -> 13 | AF16: NA | AG16: =IFERROR(VLOOKUP($A$3,'M-2012'!$BE$7:$BR$500,14,FALSE)/AH16,"") -> 0.625 | AH16: ='M-2012'!$BR$6 -> 8 | AJ16: NA | AL16: =VLOOKUP($A$3,'R-2012'!$BI$7:$BV$500,3,FALSE) -> 26972 | AM16: =VLOOKUP($A$3,'M-2012'!$BE$7:$BR$500,3,FALSE) -> 26961
A17: Winter IA | B17: =IFERROR(VLOOKUP(TEXT($A$3,"0000"),MemJan20!$A$2:$O$500,11,FALSE),"NA") -> 27216 | C17: =IF($B17="NT","NT",IF(VLOOKUP($A$3,'WIAG7-RALL'!$A$14:$AA$500,3,FALSE)>$B17,1,VLOOKUP($A$3,'WIAG7-RALL'!$A$14:$AA$500,3,FALSE)/$B17)) -> 0.9549162257 | D17: =IF($B17="NT","NT",VLOOKUP($A$3,'WIAG7-RALL'!$A$14:$AA$500,5,FALSE)*100) -> 63 | E17: =IF(C17="NT","NT",VLOOKUP($A$3,'WIAG7-RALL'!$A$14:$AA$500,11,FALSE)*100) -> 55.7 | F17: =IFERROR(IF($D17="NT","NT",VLOOKUP($A$3,'WIAG7-RALL'!$A$14:$AG$500,13,FALSE)),"NT") -> 0.63 | G17: 11 | H17: NA | I17: =IFERROR(IF($D17="NT","NT",VLOOKUP($A$3,'WIAG7-RALL'!$A$14:$AG$500,17,FALSE)),"NT") -> 0.67 | J17: 18 | K17: NA | L17: =IFERROR(IF($D17="NT","NT",VLOOKUP($A$3,'WIAG7-RALL'!$A$14:$AG$500,21,FALSE)),"NT") -> 0.53 | M17: 8 | N17: NA | O17: =IFERROR(IF($D17="NT","NT",VLOOKUP($A$3,'WIAG7-RALL'!$A$14:$AG$500,25,FALSE)),"NT") -> 0.64 | P17: 10 | Q17: NA | S17: Winter IA | T17: =IFERROR(VLOOKUP(TEXT($A$3,"0000"),MemJan20!$A$2:$O$500,11,FALSE),"NA") -> 27216 | U17: =IF($T17="NT","NT",IF(VLOOKUP($A$3,'WIAG7-MALL'!$A$14:$AG$500,3,FALSE)>$T17,1,VLOOKUP($A$3,'WIAG7-MALL'!$A$14:$AG$500,3,FALSE)/$T17)) -> 0.9472001764 | V17: =IF($T17="NT","NT",VLOOKUP($A$3,'WIAG7-MALL'!$A$14:$AG$500,5,FALSE)*100) -> 53 | W17: =IF(U17="NT","NT",VLOOKUP($A$3,'WIAG7-MALL'!$A$14:$AG$500,11,FALSE)*100) -> 48.53 | X17: NA | Y17: NA | Z17: NA | AA17: =IFERROR(IF($V17="NT","NT",VLOOKUP($A$3,'WIAG7-MALL'!$A$14:$AM$500,13,FALSE)),"NT") -> 0.49 | AB17: 36 | AC17: NA | AD17: NA | AE17: NA | AF17: NA | AG17: =IFERROR(IF($V17="NT","NT",VLOOKUP($A$3,'WIAG7-MALL'!$A$14:$AM$500,17,FALSE)),"NT") -> 0.66 | AH17: 11 | AJ17: NA | AL17: =IFERROR(VLOOKUP($A$3,'WIAG7-RALL'!$A$14:$AG$500,3,FALSE),"NT") -> 25989 | AM17: =IFERROR(VLOOKUP($A$3,'WIAG7-MALL'!$A$14:$AG$500,3,FALSE),"NT") -> 25779
A18: Fall IA | B18: =IFERROR(VLOOKUP(TEXT($A$3,"0000"),MemNov10!$A$2:$O$500,11,FALSE),"NA") -> 27172 | C18: =IF($B18="NT","NT",IF(VLOOKUP($A$3,'FIAG7-RALL'!$A$14:$AA$500,3,FALSE)>$B18,1,VLOOKUP($A$3,'FIAG7-RALL'!$A$14:$AA$500,3,FALSE)/$B18)) -> 0.9428823789 | D18: =IF($B18="NT","NT",VLOOKUP($A$3,'FIAG7-RALL'!$A$14:$AA$500,5,FALSE)*100) -> 57 | E18: =IF(C18="NT","NT",VLOOKUP($A$3,'FIAG7-RALL'!$A$14:$AA$500,11,FALSE)*100) -> 50.66 | F18: =IFERROR(IF($D18="NT","NT",VLOOKUP($A$3,'FIAG7-RALL'!$A$14:$AG$500,13,FALSE)),"NT") -> 0.56 | G18: 14 | H18: NA | I18: =IFERROR(IF($D18="NT","NT",VLOOKUP($A$3,'FIAG7-RALL'!$A$14:$AG$500,17,FALSE)),"NT") -> 0.62 | J18: 21 | K18: NA | L18: =IFERROR(IF($D18="NT","NT",VLOOKUP($A$3,'FIAG7-RALL'!$A$14:$AG$500,21,FALSE)),"NT") -> 0.47 | M18: 11 | N18: NA | O18: =IFERROR(IF($D18="NT","NT",VLOOKUP($A$3,'FIAG7-RALL'!$A$14:$AG$500,25,FALSE)),"NT") -> 0.59 | P18: 10 | Q18: NA | S18: Fall IA | T18: =IFERROR(VLOOKUP(TEXT($A$3,"0000"),MemNov10!$A$2:$O$500,11,FALSE),"NA") -> 27172 | U18: =IF($T18="NT","NT",IF(VLOOKUP($A$3,'FIAG7-MALL'!$A$14:$AG$500,3,FALSE)>$T18,1,VLOOKUP($A$3,'FIAG7-MALL'!$A$14:$AG$500,3,FALSE)/$T18)) -> 0.9363315177 | V18: =IF($T18="NT","NT",VLOOKUP($A$3,'FIAG7-MALL'!$A$14:$AG$500,5,FALSE)*100) -> 48 | W18: =IF(U18="NT","NT",VLOOKUP($A$3,'FIAG7-MALL'!$A$14:$AG$500,11,FALSE)*100) -> 46.41 | X18: =IFERROR(IF($V18="NT","NT",VLOOKUP($A$3,'FIAG7-MALL'!$A$14:$AM$500,13,FALSE)),"NT") -> 0.48 | Y18: 39 | Z18: NA | AA18: NA | AB18: NA | AC18: NA | AD18: NA | AE18: NA | AF18: NA | AG18: NA | AH18: NA | AJ18: NA | AL18: =IFERROR(VLOOKUP($A$3,'FIAG7-RALL'!$A$14:$AA$500,3,FALSE),"NT") -> 25620 | AM18: =IFERROR(VLOOKUP($A$3,'FIAG7-MALL'!$A$14:$AG$500,3,FALSE),"NT") -> 25442
A19: Baseline | B19: =IFERROR(VLOOKUP(TEXT($A$3,"0000"),MemSep02!$A$2:$O$500,11,FALSE),"NA") -> 26917 | C19: =IF($B19="NT","NT",IF(VLOOKUP($A$3,'BLG7-RALL'!$A$14:$AG$500,3,FALSE)>$B19,1,VLOOKUP($A$3,'BLG7-RALL'!$A$14:$AG$500,3,FALSE)/$B19)) -> 0.9252145484 | D19: =IF($B19="NT","NT",VLOOKUP($A$3,'BLG7-RALL'!$A$14:$AG$500,5,FALSE)*100) -> 63 | E19: =IF(C19="NT","NT",VLOOKUP($A$3,'BLG7-RALL'!$A$14:$AG$500,9,FALSE)*100) -> 42.32 | F19: =IFERROR(IF($D19="NT","NT",VLOOKUP($A$3,'BLG7-RALL'!$A$14:$AM$500,11,FALSE)),"NT") -> 0.65 | G19: 7 | H19: =IFERROR((IF($D19="NA","NA",VLOOKUP($A$3,'BLG7-RALL'!$A$14:$AM$500,15,FALSE)*100)),"NA") -> 54.24 | I19: =IFERROR(IF($D19="NT","NT",VLOOKUP($A$3,'BLG7-RALL'!$A$14:$AM$500,17,FALSE)),"NT") -> 0.62 | J19: 19 | K19: =IFERROR((IF($D19="NA","NA",VLOOKUP($A$3,'BLG7-RALL'!$A$14:$AM$500,21,FALSE)*100)),"NA") -> 40.89 | L19: =IFERROR(IF($D19="NT","NT",VLOOKUP($A$3,'BLG7-RALL'!$A$14:$AM$500,23,FALSE)),"NT") -> 0.7 | M19: 6 | N19: =IFERROR((IF($D19="NA","NA",VLOOKUP($A$3,'BLG7-RALL'!$A$14:$AM$500,27,FALSE)*100)),"NA") -> 49.07 | O19: =IFERROR(IF($D19="NT","NT",VLOOKUP($A$3,'BLG7-RALL'!$A$14:$AM$500,29,FALSE)),"NT") -> 0.58 | P19: 7 | Q19: =IFERROR((IF($D19="NA","NA",VLOOKUP($A$3,'BLG7-RALL'!$A$14:$AM$500,33,FALSE)*100)),"NA") -> 44.06 | S19: Baseline | T19: =IFERROR(VLOOKUP(TEXT($A$3,"0000"),MemSep02!$A$2:$O$500,11,FALSE),"NA") -> 26917 | U19: =IF($T19="NT","NT",IF(VLOOKUP($A$3,'BLG7-MALL'!$A$14:$AG$500,3,FALSE)>$T19,1,VLOOKUP($A$3,'BLG7-MALL'!$A$14:$AG$500,3,FALSE)/$T19)) -> 0.9188245347 | V19: =IF($T19="NT","NT",VLOOKUP($A$3,'BLG7-MALL'!$A$14:$AG$500,5,FALSE)*100) -> 38 | W19: =IF(U19="NT","NT",VLOOKUP($A$3,'BLG7-MALL'!$A$14:$AG$500,9,FALSE)*100) -> 4.67 | X19: =IFERROR(IF($V19="NT","NT",VLOOKUP($A$3,'BLG7-MALL'!$A$14:$AM$500,17,FALSE)),"NT") -> 0.4 | Y19: 10 | Z19: =IFERROR((IF($V19="NA","NA",VLOOKUP($A$3,'BLG7-MALL'!$A$14:$AM$500,21,FALSE)*100)),"NA") -> 16.4 | AA19: =IFERROR(IF($V19="NT","NT",VLOOKUP($A$3,'BLG7-MALL'!$A$14:$AM$500,23,FALSE)),"NT") -> 0.36 | AB19: 12 | AC19: =IFERROR((IF($V19="NA","NA",VLOOKUP($A$3,'BLG7-MALL'!$A$14:$AM$500,27,FALSE)*100)),"NA") -> 5.42 | AD19: =IFERROR(IF($V19="NT","NT",VLOOKUP($A$3,'BLG7-MALL'!$A$14:$AM$500,11,FALSE)),"NT") -> 0.4 | AE19: 12 | AF19: =IFERROR((IF($V19="NA","NA",VLOOKUP($A$3,'BLG7-MALL'!$A$14:$AM$500,15,FALSE)*100)),"NA") -> 6 | AG19: =IFERROR(IF($V19="NT","NT",VLOOKUP($A$3,'BLG7-MALL'!$A$14:$AM$500,29,FALSE)),"NT") -> 0.35 | AH19: 8 | AJ19: =IFERROR((IF($V19="NA","NA",VLOOKUP($A$3,'BLG7-MALL'!$A$14:$AM$500,33,FALSE)*100)),"NA") -> 6.87 | AL19: =IFERROR(VLOOKUP($A$3,'BLG7-RALL'!$A$14:$AG$500,3,FALSE),"NT") -> 24904 | AM19: =IFERROR(VLOOKUP($A$3,'BLG7-MALL'!$A$14:$AG$500,3,FALSE),"NT") -> 24732
A20: *FCAT 2011 | B20: =IFERROR(VLOOKUP(TEXT($A$3,"0000"),MemMay31!$A$2:$O$500,11,FALSE),"") -> 27138 | C20: =IFERROR(IF(VLOOKUP($A$3,'R-2011'!$BM$7:$CA$500,3,FALSE)>B20,1,VLOOKUP($A$3,'R-2011'!$BM$7:$CA$500,3,FALSE)/B20),"") -> 0.9802490972 | D20: NA | E20: =IFERROR(VLOOKUP($A$3,'R-2011'!$BM$7:$CA$500,11,FALSE),"") -> 54 | F20: =IFERROR(VLOOKUP($A$3,'R-2011'!$BM$7:$CA$500,12,FALSE)/G20,"") -> 0.625 | G20: 8 | H20: NA | I20: =IFERROR(VLOOKUP($A$3,'R-2011'!$BM$7:$CA$500,13,FALSE)/J20,"") -> 0.7058823529 | J20: 17 | K20: NA | L20: =IFERROR(VLOOKUP($A$3,'R-2011'!$BM$7:$CA$500,14,FALSE)/M20,"") -> 0.7272727273 | M20: 11 | N20: NA | O20: =IFERROR(VLOOKUP($A$3,'R-2011'!$BM$7:$CA$500,15,FALSE)/P20,"") -> 0.6666666667 | P20: 9 | Q20: NA | S20: *FCAT 2011 | T20: =IFERROR(VLOOKUP(TEXT($A$3,"0000"),MemMay31!$A$2:$O$500,11,FALSE),"") -> 27138 | U20: =IFERROR(IF(VLOOKUP($A$3,'M-2011'!$BI$7:$BW$500,3,FALSE)/$T20>1,1,VLOOKUP($A$3,'M-2011'!$BI$7:$BW$500,3,FALSE)/$T20),"") -> 0.976601076 | V20: NA | W20: =IFERROR(VLOOKUP($A$3,'M-2011'!$BI$7:$BW$500,11,FALSE),"") -> 51 | X20: =IFERROR(VLOOKUP($A$3,'M-2011'!$BI$7:$BW$500,12,FALSE)/Y20,"") -> 0.6363636364 | Y20: 11 | Z20: NA | AA20: =IFERROR(VLOOKUP($A$3,'M-2011'!$BI$7:$BW$500,13,FALSE)/AB20,"") -> 0.5 | AB20: 12 | AC20: NA | AD20: =IFERROR(VLOOKUP($A$3,'M-2011'!$BI$7:$BW$500,14,FALSE)/AE20,"") -> 0.5384615385 | AE20: 13 | AF20: NA | AG20: =IFERROR(VLOOKUP($A$3,'M-2011'!$BI$7:$BW$500,15,FALSE)/AH20,"") -> 0.625 | AH20: 8 | AJ20: NA | AL20: =VLOOKUP($A$3,'R-2011'!$BM$7:$CA$500,3,FALSE) -> 26602 | AM20: =VLOOKUP($A$3,'M-2011'!$BI$7:$BW$500,3,FALSE) -> 26503
A21: Reading - Grade 8 (*2011 FCAT Retrofitted Scores) | S21: Mathematics - Grade 8 (*2011 FCAT Retrofitted Scores)
A22: Assessment | B22: Enroll-ment | C22: % Tested | D22: Avg. % Correct | E22: % Perf. | F22: Vocabulary | I22: Reading Application | L22: Literary Analysis Fiction/Non Fiction | O22: Informational Text/ Research Process | S22: Assessment | T22: Enroll-ment | U22: % Tested | V22: Avg. % Correct | W22: % Perf. | X22: Number: Operations, Problems, and Statistics | AC22: Expression, Equations, & Functions | AG22: Geometry & Measurement | AL22: Number Tested Grade 8
F23: Avg.% Correct | G23: Pts. Max | H23: % Perf. | I23: Avg.% Correct | J23: Pts. Max | K23: % Perf. | L23: Avg.% Correct | M23: Pts. Max | N23: % Perf. | O23: Avg.% Correct | P23: Pts. Max | Q23: % Perf. | X23: Avg.% Correct | Y23: Pts. Max | AA23: % Perf. | AC23: Avg.% Correct | AD23: Pts. Max | AF23: % Perf. | AG23: Avg.% Correct | AH23: Pts. Max | AJ23: % Perf. | AL23: Reading | AM23: Math
A24: FCAT 2012 | B24: =IFERROR(VLOOKUP(TEXT($A$3,"0000"),'MemMay1-2012'!$A$2:$O$500,12,FALSE),"") -> 26953 | C24: =IFERROR(IF(VLOOKUP($A$3,'R-2012'!$BX$7:$CK$500,3,FALSE)>B24,1,VLOOKUP($A$3,'R-2012'!$BX$7:$CK$500,3,FALSE)/B24),"") -> 0.9912440174 | D24: NA | E24: =IFERROR(VLOOKUP($A$3,'R-2012'!$BX$7:$CK$500,10,FALSE),"") -> 54 | F24: =IFERROR(VLOOKUP($A$3,'R-2012'!$BX$7:$CK$500,11,FALSE)/G24,"") -> 0.7142857143 | G24: ='R-2012'!$CH$6 -> 7 | H24: NA | I24: =IFERROR(VLOOKUP($A$3,'R-2012'!$BX$7:$CK$500,12,FALSE)/J24,"") -> 0.6666666667 | J24: ='R-2012'!$CI$6 -> 15 | K24: NA | L24: =IFERROR(VLOOKUP($A$3,'R-2012'!$BX$7:$CK$500,13,FALSE)/M24,"") -> 0.6363636364 | M24: ='R-2012'!$CJ$6 -> 11 | N24: NA | O24: =IFERROR(VLOOKUP($A$3,'R-2012'!$BX$7:$CK$500,14,FALSE)/P24,"") -> 0.6666666667 | P24: ='R-2012'!$CK$6 -> 12 | Q24: NA | S24: FCAT 2012 | T24: =IFERROR(VLOOKUP(TEXT($A$3,"0000"),'MemMay1-2012'!$A$2:$O$500,12,FALSE),"") -> 26953 | U24: =IFERROR(IF(VLOOKUP($A$3,'M-2012'!$BT$7:$CF$500,3,FALSE)/$T24>1,1,VLOOKUP($A$3,'M-2012'!$BT$7:$CF$500,3,FALSE)/$T24),"") -> 0.988238786 | V24: NA | W24: =IFERROR(VLOOKUP($A$3,'M-2012'!$BT$7:$CF$500,10,FALSE),"") -> 56 | X24: =IFERROR(VLOOKUP($A$3,'M-2012'!$BT$7:$CF$500,11,FALSE)/Y24,"") -> 0.5833333333 | Y24: ='M-2012'!$CD$6 -> 12 | AA24: NA | AC24: =IFERROR(VLOOKUP($A$3,'M-2012'!$BT$7:$CF$500,12,FALSE)/AD24,"") -> 0.5789473684 | AD24: ='M-2012'!$CE$6 -> 19 | AF24: NA | AG24: =IFERROR(VLOOKUP($A$3,'M-2012'!$BT$7:$CF$500,13,FALSE)/AH24,"") -> 0.5294117647 | AH24: ='M-2012'!$CF$6 -> 17 | AJ24: NA | AL24: =VLOOKUP($A$3,'R-2012'!$BX$7:$CK$500,3,FALSE) -> 26717 | AM24: =VLOOKUP($A$3,'M-2012'!$BT$7:$CF$500,3,FALSE) -> 26636
A25: Winter IA | B25: =IFERROR(VLOOKUP(TEXT($A$3,"0000"),MemJan20!$A$2:$O$500,12,FALSE),"NA") -> 26929 | C25: =IF($B25="NT","NT",IF(VLOOKUP($A$3,'WIAG8-RALL'!$A$14:$AB$500,3,FALSE)>$B25,1,VLOOKUP($A$3,'WIAG8-RALL'!$A$14:$AB$500,3,FALSE)/$B25)) -> 0.955438375 | D25: =IF($B25="NT","NT",VLOOKUP($A$3,'WIAG8-RALL'!$A$14:$AB$500,5,FALSE)*100) -> 63 | E25: =IF(C25="NT","NT",VLOOKUP($A$3,'WIAG8-RALL'!$A$14:$AB$500,11,FALSE)*100) -> 50.35 | F25: =IFERROR(IF($D25="NT","NT",VLOOKUP($A$3,'WIAG8-RALL'!$A$14:$AH$500,13,FALSE)),"NT") -> 0.6 | G25: 11 | H25: NA | I25: =IFERROR(IF($D25="NT","NT",VLOOKUP($A$3,'WIAG8-RALL'!$A$14:$AH$500,17,FALSE)),"NT") -> 0.65 | J25: 19 | K25: NA | L25: =IFERROR(IF($D25="NT","NT",VLOOKUP($A$3,'WIAG8-RALL'!$A$14:$AH$500,21,FALSE)),"NT") -> 0.6 | M25: 10 | N25: NA | O25: =IFERROR(IF($D25="NT","NT",VLOOKUP($A$3,'WIAG8-RALL'!$A$14:$AH$500,25,FALSE)),"NT") -> 0.62 | P25: 8 | Q25: NA | S25: Winter IA | T25: =IFERROR(VLOOKUP(TEXT($A$3,"0000"),MemJan20!$A$2:$O$500,12,FALSE),"NA") -> 26929 | U25: =IF($T25="NT","NT",IF(VLOOKUP($A$3,'WIAG8-MALL'!$A$14:$AG$500,3,FALSE)>$T25,1,VLOOKUP($A$3,'WIAG8-MALL'!$A$14:$AG$500,3,FALSE)/$T25)) -> 0.9414757325 | V25: =IF($T25="NT","NT",VLOOKUP($A$3,'WIAG8-MALL'!$A$14:$AG$500,5,FALSE)*100) -> 58 | W25: =IF(U25="NT","NT",VLOOKUP($A$3,'WIAG8-MALL'!$A$14:$AG$500,11,FALSE)*100) -> 52.41 | X25: NA | Y25: NA | AA25: NA | AC25: =IFERROR(IF($V25="NT","NT",VLOOKUP($A$3,'WIAG8-MALL'!$A$14:$AM$500,13,FALSE)),"NT") -> 0.58 | AD25: 40 | AF25: NA | AG25: NA | AH25: NA | AJ25: NA | AL25: =IFERROR(VLOOKUP($A$3,'WIAG8-RALL'!$A$14:$AG$500,3,FALSE),"NT") -> 25729 | AM25: =IFERROR(VLOOKUP($A$3,'WIAG8-MALL'!$A$14:$AG$500,3,FALSE),"NT") -> 25353
A26: Fall IA | B26: =IFERROR(VLOOKUP(TEXT($A$3,"0000"),MemNov10!$A$2:$O$500,12,FALSE),"NA") -> 26887 | C26: =IF($B26="NT","NT",IF(VLOOKUP($A$3,'FIAG8-RALL'!$A$14:$AB$500,3,FALSE)>$B26,1,VLOOKUP($A$3,'FIAG8-RALL'!$A$14:$AB$500,3,FALSE)/$B26)) -> 0.9437646446 | D26: =IF($B26="NT","NT",VLOOKUP($A$3,'FIAG8-RALL'!$A$14:$AB$500,5,FALSE)*100) -> 57 | E26: =IF(C26="NT","NT",VLOOKUP($A$3,'FIAG8-RALL'!$A$14:$AB$500,11,FALSE)*100) -> 48.19 | F26: =IFERROR(IF($D26="NT","NT",VLOOKUP($A$3,'FIAG8-RALL'!$A$14:$AH$500,13,FALSE)),"NT") -> 0.6 | G26: 12 | H26: NA | I26: =IFERROR(IF($D26="NT","NT",VLOOKUP($A$3,'FIAG8-RALL'!$A$14:$AH$500,17,FALSE)),"NT") -> 0.57 | J26: 26 | K26: NA | L26: =IFERROR(IF($D26="NT","NT",VLOOKUP($A$3,'FIAG8-RALL'!$A$14:$AH$500,21,FALSE)),"NT") -> 0.56 | M26: 9 | N26: NA | O26: =IFERROR(IF($D26="NT","NT",VLOOKUP($A$3,'FIAG8-RALL'!$A$14:$AH$500,25,FALSE)),"NT") -> 0.55 | P26: 14 | Q26: NA | S26: Fall IA | T26: =IFERROR(VLOOKUP(TEXT($A$3,"0000"),MemNov10!$A$2:$O$500,12,FALSE),"NA") -> 26887 | U26: =IF($T26="NT","NT",IF(VLOOKUP($A$3,'FIAG8-MALL'!$A$14:$AG$500,3,FALSE)>$T26,1,VLOOKUP($A$3,'FIAG8-MALL'!$A$14:$AG$500,3,FALSE)/$T26)) -> 0.9291479153 | V26: =IF($T26="NT","NT",VLOOKUP($A$3,'FIAG8-MALL'!$A$14:$AG$500,5,FALSE)*100) -> 52 | W26: =IF(U26="NT","NT",VLOOKUP($A$3,'FIAG8-MALL'!$A$14:$AG$500,11,FALSE)*100) -> 47.88 | X26: =IFERROR(IF($V26="NT","NT",VLOOKUP($A$3,'FIAG8-MALL'!$A$14:$AM$500,13,FALSE)),"NT") -> 0.54 | Y26: 27 | AA26: NA | AC26: =IFERROR(IF($V26="NT","NT",VLOOKUP($A$3,'FIAG8-MALL'!$A$14:$AM$500,17,FALSE)),"NT") -> 0.46 | AD26: 13 | AF26: NA | AG26: NA | AH26: NA | AJ26: NA | AL26: =IFERROR(VLOOKUP($A$3,'FIAG8-RALL'!$A$14:$AB$500,3,FALSE),"NT") -> 25375 | AM26: =IFERROR(VLOOKUP($A$3,'FIAG8-MALL'!$A$14:$AG$500,3,FALSE),"NT") -> 24982
A27: Baseline | B27: =IFERROR(VLOOKUP(TEXT($A$3,"0000"),MemSep02!$A$2:$O$500,12,FALSE),"NA") -> 26694 | C27: =IF($B27="NT","NT",IF(VLOOKUP($A$3,'BLG8-RALL'!$A$14:$AG$500,3,FALSE)>$B27,1,VLOOKUP($A$3,'BLG8-RALL'!$A$14:$AG$500,3,FALSE)/$B27)) -> 0.9334307335 | D27: =IF($B27="NT","NT",VLOOKUP($A$3,'BLG8-RALL'!$A$14:$AG$500,5,FALSE)*100) -> 55 | E27: =IF(C27="NT","NT",VLOOKUP($A$3,'BLG8-RALL'!$A$14:$AG$500,9,FALSE)*100) -> 22.4 | F27: =IFERROR(IF($D27="NT","NT",VLOOKUP($A$3,'BLG8-RALL'!$A$14:$AM$500,11,FALSE)),"NT") -> 0.63 | G27: 6 | H27: =IFERROR((IF($D27="NA","NA",VLOOKUP($A$3,'BLG8-RALL'!$A$14:$AM$500,15,FALSE)*100)),"NA") -> 34.02 | I27: =IFERROR(IF($D27="NT","NT",VLOOKUP($A$3,'BLG8-RALL'!$A$14:$AM$500,17,FALSE)),"NT") -> 0.55 | J27: 17 | K27: =IFERROR((IF($D27="NA","NA",VLOOKUP($A$3,'BLG8-RALL'!$A$14:$AM$500,21,FALSE)*100)),"NA") -> 30.47 | L27: =IFERROR(IF($D27="NT","NT",VLOOKUP($A$3,'BLG8-RALL'!$A$14:$AM$500,23,FALSE)),"NT") -> 0.5 | M27: 6 | N27: =IFERROR((IF($D27="NA","NA",VLOOKUP($A$3,'BLG8-RALL'!$A$14:$AM$500,27,FALSE)*100)),"NA") -> 16.13 | O27: =IFERROR(IF($D27="NT","NT",VLOOKUP($A$3,'BLG8-RALL'!$A$14:$AM$500,29,FALSE)),"NT") -> 0.51 | P27: 4 | Q27: =IFERROR((IF($D27="NA","NA",VLOOKUP($A$3,'BLG8-RALL'!$A$14:$AM$500,33,FALSE)*100)),"NA") -> 37.73 | S27: Baseline | T27: =IFERROR(VLOOKUP(TEXT($A$3,"0000"),MemSep02!$A$2:$O$500,12,FALSE),"NA") -> 26694 | U27: =IF($T27="NT","NT",IF(VLOOKUP($A$3,'BLG8-MALL'!$A$14:$AG$500,3,FALSE)>$T27,1,VLOOKUP($A$3,'BLG8-MALL'!$A$14:$AG$500,3,FALSE)/$T27)) -> 0.9075447666 | V27: =IF($T27="NT","NT",VLOOKUP($A$3,'BLG8-MALL'!$A$14:$AG$500,5,FALSE)*100) -> 46 | W27: =IF(U27="NT","NT",VLOOKUP($A$3,'BLG8-MALL'!$A$14:$AG$500,9,FALSE)*100) -> 10.48 | X27: =IFERROR(IF($V27="NT","NT",VLOOKUP($A$3,'BLG8-MALL'!$A$14:$AM$500,23,FALSE)),"NT") -> 0.55 | Y27: 10 | AA27: =IFERROR((IF($V27="NA","NA",VLOOKUP($A$3,'BLG8-MALL'!$A$14:$AM$500,27,FALSE)*100)),"NA") -> 34.97 | AC27: =IFERROR(IF($V27="NT","NT",VLOOKUP($A$3,'BLG8-MALL'!$A$14:$AM$500,11,FALSE)),"NT") -> 0.42 | AD27: 14 | AF27: =IFERROR((IF($V27="NA","NA",VLOOKUP($A$3,'BLG8-MALL'!$A$14:$AM$500,15,FALSE)*100)),"NA") -> 12.52 | AG27: =IFERROR(IF($V27="NT","NT",VLOOKUP($A$3,'BLG8-MALL'!$A$14:$AM$500,17,FALSE)),"NT") -> 0.41 | AH27: 10 | AJ27: =IFERROR((IF($V27="NA","NA",VLOOKUP($A$3,'BLG8-MALL'!$A$14:$AM$500,21,FALSE)*100)),"NA") -> 8.28 | AL27: =IFERROR(VLOOKUP($A$3,'BLG8-RALL'!$A$14:$AG$500,3,FALSE),"NT") -> 24917 | AM27: =IFERROR(VLOOKUP($A$3,'BLG8-MALL'!$A$14:$AG$500,3,FALSE),"NT") -> 24226
A28: *FCAT 2011 | B28: =IFERROR(VLOOKUP(TEXT($A$3,"0000"),MemMay31!$A$2:$O$500,12,FALSE),"") -> 27342 | C28: =IFERROR(IF(VLOOKUP($A$3,'R-2011'!$CC$7:$CQ$500,3,FALSE)>B28,1,VLOOKUP($A$3,'R-2011'!$CC$7:$CQ$500,3,FALSE)/B28),"") -> 0.980177017 | D28: NA | E28: =IFERROR(VLOOKUP($A$3,'R-2011'!$CC$7:$CQ$500,11,FALSE),"") -> 50 | F28: =IFERROR(VLOOKUP($A$3,'R-2011'!$CC$7:$CQ$500,12,FALSE)/G28,"") -> 0.625 | G28: 8 | H28: NA | I28: =IFERROR(VLOOKUP($A$3,'R-2011'!$CC$7:$CQ$500,13,FALSE)/J28,"") -> 0.6875 | J28: 16 | K28: NA | L28: =IFERROR(VLOOKUP($A$3,'R-2011'!$CC$7:$CQ$500,14,FALSE)/M28,"") -> 0.6923076923 | M28: 13 | N28: NA | O28: =IFERROR(VLOOKUP($A$3,'R-2011'!$CC$7:$CQ$500,15,FALSE)/P28,"") -> 0.625 | P28: 8 | Q28: NA | S28: *FCAT 2011 | T28: =IFERROR(VLOOKUP(TEXT($A$3,"0000"),MemMay31!$A$2:$O$500,12,FALSE),"") -> 27342 | U28: =IFERROR(IF(VLOOKUP($A$3,'M-2011'!$BY$7:$CL$500,3,FALSE)/$T28>1,1,VLOOKUP($A$3,'M-2011'!$BY$7:$CL$500,3,FALSE)/$T28),"") -> 0.9750566893 | V28: NA | W28: =IFERROR(VLOOKUP($A$3,'M-2011'!$BY$7:$CL$500,11,FALSE),"") -> 54 | X28: =IFERROR(VLOOKUP($A$3,'M-2011'!$BY$7:$CL$500,12,FALSE)/Y28,"") -> 0.5833333333 | Y28: 12 | AA28: NA | AC28: =IFERROR(VLOOKUP($A$3,'M-2011'!$BY$7:$CL$500,13,FALSE)/AD28,"") -> 0.5263157895 | AD28: 19 | AF28: NA | AG28: =IFERROR(VLOOKUP($A$3,'M-2011'!$BY$7:$CL$500,14,FALSE)/AH28,"") -> 0.5294117647 | AH28: 17 | AJ28: NA | AL28: =VLOOKUP($A$3,'R-2011'!$CC$7:$CQ$500,3,FALSE) -> 26800 | AM28: =VLOOKUP($A$3,'M-2011'!$BY$7:$CL$500,3,FALSE) -> 26660
A29: Science - Grade 8 | S29: Writing - Grade 8
A30: Assessment | B30: Enroll-ment | C30: % Tested | D30: Avg. % Correct | E30: % Perf. | F30: Nature of Science | I30: Earth & Space Science | L30: Physical Science | O30: Life Science | S30: Assessment | T30: Enroll-ment | U30: Expository | AD30: Persuasive | AL30: Number Tested Grade 8
F31: Avg.% Correct | G31: Pts. Max | H31: % Perf. | I31: Avg.% Correct | J31: Pts. Max | K31: % Perf. | L31: Avg.% Correct | M31: Pts. Max | N31: % Perf. | O31: Avg.% Correct | P31: Pts. Max | Q31: % Perf. | U31: Total Tested | W31: % Tested | Y31: % 3 or higher | AA31: % 4 or higher | AB31: Average Score | AD31: Total Tested | AF31: % Tested | AH31: % 3 or higher | AI31: % 4 or higher | AJ31: Average Score | AL31: Science | AM31: Writing Expository | AN31: Writing Persuasive
A32: FCAT 2012 | B32: =IFERROR(VLOOKUP(TEXT($A$3,"0000"),'MemMay1-2012'!$A$2:$O$500,12,FALSE),"") -> 26953 | C32: =IFERROR(IF(VLOOKUP($A$3,'S-2012'!$P$7:$AC$500,3,FALSE)>B32,1,VLOOKUP($A$3,'S-2012'!$P$7:$AC$500,3,FALSE)/B32),"") -> 0.9836752866 | D32: NA | E32: =IFERROR(VLOOKUP($A$3,'S-2012'!$P$7:$AC$500,10,FALSE),"") -> 43 | F32: =IFERROR(VLOOKUP($A$3,'S-2012'!$P$7:$AC$500,11,FALSE)/G32,"") -> 0.5454545455 | G32: ='S-2012'!$Z$6 -> 11 | H32: NA | I32: =IFERROR(VLOOKUP($A$3,'S-2012'!$P$7:$AC$500,12,FALSE)/J32,"") -> 0.6 | J32: ='S-2012'!$AA$6 -> 15 | K32: NA | L32: =IFERROR(VLOOKUP($A$3,'S-2012'!$P$7:$AC$500,13,FALSE)/M32,"") -> 0.6 | M32: ='S-2012'!$AB$6 -> 15 | N32: NA | O32: =IFERROR(VLOOKUP($A$3,'S-2012'!$P$7:$AC$500,14,FALSE)/P32,"") -> 0.6 | P32: ='S-2012'!$AC$6 -> 15 | Q32: NA | S32: FCAT 2012 | T32: =IFERROR(VLOOKUP(TEXT($A$3,"0000"),'MemMay1-2012'!$A$2:$O$500,12,FALSE),"") -> 26953 | U32: NA | W32: NA | Y32: NA | AA32: NA | AB32: NA | AD32: =VLOOKUP($A$3,'W12'!$U$7:$AM$500,3,FALSE) -> 26595 | AF32: =IFERROR(IF(AD32/T32>1,1,AD32/T32),"") -> 0.9867176196 | AH32: =IFERROR(IF(OR(VLOOKUP($A$3,'W12'!$U$7:$AM$500,17,FALSE)=".",VLOOKUP($A$3,'W12'!$U$7:$AM$500,17,FALSE)=""),"NA",VLOOKUP($A$3,'W12'!$U$7:$AM$500,17,FALSE)),"NA") -> 75 | AI32: =IFERROR(IF(OR(VLOOKUP($A$3,'W12'!$U$7:$AM$500,19,FALSE)=".",VLOOKUP($A$3,'W12'!$U$7:$AM$500,19,FALSE)=""),"NA",VLOOKUP($A$3,'W12'!$U$7:$AM$500,19,FALSE)),"NA") -> 28 | AJ32: =IFERROR(IF(OR(VLOOKUP($A$3,'W12'!$U$7:$AM$500,4,FALSE)=".",VLOOKUP($A$3,'W12'!$U$7:$AM$500,4,FALSE)=""),"NA",VLOOKUP($A$3,'W12'!$U$7:$AM$500,4,FALSE)),"NA") -> 3.2 | AL32: =VLOOKUP($A$3,'S-2012'!$P$7:$AC$500,3,FALSE) -> 26513 | AM32: =U32 -> NA | AN32: =AD32 -> 26595
A33: Winter IA | B33: =IFERROR(VLOOKUP(TEXT($A$3,"0000"),MemJan20!$A$2:$O$500,12,FALSE),"NA") -> 26929 | C33: =IF($B33="NT","NT",IF(VLOOKUP($A$3,'WIAG8-SALL'!$A$14:$AG$500,3,FALSE)>$B33,1,VLOOKUP($A$3,'WIAG8-SALL'!$A$14:$AG$500,3,FALSE)/$B33)) -> 0.9396561328 | D33: =IF($B33="NT","NT",VLOOKUP($A$3,'WIAG8-SALL'!$A$14:$AG$500,5,FALSE)*100) -> 48 | E33: =IF(C33="NT","NT",VLOOKUP($A$3,'WIAG8-SALL'!$A$14:$AG$500,9,FALSE)*100) -> 9.61 | F33: =IFERROR(IF($V33="NT","NT",VLOOKUP($A$3,'WIAG8-SALL'!$A$14:$AM$500,11,FALSE)),"NT") -> 0.48 | G33: 11 | H33: =IFERROR((IF($D33="NA","NA",VLOOKUP($A$3,'WIAG8-SALL'!$A$14:$AM$500,15,FALSE)*100)),"NA") -> 20.46 | I33: =IFERROR(IF($D33="NT","NT",VLOOKUP($A$3,'WIAG8-SALL'!$A$14:$AM$500,17,FALSE)),"NT") -> 0.5 | J33: 22 | K33: =IFERROR((IF($D33="NA","NA",VLOOKUP($A$3,'WIAG8-SALL'!$A$14:$AM$500,21,FALSE)*100)),"NA") -> 14.06 | L33: =IFERROR(IF($D33="NT","NT",VLOOKUP($A$3,'WIAG8-SALL'!$A$14:$AM$500,23,FALSE)),"NT") -> 0.46 | M33: 21 | N33: =IFERROR((IF($D33="NA","NA",VLOOKUP($A$3,'WIAG8-SALL'!$A$14:$AM$500,27,FALSE)*100)),"NA") -> 12.08 | O33: =IFERROR(IF($D33="NT","NT",VLOOKUP($A$3,'WIAG8-SALL'!$A$14:$AM$500,29,FALSE)),"NT") -> 0.48 | P33: 19 | Q33: =IFERROR((IF($D33="NA","NA",VLOOKUP($A$3,'WIAG8-SALL'!$A$14:$AM$500,33,FALSE)*100)),"NA") -> 11.74 | S33: Mid-Year | T33: =IFERROR(VLOOKUP(TEXT($A$3,"0000"),MemJan20!$A$2:$O$500,12,FALSE),"NA") -> 26929 | U33: =IFERROR(VLOOKUP($A$3,'MYG8-WALL'!$A$14:$AJ$500,3,FALSE),"NT") -> 21949 | W33: =IF($U33="NT","NT",IF(U33>T33,1,U33/T33)) -> 0.8150692562 | Y33: =IFERROR(IF($U33="NT","NT",VLOOKUP($A$3,'MYG8-WALL'!$A$14:$AJ$500,28,FALSE)),"NT") -> 79 | AA33: =IFERROR(IF($U33="NT","NT",VLOOKUP($A$3,'MYG8-WALL'!$A$14:$AJ$500,11,FALSE)*100),"NT") -> 46.97252722 | AB33: =IFERROR(IF($U33="NT","NT",VLOOKUP($A$3,'MYG8-WALL'!$A$14:$AJ$500,32,FALSE)),"NT") -> 3.298856451 | AD33: =IFERROR(IF(VLOOKUP($A$3,'MYG8-WALL'!$A$14:$AJ$500,12,FALSE)=0,"NT",VLOOKUP($A$3,'MYG8-WALL'!$A$14:$AJ$500,12,FALSE)),"NT") -> 21394 | AF33: =IFERROR(IF($AD33="NT","NT",IF($AD33/T33>1,1,AD33/T33)),"") -> 0.7944595046 | AH33: =IFERROR(IF($AD33="NT","NT",VLOOKUP($A$3,'MYG8-WALL'!$A$14:$AJ$500,30,FALSE)),"NT") -> 78 | AI33: =IFERROR(IF($AD33="NT","NT",VLOOKUP($A$3,'MYG8-WALL'!$A$14:$AJ$500,20,FALSE)*100),"NT") -> 46.12040759 | AJ33: =IFERROR(IF($AD33="NT","NT",VLOOKUP($A$3,'MYG8-WALL'!$A$14:$AJ$500,34,FALSE)),"NT") -> 3.265191178 | AL33: =IFERROR(VLOOKUP($A$3,'WIAG8-SALL'!$A$14:$AG$500,3,FALSE),"NT") -> 25304 | AM33: =$U33 -> 21949 | AN33: =$AD33 -> 21394
A34: Fall IA | B34: =IFERROR(VLOOKUP(TEXT($A$3,"0000"),MemNov10!$A$2:$O$500,12,FALSE),"NA") -> 26887 | C34: =IF($B34="NT","NT",IF(VLOOKUP($A$3,'FIAG8-SALL'!$A$14:$AG$500,3,FALSE)>$B34,1,VLOOKUP($A$3,'FIAG8-SALL'!$A$14:$AG$500,3,FALSE)/$B34)) -> 0.9306728159 | D34: =IF($B34="NT","NT",VLOOKUP($A$3,'FIAG8-SALL'!$A$14:$AG$500,5,FALSE)*100) -> 43 | E34: =IF(C34="NT","NT",VLOOKUP($A$3,'FIAG8-SALL'!$A$14:$AG$500,9,FALSE)*100) -> 6.85 | F34: =IFERROR(IF($V34="NT","NT",VLOOKUP($A$3,'FIAG8-SALL'!$A$14:$AM$500,11,FALSE)),"NT") -> 0.4 | G34: 11 | H34: =IFERROR((IF($D34="NA","NA",VLOOKUP($A$3,'FIAG8-SALL'!$A$14:$AM$500,15,FALSE)*100)),"NA") -> 10.72 | I34: =IFERROR(IF($D34="NT","NT",VLOOKUP($A$3,'FIAG8-SALL'!$A$14:$AM$500,17,FALSE)),"NT") -> 0.43 | J34: 22 | K34: =IFERROR((IF($D34="NA","NA",VLOOKUP($A$3,'FIAG8-SALL'!$A$14:$AM$500,21,FALSE)*100)),"NA") -> 8.08 | L34: =IFERROR(IF($D34="NT","NT",VLOOKUP($A$3,'FIAG8-SALL'!$A$14:$AM$500,23,FALSE)),"NT") -> 0.44 | M34: 21 | N34: =IFERROR((IF($D34="NA","NA",VLOOKUP($A$3,'FIAG8-SALL'!$A$14:$AM$500,27,FALSE)*100)),"NA") -> 11.6 | O34: =IFERROR(IF($D34="NT","NT",VLOOKUP($A$3,'FIAG8-SALL'!$A$14:$AM$500,29,FALSE)),"NT") -> 0.44 | P34: 19 | Q34: =IFERROR((IF($D34="NA","NA",VLOOKUP($A$3,'FIAG8-SALL'!$A$14:$AM$500,33,FALSE)*100)),"NA") -> 10.45 | T34: NT | U34: NT | W34: NT | Y34: NT | AA34: NT | AB34: NT | AD34: NT | AF34: NT | AH34: NT | AI34: NT | AJ34: NT | AL34: =IFERROR(VLOOKUP($A$3,'FIAG8-SALL'!$A$14:$AG$500,3,FALSE),"NT") -> 25023
A35: Baseline | B35: =IFERROR(VLOOKUP(TEXT($A$3,"0000"),MemSep02!$A$2:$O$500,12,FALSE),"NA") -> 26694 | C35: =IF($B35="NT","NT",IF(VLOOKUP($A$3,'BLG8-SALL'!$A$14:$AG$500,3,FALSE)>$B35,1,VLOOKUP($A$3,'BLG8-SALL'!$A$14:$AG$500,3,FALSE)/$B35)) -> 0.9207687121 | D35: =IF($B35="NT","NT",VLOOKUP($A$3,'BLG8-SALL'!$A$14:$AG$500,5,FALSE)*100) -> 40 | E35: =IF(C35="NT","NT",VLOOKUP($A$3,'BLG8-SALL'!$A$14:$AG$500,9,FALSE)*100) -> 4.8 | F35: =IFERROR(IF($V35="NT","NT",VLOOKUP($A$3,'BLG8-SALL'!$A$14:$AM$500,11,FALSE)),"NT") -> 0.39 | G35: 12 | H35: =IFERROR((IF($D35="NA","NA",VLOOKUP($A$3,'BLG8-SALL'!$A$14:$AM$500,15,FALSE)*100)),"NA") -> 7.4 | I35: =IFERROR(IF($D35="NT","NT",VLOOKUP($A$3,'BLG8-SALL'!$A$14:$AM$500,17,FALSE)),"NT") -> 0.42 | J35: 22 | K35: =IFERROR((IF($D35="NA","NA",VLOOKUP($A$3,'BLG8-SALL'!$A$14:$AM$500,21,FALSE)*100)),"NA") -> 8.67 | L35: =IFERROR(IF($D35="NT","NT",VLOOKUP($A$3,'BLG8-SALL'!$A$14:$AM$500,23,FALSE)),"NT") -> 0.39 | M35: 21 | N35: =IFERROR((IF($D35="NA","NA",VLOOKUP($A$3,'BLG8-SALL'!$A$14:$AM$500,27,FALSE)*100)),"NA") -> 6.82 | O35: =IFERROR(IF($D35="NT","NT",VLOOKUP($A$3,'BLG8-SALL'!$A$14:$AM$500,29,FALSE)),"NT") -> 0.39 | P35: 19 | Q35: =IFERROR((IF($D35="NA","NA",VLOOKUP($A$3,'BLG8-SALL'!$A$14:$AM$500,33,FALSE)*100)),"NA") -> 3.77 | S35: Pre-Test | T35: =IFERROR(VLOOKUP(TEXT($A$3,"0000"),MemSep02!$A$2:$O$500,12,FALSE),"NA") -> 26694 | U35: =IFERROR(VLOOKUP($A$3,'BLG8-WALL'!$A$14:$AJ$500,3,FALSE),"NT") -> 20314 | W35: =IF($U35="NT","NT",IF(U35>T35,1,U35/T35)) -> 0.7609949801 | Y35: =IFERROR(IF($U35="NT","NT",VLOOKUP($A$3,'BLG8-WALL'!$A$14:$AJ$500,28,FALSE)),"NT") -> 65 | AA35: =IFERROR(IF($U35="NT","NT",VLOOKUP($A$3,'BLG8-WALL'!$A$14:$AJ$500,11,FALSE)*100),"NT") -> 27.45889534 | AB35: =IFERROR(IF($U35="NT","NT",VLOOKUP($A$3,'BLG8-WALL'!$A$14:$AJ$500,32,FALSE)),"NT") -> 2.816102192 | AD35: =IFERROR(IF(VLOOKUP($A$3,'BLG8-WALL'!$A$14:$AJ$500,12,FALSE)=0,"NT",VLOOKUP($A$3,'BLG8-WALL'!$A$14:$AJ$500,12,FALSE)),"NT") -> 19756 | AF35: =IFERROR(IF($AD35="NT","NT",IF($AD35/T35>1,1,AD35/T35)),"") -> 0.7400914063 | AH35: =IFERROR(IF($AD35="NT","NT",VLOOKUP($A$3,'BLG8-WALL'!$A$14:$AJ$500,30,FALSE)),"NT") -> 60 | AI35: =IFERROR(IF($AD35="NT","NT",VLOOKUP($A$3,'BLG8-WALL'!$A$14:$AJ$500,20,FALSE)*100),"NT") -> 24.20024296 | AJ35: =IFERROR(IF($AD35="NT","NT",VLOOKUP($A$3,'BLG8-WALL'!$A$14:$AJ$500,34,FALSE)),"NT") -> 2.683164605 | AL35: =IFERROR(VLOOKUP($A$3,'BLG8-SALL'!$A$14:$AG$500,3,FALSE),"NT") -> 24579 | AM35: =U35 -> 20314 | AN35: =AD35 -> 19756
A36: FCAT 2011 | B36: =IFERROR(VLOOKUP(TEXT($A$3,"0000"),MemMay31!$A$2:$O$500,12,FALSE),"") -> 27342 | C36: =IFERROR(IF(VLOOKUP($A$3,'S-2011'!$P$7:$AC$500,3,FALSE)/$B36>1,1,VLOOKUP($A$3,'S-2011'!$P$7:$AC$500,3,FALSE)/$B36),"") -> 0.9704483944 | D36: NA | E36: =IFERROR(VLOOKUP($A$3,'S-2011'!$P$7:$AC$500,10,FALSE),"") -> 41 | F36: NA | G36: NA | H36: NA | I36: NA | J36: NA | K36: NA | L36: NA | M36: NA | N36: NA | O36: NA | P36: NA | Q36: NA | S36: FCAT 2011 | T36: =IFERROR(VLOOKUP(TEXT($A$3,"0000"),MemMay31!$A$2:$O$500,12,FALSE),"") -> 27342 | U36: =IFERROR(IF(OR(VLOOKUP($A$3,'W11'!$O$7:$AA$500,3,FALSE)=".",VLOOKUP($A$3,'W11'!$O$7:$AA$500,3,FALSE)=""),"NA",VLOOKUP($A$3,'W11'!$O$7:$AA$500,3,FALSE)),"NA") -> 26739 | W36: =IFERROR(IF(U36/T36>1,1,U36/T36),"") -> 0.9779460171 | Y36: =IFERROR(IF(OR(VLOOKUP($A$3,'W11'!$O$7:$AA$500,12,FALSE)=".",VLOOKUP($A$3,'W11'!$O$7:$AA$500,12,FALSE)=""),"NA",VLOOKUP($A$3,'W11'!$O$7:$AA$500,12,FALSE)),"NA") -> 96 | AA36: =IFERROR(IF(OR(VLOOKUP($A$3,'W11'!$O$7:$AA$500,13,FALSE)=".",VLOOKUP($A$3,'W11'!$O$7:$AA$500,13,FALSE)=""),"NA",VLOOKUP($A$3,'W11'!$O$7:$AA$500,13,FALSE)),"NA") -> 79 | AB36: =IFERROR(IF(OR(VLOOKUP($A$3,'W11'!$O$7:$AA$500,13,FALSE)=".",VLOOKUP($A$3,'W11'!$O$7:$AA$500,13,FALSE)=""),"NA",VLOOKUP($A$3,'W11'!$O$7:$AA$500,4,FALSE)),"NA") -> 4.1 | AD36: NA | AF36: NA | AH36: NA | AI36: NA | AJ36: NA | AL36: =VLOOKUP($A$3,'S-2011'!$P$7:$AC$500,3,FALSE) -> 26534 | AM36: =U36 -> 26739 | AN36: =AD36 -> NA
A37: 2008 to 2012 School Grade Performance | U37: School Grading Scale
A38: Year | B38: School Grade | C38: Adj. Points Earned | D38: Applied Points Earned | E38: % Meeting High Standards | J38: Learning Gains Points | M38: Learning Gains Points for Lowest 25% | Q38: Middle School Acceleration Points | T38: % Tested | U38: School Type | Y38: Year | AA38: Total Points | AB38: A | AD38: B | AF38: C | AH38: D | AJ38: F
E39: Read-ing | F39: Math | G39: Writing | I39: Science | J39: Reading | L39: Math | M39: Reading | O39: Math | Q39: Partici- pation | S39: Performance | U39: Elementary | Y39: 2008-2012 | AA39: 800 | AB39: 525 - 800 | AD39: 495 - 524 | AF39: 435 - 494 | AH39: 395 - 434 | AJ39: 0 - 394
A40: 2012 | B40: =IF(VLOOKUP(TEXT($A$3,"0000"),'2012 SG'!$D$9:$AW$500,25,FALSE)="","NG",IFERROR(VLOOKUP(TEXT($A$3,"0000"),'2012 SG'!$D$9:$AW$500,25,FALSE),"")) -> B | C40: =IF(VLOOKUP(TEXT($A$3,"0000"),'2012 SG'!$D$9:$AW$500,23,FALSE)="","NG",IFERROR(VLOOKUP(TEXT($A$3,"0000"),'2012 SG'!$D$9:$AW$500,23,FALSE),"")) -> 512 | D40: =IF(VLOOKUP(TEXT($A$3,"0000"),'2012 SG'!$D$9:$AW$500,19,FALSE)="","NG",IFERROR(VLOOKUP(TEXT($A$3,"0000"),'2012 SG'!$D$9:$AW$500,19,FALSE),"")) -> 512 | E40: =IF(VLOOKUP(TEXT($A$3,"0000"),'2012 SG'!$D$9:$AW$500,3,FALSE)="","NG",IFERROR(VLOOKUP(TEXT($A$3,"0000"),'2012 SG'!$D$9:$AW$500,3,FALSE),"")) -> 55 | F40: =IF(VLOOKUP(TEXT($A$3,"0000"),'2012 SG'!$D$9:$AW$500,4,FALSE)="","NG",IFERROR(VLOOKUP(TEXT($A$3,"0000"),'2012 SG'!$D$9:$AW$500,4,FALSE),"")) -> 57 | G40: =IF(VLOOKUP(TEXT($A$3,"0000"),'2012 SG'!$D$9:$AW$500,5,FALSE)="","NG",IFERROR(VLOOKUP(TEXT($A$3,"0000"),'2012 SG'!$D$9:$AW$500,5,FALSE),"")) -> 81 | H40: =IF(VLOOKUP(TEXT($A$3,"0000"),'2012 SG'!$D$9:$AW$500,24,FALSE)="","NG",IFERROR(VLOOKUP(TEXT($A$3,"0000"),'2012 SG'!$D$9:$AW$500,24,FALSE),"")) -> 99 | I40: =IF(VLOOKUP(TEXT($A$3,"0000"),'2012 SG'!$D$9:$AW$500,6,FALSE)="","NG",IFERROR(VALUE(VLOOKUP(TEXT($A$3,"0000"),'2012 SG'!$D$9:$AW$500,6,FALSE)),"")) -> 47 | J40: =IF(VLOOKUP(TEXT($A$3,"0000"),'2012 SG'!$D$9:$AW$500,7,FALSE)="","NG",IFERROR(VLOOKUP(TEXT($A$3,"0000"),'2012 SG'!$D$9:$AW$500,7,FALSE),"")) -> 68 | K40: =IF(VLOOKUP(TEXT($A$3,"0000"),'2012 SG'!$D$9:$AW$500,24,FALSE)="","NG",IFERROR(VLOOKUP(TEXT($A$3,"0000"),'2012 SG'!$D$9:$AW$500,24,FALSE),"")) -> 99 | L40: =IF(VLOOKUP(TEXT($A$3,"0000"),'2012 SG'!$D$9:$AW$500,8,FALSE)="","NG",IFERROR(VALUE(VLOOKUP(TEXT($A$3,"0000"),'2012 SG'!$D$9:$AW$500,8,FALSE)),"")) -> 68 | M40: =IF(VLOOKUP(TEXT($A$3,"0000"),'2012 SG'!$D$9:$AW$500,9,FALSE)="","NG",IFERROR(VLOOKUP(TEXT($A$3,"0000"),'2012 SG'!$D$9:$AW$500,9,FALSE),"")) -> 70 | O40: =IF(VLOOKUP(TEXT($A$3,"0000"),'2012 SG'!$D$9:$AW$500,10,FALSE)="","NG",IFERROR(VALUE(VLOOKUP(TEXT($A$3,"0000"),'2012 SG'!$D$9:$AW$500,10,FALSE)),"")) -> 66 | Q40: =IF(VLOOKUP(TEXT($A$3,"0000"),'2012 SG'!$D$9:$AW$500,12,FALSE)="","NA",IFERROR(VLOOKUP(TEXT($A$3,"0000"),'2012 SG'!$D$9:$AW$500,12,FALSE),"")) -> NA | S40: =IF(VLOOKUP(TEXT($A$3,"0000"),'2012 SG'!$D$9:$AW$500,13,FALSE)="","NA",IFERROR(VLOOKUP(TEXT($A$3,"0000"),'2012 SG'!$D$9:$AW$500,13,FALSE),"")) -> NA | T40: =IF(VLOOKUP(TEXT($A$3,"0000"),'2012 SG'!$D$9:$AW$500,24,FALSE)="","NG",IFERROR(VLOOKUP(TEXT($A$3,"0000"),'2012 SG'!$D$9:$AW$500,24,FALSE),"")) -> 99 | U40: Middle Schools and K-8, if grade 8 is included. | Y40: 2012 | AA40: 900 | AB40: 590 - 900 | AD40: 560 - 589 | AF40: 490 - 559 | AH40: 445 - 489 | AJ40: 0 - 444
A41: 2011 | B41: =IF(VLOOKUP(TEXT($A$3,"0000"),'2011 SG'!$A$3:$AN$500,20,FALSE)="","NG",IFERROR(VLOOKUP(TEXT($A$3,"0000"),'2011 SG'!$A$3:$AN$500,20,FALSE),"")) -> B | C41: NA | D41: =IF(VLOOKUP(TEXT($A$3,"0000"),'2011 SG'!$A$3:$AN$500,12,FALSE)="","NG",IFERROR(VLOOKUP(TEXT($A$3,"0000"),'2011 SG'!$A$3:$AN$500,12,FALSE),"")) -> 519 | E41: =IF(VLOOKUP(TEXT($A$3,"0000"),'2011 SG'!$A$3:$AN$500,3,FALSE)="","NG",IFERROR(VLOOKUP(TEXT($A$3,"0000"),'2011 SG'!$A$3:$AN$500,3,FALSE),"")) -> 64 | F41: =IF(VLOOKUP(TEXT($A$3,"0000"),'2011 SG'!$A$3:$AN$500,4,FALSE)="","NG",IFERROR(VLOOKUP(TEXT($A$3,"0000"),'2011 SG'!$A$3:$AN$500,4,FALSE),"")) -> 71 | G41: =IF(VLOOKUP(TEXT($A$3,"0000"),'2011 SG'!$A$3:$AN$500,5,FALSE)="","NG",IFERROR(VLOOKUP(TEXT($A$3,"0000"),'2011 SG'!$A$3:$AN$500,5,FALSE),"")) -> 83 | I41: =IF(VLOOKUP(TEXT($A$3,"0000"),'2011 SG'!$A$3:$AN$500,6,FALSE)="","NG",IFERROR(VLOOKUP(TEXT($A$3,"0000"),'2011 SG'!$A$3:$AN$500,6,FALSE),"")) -> 47 | J41: =IF(VLOOKUP(TEXT($A$3,"0000"),'2011 SG'!$A$3:$AN$500,7,FALSE)="","NG",IFERROR(VLOOKUP(TEXT($A$3,"0000"),'2011 SG'!$A$3:$AN$500,7,FALSE),"")) -> 61 | L41: =IF(VLOOKUP(TEXT($A$3,"0000"),'2011 SG'!$A$3:$AN$500,8,FALSE)="","NG",IFERROR(VLOOKUP(TEXT($A$3,"0000"),'2011 SG'!$A$3:$AN$500,8,FALSE),"")) -> 67 | M41: =IF(VLOOKUP(TEXT($A$3,"0000"),'2011 SG'!$A$3:$AN$500,9,FALSE)="","NG",IFERROR(VLOOKUP(TEXT($A$3,"0000"),'2011 SG'!$A$3:$AN$500,9,FALSE),"")) -> 60 | O41: =IF(VLOOKUP(TEXT($A$3,"0000"),'2011 SG'!$A$3:$AN$500,10,FALSE)="","NG",IFERROR(VLOOKUP(TEXT($A$3,"0000"),'2011 SG'!$A$3:$AN$500,10,FALSE),"")) -> 66 | Q41: NA | S41: NA | T41: =IF(VLOOKUP(TEXT($A$3,"0000"),'2011 SG'!$A$3:$AN$500,13,FALSE)="","NG",IFERROR(VLOOKUP(TEXT($A$3,"0000"),'2011 SG'!$A$3:$AN$500,13,FALSE),"")) -> 99 | Y41: 2008-2011 | AA41: 800 | AB41: 525 - 800 | AD41: 495 - 524 | AF41: 435 - 494 | AH41: 395 - 434 | AJ41: 0 - 394
A42: 2010 | B42: =IF(VLOOKUP($A$3,'2010 SG'!$A$3:$AI$500,3,FALSE)="","NG",IFERROR(VLOOKUP($A$3,'2010 SG'!$A$3:$AI$500,3,FALSE),"")) -> B | C42: NA | D42: =IFERROR(VLOOKUP($A$3,'2010 SG'!$A$3:$AI$500,23,FALSE),"") -> 521 | E42: =IFERROR(VLOOKUP($A$3,'2010 SG'!$A$3:$AI$500,14,FALSE),"") -> 64 | F42: =IFERROR(VLOOKUP($A$3,'2010 SG'!$A$3:$AI$500,15,FALSE),"") -> 71 | G42: =IFERROR(VLOOKUP($A$3,'2010 SG'!$A$3:$AI$500,16,FALSE),"") -> 88 | I42: =IFERROR(VLOOKUP($A$3,'2010 SG'!$A$3:$AI$500,17,FALSE),"") -> 41 | J42: =IFERROR(VLOOKUP($A$3,'2010 SG'!$A$3:$AI$500,18,FALSE),"") -> 63 | L42: =IFERROR(VLOOKUP($A$3,'2010 SG'!$A$3:$AI$500,19,FALSE),"") -> 69 | M42: =IFERROR(VLOOKUP($A$3,'2010 SG'!$A$3:$AI$500,20,FALSE),"") -> 58 | O42: =IFERROR(VLOOKUP($A$3,'2010 SG'!$A$3:$AI$500,21,FALSE),"") -> 67 | Q42: NA | S42: NA | T42: =IFERROR(VLOOKUP($A$3,'2010 SG'!$A$3:$AI$500,24,FALSE),"") -> 99 | U42: High Schools | Y42: 2010-2012 | AA42: 1600 | AB42: 1050-1600 | AD42: 990 - 1049 | AF42: 870 - 989 | AH42: 790 - 869 | AJ42: 0 - 789
A43: 2009 | B43: =IF(VLOOKUP($A$3,'2009 SG'!$A$2:$AI$381,3,FALSE)="","NG",IFERROR(VLOOKUP($A$3,'2009 SG'!$A$2:$AI$381,3,FALSE),"")) -> B | C43: NA | D43: =IFERROR(VLOOKUP($A$3,'2009 SG'!$A$2:$AI$381,23,FALSE),"") -> 521 | E43: =IFERROR(VLOOKUP($A$3,'2009 SG'!$A$2:$AI$381,14,FALSE),"") -> 62 | F43: =IFERROR(VLOOKUP($A$3,'2009 SG'!$A$2:$AI$381,15,FALSE),"") -> 69 | G43: =IFERROR(VLOOKUP($A$3,'2009 SG'!$A$2:$AI$381,16,FALSE),"") -> 88 | I43: =IFERROR(VLOOKUP($A$3,'2009 SG'!$A$2:$AI$381,17,FALSE),"") -> 40 | J43: =IFERROR(VLOOKUP($A$3,'2009 SG'!$A$2:$AI$381,18,FALSE),"") -> 63 | L43: =IFERROR(VLOOKUP($A$3,'2009 SG'!$A$2:$AI$381,19,FALSE),"") -> 69 | M43: =IFERROR(VLOOKUP($A$3,'2009 SG'!$A$2:$AI$381,20,FALSE),"") -> 63 | O43: =IFERROR(VLOOKUP($A$3,'2009 SG'!$A$2:$AI$381,21,FALSE),"") -> 67 | Q43: NA | S43: NA | T43: =IFERROR(VLOOKUP($A$3,'2009 SG'!$A$2:$AI$381,24,FALSE),"") -> 99 | U43: K-12 and 6-12 | Y43: 2012 | AA43: 1700 | AB43: 1115 - 1700 | AD43: 1050 - 1114 | AF43: 925 - 1049 | AH43: 840 - 924 | AJ43: 0 - 839
A44: 2008 | B44: =VLOOKUP($A$3,'School Grade'!$A$1025:$N$1376,4,FALSE) -> B | C44: NA | D44: =VLOOKUP($A$3,'School Grade'!$A$1025:$N$1376,14,FALSE) -> 515 | E44: =VLOOKUP($A$3,'School Grade'!$A$1025:$N$1376,5,FALSE) -> 60 | F44: =VLOOKUP($A$3,'School Grade'!$A$1025:$N$1376,6,FALSE) -> 67 | G44: =VLOOKUP($A$3,'School Grade'!$A$1025:$N$1376,7,FALSE) -> 87 | I44: =VLOOKUP($A$3,'School Grade'!$A$1025:$N$1376,8,FALSE) -> 39 | J44: =VLOOKUP($A$3,'School Grade'!$A$1025:$N$1376,9,FALSE) -> 61 | L44: =VLOOKUP($A$3,'School Grade'!$A$1025:$N$1376,10,FALSE) -> 71 | M44: =VLOOKUP($A$3,'School Grade'!$A$1025:$N$1376,11,FALSE) -> 60 | O44: =VLOOKUP($A$3,'School Grade'!$A$1025:$N$1376,12,FALSE) -> 70 | Q44: NA | S44: NA | T44: NA | U44: High Schools and K-12/6-12 | Y44: 2008-2009 | AA44: 800 | AB44: 525 - 800 | AD44: 495 - 524 | AF44: 435 - 494 | AH44: 395 - 434 | AJ44: 0 - 394
E46: Sum points earned | F46: =SUM(E40,F40,G40,I40,J40,L40,M40,O40,Q40,S40) -> 512
E47: Middle School Acceleration Qualification | F47: =IFERROR(VLOOKUP(TEXT($A$3,"0000"),'2012 SG'!$D$9:$AW$500,11,FALSE),"") -> NA

Sheet HS Summary Report
A2: Click here to return to the school and sheet selection interface
A3: ='Select School'!B3 -> 9999 | AG3: District | AV3: District
A4: =TEXT(A3,"0000")&"-"&VLOOKUP(A3,SchList!$A$2:$B$502,2,FALSE) -> 9999-District | AF4: District | AG4: Average % Correct | AQ4: Average Score | AU4: District | AV4: % Proficient | BF4: % of Students Scoring at 4.0 and higher
A5: 2011-12 Fall and Winter Interim Assessments, High Schools | AG5: Reading | AK5: Math | AN5: Science | AQ5: Writing | AV5: Reading | AZ5: Math | BC5: Science | BF5: Writing
AF6: Grade | AG6: Baseline | AH6: Fall IA | AI6: Winter IA | AK6: Baseline | AL6: Fall IA | AM6: Winter IA | AN6: Baseline | AO6: Fall IA | AP6: Winter IA | AQ6: Prompt | AR6: Pre-Test | AS6: Midyear | AU6: Grade | AV6: Baseline | AW6: Fall IA | AX6: Winter IA | AZ6: Baseline | BA6: Fall IA | BB6: Winter IA | BC6: Baseline | BD6: Fall IA | BE6: Winter IA | BF6: Prompt | BG6: Baseline | BH6: Midyear
AF7: 9 | AG7: =IFERROR(IF(VLOOKUP(9999,'BLG9-RALL'!$A$14:$CZ$500,3,FALSE)="",#N/A,VLOOKUP(9999,'BLG9-RALL'!$A$14:$CZ$500,5,FALSE)*100),#N/A) -> 54 | AH7: =IFERROR(IF(VLOOKUP(9999,'FIAG9-RALL'!$A$14:$CT$500,3,FALSE)="",#N/A,VLOOKUP(9999,'FIAG9-RALL'!$A$14:$CT$500,5,FALSE)*100),#N/A) -> 57 | AI7: =IFERROR(IF(VLOOKUP(9999,'WIAG9-RALL'!$A$14:$CZ$500,3,FALSE)="",#N/A,VLOOKUP(9999,'WIAG9-RALL'!$A$14:$CZ$500,5,FALSE)*100),#N/A) -> 59 | AJ7: Alg. | AK7: =IFERROR(IF(VLOOKUP(9999,'BLM-ALG'!$A$14:$CZ$500,3,FALSE)="",#N/A,VLOOKUP(9999,'BLM-ALG'!$A$14:$CZ$500,5,FALSE)*100),#N/A) -> 30.93544519 | AL7: =IFERROR(IF(VLOOKUP(9999,'FIAM-ALG'!$A$14:$CV$500,3,FALSE)="",#N/A,VLOOKUP(9999,'FIAM-ALG'!$A$14:$CV$500,5,FALSE)*100),#N/A) -> 41.84536554 | AM7: =IFERROR(IF(VLOOKUP(9999,'WIAM-ALG'!$A$14:$CZ$433,3,FALSE)="",#N/A,VLOOKUP(9999,'WIAM-ALG'!$A$14:$CZ$433,5,FALSE)*100),#N/A) -> 38.48986168 | AQ7: Expository | AR7: =IFERROR(IF(VLOOKUP(9999,'BLG10-WALL'!$A$14:$CZ$500,3,FALSE)="",#N/A,VLOOKUP(9999,'BLG10-WALL'!$A$14:$CZ$500,4,FALSE)),#N/A) -> 2.936507931 | AS7: =IFERROR(IF(VLOOKUP(9999,'MYG10-WALL'!$A$14:$CZ$500,3,FALSE)="",#N/A,VLOOKUP(9999,'MYG10-WALL'!$A$14:$CZ$500,4,FALSE)),#N/A) -> 3.416272638 | AU7: 9 | AV7: =IFERROR(IF(VLOOKUP(9999,'BLG9-RALL'!$A$14:$CZ$500,3,FALSE)="",#N/A,VLOOKUP(9999,'BLG9-RALL'!$A$14:$CZ$500,9,FALSE)*100),#N/A) -> 24.62 | AW7: =IFERROR(IF(VLOOKUP(9999,'FIAG9-RALL'!$A$14:$CT$500,3,FALSE)="",#N/A,VLOOKUP(9999,'FIAG9-RALL'!$A$14:$CT$500,11,FALSE)*100),#N/A) -> 47.56 | AX7: =IFERROR(IF(VLOOKUP(9999,'WIAG9-RALL'!$A$14:$CZ$500,3,FALSE)="",#N/A,VLOOKUP(9999,'WIAG9-RALL'!$A$14:$CZ$500,11,FALSE)*100),#N/A) -> 44.85 | AY7: Alg. | AZ7: =IFERROR(IF(VLOOKUP(9999,'BLM-ALG'!$A$14:$BB$500,3,FALSE)="",#N/A,VLOOKUP(9999,'BLM-ALG'!$A$14:$CZ$500,9,FALSE)*100),#N/A) -> 0.2562329686 | BA7: =IFERROR(IF(VLOOKUP(9999,'FIAM-ALG'!$A$14:$CV$500,3,FALSE)="",#N/A,VLOOKUP(9999,'FIAM-ALG'!$A$14:$CV$500,11,FALSE)*100),#N/A) -> 42.16186253 | BB7: =IFERROR(IF(VLOOKUP(9999,'WIAM-ALG'!$A$14:$CZ$433,3,FALSE)="",#N/A,VLOOKUP(9999,'WIAM-ALG'!$A$14:$CZ$433,9,FALSE)*100),#N/A) -> 45.88670227 | BF7: Expository | BG7: =IFERROR(IF(VLOOKUP(9999,'BLG10-WALL'!$A$14:$CZ$500,3,FALSE)="",#N/A,VLOOKUP(9999,'BLG10-WALL'!$A$14:$CZ$500,11,FALSE)*100),#N/A) -> 39.07065695 | BH7: =IFERROR(IF(VLOOKUP(9999,'MYG10-WALL'!$A$14:$CZ$500,3,FALSE)="",#N/A,VLOOKUP(9999,'MYG10-WALL'!$A$14:$CZ$500,11,FALSE)*100),#N/A) -> 53.73688702
AF8: 10 | AG8: =IFERROR(IF(VLOOKUP(9999,'BLG10-RALL'!$A$14:$CZ$500,3,FALSE)="",#N/A,VLOOKUP(9999,'BLG10-RALL'!$A$14:$CZ$500,5,FALSE)*100),#N/A) -> 58 | AH8: =IFERROR(IF(VLOOKUP(9999,'FIAG10-RALL'!$A$14:$CT$500,3,FALSE)="",#N/A,VLOOKUP(9999,'FIAG10-RALL'!$A$14:$CT$500,5,FALSE)*100),#N/A) -> 56 | AI8: =IFERROR(IF(VLOOKUP(9999,'WIAG10-RALL'!$A$14:$CZ$500,3,FALSE)="",#N/A,VLOOKUP(9999,'WIAG10-RALL'!$A$14:$CZ$500,5,FALSE)*100),#N/A) -> 60 | AJ8: Geo. | AK8: =IFERROR(IF(VLOOKUP(9999,'BLM-GEO'!$A$14:$BB$500,3,FALSE)="",#N/A,VLOOKUP(9999,'BLM-GEO'!$A$14:$BB$500,5,FALSE)*100),#N/A) -> 30.28697762 | AL8: =IFERROR(IF(VLOOKUP(9999,'FIAM-GEO'!$A$14:$CZ$500,3,FALSE)="",#N/A,VLOOKUP(9999,'FIAM-GEO'!$A$14:$CZ$500,5,FALSE)*100),#N/A) -> 50.7967602 | AM8: =IFERROR(IF(VLOOKUP(9999,'WIAM-GEO'!$A$14:$CZ$500,3,FALSE)="",#N/A,VLOOKUP(9999,'WIAM-GEO'!$A$14:$CZ$500,5,FALSE)*100),#N/A) -> 47.20982311 | AQ8: Persuasive | AR8: =IFERROR(IF(VLOOKUP(9999,'BLG10-WALL'!$A$14:$CZ$500,12,FALSE)="",#N/A,VLOOKUP(9999,'BLG10-WALL'!$A$14:$CZ$500,13,FALSE)),#N/A) -> 2.869841287 | AS8: =IFERROR(IF(VLOOKUP(9999,'MYG10-WALL'!$A$14:$CZ$500,12,FALSE)="",#N/A,VLOOKUP(9999,'MYG10-WALL'!$A$14:$CZ$500,13,FALSE)),#N/A) -> 3.415969976 | AU8: 10 | AV8: =IFERROR(IF(VLOOKUP(9999,'BLG10-RALL'!$A$14:$CZ$500,3,FALSE)="",#N/A,VLOOKUP(9999,'BLG10-RALL'!$A$14:$CZ$500,9,FALSE)*100),#N/A) -> 29.44 | AW8: =IFERROR(IF(VLOOKUP(9999,'FIAG10-RALL'!$A$14:$CT$500,3,FALSE)="",#N/A,VLOOKUP(9999,'FIAG10-RALL'!$A$14:$CT$500,11,FALSE)*100),#N/A) -> 53.58 | AX8: =IFERROR(IF(VLOOKUP(9999,'WIAG10-RALL'!$A$14:$CZ$500,3,FALSE)="",#N/A,VLOOKUP(9999,'WIAG10-RALL'!$A$14:$CZ$500,11,FALSE)*100),#N/A) -> 45.46 | AY8: Geo. | AZ8: =IFERROR(IF(VLOOKUP(9999,'BLM-GEO'!$A$14:$BB$500,3,FALSE)="",#N/A,VLOOKUP(9999,'BLM-GEO'!$A$14:$CZ$500,9,FALSE)*100),#N/A) -> 0.1957698361 | BA8: =IFERROR(IF(VLOOKUP(9999,'FIAM-GEO'!$A$14:$CZ$500,11,FALSE)="","",VLOOKUP(9999,'FIAM-GEO'!$A$14:$CZ$500,9,FALSE)*100),#N/A) -> 14.16710497 | BB8: =IFERROR(IF(VLOOKUP(9999,'WIAM-GEO'!$A$14:$CZ$500,11,FALSE)="","",VLOOKUP(9999,'WIAM-GEO'!$A$14:$CZ$500,11,FALSE)*100),#N/A) -> 47.20982311 | BF8: Persuasive | BG8: =IFERROR(IF(VLOOKUP(9999,'BLG10-WALL'!$A$14:$CZ$500,12,FALSE)="",#N/A,VLOOKUP(9999,'BLG10-WALL'!$A$14:$CZ$500,20,FALSE)*100),#N/A) -> 34.96138901 | BH8: =IFERROR(IF(VLOOKUP(9999,'MYG10-WALL'!$A$14:$CZ$500,12,FALSE)="",#N/A,VLOOKUP(9999,'MYG10-WALL'!$A$14:$CZ$500,20,FALSE)*100),#N/A) -> 55.17122952
AF9: 11 | AJ9: Bio. | AN9: =IFERROR(IF(VLOOKUP(9999,'BLS-BIO'!$A$14:$CZ$500,3,FALSE)="",#N/A,VLOOKUP(9999,'BLS-BIO'!$A$14:$CZ$500,5,FALSE)*100),#N/A) -> 33.55073934 | AO9: =IFERROR(IF(VLOOKUP(9999,'FIAS-BIO'!$A$14:$CZ$500,3,FALSE)="",#N/A,VLOOKUP(9999,'FIAS-BIO'!$A$14:$CZ$500,5,FALSE)*100),#N/A) -> 38.79853149 | AP9: =IFERROR(IF(VLOOKUP(9999,'WIAS-BIO'!$A$14:$CZ$500,3,FALSE)="",#N/A,VLOOKUP(9999,'WIAS-BIO'!$A$14:$CZ$500,5,FALSE)*100),#N/A) -> 40.50071149 | AU9: 11 | AY9: Bio. | BC9: =IFERROR(IF(VLOOKUP(9999,'BLS-BIO'!$A$14:$CZ$500,3,FALSE)="",#N/A,VLOOKUP(9999,'BLS-BIO'!$A$14:$CZ$500,9,FALSE)*100),#N/A) -> 0.5928224716 | BD9: =IFERROR(IF(VLOOKUP(9999,'FIAS-BIO'!$A$14:$CZ$500,3,FALSE)="",#N/A,VLOOKUP(9999,'FIAS-BIO'!$A$14:$CZ$500,9,FALSE)*100),#N/A) -> 1.621921719 | BE9: =IFERROR(IF(VLOOKUP(9999,'WIAS-BIO'!$A$14:$CZ$500,3,FALSE)="",#N/A,VLOOKUP(9999,'WIAS-BIO'!$A$14:$CZ$500,9,FALSE)*100),#N/A) -> 3.757444937
AG11: =A4 -> 9999-District | AV11: =A4 -> 9999-District
AF12: School | AG12: Average % Correct | AQ12: Average Score | AU12: School | AV12: % Proficient | BF12: % of Students Scoring at 4.0 and higher
AG13: Reading | AK13: Math | AN13: Science | AQ13: Writing | AV13: Reading | AZ13: Math | BC13: Science | BF13: Writing
AF14: Grade | AG14: Baseline | AH14: Fall IA | AI14: Winter IA | AK14: Baseline | AL14: Fall IA | AM14: Winter IA | AN14: Baseline | AO14: Fall IA | AP14: Winter IA | AQ14: Prompt | AR14: Pre-Test | AS14: Midyear | AU14: Grade | AV14: Baseline | AW14: Fall IA | AX14: Winter IA | AZ14: Baseline | BA14: Fall IA | BB14: Winter IA | BC14: Baseline | BD14: Fall IA | BE14: Winter IA | BF14: Prompt | BG14: Baseline | BH14: Midyear
AF15: 9 | AG15: =IFERROR(IF(VLOOKUP($A$3,'BLG9-RALL'!$A$14:$CZ$500,3,FALSE)="",#N/A,VLOOKUP($A$3,'BLG9-RALL'!$A$14:$CZ$500,5,FALSE)*100),#N/A) -> 54 | AH15: =IFERROR(IF(VLOOKUP($A$3,'FIAG9-RALL'!$A$14:$CT$500,3,FALSE)="",#N/A,VLOOKUP($A$3,'FIAG9-RALL'!$A$14:$CT$500,5,FALSE)*100),#N/A) -> 57 | AI15: =IFERROR(IF(VLOOKUP($A$3,'WIAG9-RALL'!$A$14:$CZ$500,3,FALSE)="",#N/A,VLOOKUP($A$3,'WIAG9-RALL'!$A$14:$CZ$500,5,FALSE)*100),#N/A) -> 59 | AJ15: Alg. | AK15: =IFERROR(IF(VLOOKUP($A$3,'BLM-ALG'!$A$14:$CZ$500,3,FALSE)="",#N/A,VLOOKUP($A$3,'BLM-ALG'!$A$14:$CZ$500,5,FALSE)*100),#N/A) -> 30.93544519 | AL15: =IFERROR(IF(VLOOKUP($A$3,'FIAM-ALG'!$A$14:$CV$500,3,FALSE)="",#N/A,VLOOKUP($A$3,'FIAM-ALG'!$A$14:$CV$500,5,FALSE)*100),#N/A) -> 41.84536554 | AM15: =IFERROR(IF(VLOOKUP($A$3,'WIAM-ALG'!$A$14:$CZ$433,3,FALSE)="",#N/A,VLOOKUP($A$3,'WIAM-ALG'!$A$14:$CZ$433,5,FALSE)*100),#N/A) -> 38.48986168 | AQ15: Expository | AR15: =IFERROR(IF(VLOOKUP($A$3,'BLG10-WALL'!$A$14:$CZ$500,3,FALSE)="",#N/A,VLOOKUP($A$3,'BLG10-WALL'!$A$14:$CZ$500,4,FALSE)),#N/A) -> 2.936507931 | AS15: =IFERROR(IF(VLOOKUP($A$3,'MYG10-WALL'!$A$14:$CZ$500,3,FALSE)="",#N/A,VLOOKUP($A$3,'MYG10-WALL'!$A$14:$CZ$500,4,FALSE)),#N/A) -> 3.416272638 | AU15: 9 | AV15: =IFERROR(IF(VLOOKUP($A$3,'BLG9-RALL'!$A$14:$CZ$500,3,FALSE)="",#N/A,VLOOKUP($A$3,'BLG9-RALL'!$A$14:$CZ$500,9,FALSE)*100),#N/A) -> 24.62 | AW15: =IFERROR(IF(VLOOKUP($A$3,'FIAG9-RALL'!$A$14:$CT$500,3,FALSE)="",#N/A,VLOOKUP($A$3,'FIAG9-RALL'!$A$14:$CT$500,11,FALSE)*100),#N/A) -> 47.56 | AX15: =IFERROR(IF(VLOOKUP($A$3,'WIAG9-RALL'!$A$14:$CZ$500,3,FALSE)="",#N/A,VLOOKUP($A$3,'WIAG9-RALL'!$A$14:$CZ$500,11,FALSE)*100),#N/A) -> 44.85 | AY15: Alg. | AZ15: =IFERROR(IF(VLOOKUP($A$3,'BLM-ALG'!$A$14:$CZ$500,3,FALSE)="",#N/A,VLOOKUP($A$3,'BLM-ALG'!$A$14:$CZ$500,9,FALSE)*100),#N/A) -> 0.2562329686 | BA15: =IFERROR(IF(VLOOKUP($A$3,'FIAM-ALG'!$A$14:$CV$500,3,FALSE)="",#N/A,VLOOKUP($A$3,'FIAM-ALG'!$A$14:$CV$500,11,FALSE)*100),#N/A) -> 42.16186253 | BB15: =IFERROR(IF(VLOOKUP($A$3,'WIAM-ALG'!$A$14:$CZ$433,3,FALSE)="",#N/A,VLOOKUP($A$3,'WIAM-ALG'!$A$14:$CZ$433,11,FALSE)*100),#N/A) -> 36.90951865 | BF15: Expository | BG15: =IFERROR(IF(VLOOKUP($A$3,'BLG10-WALL'!$A$14:$CZ$500,3,FALSE)="",#N/A,VLOOKUP($A$3,'BLG10-WALL'!$A$14:$CZ$500,11,FALSE)*100),#N/A) -> 39.07065695 | BH15: =IFERROR(IF(VLOOKUP($A$3,'MYG10-WALL'!$A$14:$CZ$500,3,FALSE)="",#N/A,VLOOKUP($A$3,'MYG10-WALL'!$A$14:$CZ$500,11,FALSE)*100),#N/A) -> 53.73688702
AF16: 10 | AG16: =IFERROR(IF(VLOOKUP($A$3,'BLG10-RALL'!$A$14:$CZ$500,3,FALSE)="",#N/A,VLOOKUP($A$3,'BLG10-RALL'!$A$14:$CZ$500,5,FALSE)*100),#N/A) -> 58 | AH16: =IFERROR(IF(VLOOKUP($A$3,'FIAG10-RALL'!$A$14:$CT$500,3,FALSE)="",#N/A,VLOOKUP($A$3,'FIAG10-RALL'!$A$14:$CT$500,5,FALSE)*100),#N/A) -> 56 | AI16: =IFERROR(IF(VLOOKUP($A$3,'WIAG10-RALL'!$A$14:$CZ$500,3,FALSE)="",#N/A,VLOOKUP($A$3,'WIAG10-RALL'!$A$14:$CZ$500,5,FALSE)*100),#N/A) -> 60 | AJ16: Geo. | AK16: =IFERROR(IF(VLOOKUP($A$3,'BLM-GEO'!$A$14:$BB$500,3,FALSE)="",#N/A,VLOOKUP($A$3,'BLM-GEO'!$A$14:$BB$500,5,FALSE)*100),#N/A) -> 30.28697762 | AL16: =IFERROR(IF(VLOOKUP($A$3,'FIAM-GEO'!$A$14:$CZ$500,3,FALSE)="",#N/A,VLOOKUP($A$3,'FIAM-GEO'!$A$14:$CZ$500,5,FALSE)*100),#N/A) -> 50.7967602 | AM16: =IFERROR(IF(VLOOKUP($A$3,'WIAM-GEO'!$A$14:$CZ$500,3,FALSE)="",#N/A,VLOOKUP($A$3,'WIAM-GEO'!$A$14:$CZ$500,5,FALSE)*100),#N/A) -> 47.20982311 | AQ16: Persuasive | AR16: =IFERROR(IF(VLOOKUP($A$3,'BLG10-WALL'!$A$14:$CZ$500,12,FALSE)="",#N/A,VLOOKUP($A$3,'BLG10-WALL'!$A$14:$CZ$500,13,FALSE)),#N/A) -> 2.869841287 | AS16: =IFERROR(IF(VLOOKUP($A$3,'MYG10-WALL'!$A$14:$CZ$500,12,FALSE)="",#N/A,VLOOKUP($A$3,'MYG10-WALL'!$A$14:$CZ$500,13,FALSE)),#N/A) -> 3.415969976 | AU16: 10 | AV16: =IFERROR(IF(VLOOKUP($A$3,'BLG10-RALL'!$A$14:$CZ$500,3,FALSE)="",#N/A,VLOOKUP($A$3,'BLG10-RALL'!$A$14:$CZ$500,9,FALSE)*100),#N/A) -> 29.44 | AW16: =IFERROR(IF(VLOOKUP($A$3,'FIAG10-RALL'!$A$14:$CT$500,3,FALSE)="",#N/A,VLOOKUP($A$3,'FIAG10-RALL'!$A$14:$CT$500,11,FALSE)*100),#N/A) -> 53.58 | AX16: =IFERROR(IF(VLOOKUP($A$3,'WIAG10-RALL'!$A$14:$CZ$500,3,FALSE)="",#N/A,VLOOKUP($A$3,'WIAG10-RALL'!$A$14:$CZ$500,11,FALSE)*100),#N/A) -> 45.46 | AY16: Geo. | AZ16: =IFERROR(IF(VLOOKUP($A$3,'BLM-GEO'!$A$14:$BB$500,3,FALSE)="",#N/A,VLOOKUP($A$3,'BLM-GEO'!$A$14:$BB$500,9,FALSE)*100),#N/A) -> 0.1957698361 | BA16: =IFERROR(IF(VLOOKUP($A$3,'FIAM-GEO'!$A$14:$CZ$500,11,FALSE)="","",VLOOKUP($A$3,'FIAM-GEO'!$A$14:$CZ$500,9,FALSE)*100),#N/A) -> 14.16710497 | BB16: =IFERROR(IF(VLOOKUP($A$3,'WIAM-GEO'!$A$14:$CZ$500,11,FALSE)="","",VLOOKUP($A$3,'WIAM-GEO'!$A$14:$CZ$500,9,FALSE)*100),#N/A) -> 10.59577534 | BF16: Persuasive | BG16: =IFERROR(IF(VLOOKUP($A$3,'BLG10-WALL'!$A$14:$CZ$500,12,FALSE)="",#N/A,VLOOKUP($A$3,'BLG10-WALL'!$A$14:$CZ$500,20,FALSE)*100),#N/A) -> 34.96138901 | BH16: =IFERROR(IF(VLOOKUP($A$3,'MYG10-WALL'!$A$14:$CZ$500,12,FALSE)="",#N/A,VLOOKUP($A$3,'MYG10-WALL'!$A$14:$CZ$500,20,FALSE)*100),#N/A) -> 55.17122952
AF17: 11 | AJ17: Bio. | AN17: =IFERROR(IF(VLOOKUP($A$3,'BLS-BIO'!$A$14:$CZ$500,3,FALSE)="",#N/A,VLOOKUP($A$3,'BLS-BIO'!$A$14:$CZ$500,5,FALSE)*100),#N/A) -> 33.55073934 | AO17: =IFERROR(IF(VLOOKUP($A$3,'FIAS-BIO'!$A$14:$CZ$500,3,FALSE)="",#N/A,VLOOKUP($A$3,'FIAS-BIO'!$A$14:$CZ$500,5,FALSE)*100),#N/A) -> 38.79853149 | AP17: =IFERROR(IF(VLOOKUP($A$3,'WIAS-BIO'!$A$14:$CZ$500,3,FALSE)="",#N/A,VLOOKUP($A$3,'WIAS-BIO'!$A$14:$CZ$500,5,FALSE)*100),#N/A) -> 40.50071149 | AU17: 11 | AY17: Bio. | BC17: =IFERROR(IF(VLOOKUP($A$3,'BLS-BIO'!$A$14:$CZ$500,3,FALSE)="",#N/A,VLOOKUP($A$3,'BLS-BIO'!$A$14:$CZ$500,9,FALSE)*100),#N/A) -> 0.5928224716 | BD17: =IFERROR(IF(VLOOKUP($A$3,'FIAS-BIO'!$A$14:$CZ$500,3,FALSE)="",#N/A,VLOOKUP($A$3,'FIAS-BIO'!$A$14:$CZ$500,9,FALSE)*100),#N/A) -> 1.621921719 | BE17: =IFERROR(IF(VLOOKUP($A$3,'WIAS-BIO'!$A$14:$CZ$500,3,FALSE)="",#N/A,VLOOKUP($A$3,'WIAS-BIO'!$A$14:$CZ$500,9,FALSE)*100),#N/A) -> 3.757444937

Sheet HS Detailed Report
A2: Click here to return to the school and sheet selection interface
A3: ='Select School'!B3 -> 9999
A4: =TEXT(A3,"0000")&"-"&VLOOKUP(A3,SchList!$A$2:$B$497,2,FALSE) -> 9999-District | AN4: 50.7967602
A5: Reading - Grade 9 (*2011 FCAT Retrofitted Scores) | S5: Algebra I-First-time takers, combined all forms and all tested grades, (*2011 Algebra EOC Retrofitted Scores)
A6: Assessment | B6: Enroll-ment | C6: % Tested | D6: Avg. % Correct | E6: % Perf. | F6: Vocabulary | I6: Reading Application | L6: Literary Analysis Fiction/Non Fiction | O6: Informational Text/ Research Process | S6: Assessment | T6: Number Tested | V6: Avg. % Correct | W6: % Perf. | X6: Functions, Linear Equations & Inequalities | AC6: Polynomials | AH6: Rationals, Radicals, Quadratics, & Discrete Mathematics | AN6: Number Tested Grade 9
F7: Avg.% Correct | G7: Pts. Max | H7: % Perf. | I7: Avg.% Correct | J7: Pts. Max | K7: % Perf. | L7: Avg.% Correct | M7: Pts. Max | N7: % Perf. | O7: Avg.% Correct | P7: Pts. Max | Q7: % Perf. | X7: Avg.% Correct | Z7: Pts. Max | AA7: % Perf. | AC7: Avg.% Correct | AE7: Pts. Max | AF7: % Perf. | AH7: Avg.% Correct | AJ7: Pts. Max | AK7: % Perf. | AN7: Reading | AO7: Algebra I
A8: FCAT 2012 | B8: =IFERROR(VLOOKUP(TEXT($A$3,"0000"),'MemMay1-2012'!$A$2:$O$500,13,FALSE),"") -> 27838 | C8: =IFERROR(IF(VLOOKUP($A$3,'R-2012'!$CM$7:$CZ$500,3,FALSE)>B8,1,VLOOKUP($A$3,'R-2012'!$CM$7:$CZ$500,3,FALSE)/B8),"") -> 0.9775845966 | D8: NA | E8: =IFERROR(VLOOKUP($A$3,'R-2012'!$CM$7:$CZ$500,10,FALSE),"") -> 48 | F8: =IFERROR(VLOOKUP($A$3,'R-2012'!$CM$7:$CZ$500,11,FALSE)/G8,"") -> 0.625 | G8: ='R-2012'!$CW$6 -> 8 | H8: NA | I8: =IFERROR(VLOOKUP($A$3,'R-2012'!$CM$7:$CZ$500,12,FALSE)/J8,"") -> 0.6666666667 | J8: ='R-2012'!$CX$6 -> 12 | K8: NA | L8: =IFERROR(VLOOKUP($A$3,'R-2012'!$CM$7:$CZ$500,13,FALSE)/M8,"") -> 0.6363636364 | M8: ='R-2012'!$CY$6 -> 11 | N8: NA | O8: =IFERROR(VLOOKUP($A$3,'R-2012'!$CM$7:$CZ$500,14,FALSE)/P8,"") -> 0.6428571429 | P8: ='R-2012'!$CZ$6 -> 14 | Q8: NA | S8: 2012 Algebra EOC | T8: =IFERROR(VLOOKUP($A$3,'2012 ALG'!$A$6:$I$500,3,FALSE),"") -> 26012 | V8: NA | W8: =IFERROR(VLOOKUP($A$3,'2012 ALG'!$A$6:$I$500,5,FALSE),"") -> 0.5642011379 | X8: =IFERROR(VLOOKUP($A$3,'2012 ALG'!$A$6:$I$500,7,FALSE),"") -> 44.52349536 | Z8: ='2012 ALG'!$G$7 -> 31 | AA8: NA | AC8: =IFERROR(VLOOKUP($A$3,'2012 ALG'!$A$6:$I$500,8,FALSE),"") -> 35.43095494 | AE8: ='2012 ALG'!$H$7 -> 10 | AF8: NA | AH8: =IFERROR(VLOOKUP($A$3,'2012 ALG'!$A$6:$I$500,9,FALSE),"") -> 37.03290789 | AJ8: ='2012 ALG'!$I$7 -> 13 | AK8: NA | AN8: =IFERROR(VLOOKUP($A$3,'R-2012'!$CM$7:$CZ$500,3,FALSE),"") -> 27214 | AO8: =IFERROR(VLOOKUP($A$3,'2012 ALG'!$A$6:$I$500,3,FALSE),"") -> 26012
A9: Winter IA | B9: =IFERROR(VLOOKUP(TEXT($A$3,"0000"),MemJan20!$A$2:$O$500,13,FALSE),"NA") -> 28246 | C9: =IF($B9="NT","NT",IF(VLOOKUP($A$3,'WIAG9-RALL'!$A$14:$AA$500,3,FALSE)>$B9,1,VLOOKUP($A$3,'WIAG9-RALL'!$A$14:$AA$500,3,FALSE)/$B9)) -> 0.9180060894 | D9: =IF($B9="NT","NT",VLOOKUP($A$3,'WIAG9-RALL'!$A$14:$AA$500,5,FALSE)*100) -> 59 | E9: =IF($C9="NT","NT",VLOOKUP($A$3,'WIAG9-RALL'!$A$14:$AA$500,11,FALSE)*100) -> 44.85 | F9: =IFERROR(IF($D9="NT","NT",VLOOKUP($A$3,'WIAG9-RALL'!$A$14:$AG$500,13,FALSE)),"NT") -> 0.63 | G9: 12 | H9: NA | I9: =IFERROR(IF($D9="NT","NT",VLOOKUP($A$3,'WIAG9-RALL'!$A$14:$AG$500,17,FALSE)),"NT") -> 0.66 | J9: 19 | K9: NA | L9: =IFERROR(IF($D9="NT","NT",VLOOKUP($A$3,'WIAG9-RALL'!$A$14:$AG$500,21,FALSE)),"NT") -> 0.55 | M9: 10 | N9: NA | O9: =IFERROR(IF($D9="NT","NT",VLOOKUP($A$3,'WIAG9-RALL'!$A$14:$AG$500,25,FALSE)),"NT") -> 0.46 | P9: 9 | Q9: NA | S9: Winter IA | T9: =VLOOKUP($A$3,'WIAM-ALG'!$A$14:$AG$433,3,FALSE) -> 26779 | V9: =IF($T9="NT","NT",VLOOKUP($A$3,'WIAM-ALG'!$A$14:$AC$433,5,FALSE)*100) -> 38.48986168 | W9: =IF(U9="NT","NT",VLOOKUP($A$3,'WIAM-ALG'!$A$14:$AC$433,11,FALSE)*100) -> 36.90951865 | X9: =IFERROR(IF($V9="NT","NT",VLOOKUP($A$3,'WIAM-ALG'!$A$14:$AI$433,13,FALSE)),"NT") -> 0.3848986168 | Z9: 40 | AA9: NA | AC9: NA | AE9: NA | AF9: NA | AH9: NA | AJ9: NA | AK9: NA | AN9: =VLOOKUP($A$3,'WIAG9-RALL'!$A$14:$AG$500,3,FALSE) -> 25930 | AO9: =VLOOKUP($A$3,'WIAM-ALG'!$A$14:$AG$433,3,FALSE) -> 26779
A10: Fall IA | B10: =IFERROR(VLOOKUP(TEXT($A$3,"0000"),MemNov10!$A$2:$O$500,13,FALSE),"NA") -> 28416 | C10: =IF($B10="NT","NT",IF(VLOOKUP($A$3,'FIAG9-RALL'!$A$14:$AA$500,3,FALSE)>$B10,1,VLOOKUP($A$3,'FIAG9-RALL'!$A$14:$AA$500,3,FALSE)/$B10)) -> 0.9110712275 | D10: =IF($B10="NT","NT",VLOOKUP($A$3,'FIAG9-RALL'!$A$14:$AA$500,5,FALSE)*100) -> 57 | E10: =IF($C10="NT","NT",VLOOKUP($A$3,'FIAG9-RALL'!$A$14:$AA$500,11,FALSE)*100) -> 47.56 | F10: =IFERROR(IF($D10="NT","NT",VLOOKUP($A$3,'FIAG9-RALL'!$A$14:$AG$500,13,FALSE)),"NT") -> 0.59 | G10: 13 | H10: NA | I10: =IFERROR(IF($D10="NT","NT",VLOOKUP($A$3,'FIAG9-RALL'!$A$14:$AG$500,17,FALSE)),"NT") -> 0.59 | J10: 22 | K10: NA | L10: =IFERROR(IF($D10="NT","NT",VLOOKUP($A$3,'FIAG9-RALL'!$A$14:$AG$500,21,FALSE)),"NT") -> 0.5 | M10: 12 | N10: NA | O10: =IFERROR(IF($D10="NT","NT",VLOOKUP($A$3,'FIAG9-RALL'!$A$14:$AG$500,25,FALSE)),"NT") -> 0.59 | P10: 10 | Q10: NA | S10: Fall IA | T10: =VLOOKUP($A$3,'FIAM-ALG'!$A$14:$AC$500,3,FALSE) -> 27060 | V10: =IF($T10="NT","NT",VLOOKUP($A$3,'FIAM-ALG'!$A$14:$AC$500,5,FALSE)*100) -> 41.84536554 | W10: =IF(U10="NT","NT",VLOOKUP($A$3,'FIAM-ALG'!$A$14:$AC$500,11,FALSE)*100) -> 42.16186253 | X10: =IFERROR(IF($V10="NT","NT",VLOOKUP($A$3,'FIAM-ALG'!$A$14:$AI$500,13,FALSE)),"NT") -> 0.4394263442 | Z10: 13 | AA10: NA | AC10: =IFERROR(IF($V10="NT","NT",VLOOKUP($A$3,'FIAM-ALG'!$A$14:$AI$500,17,FALSE)),"NT") -> 0.3846415363 | AE10: 5 | AF10: NA | AH10: =IFERROR(IF($V10="NT","NT",VLOOKUP($A$3,'FIAM-ALG'!$A$14:$AI$500,21,FALSE)),"NT") -> 0.4117775306 | AJ10: 16 | AK10: NA | AN10: =VLOOKUP($A$3,'FIAG9-RALL'!$A$14:$AA$500,3,FALSE) -> 25889 | AO10: =VLOOKUP($A$3,'FIAM-ALG'!$A$14:$AC$500,3,FALSE) -> 27060
A11: Baseline | B11: =IFERROR(VLOOKUP(TEXT($A$3,"0000"),MemSep02!$A$2:$O$500,13,FALSE),"NA") -> 27606 | C11: =IF($B11="NT","NT",IF(VLOOKUP($A$3,'BLG9-RALL'!$A$14:$AG$500,3,FALSE)>$B11,1,VLOOKUP($A$3,'BLG9-RALL'!$A$14:$AG$500,3,FALSE)/$B11)) -> 0.9041874955 | D11: =IF($B11="NT","NT",VLOOKUP($A$3,'BLG9-RALL'!$A$14:$AG$500,5,FALSE)*100) -> 54 | E11: =IF($C11="NT","NT",VLOOKUP($A$3,'BLG9-RALL'!$A$14:$AG$500,9,FALSE)*100) -> 24.62 | F11: =IFERROR(IF($D11="NT","NT",VLOOKUP($A$3,'BLG9-RALL'!$A$14:$AM$500,11,FALSE)),"NT") -> 0.57 | G11: 7 | H11: =IFERROR((IF($D11="NA","NA",VLOOKUP($A$3,'BLG9-RALL'!$A$14:$AM$500,15,FALSE)*100)),"NA") -> 42.1 | I11: =IFERROR(IF($D11="NT","NT",VLOOKUP($A$3,'BLG9-RALL'!$A$14:$AM$500,17,FALSE)),"NT") -> 0.57 | J11: 22 | K11: =IFERROR((IF($D11="NA","NA",VLOOKUP($A$3,'BLG9-RALL'!$A$14:$AM$500,21,FALSE)*100)),"NA") -> 32.57 | L11: =IFERROR(IF($D11="NT","NT",VLOOKUP($A$3,'BLG9-RALL'!$A$14:$AM$500,23,FALSE)),"NT") -> 0.5 | M11: 6 | N11: =IFERROR((IF($D11="NA","NA",VLOOKUP($A$3,'BLG9-RALL'!$A$14:$AM$500,27,FALSE)*100)),"NA") -> 16.09 | O11: =IFERROR(IF($D11="NT","NT",VLOOKUP($A$3,'BLG9-RALL'!$A$14:$AM$500,29,FALSE)),"NT") -> 0.47 | P11: 8 | Q11: =IFERROR((IF($D11="NA","NA",VLOOKUP($A$3,'BLG9-RALL'!$A$14:$AM$500,33,FALSE)*100)),"NA") -> 21.53 | S11: Baseline | T11: =VLOOKUP($A$3,'FIAM-ALG'!$A$14:$AC$500,3,FALSE) -> 27060 | V11: =IF($T11="NT","NT",VLOOKUP($A$3,'BLM-ALG'!$A$14:$AG$500,5,FALSE)*100) -> 30.93544519 | W11: =IF(U11="NT","NT",VLOOKUP($A$3,'BLM-ALG'!$A$14:$AG$500,9,FALSE)*100) -> 0.2562329686 | X11: =IFERROR(IF($V11="NT","NT",VLOOKUP($A$3,'BLM-ALG'!$A$14:$AM$500,11,FALSE)),"NT") -> 0.3097753466 | Z11: 28 | AA11: =IFERROR((IF($V11="NA","NA",VLOOKUP($A$3,'BLM-ALG'!$A$14:$AM$500,15,FALSE)*100)),"NA") -> 0.4148533778 | AC11: =IFERROR(IF($V11="NT","NT",VLOOKUP($A$3,'BLM-ALG'!$A$14:$AM$500,17,FALSE)),"NT") -> 0.2715587191 | AE11: 7 | AF11: =IFERROR((IF($V11="NA","NA",VLOOKUP($A$3,'BLM-ALG'!$A$14:$AM$500,21,FALSE)*100)),"NA") -> 2.851100175 | AH11: =IFERROR(IF($V11="NT","NT",VLOOKUP($A$3,'BLM-ALG'!$A$14:$AM$500,23,FALSE)),"NT") -> 0.3287331316 | AJ11: 13 | AK11: =IFERROR((IF($V11="NA","NA",VLOOKUP($A$3,'BLM-ALG'!$A$14:$AM$500,27,FALSE)*100)),"NA") -> 0.9883271648 | AN11: =VLOOKUP($A$3,'FIAG9-RALL'!$A$14:$AA$500,3,FALSE) -> 25889 | AO11: =VLOOKUP($A$3,'FIAM-ALG'!$A$14:$AC$500,3,FALSE) -> 27060
A12: *FCAT 2011 | B12: =IFERROR(VLOOKUP(TEXT($A$3,"0000"),MemMay31!$A$2:$O$500,13,FALSE),"") -> 27544 | C12: =IFERROR(IF(VLOOKUP($A$3,'R-2011'!$CS$7:$DG$500,3,FALSE)>B12,1,VLOOKUP($A$3,'R-2011'!$CS$7:$DG$500,3,FALSE)/B12),"") -> 0.9680148127 | D12: NA | E12: =IFERROR(VLOOKUP($A$3,'R-2011'!$CS$7:$DG$500,11,FALSE),"") -> 45 | F12: =IFERROR(VLOOKUP($A$3,'R-2011'!$CS$7:$DG$500,12,FALSE)/G12,"") -> 0.6666666667 | G12: 9 | H12: NA | I12: =IFERROR(VLOOKUP($A$3,'R-2011'!$CS$7:$DG$500,13,FALSE)/J12,"") -> 0.5833333333 | J12: 12 | K12: NA | L12: =IFERROR(VLOOKUP($A$3,'R-2011'!$CS$7:$DG$500,14,FALSE)/M12,"") -> 0.6363636364 | M12: 11 | N12: NA | O12: =IFERROR(VLOOKUP($A$3,'R-2011'!$CS$7:$DG$500,15,FALSE)/P12,"") -> 0.6153846154 | P12: 13 | Q12: NA | S12: *2011 Algebra EOC | T12: =IFERROR(VLOOKUP($A$3,'2011 Alg'!$A$3:$K$500,2,FALSE),"") -> 28064 | V12: NA | W12: =IFERROR(VLOOKUP($A$3,'M-2011'!$CN$7:$CW$500,5,FALSE),"") -> 47 | X12: =IFERROR(VLOOKUP($A$3,'2011 Alg'!$A$3:$K$500,8,FALSE)*100,"") -> 42.67210661 | Z12: 30 | AA12: NA | AC12: =IFERROR(VLOOKUP($A$3,'2011 Alg'!$A$3:$K$500,9,FALSE)*100,"") -> 31.31877138 | AE12: 10 | AF12: NA | AH12: =IFERROR(VLOOKUP($A$3,'2011 Alg'!$A$3:$K$500,10,FALSE)*100,"") -> 30.28197453 | AJ12: 12 | AK12: NA | AN12: =VLOOKUP($A$3,'R-2011'!$CS$7:$DG$500,3,FALSE) -> 26663 | AO12: =IFERROR(VLOOKUP($A$3,'2011 Alg'!$A$3:$K$500,2,FALSE),"") -> 28064
A13: Reading - Grade 10 (*2011 FCAT Retrofitted Scores) | S13: Geometry (Combined all forms and all tested grades)
A14: Assessment | B14: Enroll-ment | C14: % Tested | D14: Avg. % Correct | E14: % Perf. | F14: Vocabulary | I14: Reading Application | L14: Literary Analysis Fiction/Non Fiction | O14: Informational Text/ Research Process | S14: Assessment | T14: Number Tested | V14: Avg. % Correct | W14: % Perf. | X14: Two-Dimensional Geometry | AC14: Three-Dimensional Geometry | AH14: Trigonometry & Discrete Mathematics | AN14: Number Tested
F15: Avg.% Correct | G15: Pts. Max | H15: % Perf. | I15: Avg.% Correct | J15: Pts. Max | K15: % Perf. | L15: Avg.% Correct | M15: Pts. Max | N15: % Perf. | O15: Avg.% Correct | P15: Pts. Max | Q15: % Perf. | X15: Avg.% Correct | Z15: Pts. Max | AA15: % Perf. | AC15: Avg.% Correct | AE15: Pts. Max | AF15: % Perf. | AH15: Avg.% Correct | AJ15: Pts. Max | AK15: % Perf. | AN15: Reading, g10 | AO15: Geometry
A16: FCAT 2012 | B16: =IFERROR(VLOOKUP(TEXT($A$3,"0000"),'MemMay1-2012'!$A$2:$O$500,14,FALSE),"") -> 26018 | C16: =IFERROR(IF(VLOOKUP($A$3,'R-2012'!$DB$7:$DP$500,3,FALSE)>B16,1,VLOOKUP($A$3,'R-2012'!$DB$7:$DP$500,3,FALSE)/B16),"") -> 0.9605273272 | D16: NA | E16: =IFERROR(VLOOKUP($A$3,'R-2012'!$DB$7:$DP$500,11,FALSE),"") -> 46 | F16: =IFERROR(VLOOKUP($A$3,'R-2012'!$DB$7:$DP$500,12,FALSE)/G16,"") -> 0.6 | G16: ='R-2012'!$DM$6 -> 10 | H16: NA | I16: =IFERROR(VLOOKUP($A$3,'R-2012'!$DB$7:$DP$500,13,FALSE)/J16,"") -> 0.5384615385 | J16: ='R-2012'!$DN$6 -> 13 | K16: NA | L16: =IFERROR(VLOOKUP($A$3,'R-2012'!$DB$7:$DP$500,14,FALSE)/M16,"") -> 0.6666666667 | M16: ='R-2012'!$DO$6 -> 9 | N16: NA | O16: =IFERROR(VLOOKUP($A$3,'R-2012'!$DB$7:$DP$500,15,FALSE)/P16,"") -> 0.6153846154 | P16: ='R-2012'!$DP$6 -> 13 | Q16: NA | S16: 2012 Geo. EOC | T16: =IFERROR(VLOOKUP($A$3,'2012 Geo'!$A$6:$J$500,2,FALSE),"") -> 27464 | V16: NA | W16: NA | X16: =IFERROR(VLOOKUP($A$3,'2012 Geo'!$A$4:$J$500,6,FALSE),"") -> 39.4043111 | Z16: ='2012 Geo'!E2 -> 35 | AA16: NA | AC16: =IFERROR(VLOOKUP($A$3,'2012 Geo'!$A$4:$J$500,8,FALSE),"") -> 31.50504462 | AE16: ='2012 Geo'!G2 -> 11 | AF16: NA | AH16: =IFERROR(VLOOKUP($A$3,'2012 Geo'!$A$4:$J$500,10,FALSE),"") -> 29.29061681 | AJ16: ='2012 Geo'!I2 -> 8 | AK16: NA | AN16: =IFERROR(VLOOKUP($A$3,'R-2012'!$DB$7:$DP$500,3,FALSE),"") -> 24991 | AO16: =IFERROR(VLOOKUP($A$3,'2012 Geo'!$A$6:$J$500,2,FALSE),"") -> 27464
A17: Winter IA | B17: =IFERROR(VLOOKUP(TEXT($A$3,"0000"),MemJan20!$A$2:$T$500,18,FALSE)-(VLOOKUP($A$3,'WIAG10-RALL'!$A$14:$CK$500,28,FALSE)),"NA") -> 25879 | C17: =IF($B17="NT","NT",IF(VLOOKUP($A$3,'WIAG10-RALL'!$A$14:$AA$500,3,FALSE)>$B17,1,VLOOKUP($A$3,'WIAG10-RALL'!$A$14:$AA$500,3,FALSE)/$B17)) -> 0.9263881912 | D17: =IF($B17="NT","NT",VLOOKUP($A$3,'WIAG10-RALL'!$A$14:$AA$500,5,FALSE)*100) -> 60 | E17: =IF($C17="NT","NT",VLOOKUP($A$3,'WIAG10-RALL'!$A$14:$AA$500,11,FALSE)*100) -> 45.46 | F17: =IFERROR(IF($D17="NT","NT",VLOOKUP($A$3,'WIAG10-RALL'!$A$14:$AG$500,13,FALSE)),"NT") -> 0.64 | G17: 12 | H17: NA | I17: =IFERROR(IF($D17="NT","NT",VLOOKUP($A$3,'WIAG10-RALL'!$A$14:$AG$500,17,FALSE)),"NT") -> 0.6 | J17: 20 | K17: NA | L17: =IFERROR(IF($D17="NT","NT",VLOOKUP($A$3,'WIAG10-RALL'!$A$14:$AG$500,21,FALSE)),"NT") -> 0.57 | M17: 9 | N17: NA | O17: =IFERROR(IF($D17="NT","NT",VLOOKUP($A$3,'WIAG10-RALL'!$A$14:$AG$500,25,FALSE)),"NT") -> 0.59 | P17: 8 | Q17: NA | S17: Winter IA | T17: =IFERROR(VLOOKUP($A$3,'WIAM-GEO'!$A$14:$AG$500,3,FALSE),"NA") -> 26369 | V17: =IF($T17="NT","NT",VLOOKUP($A$3,'WIAM-GEO'!$A$14:$AG$500,5,FALSE)*100) -> 47.20982311 | W17: =IF(U17="NT","NT",VLOOKUP($A$3,'WIAM-GEO'!$A$14:$AG$500,9,FALSE)*100) -> 10.59577534 | X17: =IFERROR(IF($V17="NT","NT",VLOOKUP($A$3,'WIAM-GEO'!$A$14:$AM$500,11,FALSE)),"NT") -> 0.4720982311 | Z17: 43 | AA17: =IFERROR((IF($V17="NA","NA",VLOOKUP($A$3,'WIAM-GEO'!$A$14:$AM$500,15,FALSE)*100)),"NA") -> 10.59577534 | AC17: NA | AE17: NA | AF17: NA | AH17: NA | AJ17: NA | AK17: NA | AN17: =IFERROR(VLOOKUP($A$3,'WIAG10-RALL'!$A$14:$AG$500,3,FALSE),"NA") -> 23974 | AO17: =IFERROR(VLOOKUP($A$3,'WIAM-GEO'!$A$14:$AG$500,3,FALSE),"NA") -> 26369
A18: Fall IA | B18: =IFERROR(VLOOKUP(TEXT($A$3,"0000"),MemNov10!$A$2:$T$500,18,FALSE)-(VLOOKUP($A$3,'FIAG10-RALL'!$A$14:$CK$500,28,FALSE)),"NA") -> 26527 | C18: =IF($B18="NT","NT",IF(VLOOKUP($A$3,'FIAG10-RALL'!$A$14:$AA$500,3,FALSE)>$B18,1,VLOOKUP($A$3,'FIAG10-RALL'!$A$14:$AA$500,3,FALSE)/$B18)) -> 0.907452784 | D18: =IF($B18="NT","NT",VLOOKUP($A$3,'FIAG10-RALL'!$A$14:$AA$500,5,FALSE)*100) -> 56 | E18: =IF($C18="NT","NT",VLOOKUP($A$3,'FIAG10-RALL'!$A$14:$AA$500,11,FALSE)*100) -> 53.58 | F18: =IFERROR(IF($D18="NT","NT",VLOOKUP($A$3,'FIAG10-RALL'!$A$14:$AG$500,13,FALSE)),"NT") -> 0.57 | G18: 10 | H18: NA | I18: =IFERROR(IF($D18="NT","NT",VLOOKUP($A$3,'FIAG10-RALL'!$A$14:$AG$500,17,FALSE)),"NT") -> 0.56 | J18: 23 | K18: NA | L18: =IFERROR(IF($D18="NT","NT",VLOOKUP($A$3,'FIAG10-RALL'!$A$14:$AG$500,21,FALSE)),"NT") -> 0.56 | M18: 11 | N18: NA | O18: =IFERROR(IF($D18="NT","NT",VLOOKUP($A$3,'FIAG10-RALL'!$A$14:$AG$500,25,FALSE)),"NT") -> 0.53 | P18: 9 | Q18: NA | S18: Fall IA | T18: =IFERROR(VLOOKUP($A$3,'FIAM-GEO'!$A$14:$AG$500,3,FALSE),"NA") -> 26618 | V18: =IF($T18="NT","NT",VLOOKUP($A$3,'FIAM-GEO'!$A$14:$AG$500,5,FALSE)*100) -> 50.7967602 | W18: =IF(U18="NT","NT",VLOOKUP($A$3,'FIAM-GEO'!$A$14:$AG$500,9,FALSE)*100) -> 14.16710497 | X18: =IFERROR(IF($V18="NT","NT",VLOOKUP($A$3,'FIAM-GEO'!$A$14:$AM$500,11,FALSE)),"NT") -> 0.507967602 | Z18: 38 | AA18: =IFERROR((IF($V18="NA","NA",VLOOKUP($A$3,'FIAM-GEO'!$A$14:$AM$500,15,FALSE)*100)),"NA") -> 14.16710497 | AC18: NA | AE18: NA | AF18: NA | AH18: NA | AJ18: NA | AK18: NA | AN18: =IFERROR(VLOOKUP($A$3,'FIAG10-RALL'!$A$14:$AA$500,3,FALSE),"NA") -> 24072 | AO18: =IFERROR(VLOOKUP($A$3,'FIAM-GEO'!$A$14:$AG$500,3,FALSE),"NA") -> 26618
A19: Baseline | B19: =IFERROR(VLOOKUP(TEXT($A$3,"0000"),MemSep02!$A$2:$W$500,18,FALSE)-(SUM(VLOOKUP($A$3,'BLG10-RALL'!$A$14:$CQ$500,34,FALSE),VLOOKUP($A$3,'BLG10-RALL'!$A$14:$CQ$500,65,FALSE))),"NA") -> 26390 | C19: =IF($B19="NT","NT",IF(VLOOKUP($A$3,'BLG10-RALL'!$A$14:$AG$500,3,FALSE)>$B19,1,VLOOKUP($A$3,'BLG10-RALL'!$A$14:$AG$500,3,FALSE)/$B19)) -> 0.9027661993 | D19: =IF($B19="NT","NT",VLOOKUP($A$3,'BLG10-RALL'!$A$14:$AG$500,5,FALSE)*100) -> 58 | E19: =IF($C19="NT","NT",VLOOKUP($A$3,'BLG10-RALL'!$A$14:$AG$500,9,FALSE)*100) -> 29.44 | F19: =IFERROR(IF($D19="NT","NT",VLOOKUP($A$3,'BLG10-RALL'!$A$14:$AM$500,11,FALSE)),"NT") -> 0.67 | G19: 5 | H19: =IFERROR((IF($D19="NA","NA",VLOOKUP($A$3,'BLG10-RALL'!$A$14:$AM$500,15,FALSE)*100)),"NA") -> 52.16 | I19: =IFERROR(IF($D19="NT","NT",VLOOKUP($A$3,'BLG10-RALL'!$A$14:$AM$500,17,FALSE)),"NT") -> 0.62 | J19: 15 | K19: =IFERROR((IF($D19="NA","NA",VLOOKUP($A$3,'BLG10-RALL'!$A$14:$AM$500,21,FALSE)*100)),"NA") -> 40.48 | L19: =IFERROR(IF($D19="NT","NT",VLOOKUP($A$3,'BLG10-RALL'!$A$14:$AM$500,23,FALSE)),"NT") -> 0.45 | M19: 6 | N19: =IFERROR((IF($D19="NA","NA",VLOOKUP($A$3,'BLG10-RALL'!$A$14:$AM$500,27,FALSE)*100)),"NA") -> 14.49 | O19: =IFERROR(IF($D19="NT","NT",VLOOKUP($A$3,'BLG10-RALL'!$A$14:$AM$500,29,FALSE)),"NT") -> 0.54 | P19: 10 | Q19: =IFERROR((IF($D19="NA","NA",VLOOKUP($A$3,'BLG10-RALL'!$A$14:$AM$500,33,FALSE)*100)),"NA") -> 33.29 | S19: Baseline | T19: =IFERROR(VLOOKUP($A$3,'BLM-GEO'!$A$14:$AA$500,3,FALSE),"NA") -> 26051 | V19: =IF($T19="NT","NT",VLOOKUP($A$3,'BLM-GEO'!$A$14:$AA$500,5,FALSE)*100) -> 30.28697762 | W19: =IF(U19="NT","NT",VLOOKUP($A$3,'BLM-GEO'!$A$14:$AA$500,9,FALSE)*100) -> 0.1957698361 | X19: =IFERROR(IF($V19="NT","NT",VLOOKUP($A$3,'BLM-GEO'!$A$14:$AA$500,11,FALSE)),"NT") -> 0.29574749 | Z19: 28 | AA19: =IFERROR((IF($V19="NA","NA",VLOOKUP($A$3,'BLM-GEO'!$A$14:$AA$500,15,FALSE)*100)),"NA") -> 0.2072857088 | AC19: =IFERROR(IF($V19="NT","NT",VLOOKUP($A$3,'BLM-GEO'!$A$14:$AA$500,23,FALSE)),"NT") -> 0.3439528837 | AE19: 6 | AF19: =IFERROR((IF($V19="NA","NA",VLOOKUP($A$3,'BLM-GEO'!$A$14:$AA$500,27,FALSE)*100)),"NA") -> 2.779163948 | AH19: =IFERROR(IF($V19="NT","NT",VLOOKUP($A$3,'BLM-GEO'!$A$14:$AA$500,17,FALSE)),"NT") -> 0.2906184069 | AJ19: 4 | AK19: =IFERROR((IF($V19="NA","NA",VLOOKUP($A$3,'BLM-GEO'!$A$14:$AA$500,21,FALSE)*100)),"NA") -> 7.481478638 | AN19: =IFERROR(VLOOKUP($A$3,'BLG10-RALL'!$A$14:$AG$500,3,FALSE),"NA") -> 23824 | AO19: =IFERROR(VLOOKUP($A$3,'BLM-GEO'!$A$14:$AA$500,3,FALSE),"NA") -> 26051
A20: *FCAT 2011 | B20: =IFERROR(VLOOKUP(TEXT($A$3,"0000"),MemMay31!$A$2:$O$500,14,FALSE),"") -> 25861 | C20: =IFERROR(IF(VLOOKUP($A$3,'R-2011'!$DI$7:$DX$500,3,FALSE)>B20,1,VLOOKUP($A$3,'R-2011'!$DI$7:$DX$500,3,FALSE)/B20),"") -> 0.9455550829 | D20: NA | E20: =IFERROR(VLOOKUP($A$3,'R-2011'!$DI$7:$DX$500,12,FALSE),"") -> 51 | F20: =IFERROR(VLOOKUP($A$3,'R-2011'!$DI$7:$DX$500,13,FALSE)/G20,"") -> 0.625 | G20: 8 | H20: NA | I20: =IFERROR(VLOOKUP($A$3,'R-2011'!$DI$7:$DX$500,14,FALSE)/J20,"") -> 0.5714285714 | J20: 14 | K20: NA | L20: =IFERROR(VLOOKUP($A$3,'R-2011'!$DI$7:$DX$500,15,FALSE)/M20,"") -> 0.6363636364 | M20: 11 | N20: NA | O20: =IFERROR(VLOOKUP($A$3,'R-2011'!$DI$7:$DX$500,16,FALSE)/P20,"") -> 0.6666666667 | P20: 12 | Q20: NA | S20: 2011Geo. EOC | T20: NA | V20: NA | W20: NA | X20: NA | Z20: NA | AA20: NA | AC20: NA | AE20: NA | AF20: NA | AH20: NA | AJ20: NA | AK20: NA | AN20: =VLOOKUP($A$3,'R-2011'!$DI$7:$DX$500,3,FALSE) -> 24453 | AO20: NA
A21: Writing - Grade 10 | S21: Biology (Combined all forms and all tested grades)
A22: Assessment | B22: Enroll-ment | C22: Expository | J22: Persuasive | S22: Assessment | T22: Number Tested | V22: Avg. % Correct | W22: % Perf. | X22: Molecular and Cellular Biology | AC22: Classification, Heredity, Evolution | AH22: Organisms, Populations, & Ecosystems | AN22: Number Tested
C23: Total Tested | D23: % Tested | F23: % 3 or higher | G23: % 4 or higher | I23: Average Score | J23: Total Tested | L23: % Tested | M23: % 3 or higher | O23: % 4 or higher | P23: Average Score | X23: Avg.% Correct | Z23: Pts. Max | AA23: % Perf. | AC23: Avg.% Correct | AE23: Pts. Max | AF23: % Perf. | AH23: Avg.% Correct | AJ23: Pts. Max | AK23: % Perf. | AN23: BIOLOGY 1 | AO23: Writing, Gr10 (Expository) | AP23: Writing, Gr10 (Persuasive)
A24: FCAT 2012 | B24: =IFERROR(VLOOKUP(TEXT($A$3,"0000"),'MemMay1-2012'!$A$2:$O$500,14,FALSE),"") -> 26018 | C24: NA | D24: NA | F24: NA | G24: NA | I24: NA | J24: =IFERROR(IF(OR(VLOOKUP($A$3,'W12'!$AO$7:$BG$500,3,FALSE)=".",VLOOKUP($A$3,'W12'!$AO$7:$BG$500,3,FALSE)=""),"NA",VLOOKUP($A$3,'W12'!$AO$7:$BG$500,3,FALSE)),"NA") -> 25545 | L24: =IFERROR(IF(J24/B24>1,1,J24/B24),"") -> 0.9818202783 | M24: =IFERROR(IF(OR(VLOOKUP($A$3,'W12'!$AO$7:$BG$500,17,FALSE)=".",VLOOKUP($A$3,'W12'!$AO$7:$BG$500,17,FALSE)=""),"NA",VLOOKUP($A$3,'W12'!$AO$7:$BG$500,17,FALSE)),"NA") -> 83 | O24: =IFERROR(IF(OR(VLOOKUP($A$3,'W12'!$AO$7:$BG$500,19,FALSE)=".",VLOOKUP($A$3,'W12'!$AO$7:$BG$500,19,FALSE)=""),"NA",VLOOKUP($A$3,'W12'!$AO$7:$BG$500,19,FALSE)),"NA") -> 36 | P24: =IFERROR(IF(OR(VLOOKUP($A$3,'W12'!$AO$7:$BG$500,4,FALSE)=".",VLOOKUP($A$3,'W12'!$AO$7:$BG$500,4,FALSE)=""),"NA",VLOOKUP($A$3,'W12'!$AO$7:$BG$500,4,FALSE)),"NA") -> 3.4 | Q24: =IFERROR(IF(OR(VLOOKUP($A$3,'W12'!$AO$7:$BG$500,19,FALSE)=".",VLOOKUP($A$3,'W12'!$AO$7:$BG$500,19,FALSE)=""),"NA",VLOOKUP($A$3,'W12'!$AO$7:$BG$500,19,FALSE)),"NA") -> 36 | S24: 2012 Biology EOC | T24: =IFERROR(VLOOKUP($A$3,'2012 BIO'!$A$5:$J$500,3,FALSE),"") -> 25857 | V24: NA | W24: NA | X24: =IFERROR(VLOOKUP($A$3,'2012 BIO'!$A$5:$J$500,5,FALSE),"") -> 43.29949337 | Z24: ='2012 BIO'!$E$3 -> 20 | AA24: NA | AC24: =IFERROR(VLOOKUP($A$3,'2012 BIO'!$A$5:$J$500,6,FALSE),"") -> 46.13174658 | AE24: ='2012 BIO'!$F$3 -> 14 | AF24: NA | AH24: =IFERROR(VLOOKUP($A$3,'2012 BIO'!$A$5:$J$500,7,FALSE),"") -> 49.87307815 | AJ24: ='2012 BIO'!$G$3 -> 22 | AK24: NA | AN24: =IFERROR(VLOOKUP($A$3,'2012 BIO'!$A$5:$J$500,3,FALSE),"") -> 25857
A25: Mid-Year | B25: =IFERROR(VLOOKUP(TEXT($A$3,"0000"),MemJan20!$A$2:$O$500,14,FALSE),"NA") -> 26546 | C25: =IFERROR(IF(VLOOKUP($A$3,'MYG10-WALL'!$A$14:$AG$523,3,FALSE)=0,"NT",VLOOKUP($A$3,'MYG10-WALL'!$A$14:$AG$523,3,FALSE)),"NT") -> 19923 | D25: =IF(C25="NT","NT",IF(C25>B25,1,C25/B25)) -> 0.7505085512 | F25: =IFERROR(IF(C25="NT","NT",VLOOKUP($A$3,'MYG10-WALL'!$A$14:$AG$500,28,FALSE)),"NT") -> 82 | G25: =IFERROR(IF(B25="NT","NT",VLOOKUP($A$3,'MYG10-WALL'!$A$14:$AG$500,11,FALSE)*100),"NT") -> 53.73688702 | I25: =IFERROR(IF(B25="NT","NT",VLOOKUP($A$3,'MYG10-WALL'!$A$14:$AG$500,4,FALSE)),"NT") -> 3.416272638 | J25: =IFERROR(IF(VLOOKUP($A$3,'MYG10-WALL'!$A$14:$AG$500,12,FALSE)=0,"NT",VLOOKUP($A$3,'MYG10-WALL'!$A$14:$AG$500,12,FALSE)),"NT") -> 20382 | L25: =IFERROR(IF(J25="NT","NT",IF(J25/B25>1,1,J25/B25)),"") -> 0.7677992918 | M25: =IFERROR(IF(J25="NT","NT",VLOOKUP($A$3,'MYG10-WALL'!$A$14:$AG$500,30,FALSE)),"NT") -> 83 | O25: =IFERROR(IF(J25="NT","NT",VLOOKUP($A$3,'MYG10-WALL'!$A$14:$AG$500,20,FALSE)*100),"NT") -> 55.17122952 | P25: =IFERROR(IF(B25="NT","NT",VLOOKUP($A$3,'MYG10-WALL'!$A$14:$AG$500,13,FALSE)),"NT") -> 3.415969976 | S25: Winter IA | T25: =IFERROR(VLOOKUP($A$3,'WIAS-BIO'!$A$14:$AG$500,3,FALSE),"NA") -> 25017 | V25: =IF($T25="NT","NT",VLOOKUP($A$3,'WIAS-BIO'!$A$14:$AG$500,5,FALSE)*100) -> 40.50071149 | W25: =IF(U25="NT","NT",VLOOKUP($A$3,'WIAS-BIO'!$A$14:$AG$500,9,FALSE)*100) -> 3.757444937 | X25: =IFERROR(IF($V25="NT","NT",VLOOKUP($A$3,'WIAS-BIO'!$A$14:$AM$500,11,FALSE)),"NT") -> 0.375013824 | Z25: 24 | AA25: =IFERROR((IF($V25="NA","NA",VLOOKUP($A$3,'WIAS-BIO'!$A$14:$AM$500,15,FALSE)*100)),"NA") -> 4.345045369 | AC25: =IFERROR(IF($V25="NT","NT",VLOOKUP($A$3,'WIAS-BIO'!$A$14:$AM$500,17,FALSE)),"NT") -> 0.3975082967 | AE25: 20 | AF25: =IFERROR((IF($V25="NA","NA",VLOOKUP($A$3,'WIAS-BIO'!$A$14:$AM$500,21,FALSE)*100)),"NA") -> 6.563536795 | AH25: =IFERROR(IF($V25="NT","NT",VLOOKUP($A$3,'WIAS-BIO'!$A$14:$AM$500,23,FALSE)),"NT") -> 0.4403909883 | AJ25: 26 | AK25: =IFERROR((IF($V25="NA","NA",VLOOKUP($A$3,'WIAS-BIO'!$A$14:$AM$500,27,FALSE)*100)),"NA") -> 6.083862973 | AN25: =IFERROR(VLOOKUP($A$3,'WIAS-BIO'!$A$14:$AG$500,3,FALSE),"NA") -> 25017 | AO25: =$C25 -> 19923 | AP25: =$J25 -> 20382
S26: Fall IA | T26: =IFERROR(VLOOKUP($A$3,'FIAS-BIO'!$A$14:$AG$500,3,FALSE),"NA") -> 25217 | V26: =IF($T26="NT","NT",VLOOKUP($A$3,'FIAS-BIO'!$A$14:$AG$500,5,FALSE)*100) -> 38.79853149 | W26: =IF(U26="NT","NT",VLOOKUP($A$3,'FIAS-BIO'!$A$14:$AG$500,9,FALSE)*100) -> 1.621921719 | X26: =IFERROR(IF($V26="NT","NT",VLOOKUP($A$3,'FIAS-BIO'!$A$14:$AM$500,11,FALSE)),"NT") -> 0.3660532177 | Z26: 25 | AA26: =IFERROR((IF($V26="NA","NA",VLOOKUP($A$3,'FIAS-BIO'!$A$14:$AM$500,15,FALSE)*100)),"NA") -> 1.776579292 | AC26: =IFERROR(IF($V26="NT","NT",VLOOKUP($A$3,'FIAS-BIO'!$A$14:$AM$500,17,FALSE)),"NT") -> 0.3741047703 | AE26: 19 | AF26: =IFERROR((IF($V26="NA","NA",VLOOKUP($A$3,'FIAS-BIO'!$A$14:$AM$500,21,FALSE)*100)),"NA") -> 2.502280208 | AH26: =IFERROR(IF($V26="NT","NT",VLOOKUP($A$3,'FIAS-BIO'!$A$14:$AM$500,23,FALSE)),"NT") -> 0.4198140145 | AJ26: 26 | AK26: =IFERROR((IF($V26="NA","NA",VLOOKUP($A$3,'FIAS-BIO'!$A$14:$AM$500,27,FALSE)*100)),"NA") -> 3.640401317 | AN26: =IFERROR(VLOOKUP($A$3,'FIAS-BIO'!$A$14:$AG$500,3,FALSE),"NA") -> 25217
A27: Pre-Test | B27: =IFERROR(VLOOKUP(TEXT($A$3,"0000"),MemSep02!$A$2:$O$500,14,FALSE),"NA") -> 26979 | C27: =IFERROR(IF(VLOOKUP($A$3,'BLG10-WALL'!$A$14:$AG$523,3,FALSE)=0,"NT",VLOOKUP($A$3,'BLG10-WALL'!$A$14:$AG$523,3,FALSE)),"NT") -> 19347 | D27: =IF(C27="NT","NT",IF(C27>B27,1,C27/B27)) -> 0.7171133104 | F27: =IFERROR(IF(C27="NT","NT",VLOOKUP($A$3,'BLG10-WALL'!$A$14:$AG$500,28,FALSE)),"NT") -> 74 | G27: =IFERROR(IF(B27="NT","NT",VLOOKUP($A$3,'BLG10-WALL'!$A$14:$AG$500,11,FALSE)*100),"NT") -> 39.07065695 | I27: =IFERROR(IF(B27="NT","NT",VLOOKUP($A$3,'BLG10-WALL'!$A$14:$AG$500,4,FALSE)),"NT") -> 2.936507931 | J27: =IFERROR(IF(VLOOKUP($A$3,'BLG10-WALL'!$A$14:$AG$500,12,FALSE)=0,"NT",VLOOKUP($A$3,'BLG10-WALL'!$A$14:$AG$500,12,FALSE)),"NT") -> 20331 | L27: =IFERROR(IF(J27="NT","NT",IF(J27/B27>1,1,J27/B27)),"") -> 0.7535861225 | M27: =IFERROR(IF(J27="NT","NT",VLOOKUP($A$3,'BLG10-WALL'!$A$14:$AG$500,30,FALSE)),"NT") -> 70 | O27: =IFERROR(IF(J27="NT","NT",VLOOKUP($A$3,'BLG10-WALL'!$A$14:$AG$500,20,FALSE)*100),"NT") -> 34.96138901 | P27: =IFERROR(IF(B27="NT","NT",VLOOKUP($A$3,'BLG10-WALL'!$A$14:$AG$500,13,FALSE)),"NT") -> 2.869841287 | S27: Baseline | T27: =IFERROR(VLOOKUP($A$3,'BLS-BIO'!$A$14:$AG$500,3,FALSE),"NA") -> 25134 | V27: =IF($T27="NT","NT",VLOOKUP($A$3,'BLS-BIO'!$A$14:$AG$500,5,FALSE)*100) -> 33.55073934 | W27: =IF(U27="NT","NT",VLOOKUP($A$3,'BLS-BIO'!$A$14:$AG$500,9,FALSE)*100) -> 0.5928224716 | X27: =IFERROR(IF($V27="NT","NT",VLOOKUP($A$3,'BLS-BIO'!$A$14:$AM$500,17,FALSE)),"NT") -> 0.3161550107 | Z27: 20 | AA27: =IFERROR((IF($V27="NA","NA",VLOOKUP($A$3,'BLS-BIO'!$A$14:$AM$500,21,FALSE)*100)),"NA") -> 1.492002865 | AC27: =IFERROR(IF($V27="NT","NT",VLOOKUP($A$3,'BLS-BIO'!$A$14:$AM$500,11,FALSE)),"NT") -> 0.3242547934 | AE27: 25 | AF27: =IFERROR((IF($V27="NA","NA",VLOOKUP($A$3,'BLS-BIO'!$A$14:$AM$500,15,FALSE)*100)),"NA") -> 0.4973342882 | AH27: =IFERROR(IF($V27="NT","NT",VLOOKUP($A$3,'BLS-BIO'!$A$14:$AM$500,23,FALSE)),"NT") -> 0.370331027 | AJ27: 22 | AK27: =IFERROR((IF($V27="NA","NA",VLOOKUP($A$3,'BLS-BIO'!$A$14:$AM$500,27,FALSE)*100)),"NA") -> 1.881912947 | AN27: =IFERROR(VLOOKUP($A$3,'BLS-BIO'!$A$14:$AG$500,3,FALSE),"NA") -> 25134 | AO27: =C27 -> 19347 | AP27: =J27 -> 20331
A28: FCAT 2011 | B28: =IFERROR(VLOOKUP(TEXT($A$3,"0000"),MemMay31!$A$2:$O$500,14,FALSE),"") -> 25861 | C28: =IFERROR(IF(OR(VLOOKUP($A$3,'W11'!$AC$7:$AO$500,3,FALSE)=".",VLOOKUP($A$3,'W11'!$AC$7:$AO$500,3,FALSE)=""),"NA",VLOOKUP($A$3,'W11'!$AC$7:$AO$500,3,FALSE)),"NA") -> 25140 | D28: =IFERROR(IF(C28/B28>1,1,C28/B28),"") -> 0.972120181 | F28: =IFERROR(IF(OR(VLOOKUP($A$3,'W11'!$AC$7:$AO$500,12,FALSE)=".",VLOOKUP($A$3,'W11'!$AC$7:$AO$500,12,FALSE)=""),"NA",VLOOKUP($A$3,'W11'!$AC$7:$AO$500,12,FALSE)),"NA") -> 93 | G28: =IFERROR(IF(OR(VLOOKUP($A$3,'W11'!$AC$7:$AO$500,13,FALSE)=".",VLOOKUP($A$3,'W11'!$AC$7:$AO$500,13,FALSE)=""),"NA",VLOOKUP($A$3,'W11'!$AC$7:$AO$500,13,FALSE)),"NA") -> 73 | I28: =IFERROR(IF(OR(VLOOKUP($A$3,'W11'!$AC$7:$AO$500,4,FALSE)=".",VLOOKUP($A$3,'W11'!$AC$7:$AO$500,4,FALSE)=""),"NA",VLOOKUP($A$3,'W11'!$AC$7:$AO$500,4,FALSE)),"NA") -> 3.9 | J28: NA | L28: NA | M28: NA | O28: NA | P28: NA | S28: 2011 Biolgoy EOC | T28: NA | V28: NA | W28: NA | X28: NA | Z28: NA | AA28: NA | AC28: NA | AE28: NA | AF28: NA | AH28: NA | AJ28: NA | AK28: NA | AN28: =IFERROR((VLOOKUP($A$3,'S-2011'!$AE$7:$AR$500,3,FALSE)),"NA") -> 20617 | AO28: =C28 -> 25140 | AP28: =J28 -> NA
A29: 2010 to 2012 School Grade Performance
A30: FCAT Components | V30: High School (Non-FCAT) Components
A31: Year | B31: School Grade | C31: Adj. FCAT Points Earned | D31: FCAT Applied Points Earned+Bonus | E31: % Meeting High Standards | J31: Learning Gains Points | M31: Learning Gains Points for Lowest 25% | P31: Middle School Acceleration Points | T31: HS Retake Bonus Points | U31: % Tested | V31: Graduation Rate (300 Points) | Z31: Acceleration Courses* | AE31: Readiness (200 Points) | AI31: Non-FCAT Points | AJ31: FCAT Points | AK31: Total Points
E32: Read-ing | F32: Math | G32: Writing | I32: Science | J32: Reading | L32: Math | M32: Reading | O32: Math | P32: Participation | S32: Performance | V32: All (200 Points) | X32: At Risk (100 Points) | Z32: Participation | AC32: Performance | AE32: Reading (100 Points) | AG32: Math (100 Points)
A33: 2012 | B33: =IF(VLOOKUP(TEXT($A$3,"0000"),'2012 SG'!$D$9:$AW$500,25,FALSE)="","NG",IFERROR(VLOOKUP(TEXT($A$3,"0000"),'2012 SG'!$D$9:$AW$500,25,FALSE),"")) -> B | C33: =IF(VLOOKUP(TEXT($A$3,"0000"),'2012 SG'!$D$9:$AW$500,23,FALSE)="","NG",IFERROR(VLOOKUP(TEXT($A$3,"0000"),'2012 SG'!$D$9:$AW$500,23,FALSE),"")) -> 512 | D33: =IF(VLOOKUP(TEXT($A$3,"0000"),'2012 SG'!$D$9:$AW$500,19,FALSE)="","NG",IFERROR(VLOOKUP(TEXT($A$3,"0000"),'2012 SG'!$D$9:$AW$500,19,FALSE),"")) -> 512 | E33: =IF(VLOOKUP(TEXT($A$3,"0000"),'2012 SG'!$D$9:$AW$500,3,FALSE)="","NG",IFERROR(VLOOKUP(TEXT($A$3,"0000"),'2012 SG'!$D$9:$AW$500,3,FALSE),"")) -> 55 | F33: =IF(VLOOKUP(TEXT($A$3,"0000"),'2012 SG'!$D$9:$AW$500,4,FALSE)="","NG",IFERROR(VLOOKUP(TEXT($A$3,"0000"),'2012 SG'!$D$9:$AW$500,4,FALSE),"")) -> 57 | G33: =IF(VLOOKUP(TEXT($A$3,"0000"),'2012 SG'!$D$9:$AW$500,5,FALSE)="","NG",IFERROR(VLOOKUP(TEXT($A$3,"0000"),'2012 SG'!$D$9:$AW$500,5,FALSE),"")) -> 81 | H33: =IF(VLOOKUP(TEXT($A$3,"0000"),'2012 SG'!$D$9:$AW$500,4,FALSE)="","NG",IFERROR(VLOOKUP(TEXT($A$3,"0000"),'2012 SG'!$D$9:$AW$500,4,FALSE),"")) -> 57 | I33: =IF(VLOOKUP(TEXT($A$3,"0000"),'2012 SG'!$D$9:$AW$500,6,FALSE)="","NG",IFERROR(VALUE(VLOOKUP(TEXT($A$3,"0000"),'2012 SG'!$D$9:$AW$500,6,FALSE)),"")) -> 47 | J33: =IF(VLOOKUP(TEXT($A$3,"0000"),'2012 SG'!$D$9:$AW$500,7,FALSE)="","NG",IFERROR(VLOOKUP(TEXT($A$3,"0000"),'2012 SG'!$D$9:$AW$500,7,FALSE),"")) -> 68 | K33: =IF(VLOOKUP(TEXT($A$3,"0000"),'2012 SG'!$D$9:$AW$500,4,FALSE)="","NG",IFERROR(VLOOKUP(TEXT($A$3,"0000"),'2012 SG'!$D$9:$AW$500,4,FALSE),"")) -> 57 | L33: =IF(VLOOKUP(TEXT($A$3,"0000"),'2012 SG'!$D$9:$AW$500,8,FALSE)="","NG",IFERROR(VALUE(VLOOKUP(TEXT($A$3,"0000"),'2012 SG'!$D$9:$AW$500,8,FALSE)),"")) -> 68 | M33: =IF(VLOOKUP(TEXT($A$3,"0000"),'2012 SG'!$D$9:$AW$500,9,FALSE)="","NG",IFERROR(VLOOKUP(TEXT($A$3,"0000"),'2012 SG'!$D$9:$AW$500,9,FALSE),"")) -> 70 | N33: =IF(VLOOKUP(TEXT($A$3,"0000"),'2012 SG'!$D$9:$AW$500,4,FALSE)="","NG",IFERROR(VLOOKUP(TEXT($A$3,"0000"),'2012 SG'!$D$9:$AW$500,4,FALSE),"")) -> 57 | O33: =IF(VLOOKUP(TEXT($A$3,"0000"),'2012 SG'!$D$9:$AW$500,10,FALSE)="","NG",IFERROR(VALUE(VLOOKUP(TEXT($A$3,"0000"),'2012 SG'!$D$9:$AW$500,10,FALSE)),"")) -> 66 | P33: =IF(VLOOKUP(TEXT($A$3,"0000"),'2012 SG'!$D$9:$AW$500,12,FALSE)="","NA",IFERROR(VLOOKUP(TEXT($A$3,"0000"),'2012 SG'!$D$9:$AW$500,12,FALSE),"")) -> NA | S33: =IF(VLOOKUP(TEXT($A$3,"0000"),'2012 SG'!$D$9:$AW$500,13,FALSE)="","NA",IFERROR(VLOOKUP(TEXT($A$3,"0000"),'2012 SG'!$D$9:$AW$500,13,FALSE),"")) -> NA | T33: =IF(VLOOKUP(TEXT($A$3,"0000"),'2012 SG'!$D$9:$AW$500,18,FALSE)="","NA",IFERROR(VLOOKUP(TEXT($A$3,"0000"),'2012 SG'!$D$9:$AW$500,18,FALSE),"")) -> NA | U33: =IF(VLOOKUP(TEXT($A$3,"0000"),'2012 SG'!$D$9:$AW$500,24,FALSE)="","NA",IFERROR(VLOOKUP(TEXT($A$3,"0000"),'2012 SG'!$D$9:$AW$500,24,FALSE),"")) -> 99
A34: 2011 | B34: =IF(VLOOKUP(TEXT($A$3,"0000"),'2011 SG'!$A$3:$AN$500,20,FALSE)="pending","Pending",VLOOKUP(TEXT($A$3,"0000"),'2011 SG'!$A$3:$AN$500,20,FALSE)) -> B | C34: NA | D34: =IF(VLOOKUP(TEXT($A$3,"0000"),'2011 SG'!$A$3:$AN$500,12,FALSE)="","NG",IFERROR(VLOOKUP(TEXT($A$3,"0000"),'2011 SG'!$A$3:$AN$500,12,FALSE),"")) -> 519 | E34: =IF(VLOOKUP(TEXT($A$3,"0000"),'2011 SG'!$A$3:$AN$500,3,FALSE)="","NG",IFERROR(VLOOKUP(TEXT($A$3,"0000"),'2011 SG'!$A$3:$AN$500,3,FALSE),"")) -> 64 | F34: =IF(VLOOKUP(TEXT($A$3,"0000"),'2011 SG'!$A$3:$AN$500,4,FALSE)="","NG",IFERROR(VLOOKUP(TEXT($A$3,"0000"),'2011 SG'!$A$3:$AN$500,4,FALSE),"")) -> 71 | G34: =IF(VLOOKUP(TEXT($A$3,"0000"),'2011 SG'!$A$3:$AN$500,5,FALSE)="","NG",IFERROR(VLOOKUP(TEXT($A$3,"0000"),'2011 SG'!$A$3:$AN$500,5,FALSE),"")) -> 83 | I34: =IF(VLOOKUP(TEXT($A$3,"0000"),'2011 SG'!$A$3:$AN$500,6,FALSE)="","NG",IFERROR(VLOOKUP(TEXT($A$3,"0000"),'2011 SG'!$A$3:$AN$500,6,FALSE),"")) -> 47 | J34: =IF(VLOOKUP(TEXT($A$3,"0000"),'2011 SG'!$A$3:$AN$500,7,FALSE)="","NG",IFERROR(VLOOKUP(TEXT($A$3,"0000"),'2011 SG'!$A$3:$AN$500,7,FALSE),"")) -> 61 | L34: =IF(VLOOKUP(TEXT($A$3,"0000"),'2011 SG'!$A$3:$AN$500,8,FALSE)="","NG",IFERROR(VLOOKUP(TEXT($A$3,"0000"),'2011 SG'!$A$3:$AN$500,8,FALSE),"")) -> 67 | M34: =IF(VLOOKUP(TEXT($A$3,"0000"),'2011 SG'!$A$3:$AN$500,9,FALSE)="","NG",IFERROR(VLOOKUP(TEXT($A$3,"0000"),'2011 SG'!$A$3:$AN$500,9,FALSE),"")) -> 60 | O34: =IF(VLOOKUP(TEXT($A$3,"0000"),'2011 SG'!$A$3:$AN$500,10,FALSE)="","NG",IFERROR(VLOOKUP(TEXT($A$3,"0000"),'2011 SG'!$A$3:$AN$500,10,FALSE),"")) -> 66 | P34: NA | S34: NA | T34: =IF(VLOOKUP(TEXT($A$3,"0000"),'2011 SG'!$A$3:$AN$500,11,FALSE)="","NG",IFERROR(VLOOKUP(TEXT($A$3,"0000"),'2011 SG'!$A$3:$AN$500,11,FALSE),"")) -> NG | U34: =IF(VLOOKUP(TEXT($A$3,"0000"),'2011 SG'!$A$3:$AN$500,13,FALSE)="","NG",IFERROR(VLOOKUP(TEXT($A$3,"0000"),'2011 SG'!$A$3:$AN$500,13,FALSE),"")) -> 99 | V34: =IFERROR(VLOOKUP(TEXT($A$3,"0000"),HSGrade2011!$D$4:$BQ$54,31,FALSE),"NA") -> NA | X34: =IFERROR(VLOOKUP(TEXT($A$3,"0000"),HSGrade2011!$D$4:$BQ$54,35,FALSE),"NA") -> NA | Z34: =IFERROR(VLOOKUP(TEXT($A$3,"0000"),HSGrade2011!$D$4:$BQ$54,23,FALSE),"NA") -> NA | AC34: =IFERROR(VLOOKUP(TEXT($A$3,"0000"),HSGrade2011!$D$4:$BQ$54,27,FALSE),"NA") -> NA | AE34: =IFERROR(VLOOKUP(TEXT($A$3,"0000"),HSGrade2011!$D$4:$BQ$54,39,FALSE),"NA") -> NA | AG34: =IFERROR(VLOOKUP(TEXT($A$3,"0000"),HSGrade2011!$D$4:$BQ$54,43,FALSE),"NA") -> NA | AI34: =IFERROR(VLOOKUP(TEXT($A$3,"0000"),HSGrade2011!$D$4:$BQ$54,44,FALSE),"NA") -> NA | AJ34: =IFERROR(VLOOKUP(TEXT($A$3,"0000"),HSGrade2011!$D$4:$BQ$54,12,FALSE),"NA") -> NA | AK34: =IFERROR(VLOOKUP(TEXT($A$3,"0000"),HSGrade2011!$D$4:$BQ$54,46,FALSE),"NA") -> NA
A35: 2010 | B35: =IF(VLOOKUP($A$3,'2010 SG'!$A$3:$AL$500,3,FALSE)="pending","Pending",VLOOKUP($A$3,'2010 SG'!$A$3:$AL$500,3,FALSE)) -> B | C35: NA | D35: =IFERROR(VLOOKUP($A$3,'2010 SG'!$A$3:$AI$500,23,FALSE),"") -> 521 | E35: =IFERROR(VLOOKUP($A$3,'2010 SG'!$A$3:$AI$500,14,FALSE),"") -> 64 | F35: =IFERROR(VLOOKUP($A$3,'2010 SG'!$A$3:$AI$500,15,FALSE),"") -> 71 | G35: =IFERROR(VLOOKUP($A$3,'2010 SG'!$A$3:$AI$500,16,FALSE),"") -> 88 | I35: =IFERROR(VLOOKUP($A$3,'2010 SG'!$A$3:$AI$500,17,FALSE),"") -> 41 | J35: =IFERROR(VLOOKUP($A$3,'2010 SG'!$A$3:$AI$500,18,FALSE),"") -> 63 | L35: =IFERROR(VLOOKUP($A$3,'2010 SG'!$A$3:$AI$500,19,FALSE),"") -> 69 | M35: =IFERROR(VLOOKUP($A$3,'2010 SG'!$A$3:$AI$500,20,FALSE),"") -> 58 | O35: =IFERROR(VLOOKUP($A$3,'2010 SG'!$A$3:$AI$500,21,FALSE),"") -> 67 | P35: NA | S35: NA | T35: =IFERROR(VLOOKUP($A$3,'2010 SG'!$A$3:$AI$500,22,FALSE),"") -> NA | U35: =IFERROR(VLOOKUP($A$3,'2010 SG'!$A$3:$AI$500,24,FALSE),"") -> 99 | V35: =IFERROR(VLOOKUP(TEXT($A$3,"0000"),HSGrade,31,FALSE),"NA") -> NA | X35: =IFERROR(VLOOKUP(TEXT($A$3,"0000"),HSGrade,35,FALSE),"NA") -> NA | Z35: =IFERROR(VLOOKUP(TEXT($A$3,"0000"),HSGrade,23,FALSE),"NA") -> NA | AC35: =IFERROR(VLOOKUP(TEXT($A$3,"0000"),HSGrade,27,FALSE),"NA") -> NA | AE35: =IFERROR(VLOOKUP(TEXT($A$3,"0000"),HSGrade,39,FALSE),"NA") -> NA | AG35: =IFERROR(VLOOKUP(TEXT($A$3,"0000"),HSGrade,43,FALSE),"NA") -> NA | AI35: =IFERROR(VLOOKUP(TEXT($A$3,"0000"),HSGrade,44,FALSE),"NA") -> NA | AJ35: =IFERROR(VLOOKUP(TEXT($A$3,"0000"),HSGrade,12,FALSE),"NA") -> NA | AK35: =IFERROR(VLOOKUP(TEXT($A$3,"0000"),HSGrade,46,FALSE),"NA") -> NA
A36: School Grading Scale | V36: *Weighted Possible Points for Acceleration Courses | Z36: Year | AB36: Participation | AF36: Performance | AJ36: Total
A37: School Type | C37: Year | E37: Total Points | G37: A | K37: B | N37: C | Q37: D | T37: F | Z37: 2012 | AB37: 150 | AF37: 150 | AJ37: 300
A38: High Schools | C38: 2010-2012 | E38: 1600 | G38: 1050-1600 | K38: 990 - 1049 | N38: 870 - 989 | Q38: 790 - 869 | T38: 0 - 789 | Z38: 2011 | AB38: 175 | AF38: 125 | AJ38: 300
A39: K-12 and 6-12 | C39: 2012 | E39: 1700 | G39: 1115 - 1700 | K39: 1050 - 1114 | N39: 925 - 1049 | Q39: 840 - 924 | T39: 0 - 839 | Z39: 2010 | AB39: 200 | AF39: 100 | AJ39: 300
F41: Sum Points Earned | G41: =SUM(E33,F33,G33,I33,J33,L33,M33,O33,P33,S33,T33) -> 512
F42: Middle School Acceleration Qualification | G42: =IFERROR(VLOOKUP(TEXT($A$3,"0000"),'2012 SG'!$D$9:$AW$500,11,FALSE),"") -> NA

Sheet M-2012 (hidden)
A1: 2012 FLORIDA COMPREHENSIVE ASSESSMENT TEST® 2.0 (FCAT 2.0) | O1: 2012 FLORIDA COMPREHENSIVE ASSESSMENT TEST® 2.0 (FCAT 2.0) | AC1: 2012 FLORIDA COMPREHENSIVE ASSESSMENT TEST® 2.0 (FCAT 2.0) | AQ1: 2012 FLORIDA COMPREHENSIVE ASSESSMENT TEST® 2.0 (FCAT 2.0) | BE1: 2012 FLORIDA COMPREHENSIVE ASSESSMENT TEST® 2.0 (FCAT 2.0) | BT1: 2012 FLORIDA COMPREHENSIVE ASSESSMENT TEST® 2.0 (FCAT 2.0) | CH1: SPRING 2012 ALGEBRA 1 END-OF-COURSE ASSESSMENT
B2: Grade 03-MATHEMATICS | C2: 3 | D2: 4 | E2: 5 | F2: 6 | G2: 7 | H2: 8 | I2: 9 | J2: 10 | K2: 11 | L2: 12 | M2: 13 | P2: Grade 04-Math | Q2: 3 | R2: 4 | S2: 5 | T2: 6 | U2: 7 | V2: 8 | W2: 9 | X2: 10 | Y2: 11 | Z2: 12 | AA2: 13 | AC2: Grade 05-Math | AE2: 3 | AF2: 4 | AG2: 5 | AH2: 6 | AI2: 7 | AJ2: 8 | AK2: 9 | AL2: 10 | AM2: 11 | AN2: 12 | AO2: 13 | AQ2: Grade 06-Math | AS2: 3 | AT2: 4 | AU2: 5 | AV2: 6 | AW2: 7 | AX2: 8 | AY2: 9 | AZ2: 10 | BA2: 11 | BB2: 12 | BC2: 13 | BE2: Grade 07-Math | BG2: 3 | BH2: 4 | BI2: 5 | BJ2: 6 | BK2: 7 | BL2: 8 | BM2: 9 | BN2: 10 | BO2: 11 | BP2: 12 | BQ2: 13 | BR2: 14 | BT2: Grade 08-Math | BV2: 3 | BW2: 4 | BX2: 5 | BY2: 6 | BZ2: 7 | CA2: 8 | CB2: 9 | CC2: 10 | CD2: 11 | CE2: 12 | CF2: 13 | CH2: 1 | CI2: 2 | CJ2: 3 | CK2: 4 | CL2: 5 | CM2: 6 | CN2: 7 | CO2: 8 | CP2: 9 | CQ2: 10
C3: Total Test Scores | K3: Mean Points Earned | Q3: Total Test Scores | Y3: Mean Points Earned | AE3: Total Test Scores | AM3: Mean Points Earned | AS3: Total Test Scores | BA3: Mean Points Earned | BG3: Total Test Scores | BO3: Mean Points Earned By Content Area | BV3: Total Test Scores | CD3: Mean Points Earned
E4: % in each Achievement Level | K4: By Content Area | S4: % in each Achievement Level | Y4: By Content Area | AG4: % in each Achievement Level | AM4: By Content Area | AU4: % in each Achievement Level | BA4: By Content Area | BI4: % in each Achievement Level | BX4: % in each Achievement Level | CD4: By Content Area | CM4: Percentage in Each Achievement Level*
A5: School Number | B5: School Name | C5: Number of Students | D5: Mean Developmental Scale Score | E5: 1 | F5: 2 | G5: 3 | H5: 4 | I5: 5 | J5: Percentage in Achievement Levels 3 and Above | K5: Number: Operations, Problems, and Statistics | L5: Number: Fractions | M5: Geometry and Measurement | O5: School Number | P5: School Name | Q5: Number of Students | R5: Mean Developmental Scale Score | S5: 1 | T5: 2 | U5: 3 | V5: 4 | W5: 5 | X5: Percentage in Achievement Levels 3 and Above | Y5: Number: Operations and Problems | Z5: Number: Base Ten and Fractions | AA5: Geometry and Measurement | AC5: School Number | AD5: School Name | AE5: Number of Students | AF5: Mean Developmental Scale Score | AG5: 1 | AH5: 2 | AI5: 3 | AJ5: 4 | AK5: 5 | AL5: Percentage in Achievement Levels 3 and Above | AM5: Number: Base Ten and Fractions | AN5: Expressions, Equations, and Statistics | AO5: Geometry and Measurement | AQ5: School Number | AR5: School Name | AS5: Number of Students | AT5: Mean Developmental Scale Score | AU5: 1 | AV5: 2 | AW5: 3 | AX5: 4 | AY5: 5 | AZ5: Percentage in Achievement Levels 3 and Above | BA5: Fractions, Ratios, Proportional Relationships, and Statistics | BB5: Expressions and Equations | BC5: Geometry and Measurement | BE5: School Number | BF5: School Name | BG5: Number of Students | BH5: Mean Developmental Scale Score | BI5: 1 | BJ5: 2 | BK5: 3 | BL5: 4 | BM5: 5 | BN5: Percentage in Achievement Levels 3 and Above | BO5: Number: Base Ten | BP5: Ratios and Proportional Relationships | BQ5: Geometry and Measurement | BR5: Statistics and Probability | BT5: School Number | BU5: School Name | BV5: Number of Students | BW5: Mean Developmental Scale Score | BX5: 1 | BY5: 2 | BZ5: 3 | CA5: 4 | CB5: 5 | CC5: Percentage in Achievement Levels 3 and Above | CD5: Number: Operations, Problems, and Statistics | CE5: Expressions, Equations, and Functions | CF5: Geometry and Measurement | CH5: School Location | CI5: School Name | CJ5: Number of Students (First-Time Testers) | CK5: Mean Scale Score | CL5: Percentage Passing (Level 3 or Above) | CM5: 1 | CN5: 2 | CO5: 3 | CP5: 4 | CQ5: 5
B6: Number of Points Possible | K6: 21 | L6: 10 | M6: 13 | P6: Number of Points Possible | Y6: 18 | Z6: 10 | AA6: 12 | AD6: Number of Points Possible | AM6: 22 | AN6: 10 | AO6: 14 | AR6: Number of Points Possible | BA6: 18 | BB6: 17 | BC6: 9 | BE6: Number of Points Possible | BO6: 11 | BP6: 12 | BQ6: 13 | BR6: 8 | BT6: Number of Points Possible | CD6: 12 | CE6: 19 | CF6: 17 | CI6: All Tested Grades
A7: 0 | B7: STATE | C7: 203207 | D7: 202 | E7: 18 | F7: 24 | G7: 30 | H7: 18 | I7: 10 | J7: 58 | K7: 15 | L7: 6 | M7: 10 | O7: 0 | P7: STATE | Q7: 193802 | R7: 215 | S7: 18 | T7: 22 | U7: 27 | V7: 20 | W7: 12 | X7: 60 | Y7: 13 | Z7: 7 | AA7: 8 | AC7: 0 | AD7: STATE | AE7: 199844 | AF7: 222 | AG7: 19 | AH7: 24 | AI7: 27 | AJ7: 18 | AK7: 11 | AL7: 57 | AM7: 13 | AN7: 6 | AO7: 8 | AQ7: 0 | AR7: STATE | AS7: 199076 | AT7: 227 | AU7: 23 | AV7: 25 | AW7: 25 | AX7: 18 | AY7: 10 | AZ7: 53 | BA7: 9 | BB7: 10 | BC7: 4 | BE7: 0 | BF7: STATE | BG7: 198277 | BH7: 236 | BI7: 20 | BJ7: 24 | BK7: 27 | BL7: 18 | BM7: 10 | BN7: 56 | BO7: 6 | BP7: 7 | BQ7: 7 | BR7: 5 | BT7: 0 | BU7: STATE | BV7: 194346 | BW7: 243 | BX7: 22 | BY7: 21 | BZ7: 30 | CA7: 16 | CB7: 11 | CC7: 57 | CD7: 7 | CE7: 11 | CF7: 9 | CH7: 0 | CI7: State | CJ7: 193262 | CK7: 402 | CL7: 59 | CM7: 15 | CN7: 26 | CO7: 37 | CP7: 11 | CQ7: 10
A8: 9999 | B8: MIAMI DADE | C8: 27189 | D8: 202 | E8: 17 | F8: 23 | G8: 30 | H8: 19 | I8: 10 | J8: 60 | K8: 15 | L8: 6 | M8: 10 | O8: 9999 | P8: MIAMI DADE | Q8: 25368 | R8: 216 | S8: 18 | T8: 20 | U8: 28 | V8: 21 | W8: 13 | X8: 62 | Y8: 13 | Z8: 8 | AA8: 8 | AC8: 9999 | AD8: MIAMI DADE | AE8: 26131 | AF8: 223 | AG8: 18 | AH8: 24 | AI8: 28 | AJ8: 19 | AK8: 11 | AL8: 58 | AM8: 13 | AN8: 6 | AO8: 8 | AQ8: 9999 | AR8: MIAMI DADE | AS8: 26676 | AT8: 225 | AU8: 26 | AV8: 25 | AW8: 24 | AX8: 17 | AY8: 9 | AZ8: 50 | BA8: 9 | BB8: 10 | BC8: 4 | BE8: 9999 | BF8: MIAMI DADE | BG8: 26961 | BH8: 233 | BI8: 24 | BJ8: 24 | BK8: 27 | BL8: 17 | BM8: 8 | BN8: 52 | BO8: 6 | BP8: 7 | BQ8: 7 | BR8: 5 | BT8: 9999 | BU8: MIAMI DADE | BV8: 26636 | BW8: 242 | BX8: 23 | BY8: 22 | BZ8: 31 | CA8: 16 | CB8: 9 | CC8: 56 | CD8: 7 | CE8: 11 | CF8: 9 | CH8: 9999 | CI8: District | CJ8: 26038 | CK8: 400 | CL8: 56 | CM8: 18 | CN8: 26 | CO8: 36 | CP8: 12 | CQ8: 9
A9: 41 | B9: AIR BASE ELEMENTARY SCHOOL | C9: 116 | D9: 207 | E9: 4 | F9: 17 | G9: 50 | H9: 22 | I9: 7 | J9: 78 | K9: 16 | L9: 7 | M9: 11 | O9: 41 | P9: AIR BASE ELEMENTARY SCHOOL | Q9: 126 | R9: 219 | S9: 10 | T9: 24 | U9: 33 | V9: 23 | W9: 11 | X9: 67 | Y9: 14 | Z9: 8 | AA9: 9 | AC9: 41 | AD9: AIR BASE ELEMENTARY SCHOOL | AE9: 94 | AF9: 226 | AG9: 7 | AH9: 24 | AI9: 40 | AJ9: 15 | AK9: 13 | AL9: 68 | AM9: 14 | AN9: 7 | AO9: 8 | AQ9: 70 | AR9: CORAL REEF MONTESSORI ACADEMY CHART | AS9: 36 | AT9: 234 | AU9: 6 | AV9: 28 | AW9: 39 | AX9: 11 | AY9: 17 | AZ9: 67 | BA9: 10 | BB9: 12 | BC9: 5 | BE9: 70 | BF9: CORAL REEF MONTESSORI ACADEMY CHART | BG9: 34 | BH9: 246 | BI9: 3 | BJ9: 9 | BK9: 44 | BL9: 32 | BM9: 12 | BN9: 88 | BO9: 7 | BP9: 9 | BQ9: 9 | BR9: 6 | BT9: 70 | BU9: CORAL REEF MONTESSORI ACADEMY CHART | BV9: 21 | BW9: 249 | BX9: 5 | BY9: 14 | BZ9: 57 | CA9: 5 | CB9: 19 | CC9: 81 | CD9: 9 | CE9: 12 | CF9: 9 | CH9: 70 | CI9: CORAL REEF MONTESSORI ACADEMY CHART | CJ9: 11 | CK9: 420 | CL9: 100 | CM9: 0 | CN9: 0 | CO9: 73 | CP9: 0 | CQ9: 27
A10: 70 | B10: CORAL REEF MONTESSORI ACADEMY CHART | C10: 51 | D10: 201 | E10: 10 | F10: 39 | G10: 29 | H10: 14 | I10: 8 | J10: 51 | K10: 15 | L10: 7 | M10: 9 | O10: 70 | P10: CORAL REEF MONTESSORI ACADEMY CHART | Q10: 43 | R10: 208 | S10: 19 | T10: 33 | U10: 40 | V10: 9 | W10: 0 | X10: 49 | Y10: 12 | Z10: 7 | AA10: 7 | AC10: 70 | AD10: CORAL REEF MONTESSORI ACADEMY CHART | AE10: 36 | AF10: 227 | AG10: 8 | AH10: 25 | AI10: 33 | AJ10: 19 | AK10: 14 | AL10: 67 | AM10: 14 | AN10: 7 | AO10: 9 | AQ10: 71 | AR10: EUGENIA B. THOMAS K-8 CENTER | AS10: 154 | AT10: 229 | AU10: 21 | AV10: 22 | AW10: 28 | AX10: 23 | AY10: 6 | AZ10: 57 | BA10: 10 | BB10: 11 | BC10: 4 | BE10: 71 | BF10: EUGENIA B. THOMAS K-8 CENTER | BG10: 185 | BH10: 240 | BI10: 14 | BJ10: 22 | BK10: 24 | BL10: 29 | BM10: 12 | BN10: 65 | BO10: 7 | BP10: 8 | BQ10: 8 | BR10: 5 | BT10: 71 | BU10: EUGENIA B. THOMAS K-8 CENTER | BV10: 172 | BW10: 248 | BX10: 14 | BY10: 17 | BZ10: 30 | CA10: 24 | CB10: 14 | CC10: 69 | CD10: 8 | CE10: 12 | CF10: 10 | CH10: 71 | CI10: EUGENIA B. THOMAS K-8 CENTER | CJ10: 63 | CK10: 422 | CL10: 98 | CM10: 2 | CN10: 0 | CO10: 49 | CP10: 38 | CQ10: 11
A11: 71 | B11: EUGENIA B. THOMAS K-8 CENTER | C11: 196 | D11: 202 | E11: 13 | F11: 26 | G11: 38 | H11: 18 | I11: 5 | J11: 61 | K11: 15 | L11: 7 | M11: 10 | O11: 71 | P11: EUGENIA B. THOMAS K-8 CENTER | Q11: 164 | R11: 226 | S11: 4 | T11: 17 | U11: 25 | V11: 32 | W11: 22 | X11: 79 | Y11: 14 | Z11: 9 | AA11: 10 | AC11: 71 | AD11: EUGENIA B. THOMAS K-8 CENTER | AE11: 174 | AF11: 225 | AG11: 16 | AH11: 20 | AI11: 31 | AJ11: 18 | AK11: 15 | AL11: 64 | AM11: 14 | AN11: 7 | AO11: 8 | AQ11: 72 | AR11: SUMMERVILLE ADVANTAGE ACADEMY | AS11: 59 | AT11: 223 | AU11: 29 | AV11: 27 | AW11: 25 | AX11: 14 | AY11: 5 | AZ11: 44 | BA11: 8 | BB11: 10 | BC11: 4 | BE11: 72 | BF11: SUMMERVILLE ADVANTAGE ACADEMY | BG11: 49 | BH11: 234 | BI11: 22 | BJ11: 18 | BK11: 39 | BL11: 14 | BM11: 6 | BN11: 59 | BO11: 6 | BP11: 7 | BQ11: 7 | BR11: 5 | BT11: 72 | BU11: SUMMERVILLE ADVANTAGE ACADEMY | BV11: 48 | BW11: 244 | BX11: 17 | BY11: 23 | BZ11: 42 | CA11: 13 | CB11: 6 | CC11: 60 | CD11: 7 | CE11: 11 | CF11: 9 | CH11: 73 | CI11: MANDARIN LAKES K-8 ACADEMY | CJ11: 20 | CK11: 414 | CL11: 95 | CM11: 0 | CN11: 5 | CO11: 75 | CP11: 15 | CQ11: 5
A12: 72 | B12: SUMMERVILLE ADVANTAGE ACADEMY | C12: 76 | D12: 198 | E12: 16 | F12: 34 | G12: 30 | H12: 16 | I12: 4 | J12: 50 | K12: 14 | L12: 6 | M12: 10 | O12: 72 | P12: SUMMERVILLE ADVANTAGE ACADEMY | Q12: 90 | R12: 210 | S12: 27 | T12: 22 | U12: 24 | V12: 19 | W12: 8 | X12: 51 | Y12: 12 | Z12: 7 | AA12: 8 | AC12: 72 | AD12: SUMMERVILLE ADVANTAGE ACADEMY | AE12: 24 | AF12: 211 | AG12: 25 | AH12: 54 | AI12: 17 | AJ12: 0 | AK12: 4 | AL12: 21 | AM12: 9 | AN12: 5 | AO12: 7 | AQ12: 73 | AR12: MANDARIN LAKES K-8 ACADEMY | AS12: 102 | AT12: 209 | AU12: 51 | AV12: 25 | AW12: 19 | AX12: 4 | AY12: 1 | AZ12: 24 | BA12: 6 | BB12: 7 | BC12: 3 | BE12: 73 | BF12: MANDARIN LAKES K-8 ACADEMY | BG12: 141 | BH12: 224 | BI12: 35 | BJ12: 37 | BK12: 18 | BL12: 7 | BM12: 3 | BN12: 28 | BO12: 5 | BP12: 5 | BQ12: 5 | BR12: 4 | BT12: 73 | BU12: MANDARIN LAKES K-8 ACADEMY | BV12: 99 | BW12: 235 | BX12: 37 | BY12: 23 | BZ12: 25 | CA12: 10 | CB12: 4 | CC12: 39 | CD12: 6 | CE12: 9 | CF12: 8 | CH12: 91 | CI12: BOB GRAHAM EDUCATION CENTER | CJ12: 20 | CK12: 434 | CL12: 100 | CM12: 0 | CN12: 0 | CO12: 25 | CP12: 40 | CQ12: 35
A13: 73 | B13: MANDARIN LAKES K-8 ACADEMY | C13: 191 | D13: 193 | E13: 27 | F13: 30 | G13: 28 | H13: 13 | I13: 2 | J13: 43 | K13: 12 | L13: 6 | M13: 9 | O13: 73 | P13: MANDARIN LAKES K-8 ACADEMY | Q13: 147 | R13: 213 | S13: 17 | T13: 22 | U13: 35 | V13: 17 | W13: 8 | X13: 61 | Y13: 12 | Z13: 8 | AA13: 8 | AC13: 73 | AD13: MANDARIN LAKES K-8 ACADEMY | AE13: 176 | AF13: 211 | AG13: 33 | AH13: 38 | AI13: 13 | AJ13: 10 | AK13: 6 | AL13: 29 | AM13: 10 | AN13: 5 | AO13: 7 | AQ13: 91 | AR13: BOB GRAHAM EDUCATION CENTER | AS13: 237 | AT13: 235 | AU13: 11 | AV13: 22 | AW13: 22 | AX13: 29 | AY13: 16 | AZ13: 67 | BA13: 11 | BB13: 12 | BC13: 5 | BE13: 91 | BF13: BOB GRAHAM EDUCATION CENTER | BG13: 240 | BH13: 243 | BI13: 10 | BJ13: 19 | BK13: 29 | BL13: 28 | BM13: 14 | BN13: 71 | BO13: 7 | BP13: 8 | BQ13: 8 | BR13: 5 | BT13: 91 | BU13: BOB GRAHAM EDUCATION CENTER | BV13: 232 | BW13: 253 | BX13: 7 | BY13: 14 | BZ13: 32 | CA13: 28 | CB13: 19 | CC13: 78 | CD13: 9 | CE13: 13 | CF13: 11 | CH13: 92 | CI13: NORMAN S. EDELCUP/SUNNY ISLES BEACH | CJ13: 24 | CK13: * | CL13: * | CM13: * | CN13: * | CO13: * | CP13: * | CQ13: *
A14: 81 | B14: LENORA BRAYNON SMITH ELEMENTARY | C14: 75 | D14: 187 | E14: 39 | F14: 29 | G14: 27 | H14: 5 | I14: 0 | J14: 32 | K14: 12 | L14: 5 | M14: 7 | O14: 81 | P14: LENORA BRAYNON SMITH ELEMENTARY | Q14: 62 | R14: 195 | S14: 50 | T14: 23 | U14: 23 | V14: 3 | W14: 2 | X14: 27 | Y14: 10 | Z14: 5 | AA14: 6 | AC14: 81 | AD14: LENORA BRAYNON SMITH ELEMENTARY | AE14: 71 | AF14: 205 | AG14: 42 | AH14: 38 | AI14: 14 | AJ14: 4 | AK14: 1 | AL14: 20 | AM14: 9 | AN14: 4 | AO14: 6 | AQ14: 92 | AR14: NORMAN S. EDELCUP/SUNNY ISLES BEACH | AS14: 189 | AT14: 242 | AU14: 5 | AV14: 11 | AW14: 31 | AX14: 27 | AY14: 27 | AZ14: 85 | BA14: 13 | BB14: 13 | BC14: 6 | BE14: 92 | BF14: NORMAN S. EDELCUP/SUNNY ISLES BEACH | BG14: 208 | BH14: 246 | BI14: 13 | BJ14: 13 | BK14: 20 | BL14: 28 | BM14: 25 | BN14: 73 | BO14: 7 | BP14: 8 | BQ14: 9 | BR14: 6 | BT14: 92 | BU14: NORMAN S. EDELCUP/SUNNY ISLES BEACH | BV14: 193 | BW14: 255 | BX14: 10 | BY14: 13 | BZ14: 25 | CA14: 23 | CB14: 28 | CC14: 77 | CD14: 9 | CE14: 13 | CF14: 11 | CH14: 122 | CI14: DR. ROLANDO ESPINOSA K-8 CENTER | CJ14: 25 | CK14: 445 | CL14: 100 | CM14: 0 | CN14: 0 | CO14: 4 | CP14: 28 | CQ14: 68
A15: 91 | B15: BOB GRAHAM EDUCATION CENTER | C15: 212 | D15: 208 | E15: 10 | F15: 20 | G15: 31 | H15: 26 | I15: 13 | J15: 70 | K15: 16 | L15: 7 | M15: 10 | O15: 91 | P15: BOB GRAHAM EDUCATION CENTER | Q15: 205 | R15: 221 | S15: 12 | T15: 18 | U15: 27 | V15: 28 | W15: 16 | X15: 71 | Y15: 14 | Z15: 8 | AA15: 9 | AC15: 91 | AD15: BOB GRAHAM EDUCATION CENTER | AE15: 224 | AF15: 220 | AG15: 23 | AH15: 25 | AI15: 23 | AJ15: 20 | AK15: 9 | AL15: 51 | AM15: 13 | AN15: 6 | AO15: 8 | AQ15: 113 | AR15: BALERE LANGUAGE ACADEMY | AS15: 2 | AT15: * | AU15: * | AV15: * | AW15: * | AX15: * | AY15: * | AZ15: * | BA15: * | BB15: * | BC15: * | BE15: 122 | BF15: DR. ROLANDO ESPINOSA K-8 CENTER | BG15: 188 | BH15: 235 | BI15: 22 | BJ15: 29 | BK15: 23 | BL15: 12 | BM15: 14 | BN15: 49 | BO15: 6 | BP15: 7 | BQ15: 7 | BR15: 4 | BT15: 122 | BU15: DR. ROLANDO ESPINOSA K-8 CENTER | BV15: 174 | BW15: 249 | BX15: 13 | BY15: 17 | BZ15: 34 | CA15: 22 | CB15: 14 | CC15: 70 | CD15: 8 | CE15: 12 | CF15: 10 | CH15: 231 | CI15: AVENTURA WATERWAYS K-8 CENTER | CJ15: 59 | CK15: 426 | CL15: 92 | CM15: 0 | CN15: 8 | CO15: 41 | CP15: 31 | CQ15: 20
A16: 92 | B16: NORMAN S. EDELCUP/SUNNY ISLES BEACH | C16: 212 | D16: 214 | E16: 6 | F16: 13 | G16: 31 | H16: 27 | I16: 23 | J16: 81 | K16: 17 | L16: 8 | M16: 11 | O16: 92 | P16: NORMAN S. EDELCUP/SUNNY ISLES BEACH | Q16: 174 | R16: 222 | S16: 8 | T16: 20 | U16: 32 | V16: 22 | W16: 18 | X16: 72 | Y16: 14 | Z16: 8 | AA16: 9 | AC16: 92 | AD16: NORMAN S. EDELCUP/SUNNY ISLES BEACH | AE16: 173 | AF16: 234 | AG16: 3 | AH16: 16 | AI16: 33 | AJ16: 30 | AK16: 18 | AL16: 81 | AM16: 16 | AN16: 7 | AO16: 10 | AQ16: 122 | AR16: DR. ROLANDO ESPINOSA K-8 CENTER | AS16: 200 | AT16: 229 | AU16: 19 | AV16: 27 | AW16: 28 | AX16: 17 | AY16: 11 | AZ16: 55 | BA16: 10 | BB16: 11 | BC16: 4 | BE16: 231 | BF16: AVENTURA WATERWAYS K-8 CENTER | BG16: 220 | BH16: 243 | BI16: 10 | BJ16: 20 | BK16: 29 | BL16: 25 | BM16: 16 | BN16: 70 | BO16: 7 | BP16: 8 | BQ16: 8 | BR16: 5 | BT16: 231 | BU16: AVENTURA WATERWAYS K-8 CENTER | BV16: 178 | BW16: 249 | BX16: 11 | BY16: 18 | BZ16: 33 | CA16: 26 | CB16: 12 | CC16: 71 | CD16: 8 | CE16: 12 | CF16: 10 | CH16: 241 | CI16: RUTH K. BROAD BAY HARBOR K-8 CENTER | CJ16: 43 | CK16: 436 | CL16: 100 | CM16: 0 | CN16: 0 | CO16: 19 | CP16: 37 | CQ16: 44
A17: 100 | B17: MATER ACADEMY | C17: 130 | D17: 207 | E17: 15 | F17: 15 | G17: 27 | H17: 25 | I17: 18 | J17: 70 | K17: 16 | L17: 7 | M17: 10 | O17: 100 | P17: MATER ACADEMY | Q17: 125 | R17: 221 | S17: 4 | T17: 18 | U17: 39 | V17: 22 | W17: 16 | X17: 78 | Y17: 14 | Z17: 9 | AA17: 9 | AC17: 100 | AD17: MATER ACADEMY | AE17: 121 | AF17: 228 | AG17: 4 | AH17: 25 | AI17: 37 | AJ17: 22 | AK17: 12 | AL17: 71 | AM17: 14 | AN17: 7 | AO17: 9 | AQ17: 231 | AR17: AVENTURA WATERWAYS K-8 CENTER | AS17: 196 | AT17: 229 | AU17: 13 | AV17: 26 | AW17: 34 | AX17: 21 | AY17: 6 | AZ17: 61 | BA17: 10 | BB17: 11 | BC17: 4 | BE17: 241 | BF17: RUTH K. BROAD BAY HARBOR K-8 CENTER | BG17: 124 | BH17: 245 | BI17: 9 | BJ17: 11 | BK17: 32 | BL17: 31 | BM17: 16 | BN17: 80 | BO17: 7 | BP17: 8 | BQ17: 9 | BR17: 6 | BT17: 241 | BU17: RUTH K. BROAD BAY HARBOR K-8 CENTER | BV17: 124 | BW17: 257 | BX17: 7 | BY17: 9 | BZ17: 27 | CA17: 30 | CB17: 27 | CC17: 84 | CD17: 9 | CE17: 14 | CF17: 11 | CH17: 332 | CI17: SOMERSET ACADEMY (SILVER PALMS) | CJ17: 29 | CK17: 430 | CL17: 100 | CM17: 0 | CN17: 0 | CO17: 28 | CP17: 38 | CQ17: 34
A18: 101 | B18: ARCOLA LAKE ELEMENTARY SCHOOL | C18: 68 | D18: 192 | E18: 24 | F18: 37 | G18: 21 | H18: 16 | I18: 3 | J18: 40 | K18: 13 | L18: 5 | M18: 8 | O18: 101 | P18: ARCOLA LAKE ELEMENTARY SCHOOL | Q18: 79 | R18: 205 | S18: 25 | T18: 35 | U18: 28 | V18: 9 | W18: 3 | X18: 39 | Y18: 11 | Z18: 7 | AA18: 7 | AC18: 101 | AD18: ARCOLA LAKE ELEMENTARY SCHOOL | AE18: 62 | AF18: 214 | AG18: 27 | AH18: 27 | AI18: 27 | AJ18: 13 | AK18: 5 | AL18: 45 | AM18: 11 | AN18: 5 | AO18: 7 | AQ18: 241 | AR18: RUTH K. BROAD BAY HARBOR K-8 CENTER | AS18: 114 | AT18: 238 | AU18: 7 | AV18: 18 | AW18: 27 | AX18: 33 | AY18: 15 | AZ18: 75 | BA18: 12 | BB18: 12 | BC18: 6 | BE18: 332 | BF18: SOMERSET ACADEMY (SILVER PALMS) | BG18: 137 | BH18: 233 | BI18: 16 | BJ18: 38 | BK18: 23 | BL18: 20 | BM18: 2 | BN18: 46 | BO18: 6 | BP18: 7 | BQ18: 6 | BR18: 4 | BT18: 332 | BU18: SOMERSET ACADEMY (SILVER PALMS) | BV18: 140 | BW18: 246 | BX18: 15 | BY18: 22 | BZ18: 34 | CA18: 22 | CB18: 7 | CC18: 63 | CD18: 7 | CE18: 12 | CF18: 9 | CH18: 451 | CI18: BOWMAN ASHE/DOOLIN K-8 ACADEMY | CJ18: 70 | CK18: 407 | CL18: 66 | CM18: 1 | CN18: 33 | CO18: 50 | CP18: 13 | CQ18: 3
A19: 102 | B19: MIAMI COMMUNITY CHARTER SCHOOL | C19: 67 | D19: 188 | E19: 40 | F19: 25 | G19: 18 | H19: 15 | I19: 1 | J19: 34 | K19: 11 | L19: 5 | M19: 8 | O19: 102 | P19: MIAMI COMMUNITY CHARTER SCHOOL | Q19: 67 | R19: 211 | S19: 25 | T19: 22 | U19: 25 | V19: 22 | W19: 4 | X19: 52 | Y19: 13 | Z19: 7 | AA19: 8 | AC19: 102 | AD19: MIAMI COMMUNITY CHARTER SCHOOL | AE19: 75 | AF19: 216 | AG19: 25 | AH19: 33 | AI19: 27 | AJ19: 9 | AK19: 5 | AL19: 41 | AM19: 11 | AN19: 5 | AO19: 7 | AQ19: 332 | AR19: SOMERSET ACADEMY (SILVER PALMS) | AS19: 142 | AT19: 228 | AU19: 20 | AV19: 26 | AW19: 28 | AX19: 15 | AY19: 11 | AZ19: 54 | BA19: 10 | BB19: 11 | BC19: 4 | BE19: 451 | BF19: BOWMAN ASHE/DOOLIN K-8 ACADEMY | BG19: 224 | BH19: 229 | BI19: 27 | BJ19: 26 | BK19: 30 | BL19: 13 | BM19: 4 | BN19: 46 | BO19: 5 | BP19: 6 | BQ19: 6 | BR19: 4 | BT19: 451 | BU19: BOWMAN ASHE/DOOLIN K-8 ACADEMY | BV19: 275 | BW19: 233 | BX19: 35 | BY19: 30 | BZ19: 25 | CA19: 8 | CB19: 1 | CC19: 35 | CD19: 6 | CE19: 9 | CF19: 7 | CH19: 761 | CI19: FIENBERG/FISHER K-8 CENTER | CJ19: 20 | CK19: 426 | CL19: 100 | CM19: 0 | CN19: 0 | CO19: 45 | CP19: 35 | CQ19: 20
A20: 111 | B20: MAYA ANGELOU ELEMENTARY SCHOOL | C20: 87 | D20: 196 | E20: 29 | F20: 20 | G20: 31 | H20: 15 | I20: 6 | J20: 52 | K20: 14 | L20: 6 | M20: 9 | O20: 111 | P20: MAYA ANGELOU ELEMENTARY SCHOOL | Q20: 87 | R20: 214 | S20: 15 | T20: 13 | U20: 43 | V20: 25 | W20: 5 | X20: 72 | Y20: 13 | Z20: 8 | AA20: 8 | AC20: 111 | AD20: MAYA ANGELOU ELEMENTARY SCHOOL | AE20: 83 | AF20: 218 | AG20: 24 | AH20: 23 | AI20: 29 | AJ20: 16 | AK20: 8 | AL20: 53 | AM20: 12 | AN20: 6 | AO20: 8 | AQ20: 451 | AR20: BOWMAN ASHE/DOOLIN K-8 ACADEMY | AS20: 196 | AT20: 217 | AU20: 36 | AV20: 34 | AW20: 15 | AX20: 9 | AY20: 6 | AZ20: 30 | BA20: 7 | BB20: 9 | BC20: 3 | BE20: 761 | BF20: FIENBERG/FISHER K-8 CENTER | BG20: 89 | BH20: 236 | BI20: 21 | BJ20: 21 | BK20: 33 | BL20: 18 | BM20: 7 | BN20: 57 | BO20: 6 | BP20: 7 | BQ20: 7 | BR20: 5 | BT20: 761 | BU20: FIENBERG/FISHER K-8 CENTER | BV20: 87 | BW20: 241 | BX20: 21 | BY20: 28 | BZ20: 38 | CA20: 11 | CB20: 2 | CC20: 52 | CD20: 7 | CE20: 11 | CF20: 8 | CH20: 950 | CI20: AVENTURA CITY OF EXCELLENCE | CJ20: 36 | CK20: 448 | CL20: 100 | CM20: 0 | CN20: 0 | CO20: 3 | CP20: 22 | CQ20: 75
A21: 113 | B21: BALERE LANGUAGE ACADEMY | C21: 17 | D21: 183 | E21: 47 | F21: 29 | G21: 24 | H21: 0 | I21: 0 | J21: 24 | K21: 11 | L21: 5 | M21: 7 | O21: 113 | P21: BALERE LANGUAGE ACADEMY | Q21: 8 | R21: * | S21: * | T21: * | U21: * | V21: * | W21: * | X21: * | Y21: * | Z21: * | AA21: * | AC21: 113 | AD21: BALERE LANGUAGE ACADEMY | AE21: 8 | AF21: * | AG21: * | AH21: * | AI21: * | AJ21: * | AK21: * | AL21: * | AM21: * | AN21: * | AO21: * | AQ21: 651 | AR21: CAMPBELL DRIVE K-8 CENTER | AS21: 68 | AT21: 218 | AU21: 37 | AV21: 29 | AW21: 22 | AX21: 9 | AY21: 3 | AZ21: 34 | BA21: 7 | BB21: 9 | BC21: 3 | BE21: 950 | BF21: AVENTURA CITY OF EXCELLENCE | BG21: 107 | BH21: 252 | BI21: 0 | BJ21: 9 | BK21: 27 | BL21: 34 | BM21: 30 | BN21: 91 | BO21: 8 | BP21: 9 | BQ21: 10 | BR21: 6 | BT21: 950 | BU21: AVENTURA CITY OF EXCELLENCE | BV21: 94 | BW21: 263 | BX21: 1 | BY21: 6 | BZ21: 26 | CA21: 36 | CB21: 31 | CC21: 93 | CD21: 10 | CE21: 15 | CF21: 12 | CH21: 961 | CI21: CORAL GABLES PREPARATORY ACADEMY | CJ21: 15 | CK21: 430 | CL21: 100 | CM21: 0 | CN21: 0 | CO21: 27 | CP21: 47 | CQ21: 27
A22: 121 | B22: AUBURNDALE ELEMENTARY SCHOOL | C22: 128 | D22: 200 | E22: 17 | F22: 23 | G22: 34 | H22: 21 | I22: 5 | J22: 60 | K22: 14 | L22: 7 | M22: 10 | O22: 121 | P22: AUBURNDALE ELEMENTARY SCHOOL | Q22: 140 | R22: 215 | S22: 16 | T22: 21 | U22: 34 | V22: 21 | W22: 7 | X22: 63 | Y22: 13 | Z22: 8 | AA22: 8 | AC22: 121 | AD22: AUBURNDALE ELEMENTARY SCHOOL | AE22: 156 | AF22: 214 | AG22: 33 | AH22: 22 | AI22: 22 | AJ22: 13 | AK22: 11 | AL22: 46 | AM22: 12 | AN22: 5 | AO22: 7 | AQ22: 761 | AR22: FIENBERG/FISHER K-8 CENTER | AS22: 96 | AT22: 230 | AU22: 17 | AV22: 21 | AW22: 34 | AX22: 22 | AY22: 6 | AZ22: 63 | BA22: 10 | BB22: 11 | BC22: 4 | BE22: 961 | BF22: CORAL GABLES PREPARATORY ACADEMY | BG22: 50 | BH22: 244 | BI22: 10 | BJ22: 20 | BK22: 30 | BL22: 28 | BM22: 12 | BN22: 70 | BO22: 7 | BP22: 8 | BQ22: 8 | BR22: 5 | BT22: 1010 | BU22: THE CHARTER SCHOOL AT WATERSTONE | BV22: 148 | BW22: 244 | BX22: 15 | BY22: 31 | BZ22: 32 | CA22: 18 | CB22: 5 | CC22: 54 | CD22: 8 | CE22: 11 | CF22: 9 | CH22: 1010 | CI22: THE CHARTER SCHOOL AT WATERSTONE | CJ22: 47 | CK22: 422 | CL22: 91 | CM22: 0 | CN22: 9 | CO22: 47 | CP22: 32 | CQ22: 13
A23: 122 | B23: DR. ROLANDO ESPINOSA K-8 CENTER | C23: 207 | D23: 210 | E23: 11 | F23: 15 | G23: 33 | H23: 19 | I23: 22 | J23: 74 | K23: 16 | L23: 7 | M23: 11 | O23: 122 | P23: DR. ROLANDO ESPINOSA K-8 CENTER | Q23: 178 | R23: 223 | S23: 7 | T23: 15 | U23: 29 | V23: 34 | W23: 15 | X23: 78 | Y23: 14 | Z23: 9 | AA23: 9 | AC23: 122 | AD23: DR. ROLANDO ESPINOSA K-8 CENTER | AE23: 217 | AF23: 228 | AG23: 12 | AH23: 19 | AI23: 32 | AJ23: 20 | AK23: 17 | AL23: 70 | AM23: 15 | AN23: 7 | AO23: 9 | AQ23: 950 | AR23: AVENTURA CITY OF EXCELLENCE | AS23: 109 | AT23: 241 | AU23: 6 | AV23: 10 | AW23: 34 | AX23: 26 | AY23: 24 | AZ23: 83 | BA23: 13 | BB23: 13 | BC23: 6 | BE23: 1010 | BF23: THE CHARTER SCHOOL AT WATERSTONE | BG23: 153 | BH23: 239 | BI23: 14 | BJ23: 22 | BK23: 30 | BL23: 25 | BM23: 9 | BN23: 65 | BO23: 6 | BP23: 7 | BQ23: 8 | BR23: 5 | BT23: 1020 | BU23: YOUTH CO-OP CHARTER SCHOOL | BV23: 89 | BW23: 250 | BX23: 9 | BY23: 15 | BZ23: 43 | CA23: 22 | CB23: 11 | CC23: 76 | CD23: 8 | CE23: 13 | CF23: 9 | CH23: 1020 | CI23: YOUTH CO-OP CHARTER SCHOOL | CJ23: 38 | CK23: 423 | CL23: 89 | CM23: 0 | CN23: 11 | CO23: 45 | CP23: 26 | CQ23: 18
A24: 125 | B24: NORMA BUTLER BOSSARD ELEMENTARY SCH | C24: 219 | D24: 208 | E24: 9 | F24: 16 | G24: 44 | H24: 22 | I24: 10 | J24: 76 | K24: 16 | L24: 7 | M24: 10 | O24: 125 | P24: NORMA BUTLER BOSSARD ELEMENTARY SCH | Q24: 230 | R24: 222 | S24: 8 | T24: 12 | U24: 33 | V24: 32 | W24: 14 | X24: 80 | Y24: 14 | Z24: 8 | AA24: 9 | AC24: 125 | AD24: NORMA BUTLER BOSSARD ELEMENTARY SCH | AE24: 246 | AF24: 227 | AG24: 10 | AH24: 23 | AI24: 32 | AJ24: 23 | AK24: 12 | AL24: 67 | AM24: 14 | AN24: 7 | AO24: 9 | AQ24: 961 | AR24: CORAL GABLES PREPARATORY ACADEMY | AS24: 93 | AT24: 231 | AU24: 16 | AV24: 20 | AW24: 29 | AX24: 15 | AY24: 19 | AZ24: 63 | BA24: 11 | BB24: 11 | BC24: 4 | BE24: 1020 | BF24: YOUTH CO-OP CHARTER SCHOOL | BG24: 84 | BH24: 240 | BI24: 6 | BJ24: 24 | BK24: 37 | BL24: 29 | BM24: 5 | BN24: 70 | BO24: 7 | BP24: 8 | BQ24: 7 | BR24: 5 | BT24: 1121 | BU24: CORAL WAY K-8 CENTER | BV24: 175 | BW24: 248 | BX24: 15 | BY24: 21 | BZ24: 31 | CA24: 21 | CB24: 13 | CC24: 64 | CD24: 8 | CE24: 12 | CF24: 9 | CH24: 1121 | CI24: CORAL WAY K-8 CENTER | CJ24: 46 | CK24: 427 | CL24: 100 | CM24: 0 | CN24: 0 | CO24: 48 | CP24: 30 | CQ24: 22
A25: 161 | B25: AVOCADO ELEMENTARY SCHOOL | C25: 169 | D25: 195 | E25: 25 | F25: 30 | G25: 26 | H25: 12 | I25: 7 | J25: 45 | K25: 13 | L25: 6 | M25: 9 | O25: 201 | P25: BANYAN ELEMENTARY SCHOOL | Q25: 57 | R25: 227 | S25: 5 | T25: 21 | U25: 21 | V25: 30 | W25: 23 | X25: 74 | Y25: 15 | Z25: 9 | AA25: 9 | AC25: 201 | AD25: BANYAN ELEMENTARY SCHOOL | AE25: 57 | AF25: 229 | AG25: 12 | AH25: 14 | AI25: 35 | AJ25: 16 | AK25: 23 | AL25: 74 | AM25: 15 | AN25: 7 | AO25: 10 | AQ25: 1010 | AR25: THE CHARTER SCHOOL AT WATERSTONE | AS25: 137 | AT25: 229 | AU25: 13 | AV25: 29 | AW25: 31 | AX25: 18 | AY25: 9 | AZ25: 58 | BA25: 10 | BB25: 11 | BC25: 4 | BE25: 1121 | BF25: CORAL WAY K-8 CENTER | BG25: 183 | BH25: 233 | BI25: 25 | BJ25: 22 | BK25: 29 | BL25: 14 | BM25: 10 | BN25: 52 | BO25: 6 | BP25: 7 | BQ25: 6 | BR25: 5 | BT25: 1331 | BU25: DEVON AIRE K-8 CENTER | BV25: 167 | BW25: 252 | BX25: 8 | BY25: 19 | BZ25: 34 | CA25: 24 | CB25: 16 | CC25: 74 | CD25: 9 | CE25: 13 | CF25: 10 | CH25: 1331 | CI25: DEVON AIRE K-8 CENTER | CJ25: 42 | CK25: 435 | CL25: 90 | CM25: 2 | CN25: 7 | CO25: 26 | CP25: 14 | CQ25: 50
A26: 201 | B26: BANYAN ELEMENTARY SCHOOL | C26: 57 | D26: 207 | E26: 11 | F26: 21 | G26: 37 | H26: 19 | I26: 12 | J26: 68 | K26: 16 | L26: 7 | M26: 10 | O26: 211 | P26: DR. MANUEL C. BARREIRO ELEMENTARY S | Q26: 163 | R26: 216 | S26: 11 | T26: 23 | U26: 33 | V26: 23 | W26: 9 | X26: 66 | Y26: 13 | Z26: 8 | AA26: 8 | AC26: 211 | AD26: DR. MANUEL C. BARREIRO ELEMENTARY S | AE26: 149 | AF26: 235 | AG26: 2 | AH26: 13 | AI26: 26 | AJ26: 37 | AK26: 21 | AL26: 85 | AM26: 16 | AN26: 7 | AO26: 10 | AQ26: 1020 | AR26: YOUTH CO-OP CHARTER SCHOOL | AS26: 86 | AT26: 230 | AU26: 12 | AV26: 28 | AW26: 36 | AX26: 14 | AY26: 10 | AZ26: 60 | BA26: 10 | BB26: 11 | BC26: 5 | BE26: 1331 | BF26: DEVON AIRE K-8 CENTER | BG26: 179 | BH26: 247 | BI26: 4 | BJ26: 14 | BK26: 35 | BL26: 27 | BM26: 20 | BN26: 82 | BO26: 7 | BP26: 9 | BQ26: 9 | BR26: 6 | BT26: 1721 | BU26: EVERGLADES K-8 CENTER | BV26: 167 | BW26: 244 | BX26: 22 | BY26: 23 | BZ26: 29 | CA26: 17 | CB26: 9 | CC26: 56 | CD26: 7 | CE26: 11 | CF26: 9 | CH26: 1721 | CI26: EVERGLADES K-8 CENTER | CJ26: 53 | CK26: 419 | CL26: 91 | CM26: 2 | CN26: 8 | CO26: 49 | CP26: 32 | CQ26: 9
A27: 211 | B27: DR. MANUEL C. BARREIRO ELEMENTARY S | C27: 156 | D27: 212 | E27: 8 | F27: 19 | G27: 35 | H27: 19 | I27: 19 | J27: 73 | K27: 17 | L27: 7 | M27: 11 | O27: 215 | P27: LAWRENCE ACADEMY ELEMENTARY CHARTER | Q27: 24 | R27: 200 | S27: 42 | T27: 33 | U27: 17 | V27: 0 | W27: 8 | X27: 25 | Y27: 10 | Z27: 6 | AA27: 6 | AC27: 215 | AD27: LAWRENCE ACADEMY ELEMENTARY CHARTER | AE27: 20 | AF27: 208 | AG27: 35 | AH27: 35 | AI27: 25 | AJ27: 5 | AK27: 0 | AL27: 30 | AM27: 9 | AN27: 5 | AO27: 7 | AQ27: 1121 | AR27: CORAL WAY K-8 CENTER | AS27: 169 | AT27: 226 | AU27: 28 | AV27: 20 | AW27: 28 | AX27: 14 | AY27: 9 | AZ27: 51 | BA27: 9 | BB27: 10 | BC27: 4 | BE27: 1681 | BF27: LILLIE C. EVANS K-8 CENTER | BG27: 31 | BH27: 236 | BI27: 13 | BJ27: 35 | BK27: 35 | BL27: 3 | BM27: 13 | BN27: 52 | BO27: 6 | BP27: 7 | BQ27: 7 | BR27: 5 | BT27: 2060 | BU27: THEODORE R. & THELMA A. GIBSON CHAR | BV27: 30 | BW27: 232 | BX27: 40 | BY27: 20 | BZ27: 40 | CA27: 0 | CB27: 0 | CC27: 40 | CD27: 6 | CE27: 9 | CF27: 7 | CH27: 2701 | CI27: KENWOOD K-8 CENTER | CJ27: 45 | CK27: 436 | CL27: 100 | CM27: 0 | CN27: 0 | CO27: 27 | CP27: 27 | CQ27: 47
A28: 215 | B28: LAWRENCE ACADEMY ELEMENTARY CHARTER | C28: 26 | D28: 207 | E28: 0 | F28: 23 | G28: 50 | H28: 15 | I28: 12 | J28: 77 | K28: 16 | L28: 7 | M28: 11 | O28: 231 | P28: AVENTURA WATERWAYS K-8 CENTER | Q28: 209 | R28: 212 | S28: 26 | T28: 17 | U28: 29 | V28: 17 | W28: 11 | X28: 57 | Y28: 12 | Z28: 7 | AA28: 8 | AC28: 231 | AD28: AVENTURA WATERWAYS K-8 CENTER | AE28: 209 | AF28: 229 | AG28: 11 | AH28: 20 | AI28: 27 | AJ28: 23 | AK28: 18 | AL28: 68 | AM28: 15 | AN28: 7 | AO28: 9 | AQ28: 1331 | AR28: DEVON AIRE K-8 CENTER | AS28: 172 | AT28: 234 | AU28: 11 | AV28: 23 | AW28: 30 | AX28: 20 | AY28: 16 | AZ28: 66 | BA28: 11 | BB28: 12 | BC28: 5 | BE28: 1721 | BF28: EVERGLADES K-8 CENTER | BG28: 141 | BH28: 236 | BI28: 21 | BJ28: 22 | BK28: 30 | BL28: 15 | BM28: 12 | BN28: 57 | BO28: 6 | BP28: 7 | BQ28: 7 | BR28: 5 | BT28: 2701 | BU28: KENWOOD K-8 CENTER | BV28: 142 | BW28: 250 | BX28: 10 | BY28: 15 | BZ28: 41 | CA28: 23 | CB28: 11 | CC28: 75 | CD28: 8 | CE28: 13 | CF28: 9 | CH28: 2741 | CI28: KEY BISCAYNE K-8 CENTER | CJ28: 58 | CK28: 431 | CL28: 97 | CM28: 0 | CN28: 3 | CO28: 33 | CP28: 22 | CQ28: 41
A29: 231 | B29: AVENTURA WATERWAYS K-8 CENTER | C29: 228 | D29: 212 | E29: 8 | F29: 17 | G29: 26 | H29: 30 | I29: 19 | J29: 75 | K29: 17 | L29: 7 | M29: 11 | O29: 241 | P29: RUTH K. BROAD BAY HARBOR K-8 CENTER | Q29: 115 | R29: 225 | S29: 3 | T29: 18 | U29: 29 | V29: 29 | W29: 21 | X29: 78 | Y29: 15 | Z29: 9 | AA29: 9 | AC29: 241 | AD29: RUTH K. BROAD BAY HARBOR K-8 CENTER | AE29: 173 | AF29: 233 | AG29: 7 | AH29: 10 | AI29: 31 | AJ29: 28 | AK29: 24 | AL29: 83 | AM29: 16 | AN29: 7 | AO29: 10 | AQ29: 1681 | AR29: LILLIE C. EVANS K-8 CENTER | AS29: 48 | AT29: 225 | AU29: 15 | AV29: 42 | AW29: 29 | AX29: 13 | AY29: 2 | AZ29: 44 | BA29: 9 | BB29: 9 | BC29: 4 | BE29: 2060 | BF29: THEODORE R. & THELMA A. GIBSON CHAR | BG29: 35 | BH29: 218 | BI29: 40 | BJ29: 37 | BK29: 23 | BL29: 0 | BM29: 0 | BN29: 23 | BO29: 4 | BP29: 5 | BQ29: 5 | BR29: 3 | BT29: 2741 | BU29: KEY BISCAYNE K-8 CENTER | BV29: 137 | BW29: 257 | BX29: 6 | BY29: 11 | BZ29: 27 | CA29: 28 | CB29: 28 | CC29: 83 | CD29: 9 | CE29: 14 | CF29: 11 | CH29: 2881 | CI29: LEEWOOD K-8 CENTER | CJ29: 39 | CK29: 431 | CL29: 97 | CM29: 0 | CN29: 3 | CO29: 41 | CP29: 26 | CQ29: 31
A30: 241 | B30: RUTH K. BROAD BAY HARBOR K-8 CENTER | C30: 149 | D30: 213 | E30: 7 | F30: 9 | G30: 32 | H30: 31 | I30: 20 | J30: 83 | K30: 17 | L30: 8 | M30: 11 | O30: 251 | P30: ETHEL KOGER BECKHAM ELEMENTARY | Q30: 114 | R30: 227 | S30: 5 | T30: 8 | U30: 32 | V30: 32 | W30: 24 | X30: 87 | Y30: 15 | Z30: 9 | AA30: 10 | AC30: 251 | AD30: ETHEL KOGER BECKHAM ELEMENTARY | AE30: 128 | AF30: 235 | AG30: 1 | AH30: 9 | AI30: 44 | AJ30: 24 | AK30: 22 | AL30: 90 | AM30: 16 | AN30: 7 | AO30: 10 | AQ30: 1721 | AR30: EVERGLADES K-8 CENTER | AS30: 158 | AT30: 226 | AU30: 23 | AV30: 28 | AW30: 22 | AX30: 18 | AY30: 8 | AZ30: 48 | BA30: 9 | BB30: 10 | BC30: 4 | BE30: 2701 | BF30: KENWOOD K-8 CENTER | BG30: 124 | BH30: 239 | BI30: 11 | BJ30: 27 | BK30: 31 | BL30: 23 | BM30: 8 | BN30: 61 | BO30: 7 | BP30: 7 | BQ30: 8 | BR30: 5 | BT30: 2881 | BU30: LEEWOOD K-8 CENTER | BV30: 55 | BW30: 255 | BX30: 7 | BY30: 15 | BZ30: 25 | CA30: 24 | CB30: 29 | CC30: 78 | CD30: 9 | CE30: 14 | CF30: 10 | CH30: 2901 | CI30: LEISURE CITY K-8 CENTER | CJ30: 21 | CK30: 424 | CL30: 95 | CM30: 0 | CN30: 5 | CO30: 43 | CP30: 43 | CQ30: 10
A31: 251 | B31: ETHEL KOGER BECKHAM ELEMENTARY | C31: 113 | D31: 220 | E31: 0 | F31: 9 | G31: 30 | H31: 32 | I31: 29 | J31: 91 | K31: 18 | L31: 8 | M31: 12 | O31: 261 | P31: BEL-AIRE ELEMENTARY SCHOOL | Q31: 72 | R31: 200 | S31: 40 | T31: 31 | U31: 18 | V31: 10 | W31: 1 | X31: 29 | Y31: 10 | Z31: 6 | AA31: 6 | AC31: 261 | AD31: BEL-AIRE ELEMENTARY SCHOOL | AE31: 65 | AF31: 212 | AG31: 34 | AH31: 26 | AI31: 34 | AJ31: 3 | AK31: 3 | AL31: 40 | AM31: 11 | AN31: 5 | AO31: 7 | AQ31: 2041 | AR31: BENJAMIN FRANKLIN K-8 CENTER | AS31: 56 | AT31: 216 | AU31: 41 | AV31: 32 | AW31: 21 | AX31: 4 | AY31: 2 | AZ31: 27 | BA31: 7 | BB31: 8 | BC31: 3 | BE31: 2741 | BF31: KEY BISCAYNE K-8 CENTER | BG31: 116 | BH31: 243 | BI31: 10 | BJ31: 17 | BK31: 32 | BL31: 23 | BM31: 17 | BN31: 72 | BO31: 7 | BP31: 8 | BQ31: 8 | BR31: 5 | BT31: 2901 | BU31: LEISURE CITY K-8 CENTER | BV31: 98 | BW31: 237 | BX31: 27 | BY31: 29 | BZ31: 32 | CA31: 11 | CB31: 2 | CC31: 45 | CD31: 7 | CE31: 10 | CF31: 7 | CH31: 2911 | CI31: LINDA LENTIN K-8 CENTER | CJ31: 42 | CK31: 415 | CL31: 88 | CM31: 0 | CN31: 12 | CO31: 62 | CP31: 17 | CQ31: 10
A32: 261 | B32: BEL-AIRE ELEMENTARY SCHOOL | C32: 82 | D32: 190 | E32: 37 | F32: 26 | G32: 33 | H32: 5 | I32: 0 | J32: 38 | K32: 12 | L32: 5 | M32: 8 | O32: 271 | P32: BENT TREE ELEMENTARY SCHOOL | Q32: 98 | R32: 214 | S32: 13 | T32: 32 | U32: 30 | V32: 17 | W32: 8 | X32: 55 | Y32: 13 | Z32: 7 | AA32: 8 | AC32: 271 | AD32: BENT TREE ELEMENTARY SCHOOL | AE32: 72 | AF32: 240 | AG32: 1 | AH32: 4 | AI32: 28 | AJ32: 33 | AK32: 33 | AL32: 94 | AM32: 18 | AN32: 8 | AO32: 11 | AQ32: 2060 | AR32: THEODORE R. & THELMA A. GIBSON CHAR | AS32: 34 | AT32: 210 | AU32: 59 | AV32: 21 | AW32: 15 | AX32: 6 | AY32: 0 | AZ32: 21 | BA32: 6 | BB32: 7 | BC32: 3 | BE32: 2881 | BF32: LEEWOOD K-8 CENTER | BG32: 52 | BH32: 248 | BI32: 6 | BJ32: 12 | BK32: 27 | BL32: 35 | BM32: 21 | BN32: 83 | BO32: 8 | BP32: 9 | BQ32: 9 | BR32: 6 | BT32: 2911 | BU32: LINDA LENTIN K-8 CENTER | BV32: 117 | BW32: 243 | BX32: 22 | BY32: 19 | BZ32: 30 | CA32: 20 | CB32: 9 | CC32: 59 | CD32: 8 | CE32: 11 | CF32: 9 | CH32: 3029 | CI32: DORAL ACADEMY OF TECHNOLOGY | CJ32: 71 | CK32: 438 | CL32: 100 | CM32: 0 | CN32: 0 | CO32: 23 | CP32: 28 | CQ32: 49
A33: 271 | B33: BENT TREE ELEMENTARY SCHOOL | C33: 94 | D33: 205 | E33: 9 | F33: 27 | G33: 31 | H33: 24 | I33: 10 | J33: 65 | K33: 15 | L33: 7 | M33: 10 | O33: 311 | P33: GOULDS ELEMENTARY SCHOOL | Q33: 74 | R33: 211 | S33: 18 | T33: 27 | U33: 35 | V33: 14 | W33: 7 | X33: 55 | Y33: 13 | Z33: 7 | AA33: 7 | AC33: 311 | AD33: GOULDS ELEMENTARY SCHOOL | AE33: 99 | AF33: 213 | AG33: 31 | AH33: 27 | AI33: 28 | AJ33: 8 | AK33: 5 | AL33: 41 | AM33: 11 | AN33: 5 | AO33: 7 | AQ33: 2241 | AR33: GRATIGNY ELEMENTARY SCHOOL | AS33: 73 | AT33: 218 | AU33: 44 | AV33: 18 | AW33: 12 | AX33: 16 | AY33: 10 | AZ33: 38 | BA33: 8 | BB33: 9 | BC33: 4 | BE33: 2901 | BF33: LEISURE CITY K-8 CENTER | BG33: 147 | BH33: 228 | BI33: 30 | BJ33: 34 | BK33: 25 | BL33: 6 | BM33: 5 | BN33: 36 | BO33: 5 | BP33: 6 | BQ33: 6 | BR33: 4 | BT33: 3029 | BU33: DORAL ACADEMY OF TECHNOLOGY | BV33: 40 | BW33: 266 | BX33: 0 | BY33: 0 | BZ33: 18 | CA33: 43 | CB33: 40 | CC33: 100 | CD33: 10 | CE33: 17 | CF33: 12 | CH33: 3101 | CI33: FRANK CRAWFORD MARTIN K-8 CENTER | CJ33: 88 | CK33: 425 | CL33: 94 | CM33: 1 | CN33: 5 | CO33: 41 | CP33: 35 | CQ33: 18
A34: 311 | B34: GOULDS ELEMENTARY SCHOOL | C34: 91 | D34: 199 | E34: 21 | F34: 22 | G34: 35 | H34: 20 | I34: 2 | J34: 57 | K34: 14 | L34: 6 | M34: 10 | O34: 312 | P34: MATER GARDENS ACADEMY | Q34: 89 | R34: 227 | S34: 2 | T34: 11 | U34: 27 | V34: 42 | W34: 18 | X34: 87 | Y34: 15 | Z34: 9 | AA34: 10 | AC34: 312 | AD34: MATER GARDENS ACADEMY | AE34: 82 | AF34: 239 | AG34: 0 | AH34: 11 | AI34: 23 | AJ34: 39 | AK34: 27 | AL34: 89 | AM34: 17 | AN34: 8 | AO34: 11 | AQ34: 2701 | AR34: KENWOOD K-8 CENTER | AS34: 115 | AT34: 238 | AU34: 7 | AV34: 20 | AW34: 23 | AX34: 30 | AY34: 21 | AZ34: 73 | BA34: 11 | BB34: 13 | BC34: 6 | BE34: 2911 | BF34: LINDA LENTIN K-8 CENTER | BG34: 112 | BH34: 229 | BI34: 27 | BJ34: 38 | BK34: 20 | BL34: 13 | BM34: 4 | BN34: 36 | BO34: 5 | BP34: 6 | BQ34: 6 | BR34: 4 | BT34: 3101 | BU34: FRANK CRAWFORD MARTIN K-8 CENTER | BV34: 130 | BW34: 261 | BX34: 2 | BY34: 6 | BZ34: 32 | CA34: 28 | CB34: 32 | CC34: 92 | CD34: 10 | CE34: 15 | CF34: 12 | CH34: 3191 | CI34: ADA MERRITT K-8 CENTER | CJ34: 76 | CK34: 420 | CL34: 91 | CM34: 0 | CN34: 9 | CO34: 57 | CP34: 20 | CQ34: 14
A35: 312 | B35: MATER GARDENS ACADEMY | C35: 80 | D35: 213 | E35: 6 | F35: 16 | G35: 30 | H35: 29 | I35: 19 | J35: 78 | K35: 17 | L35: 7 | M35: 11 | O35: 321 | P35: BISCAYNE ELEMENTARY SCHOOL | Q35: 111 | R35: 213 | S35: 18 | T35: 27 | U35: 27 | V35: 19 | W35: 9 | X35: 55 | Y35: 13 | Z35: 7 | AA35: 8 | AC35: 321 | AD35: BISCAYNE ELEMENTARY SCHOOL | AE35: 132 | AF35: 218 | AG35: 20 | AH35: 27 | AI35: 30 | AJ35: 19 | AK35: 4 | AL35: 52 | AM35: 12 | AN35: 6 | AO35: 8 | AQ35: 2741 | AR35: KEY BISCAYNE K-8 CENTER | AS35: 144 | AT35: 240 | AU35: 3 | AV35: 10 | AW35: 32 | AX35: 38 | AY35: 17 | AZ35: 87 | BA35: 12 | BB35: 13 | BC35: 6 | BE35: 3029 | BF35: DORAL ACADEMY OF TECHNOLOGY | BG35: 36 | BH35: 264 | BI35: 0 | BJ35: 0 | BK35: 8 | BL35: 42 | BM35: 50 | BN35: 100 | BO35: 10 | BP35: 11 | BQ35: 11 | BR35: 7 | BT35: 3191 | BU35: ADA MERRITT K-8 CENTER | BV35: 93 | BW35: 254 | BX35: 3 | BY35: 12 | BZ35: 43 | CA35: 29 | CB35: 13 | CC35: 85 | CD35: 9 | CE35: 14 | CF35: 10 | CH35: 3281 | CI35: MIAMI LAKES K-8 CENTER | CJ35: 83 | CK35: 430 | CL35: 99 | CM35: 0 | CN35: 1 | CO35: 40 | CP35: 27 | CQ35: 33
A36: 321 | B36: BISCAYNE ELEMENTARY SCHOOL | C36: 128 | D36: 196 | E36: 23 | F36: 28 | G36: 30 | H36: 15 | I36: 4 | J36: 48 | K36: 13 | L36: 6 | M36: 9 | O36: 332 | P36: SOMERSET ACADEMY (SILVER PALMS) | Q36: 44 | R36: 219 | S36: 9 | T36: 18 | U36: 32 | V36: 34 | W36: 7 | X36: 73 | Y36: 14 | Z36: 8 | AA36: 8 | AC36: 332 | AD36: SOMERSET ACADEMY (SILVER PALMS) | AE36: 121 | AF36: 219 | AG36: 18 | AH36: 32 | AI36: 29 | AJ36: 17 | AK36: 4 | AL36: 50 | AM36: 12 | AN36: 6 | AO36: 8 | AQ36: 2881 | AR36: LEEWOOD K-8 CENTER | AS36: 79 | AT36: 234 | AU36: 9 | AV36: 23 | AW36: 30 | AX36: 27 | AY36: 11 | AZ36: 68 | BA36: 11 | BB36: 12 | BC36: 5 | BE36: 3101 | BF36: FRANK CRAWFORD MARTIN K-8 CENTER | BG36: 138 | BH36: 247 | BI36: 3 | BJ36: 12 | BK36: 36 | BL36: 35 | BM36: 14 | BN36: 85 | BO36: 8 | BP36: 8 | BQ36: 9 | BR36: 6 | BT36: 3281 | BU36: MIAMI LAKES K-8 CENTER | BV36: 132 | BW36: 250 | BX36: 14 | BY36: 18 | BZ36: 27 | CA36: 21 | CB36: 19 | CC36: 67 | CD36: 8 | CE36: 13 | CF36: 10 | CH36: 3421 | CI36: MARCUS A. MILAM K-8 CENTER | CJ36: 26 | CK36: 432 | CL36: 100 | CM36: 0 | CN36: 0 | CO36: 23 | CP36: 46 | CQ36: 31
A37: 332 | B37: SOMERSET ACADEMY (SILVER PALMS) | C37: 35 | D37: 195 | E37: 14 | F37: 43 | G37: 37 | H37: 0 | I37: 6 | J37: 43 | K37: 14 | L37: 5 | M37: 9 | O37: 339 | P37: SOMERSET ACAD CHARTER ELEM SCHOOL S | Q37: 45 | R37: 212 | S37: 16 | T37: 24 | U37: 40 | V37: 16 | W37: 4 | X37: 60 | Y37: 13 | Z37: 8 | AA37: 6 | AC37: 339 | AD37: SOMERSET ACAD CHARTER ELEM SCHOOL S | AE37: 49 | AF37: 223 | AG37: 10 | AH37: 39 | AI37: 22 | AJ37: 18 | AK37: 10 | AL37: 51 | AM37: 13 | AN37: 6 | AO37: 7 | AQ37: 2901 | AR37: LEISURE CITY K-8 CENTER | AS37: 119 | AT37: 218 | AU37: 34 | AV37: 32 | AW37: 21 | AX37: 11 | AY37: 3 | AZ37: 34 | BA37: 8 | BB37: 9 | BC37: 3 | BE37: 3191 | BF37: ADA MERRITT K-8 CENTER | BG37: 94 | BH37: 250 | BI37: 2 | BJ37: 7 | BK37: 34 | BL37: 33 | BM37: 23 | BN37: 90 | BO37: 8 | BP37: 9 | BQ37: 10 | BR37: 6 | BT37: 3421 | BU37: MARCUS A. MILAM K-8 CENTER | BV37: 147 | BW37: 244 | BX37: 18 | BY37: 20 | BZ37: 35 | CA37: 18 | CB37: 9 | CC37: 62 | CD37: 8 | CE37: 12 | CF37: 9 | CH37: 3610 | CI37: KEYS GATE CHARTER SCHOOL | CJ37: 63 | CK37: 413 | CL37: 81 | CM37: 2 | CN37: 17 | CO37: 52 | CP37: 21 | CQ37: 8
A38: 339 | B38: SOMERSET ACAD CHARTER ELEM SCHOOL S | C38: 44 | D38: 206 | E38: 16 | F38: 14 | G38: 36 | H38: 18 | I38: 16 | J38: 70 | K38: 16 | L38: 7 | M38: 10 | O38: 341 | P38: ARCHCREEK ELEMENTARY SCHOOL | Q38: 108 | R38: 204 | S38: 28 | T38: 34 | U38: 27 | V38: 9 | W38: 2 | X38: 38 | Y38: 12 | Z38: 7 | AA38: 6 | AC38: 341 | AD38: ARCHCREEK ELEMENTARY SCHOOL | AE38: 93 | AF38: 216 | AG38: 25 | AH38: 22 | AI38: 38 | AJ38: 14 | AK38: 2 | AL38: 54 | AM38: 12 | AN38: 6 | AO38: 8 | AQ38: 2911 | AR38: LINDA LENTIN K-8 CENTER | AS38: 97 | AT38: 222 | AU38: 23 | AV38: 32 | AW38: 29 | AX38: 9 | AY38: 7 | AZ38: 45 | BA38: 8 | BB38: 10 | BC38: 3 | BE38: 3281 | BF38: MIAMI LAKES K-8 CENTER | BG38: 199 | BH38: 241 | BI38: 13 | BJ38: 16 | BK38: 30 | BL38: 26 | BM38: 15 | BN38: 71 | BO38: 7 | BP38: 8 | BQ38: 7 | BR38: 5 | BT38: 3610 | BU38: KEYS GATE CHARTER SCHOOL | BV38: 218 | BW38: 240 | BX38: 16 | BY38: 39 | BZ38: 33 | CA38: 9 | CB38: 4 | CC38: 45 | CD38: 7 | CE38: 10 | CF38: 8 | CH38: 3621 | CI38: COCONUT PALM K-8 ACADEMY | CJ38: 20 | CK38: 425 | CL38: 90 | CM38: 0 | CN38: 10 | CO38: 30 | CP38: 40 | CQ38: 20
A39: 341 | B39: ARCHCREEK ELEMENTARY SCHOOL | C39: 108 | D39: 194 | E39: 32 | F39: 17 | G39: 29 | H39: 16 | I39: 6 | J39: 51 | K39: 13 | L39: 6 | M39: 9 | O39: 342 | P39: PINECREST ACADEMY (SOUTH CAMPUS) | Q39: 128 | R39: 222 | S39: 7 | T39: 15 | U39: 34 | V39: 27 | W39: 17 | X39: 78 | Y39: 14 | Z39: 9 | AA39: 9 | AC39: 342 | AD39: PINECREST ACADEMY (SOUTH CAMPUS) | AE39: 149 | AF39: 228 | AG39: 4 | AH39: 21 | AI39: 46 | AJ39: 20 | AK39: 9 | AL39: 75 | AM39: 15 | AN39: 6 | AO39: 9 | AQ39: 3029 | AR39: DORAL ACADEMY OF TECHNOLOGY | AS39: 32 | AT39: 250 | AU39: 0 | AV39: 0 | AW39: 19 | AX39: 53 | AY39: 28 | AZ39: 100 | BA39: 15 | BB39: 15 | BC39: 7 | BE39: 3421 | BF39: MARCUS A. MILAM K-8 CENTER | BG39: 137 | BH39: 234 | BI39: 18 | BJ39: 30 | BK39: 26 | BL39: 18 | BM39: 8 | BN39: 53 | BO39: 6 | BP39: 7 | BQ39: 7 | BR39: 5 | BT39: 3621 | BU39: COCONUT PALM K-8 ACADEMY | BV39: 78 | BW39: 251 | BX39: 10 | BY39: 6 | BZ39: 50 | CA39: 17 | CB39: 17 | CC39: 83 | CD39: 8 | CE39: 13 | CF39: 11 | CH39: 4691 | CI39: JANE S. ROBERTS K-8 CENTER | CJ39: 29 | CK39: 442 | CL39: 100 | CM39: 0 | CN39: 0 | CO39: 7 | CP39: 34 | CQ39: 59
A40: 342 | B40: PINECREST ACADEMY (SOUTH CAMPUS) | C40: 120 | D40: 212 | E40: 3 | F40: 15 | G40: 38 | H40: 31 | I40: 13 | J40: 82 | K40: 17 | L40: 8 | M40: 11 | O40: 361 | P40: BISCAYNE GARDENS ELEMENTARY | Q40: 79 | R40: 205 | S40: 32 | T40: 24 | U40: 28 | V40: 13 | W40: 4 | X40: 44 | Y40: 11 | Z40: 7 | AA40: 7 | AC40: 361 | AD40: BISCAYNE GARDENS ELEMENTARY | AE40: 83 | AF40: 210 | AG40: 39 | AH40: 27 | AI40: 23 | AJ40: 10 | AK40: 2 | AL40: 35 | AM40: 10 | AN40: 5 | AO40: 6 | AQ40: 3034 | AR40: BRIDGEPOINT ACADEMY OF VILLAGE GREE | AS40: 18 | AT40: 218 | AU40: 33 | AV40: 28 | AW40: 22 | AX40: 6 | AY40: 11 | AZ40: 39 | BA40: 8 | BB40: 8 | BC40: 4 | BE40: 3610 | BF40: KEYS GATE CHARTER SCHOOL | BG40: 269 | BH40: 234 | BI40: 17 | BJ40: 27 | BK40: 33 | BL40: 19 | BM40: 4 | BN40: 57 | BO40: 6 | BP40: 7 | BQ40: 7 | BR40: 5 | BT40: 4691 | BU40: JANE S. ROBERTS K-8 CENTER | BV40: 115 | BW40: 256 | BX40: 7 | BY40: 9 | BZ40: 36 | CA40: 27 | CB40: 22 | CC40: 84 | CD40: 9 | CE40: 14 | CF40: 11 | CH40: 5003 | CI40: SOUTH DADE MIDDLE SCHOOL | CJ40: 105 | CK40: 417 | CL40: 92 | CM40: 0 | CN40: 8 | CO40: 65 | CP40: 17 | CQ40: 10
A41: 361 | B41: BISCAYNE GARDENS ELEMENTARY | C41: 97 | D41: 191 | E41: 35 | F41: 27 | G41: 23 | H41: 11 | I41: 4 | J41: 38 | K41: 13 | L41: 5 | M41: 8 | O41: 400 | P41: RENAISSANCE ELEMENTARY CHARTER SCHO | Q41: 100 | R41: 226 | S41: 6 | T41: 11 | U41: 33 | V41: 26 | W41: 24 | X41: 83 | Y41: 15 | Z41: 9 | AA41: 9 | AC41: 400 | AD41: RENAISSANCE ELEMENTARY CHARTER SCHO | AE41: 104 | AF41: 227 | AG41: 4 | AH41: 25 | AI41: 43 | AJ41: 17 | AK41: 11 | AL41: 71 | AM41: 14 | AN41: 7 | AO41: 9 | AQ41: 3101 | AR41: FRANK CRAWFORD MARTIN K-8 CENTER | AS41: 143 | AT41: 241 | AU41: 1 | AV41: 13 | AW41: 32 | AX41: 37 | AY41: 17 | AZ41: 86 | BA41: 13 | BB41: 13 | BC41: 6 | BE41: 3621 | BF41: COCONUT PALM K-8 ACADEMY | BG41: 86 | BH41: 231 | BI41: 16 | BJ41: 41 | BK41: 28 | BL41: 9 | BM41: 6 | BN41: 43 | BO41: 6 | BP41: 6 | BQ41: 6 | BR41: 4 | BT41: 5003 | BU41: SOUTH DADE MIDDLE SCHOOL | BV41: 297 | BW41: 240 | BX41: 22 | BY41: 23 | BZ41: 38 | CA41: 12 | CB41: 4 | CC41: 55 | CD41: 7 | CE41: 10 | CF41: 9 | CH41: 5005 | CI41: DAVID LAWRENCE JR. K-8 CENTER | CJ41: 19 | CK41: 452 | CL41: 100 | CM41: 0 | CN41: 0 | CO41: 5 | CP41: 5 | CQ41: 89
A42: 400 | B42: RENAISSANCE ELEMENTARY CHARTER SCHO | C42: 150 | D42: 208 | E42: 3 | F42: 23 | G42: 41 | H42: 24 | I42: 9 | J42: 74 | K42: 17 | L42: 7 | M42: 10 | O42: 401 | P42: VAN E. BLANTON ELEMENTARY SCHL | Q42: 79 | R42: 211 | S42: 15 | T42: 33 | U42: 33 | V42: 15 | W42: 4 | X42: 52 | Y42: 12 | Z42: 8 | AA42: 7 | AC42: 401 | AD42: VAN E. BLANTON ELEMENTARY SCHL | AE42: 82 | AF42: 228 | AG42: 11 | AH42: 13 | AI42: 35 | AJ42: 28 | AK42: 12 | AL42: 76 | AM42: 15 | AN42: 7 | AO42: 9 | AQ42: 3191 | AR42: ADA MERRITT K-8 CENTER | AS42: 115 | AT42: 241 | AU42: 3 | AV42: 14 | AW42: 28 | AX42: 33 | AY42: 23 | AZ42: 83 | BA42: 13 | BB42: 13 | BC42: 6 | BE42: 4691 | BF42: JANE S. ROBERTS K-8 CENTER | BG42: 96 | BH42: 246 | BI42: 5 | BJ42: 19 | BK42: 29 | BL42: 26 | BM42: 21 | BN42: 76 | BO42: 7 | BP42: 9 | BQ42: 9 | BR42: 6 | BT42: 5005 | BU42: DAVID LAWRENCE JR. K-8 CENTER | BV42: 165 | BW42: 246 | BX42: 20 | BY42: 19 | BZ42: 32 | CA42: 13 | CB42: 16 | CC42: 61 | CD42: 7 | CE42: 11 | CF42: 9 | CH42: 5007 | CI42: LINCOLN-MARTI CHARTER SCHOOLS HIALE | CJ42: 19 | CK42: 418 | CL42: 63 | CM42: 11 | CN42: 26 | CO42: 26 | CP42: 11 | CQ42: 26
A43: 401 | B43: VAN E. BLANTON ELEMENTARY SCHL | C43: 97 | D43: 199 | E43: 19 | F43: 22 | G43: 39 | H43: 16 | I43: 4 | J43: 60 | K43: 14 | L43: 6 | M43: 9 | O43: 410 | P43: ACADEMIR CHARTER SCHOOL WEST | Q43: 59 | R43: 216 | S43: 8 | T43: 27 | U43: 31 | V43: 27 | W43: 7 | X43: 64 | Y43: 14 | Z43: 8 | AA43: 8 | AC43: 410 | AD43: ACADEMIR CHARTER SCHOOL WEST | AE43: 24 | AF43: 221 | AG43: 17 | AH43: 29 | AI43: 29 | AJ43: 21 | AK43: 4 | AL43: 54 | AM43: 12 | AN43: 6 | AO43: 8 | AQ43: 3281 | AR43: MIAMI LAKES K-8 CENTER | AS43: 171 | AT43: 229 | AU43: 20 | AV43: 21 | AW43: 24 | AX43: 20 | AY43: 15 | AZ43: 59 | BA43: 10 | BB43: 11 | BC43: 4 | BE43: 5003 | BF43: SOUTH DADE MIDDLE SCHOOL | BG43: 265 | BH43: 225 | BI43: 35 | BJ43: 30 | BK43: 24 | BL43: 8 | BM43: 3 | BN43: 35 | BO43: 5 | BP43: 6 | BQ43: 6 | BR43: 4 | BT43: 5007 | BU43: LINCOLN-MARTI CHARTER SCHOOLS HIALE | BV43: 37 | BW43: 243 | BX43: 24 | BY43: 24 | BZ43: 24 | CA43: 14 | CB43: 14 | CC43: 51 | CD43: 7 | CE43: 11 | CF43: 9 | CH43: 5010 | CI43: OXFORD ACADEMY OF MIAMI | CJ43: 1 | CK43: * | CL43: * | CM43: * | CN43: * | CO43: * | CP43: * | CQ43: *
A44: 410 | B44: ACADEMIR CHARTER SCHOOL WEST | C44: 69 | D44: 205 | E44: 14 | F44: 23 | G44: 25 | H44: 25 | I44: 13 | J44: 62 | K44: 15 | L44: 7 | M44: 10 | O44: 441 | P44: BLUE LAKES ELEMENTARY SCHOOL | Q44: 64 | R44: 219 | S44: 16 | T44: 20 | U44: 27 | V44: 20 | W44: 17 | X44: 64 | Y44: 13 | Z44: 8 | AA44: 9 | AC44: 441 | AD44: BLUE LAKES ELEMENTARY SCHOOL | AE44: 76 | AF44: 217 | AG44: 20 | AH44: 39 | AI44: 26 | AJ44: 9 | AK44: 5 | AL44: 41 | AM44: 12 | AN44: 6 | AO44: 8 | AQ44: 3421 | AR44: MARCUS A. MILAM K-8 CENTER | AS44: 156 | AT44: 218 | AU44: 35 | AV44: 31 | AW44: 18 | AX44: 12 | AY44: 3 | AZ44: 33 | BA44: 7 | BB44: 9 | BC44: 4 | BE44: 5005 | BF44: DAVID LAWRENCE JR. K-8 CENTER | BG44: 173 | BH44: 238 | BI44: 17 | BJ44: 24 | BK44: 23 | BL44: 20 | BM44: 16 | BN44: 58 | BO44: 7 | BP44: 7 | BQ44: 7 | BR44: 5 | BT44: 5025 | BU44: LINCOLN-MARTI CHARTER SCHOOL LITTLE | BV44: 48 | BW44: 239 | BX44: 35 | BY44: 8 | BZ44: 29 | CA44: 15 | CB44: 13 | CC44: 56 | CD44: 7 | CE44: 11 | CF44: 9 | CH44: 5025 | CI44: LINCOLN-MARTI CHARTER SCHOOL LITTLE | CJ44: 14 | CK44: 425 | CL44: 100 | CM44: 0 | CN44: 0 | CO44: 57 | CP44: 29 | CQ44: 14
A45: 441 | B45: BLUE LAKES ELEMENTARY SCHOOL | C45: 80 | D45: 198 | E45: 24 | F45: 30 | G45: 25 | H45: 14 | I45: 8 | J45: 46 | K45: 14 | L45: 5 | M45: 9 | O45: 451 | P45: BOWMAN ASHE/DOOLIN K-8 ACADEMY | Q45: 130 | R45: 223 | S45: 9 | T45: 13 | U45: 28 | V45: 30 | W45: 19 | X45: 78 | Y45: 14 | Z45: 8 | AA45: 9 | AC45: 451 | AD45: BOWMAN ASHE/DOOLIN K-8 ACADEMY | AE45: 166 | AF45: 222 | AG45: 19 | AH45: 22 | AI45: 27 | AJ45: 23 | AK45: 9 | AL45: 59 | AM45: 13 | AN45: 6 | AO45: 8 | AQ45: 3600 | AR45: DOWNTOWN MIAMI CHARTER SCHOOL | AS45: 67 | AT45: 225 | AU45: 12 | AV45: 49 | AW45: 25 | AX45: 13 | AY45: 0 | AZ45: 39 | BA45: 9 | BB45: 10 | BC45: 3 | BE45: 5007 | BF45: LINCOLN-MARTI CHARTER SCHOOLS HIALE | BG45: 25 | BH45: 218 | BI45: 56 | BJ45: 20 | BK45: 16 | BL45: 8 | BM45: 0 | BN45: 24 | BO45: 4 | BP45: 4 | BQ45: 5 | BR45: 4 | BT45: 5029 | BU45: EXCELSIOR LANGUAGE ACADEMY OF HIALE | BV45: 88 | BW45: 235 | BX45: 32 | BY45: 20 | BZ45: 33 | CA45: 14 | CB45: 1 | CC45: 48 | CD45: 7 | CE45: 10 | CF45: 7 | CH45: 5029 | CI45: EXCELSIOR LANGUAGE ACADEMY OF HIALE | CJ45: 10 | CK45: 420 | CL45: 90 | CM45: 0 | CN45: 10 | CO45: 30 | CP45: 60 | CQ45: 0
A46: 451 | B46: BOWMAN ASHE/DOOLIN K-8 ACADEMY | C46: 157 | D46: 204 | E46: 14 | F46: 24 | G46: 28 | H46: 19 | I46: 15 | J46: 62 | K46: 15 | L46: 7 | M46: 10 | O46: 461 | P46: BRENTWOOD ELEMENTARY SCHOOL | Q46: 124 | R46: 206 | S46: 31 | T46: 27 | U46: 25 | V46: 15 | W46: 2 | X46: 43 | Y46: 11 | Z46: 7 | AA46: 7 | AC46: 461 | AD46: BRENTWOOD ELEMENTARY SCHOOL | AE46: 107 | AF46: 220 | AG46: 17 | AH46: 26 | AI46: 38 | AJ46: 14 | AK46: 5 | AL46: 57 | AM46: 13 | AN46: 6 | AO46: 8 | AQ46: 3610 | AR46: KEYS GATE CHARTER SCHOOL | AS46: 291 | AT46: 221 | AU46: 26 | AV46: 36 | AW46: 22 | AX46: 12 | AY46: 4 | AZ46: 38 | BA46: 8 | BB46: 9 | BC46: 4 | BE46: 5010 | BF46: OXFORD ACADEMY OF MIAMI | BG46: 15 | BH46: 238 | BI46: 7 | BJ46: 27 | BK46: 53 | BL46: 13 | BM46: 0 | BN46: 67 | BO46: 7 | BP46: 7 | BQ46: 7 | BR46: 6 | BT46: 5032 | BU46: EXCELSIOR CHARTER ACADEMY | BV46: 13 | BW46: 240 | BX46: 23 | BY46: 23 | BZ46: 23 | CA46: 31 | CB46: 0 | CC46: 54 | CD46: 7 | CE46: 11 | CF46: 8 | CH46: 5241 | CI46: SOUTH MIAMI K-8 CENTER | CJ46: 27 | CK46: 422 | CL46: 100 | CM46: 0 | CN46: 0 | CO46: 59 | CP46: 26 | CQ46: 15
A47: 461 | B47: BRENTWOOD ELEMENTARY SCHOOL | C47: 133 | D47: 191 | E47: 32 | F47: 33 | G47: 25 | H47: 8 | I47: 2 | J47: 35 | K47: 13 | L47: 5 | M47: 8 | O47: 481 | P47: JAMES H. BRIGHT ELEMENTARY | Q47: 127 | R47: 213 | S47: 20 | T47: 20 | U47: 24 | V47: 23 | W47: 13 | X47: 60 | Y47: 12 | Z47: 8 | AA47: 8 | AC47: 481 | AD47: JAMES H. BRIGHT ELEMENTARY | AE47: 141 | AF47: 215 | AG47: 31 | AH47: 23 | AI47: 27 | AJ47: 16 | AK47: 4 | AL47: 46 | AM47: 11 | AN47: 5 | AO47: 7 | AQ47: 3621 | AR47: COCONUT PALM K-8 ACADEMY | AS47: 137 | AT47: 225 | AU47: 22 | AV47: 31 | AW47: 20 | AX47: 20 | AY47: 7 | AZ47: 47 | BA47: 9 | BB47: 10 | BC47: 4 | BE47: 5025 | BF47: LINCOLN-MARTI CHARTER SCHOOL LITTLE | BG47: 65 | BH47: 230 | BI47: 28 | BJ47: 26 | BK47: 25 | BL47: 20 | BM47: 2 | BN47: 46 | BO47: 6 | BP47: 7 | BQ47: 6 | BR47: 4 | BT47: 5047 | BU47: MATER ACADEMY MIAMI BEACH | BV47: 27 | BW47: 245 | BX47: 19 | BY47: 15 | BZ47: 44 | CA47: 15 | CB47: 7 | CC47: 67 | CD47: 8 | CE47: 11 | CF47: 9 | CH47: 5671 | CI47: VINELAND K-8 CENTER | CJ47: 23 | CK47: 440 | CL47: 100 | CM47: 0 | CN47: 0 | CO47: 4 | CP47: 39 | CQ47: 57
A48: 481 | B48: JAMES H. BRIGHT ELEMENTARY | C48: 127 | D48: 207 | E48: 13 | F48: 16 | G48: 32 | H48: 28 | I48: 12 | J48: 72 | K48: 15 | L48: 7 | M48: 11 | O48: 510 | P48: ARCHIMEDEAN ACADEMY | Q48: 71 | R48: 233 | S48: 3 | T48: 7 | U48: 25 | V48: 24 | W48: 41 | X48: 90 | Y48: 16 | Z48: 9 | AA48: 10 | AC48: 510 | AD48: ARCHIMEDEAN ACADEMY | AE48: 57 | AF48: 242 | AG48: 2 | AH48: 12 | AI48: 16 | AJ48: 30 | AK48: 40 | AL48: 86 | AM48: 18 | AN48: 8 | AO48: 11 | AQ48: 3821 | AR48: NORTH COUNTY K-8 CENTER | AS48: 46 | AT48: 216 | AU48: 37 | AV48: 35 | AW48: 20 | AX48: 9 | AY48: 0 | AZ48: 28 | BA48: 7 | BB48: 8 | BC48: 3 | BE48: 5029 | BF48: EXCELSIOR LANGUAGE ACADEMY OF HIALE | BG48: 88 | BH48: 228 | BI48: 27 | BJ48: 33 | BK48: 26 | BL48: 10 | BM48: 3 | BN48: 40 | BO48: 5 | BP48: 6 | BQ48: 6 | BR48: 4 | BT48: 5241 | BU48: SOUTH MIAMI K-8 CENTER | BV48: 70 | BW48: 241 | BX48: 19 | BY48: 30 | BZ48: 30 | CA48: 14 | CB48: 7 | CC48: 51 | CD48: 7 | CE48: 11 | CF48: 8 | CH48: 5961 | CI48: WINSTON PARK K-8 CENTER | CJ48: 72 | CK48: 424 | CL48: 99 | CM48: 0 | CN48: 1 | CO48: 54 | CP48: 29 | CQ48: 15
A49: 510 | B49: ARCHIMEDEAN ACADEMY | C49: 54 | D49: 221 | E49: 0 | F49: 9 | G49: 26 | H49: 31 | I49: 33 | J49: 91 | K49: 18 | L49: 8 | M49: 12 | O49: 520 | P49: SOMERSET ACADEMY CHARTER | Q49: 89 | R49: 230 | S49: 0 | T49: 7 | U49: 38 | V49: 29 | W49: 26 | X49: 93 | Y49: 15 | Z49: 9 | AA49: 10 | AC49: 520 | AD49: SOMERSET ACADEMY CHARTER | AE49: 97 | AF49: 228 | AG49: 8 | AH49: 21 | AI49: 34 | AJ49: 29 | AK49: 8 | AL49: 71 | AM49: 15 | AN49: 7 | AO49: 9 | AQ49: 4021 | AR49: OAK GROVE ELEMENTARY SCHOOL | AS49: 55 | AT49: 223 | AU49: 31 | AV49: 20 | AW49: 22 | AX49: 16 | AY49: 11 | AZ49: 49 | BA49: 9 | BB49: 10 | BC49: 4 | BE49: 5032 | BF49: EXCELSIOR CHARTER ACADEMY | BG49: 20 | BH49: 235 | BI49: 30 | BJ49: 15 | BK49: 40 | BL49: 5 | BM49: 10 | BN49: 55 | BO49: 5 | BP49: 7 | BQ49: 7 | BR49: 5 | BT49: 5671 | BU49: VINELAND K-8 CENTER | BV49: 72 | BW49: 253 | BX49: 6 | BY49: 24 | BZ49: 31 | CA49: 18 | CB49: 22 | CC49: 71 | CD49: 9 | CE49: 13 | CF49: 10 | CH49: 6001 | CI49: HERBERT A. AMMONS MIDDLE SCHL | CJ49: 284 | CK49: 421 | CL49: 89 | CM49: 1 | CN49: 11 | CO49: 45 | CP49: 26 | CQ49: 18
A50: 520 | B50: SOMERSET ACADEMY CHARTER | C50: 87 | D50: 217 | E50: 2 | F50: 10 | G50: 29 | H50: 36 | I50: 23 | J50: 87 | K50: 18 | L50: 8 | M50: 11 | O50: 521 | P50: BROADMOOR ELEMENTARY SCHOOL | Q50: 62 | R50: 204 | S50: 39 | T50: 21 | U50: 21 | V50: 16 | W50: 3 | X50: 40 | Y50: 10 | Z50: 7 | AA50: 7 | AC50: 521 | AD50: BROADMOOR ELEMENTARY SCHOOL | AE50: 71 | AF50: 215 | AG50: 27 | AH50: 32 | AI50: 24 | AJ50: 14 | AK50: 3 | AL50: 41 | AM50: 11 | AN50: 5 | AO50: 7 | AQ50: 4031 | AR50: GATEWAY ENVIRONMENTAL K-8 LEARNING | AS50: 144 | AT50: 221 | AU50: 30 | AV50: 26 | AW50: 21 | AX50: 17 | AY50: 6 | AZ50: 44 | BA50: 9 | BB50: 9 | BC50: 4 | BE50: 5047 | BF50: MATER ACADEMY MIAMI BEACH | BG50: 43 | BH50: 229 | BI50: 33 | BJ50: 30 | BK50: 14 | BL50: 19 | BM50: 5 | BN50: 37 | BO50: 6 | BP50: 6 | BQ50: 6 | BR50: 4 | BT50: 5961 | BU50: WINSTON PARK K-8 CENTER | BV50: 163 | BW50: 252 | BX50: 6 | BY50: 16 | BZ50: 41 | CA50: 25 | CB50: 12 | CC50: 79 | CD50: 9 | CE50: 13 | CF50: 10 | CH50: 6004 | CI50: SOMERSET ACADEMY CHARTER MIDDLE SCH | CJ50: 32 | CK50: 422 | CL50: 97 | CM50: 0 | CN50: 3 | CO50: 59 | CP50: 25 | CQ50: 13
A51: 521 | B51: BROADMOOR ELEMENTARY SCHOOL | C51: 71 | D51: 194 | E51: 23 | F51: 39 | G51: 23 | H51: 11 | I51: 4 | J51: 38 | K51: 13 | L51: 6 | M51: 9 | O51: 561 | P51: W. J. BRYAN ELEMENTARY | Q51: 123 | R51: 207 | S51: 28 | T51: 28 | U51: 23 | V51: 14 | W51: 7 | X51: 43 | Y51: 11 | Z51: 7 | AA51: 7 | AC51: 561 | AD51: W. J. BRYAN ELEMENTARY | AE51: 105 | AF51: 219 | AG51: 22 | AH51: 33 | AI51: 20 | AJ51: 17 | AK51: 8 | AL51: 45 | AM51: 12 | AN51: 6 | AO51: 8 | AQ51: 4391 | AR51: IRVING & BEATRICE PESKOE K-8 CENTER | AS51: 47 | AT51: 216 | AU51: 38 | AV51: 36 | AW51: 21 | AX51: 2 | AY51: 2 | AZ51: 26 | BA51: 7 | BB51: 8 | BC51: 3 | BE51: 5141 | BF51: HUBERT O. SIBLEY K-8 CENTER | BG51: 74 | BH51: 235 | BI51: 16 | BJ51: 27 | BK51: 32 | BL51: 19 | BM51: 5 | BN51: 57 | BO51: 6 | BP51: 7 | BQ51: 7 | BR51: 4 | BT51: 6001 | BU51: HERBERT A. AMMONS MIDDLE SCHL | BV51: 385 | BW51: 262 | BX51: 1 | BY51: 6 | BZ51: 27 | CA51: 30 | CB51: 35 | CC51: 92 | CD51: 10 | CE51: 15 | CF51: 12 | CH51: 6006 | CI51: ARCHIMEDEAN MIDDLE CONSERVATORY | CJ51: 82 | CK51: 424 | CL51: 83 | CM51: 2 | CN51: 15 | CO51: 34 | CP51: 17 | CQ51: 32
A52: 561 | B52: W. J. BRYAN ELEMENTARY | C52: 135 | D52: 201 | E52: 19 | F52: 23 | G52: 32 | H52: 22 | I52: 4 | J52: 59 | K52: 14 | L52: 6 | M52: 10 | O52: 600 | P52: PINECREST PREPARATORY ACADEMY | Q52: 102 | R52: 218 | S52: 8 | T52: 25 | U52: 38 | V52: 15 | W52: 14 | X52: 67 | Y52: 14 | Z52: 7 | AA52: 8 | AC52: 600 | AD52: PINECREST PREPARATORY ACADEMY | AE52: 75 | AF52: 232 | AG52: 5 | AH52: 15 | AI52: 40 | AJ52: 23 | AK52: 17 | AL52: 80 | AM52: 15 | AN52: 7 | AO52: 10 | AQ52: 4691 | AR52: JANE S. ROBERTS K-8 CENTER | AS52: 116 | AT52: 235 | AU52: 12 | AV52: 22 | AW52: 27 | AX52: 25 | AY52: 15 | AZ52: 66 | BA52: 11 | BB52: 12 | BC52: 5 | BE52: 5241 | BF52: SOUTH MIAMI K-8 CENTER | BG52: 65 | BH52: 240 | BI52: 15 | BJ52: 22 | BK52: 26 | BL52: 23 | BM52: 14 | BN52: 63 | BO52: 6 | BP52: 8 | BQ52: 8 | BR52: 5 | BT52: 6004 | BU52: SOMERSET ACADEMY CHARTER MIDDLE SCH | BV52: 74 | BW52: 247 | BX52: 5 | BY52: 27 | BZ52: 43 | CA52: 19 | CB52: 5 | CC52: 68 | CD52: 8 | CE52: 12 | CF52: 9 | CH52: 6009 | CI52: MATER EAST ACADEMY MIDDLE SCHOOL | CJ52: 23 | CK52: 402 | CL52: 61 | CM52: 13 | CN52: 26 | CO52: 39 | CP52: 17 | CQ52: 4
A53: 600 | B53: PINECREST PREPARATORY ACADEMY | C53: 113 | D53: 211 | E53: 7 | F53: 19 | G53: 27 | H53: 25 | I53: 21 | J53: 73 | K53: 16 | L53: 7 | M53: 11 | O53: 641 | P53: BUNCHE PARK ELEMENTARY SCHOOL | Q53: 30 | R53: 203 | S53: 33 | T53: 33 | U53: 23 | V53: 3 | W53: 7 | X53: 33 | Y53: 11 | Z53: 7 | AA53: 6 | AC53: 641 | AD53: BUNCHE PARK ELEMENTARY SCHOOL | AE53: 32 | AF53: 214 | AG53: 28 | AH53: 31 | AI53: 22 | AJ53: 13 | AK53: 6 | AL53: 41 | AM53: 11 | AN53: 5 | AO53: 7 | AQ53: 5003 | AR53: SOUTH DADE MIDDLE SCHOOL | AS53: 251 | AT53: 223 | AU53: 26 | AV53: 25 | AW53: 28 | AX53: 14 | AY53: 6 | AZ53: 48 | BA53: 9 | BB53: 10 | BC53: 4 | BE53: 5671 | BF53: VINELAND K-8 CENTER | BG53: 74 | BH53: 250 | BI53: 9 | BJ53: 5 | BK53: 26 | BL53: 31 | BM53: 28 | BN53: 85 | BO53: 8 | BP53: 9 | BQ53: 9 | BR53: 6 | BT53: 6006 | BU53: ARCHIMEDEAN MIDDLE CONSERVATORY | BV53: 80 | BW53: 273 | BX53: 0 | BY53: 4 | BZ53: 18 | CA53: 19 | CB53: 60 | CC53: 96 | CD53: 10 | CE53: 17 | CF53: 14 | CH53: 6010 | CI53: FLORIDA INT'L ACADEMY CHARTER | CJ53: 28 | CK53: 402 | CL53: 54 | CM53: 0 | CN53: 46 | CO53: 50 | CP53: 4 | CQ53: 0
A54: 641 | B54: BUNCHE PARK ELEMENTARY SCHOOL | C54: 40 | D54: 201 | E54: 15 | F54: 23 | G54: 40 | H54: 15 | I54: 8 | J54: 63 | K54: 14 | L54: 7 | M54: 10 | O54: 651 | P54: CAMPBELL DRIVE K-8 CENTER | Q54: 94 | R54: 205 | S54: 32 | T54: 29 | U54: 22 | V54: 13 | W54: 4 | X54: 39 | Y54: 11 | Z54: 6 | AA54: 7 | AC54: 651 | AD54: CAMPBELL DRIVE K-8 CENTER | AE54: 88 | AF54: 216 | AG54: 32 | AH54: 28 | AI54: 17 | AJ54: 11 | AK54: 11 | AL54: 40 | AM54: 12 | AN54: 6 | AO54: 7 | AQ54: 5005 | AR54: DAVID LAWRENCE JR. K-8 CENTER | AS54: 194 | AT54: 227 | AU54: 20 | AV54: 30 | AW54: 22 | AX54: 19 | AY54: 9 | AZ54: 50 | BA54: 10 | BB54: 10 | BC54: 4 | BE54: 5961 | BF54: WINSTON PARK K-8 CENTER | BG54: 177 | BH54: 239 | BI54: 11 | BJ54: 20 | BK54: 38 | BL54: 23 | BM54: 7 | BN54: 68 | BO54: 7 | BP54: 7 | BQ54: 8 | BR54: 5 | BT54: 6008 | BU54: LAWRENCE ACADEMY | BV54: 46 | BW54: 246 | BX54: 11 | BY54: 20 | BZ54: 50 | CA54: 17 | CB54: 2 | CC54: 70 | CD54: 8 | CE54: 11 | CF54: 9 | CH54: 6011 | CI54: ALLAPATTAH MIDDLE SCHOOL | CJ54: 23 | CK54: 419 | CL54: 96 | CM54: 4 | CN54: 0 | CO54: 65 | CP54: 22 | CQ54: 9
A55: 651 | B55: CAMPBELL DRIVE K-8 CENTER | C55: 102 | D55: 191 | E55: 34 | F55: 24 | G55: 32 | H55: 10 | I55: 0 | J55: 42 | K55: 12 | L55: 5 | M55: 9 | O55: 661 | P55: CARIBBEAN ELEMENTARY SCHOOL | Q55: 85 | R55: 207 | S55: 27 | T55: 25 | U55: 31 | V55: 15 | W55: 2 | X55: 48 | Y55: 11 | Z55: 7 | AA55: 7 | AC55: 661 | AD55: CARIBBEAN ELEMENTARY SCHOOL | AE55: 90 | AF55: 218 | AG55: 26 | AH55: 28 | AI55: 18 | AJ55: 18 | AK55: 11 | AL55: 47 | AM55: 12 | AN55: 5 | AO55: 8 | AQ55: 5007 | AR55: LINCOLN-MARTI CHARTER SCHOOLS HIALE | AS55: 32 | AT55: 221 | AU55: 31 | AV55: 25 | AW55: 31 | AX55: 6 | AY55: 6 | AZ55: 44 | BA55: 8 | BB55: 9 | BC55: 4 | BE55: 6001 | BF55: HERBERT A. AMMONS MIDDLE SCHL | BG55: 387 | BH55: 250 | BI55: 1 | BJ55: 11 | BK55: 29 | BL55: 39 | BM55: 20 | BN55: 88 | BO55: 8 | BP55: 9 | BQ55: 9 | BR55: 6 | BT55: 6009 | BU55: MATER EAST ACADEMY MIDDLE SCHOOL | BV55: 97 | BW55: 240 | BX55: 22 | BY55: 24 | BZ55: 44 | CA55: 7 | CB55: 3 | CC55: 55 | CD55: 7 | CE55: 11 | CF55: 8 | CH55: 6012 | CI55: MATER ACADEMY CHARTER MIDDLE | CJ55: 201 | CK55: 437 | CL55: 99 | CM55: 0 | CN55: 1 | CO55: 20 | CP55: 28 | CQ55: 51
A56: 661 | B56: CARIBBEAN ELEMENTARY SCHOOL | C56: 100 | D56: 184 | E56: 42 | F56: 32 | G56: 18 | H56: 6 | I56: 2 | J56: 26 | K56: 11 | L56: 4 | M56: 8 | O56: 671 | P56: CALUSA ELEMENTARY SCHOOL | Q56: 158 | R56: 230 | S56: 4 | T56: 9 | U56: 21 | V56: 34 | W56: 32 | X56: 87 | Y56: 15 | Z56: 9 | AA56: 10 | AC56: 671 | AD56: CALUSA ELEMENTARY SCHOOL | AE56: 117 | AF56: 237 | AG56: 1 | AH56: 15 | AI56: 30 | AJ56: 30 | AK56: 25 | AL56: 85 | AM56: 17 | AN56: 8 | AO56: 10 | AQ56: 5010 | AR56: OXFORD ACADEMY OF MIAMI | AS56: 12 | AT56: 235 | AU56: 0 | AV56: 33 | AW56: 33 | AX56: 17 | AY56: 17 | AZ56: 67 | BA56: 11 | BB56: 12 | BC56: 5 | BE56: 6004 | BF56: SOMERSET ACADEMY CHARTER MIDDLE SCH | BG56: 49 | BH56: 238 | BI56: 4 | BJ56: 27 | BK56: 49 | BL56: 16 | BM56: 4 | BN56: 69 | BO56: 6 | BP56: 7 | BQ56: 7 | BR56: 5 | BT56: 6010 | BU56: FLORIDA INT'L ACADEMY CHARTER | BV56: 106 | BW56: 243 | BX56: 16 | BY56: 23 | BZ56: 40 | CA56: 15 | CB56: 7 | CC56: 61 | CD56: 7 | CE56: 11 | CF56: 9 | CH56: 6013 | CI56: SOMERSET ACADEMY CHARTER MIDDLE S H | CJ56: 19 | CK56: 413 | CL56: 74 | CM56: 5 | CN56: 21 | CO56: 58 | CP56: 5 | CQ56: 11
A57: 671 | B57: CALUSA ELEMENTARY SCHOOL | C57: 152 | D57: 215 | E57: 5 | F57: 13 | G57: 31 | H57: 27 | I57: 24 | J57: 82 | K57: 17 | L57: 8 | M57: 11 | O57: 681 | P57: CAROL CITY ELEMENTARY SCHOOL | Q57: 99 | R57: 217 | S57: 17 | T57: 22 | U57: 26 | V57: 22 | W57: 12 | X57: 61 | Y57: 13 | Z57: 8 | AA57: 8 | AC57: 681 | AD57: CAROL CITY ELEMENTARY SCHOOL | AE57: 75 | AF57: 225 | AG57: 16 | AH57: 16 | AI57: 37 | AJ57: 19 | AK57: 12 | AL57: 68 | AM57: 14 | AN57: 6 | AO57: 9 | AQ57: 5022 | AR57: BEN GAMLA CHARTER SCHOOL SOUTH CAMP | AS57: 18 | AT57: 225 | AU57: 22 | AV57: 28 | AW57: 33 | AX57: 11 | AY57: 6 | AZ57: 50 | BA57: 8 | BB57: 11 | BC57: 4 | BE57: 6006 | BF57: ARCHIMEDEAN MIDDLE CONSERVATORY | BG57: 82 | BH57: 257 | BI57: 1 | BJ57: 5 | BK57: 23 | BL57: 26 | BM57: 45 | BN57: 94 | BO57: 9 | BP57: 10 | BQ57: 10 | BR57: 6 | BT57: 6011 | BU57: ALLAPATTAH MIDDLE SCHOOL | BV57: 226 | BW57: 228 | BX57: 45 | BY57: 27 | BZ57: 23 | CA57: 3 | CB57: 2 | CC57: 28 | CD57: 5 | CE57: 8 | CF57: 7 | CH57: 6020 | CI57: ASPIRA RAUL ARNALDO MARTINEZ CHR SC | CJ57: 78 | CK57: 399 | CL57: 51 | CM57: 6 | CN57: 42 | CO57: 42 | CP57: 8 | CQ57: 1
A58: 681 | B58: CAROL CITY ELEMENTARY SCHOOL | C58: 104 | D58: 193 | E58: 26 | F58: 38 | G58: 22 | H58: 10 | I58: 5 | J58: 37 | K58: 13 | L58: 5 | M58: 8 | O58: 721 | P58: GEORGE W. CARVER ELEMENTARY SCHOOL | Q58: 82 | R58: 210 | S58: 24 | T58: 24 | U58: 27 | V58: 13 | W58: 11 | X58: 51 | Y58: 12 | Z58: 7 | AA58: 8 | AC58: 721 | AD58: GEORGE W. CARVER ELEMENTARY SCHOOL | AE58: 95 | AF58: 215 | AG58: 25 | AH58: 37 | AI58: 18 | AJ58: 12 | AK58: 8 | AL58: 38 | AM58: 11 | AN58: 5 | AO58: 7 | AQ58: 5025 | AR58: LINCOLN-MARTI CHARTER SCHOOL LITTLE | AS58: 77 | AT58: 222 | AU58: 34 | AV58: 22 | AW58: 25 | AX58: 14 | AY58: 5 | AZ58: 44 | BA58: 8 | BB58: 10 | BC58: 4 | BE58: 6008 | BF58: LAWRENCE ACADEMY | BG58: 39 | BH58: 230 | BI58: 21 | BJ58: 44 | BK58: 26 | BL58: 8 | BM58: 3 | BN58: 36 | BO58: 5 | BP58: 6 | BQ58: 6 | BR58: 4 | BT58: 6012 | BU58: MATER ACADEMY CHARTER MIDDLE | BV58: 494 | BW58: 252 | BX58: 7 | BY58: 10 | BZ58: 45 | CA58: 28 | CB58: 11 | CC58: 83 | CD58: 8 | CE58: 13 | CF58: 10 | CH58: 6021 | CI58: ARVIDA MIDDLE SCHOOL | CJ58: 143 | CK58: 435 | CL58: 100 | CM58: 0 | CN58: 0 | CO58: 22 | CP58: 35 | CQ58: 43
A59: 721 | B59: GEORGE W. CARVER ELEMENTARY SCHOOL | C59: 98 | D59: 198 | E59: 15 | F59: 36 | G59: 33 | H59: 11 | I59: 5 | J59: 49 | K59: 14 | L59: 6 | M59: 9 | O59: 761 | P59: FIENBERG/FISHER K-8 CENTER | Q59: 90 | R59: 202 | S59: 38 | T59: 27 | U59: 22 | V59: 10 | W59: 3 | X59: 36 | Y59: 11 | Z59: 6 | AA59: 6 | AC59: 761 | AD59: FIENBERG/FISHER K-8 CENTER | AE59: 91 | AF59: 215 | AG59: 24 | AH59: 38 | AI59: 18 | AJ59: 16 | AK59: 3 | AL59: 37 | AM59: 12 | AN59: 5 | AO59: 7 | AQ59: 5029 | AR59: EXCELSIOR LANGUAGE ACADEMY OF HIALE | AS59: 86 | AT59: 224 | AU59: 28 | AV59: 20 | AW59: 33 | AX59: 12 | AY59: 8 | AZ59: 52 | BA59: 9 | BB59: 10 | BC59: 4 | BE59: 6009 | BF59: MATER EAST ACADEMY MIDDLE SCHOOL | BG59: 125 | BH59: 231 | BI59: 21 | BJ59: 39 | BK59: 22 | BL59: 13 | BM59: 5 | BN59: 40 | BO59: 6 | BP59: 7 | BQ59: 6 | BR59: 4 | BT59: 6013 | BU59: SOMERSET ACADEMY CHARTER MIDDLE S H | BV59: 34 | BW59: 241 | BX59: 24 | BY59: 29 | BZ59: 35 | CA59: 12 | CB59: 0 | CC59: 47 | CD59: 7 | CE59: 11 | CF59: 8 | CH59: 6022 | CI59: PINECREST ACADEMY CHARTER MIDDLE SC | CJ59: 125 | CK59: 415 | CL59: 83 | CM59: 0 | CN59: 17 | CO59: 57 | CP59: 18 | CQ59: 8
A60: 761 | B60: FIENBERG/FISHER K-8 CENTER | C60: 92 | D60: 189 | E60: 38 | F60: 25 | G60: 27 | H60: 10 | I60: 0 | J60: 37 | K60: 12 | L60: 5 | M60: 8 | O60: 771 | P60: WILLIAM A. CHAPMAN ELEM. SCHL | Q60: 52 | R60: 209 | S60: 15 | T60: 37 | U60: 33 | V60: 12 | W60: 4 | X60: 48 | Y60: 12 | Z60: 7 | AA60: 7 | AC60: 771 | AD60: WILLIAM A. CHAPMAN ELEM. SCHL | AE60: 48 | AF60: 216 | AG60: 29 | AH60: 21 | AI60: 35 | AJ60: 10 | AK60: 4 | AL60: 50 | AM60: 12 | AN60: 6 | AO60: 7 | AQ60: 5032 | AR60: EXCELSIOR CHARTER ACADEMY | AS60: 17 | AT60: 215 | AU60: 53 | AV60: 0 | AW60: 29 | AX60: 12 | AY60: 6 | AZ60: 47 | BA60: 8 | BB60: 8 | BC60: 3 | BE60: 6010 | BF60: FLORIDA INT'L ACADEMY CHARTER | BG60: 114 | BH60: 236 | BI60: 13 | BJ60: 29 | BK60: 40 | BL60: 14 | BM60: 4 | BN60: 58 | BO60: 6 | BP60: 7 | BQ60: 7 | BR60: 4 | BT60: 6020 | BU60: ASPIRA RAUL ARNALDO MARTINEZ CHR SC | BV60: 202 | BW60: 237 | BX60: 27 | BY60: 30 | BZ60: 36 | CA60: 6 | CB60: 0 | CC60: 43 | CD60: 7 | CE60: 10 | CF60: 7 | CH60: 6023 | CI60: ANDOVER MIDDLE SCHOOL | CJ60: 30 | CK60: 421 | CL60: 97 | CM60: 0 | CN60: 3 | CO60: 63 | CP60: 20 | CQ60: 13
A61: 771 | B61: WILLIAM A. CHAPMAN ELEM. SCHL | C61: 58 | D61: 201 | E61: 19 | F61: 17 | G61: 34 | H61: 26 | I61: 3 | J61: 64 | K61: 15 | L61: 6 | M61: 10 | O61: 801 | P61: CITRUS GROVE ELEMENTARY SCHOOL | Q61: 139 | R61: 203 | S61: 41 | T61: 19 | U61: 21 | V61: 12 | W61: 7 | X61: 40 | Y61: 11 | Z61: 6 | AA61: 7 | AC61: 801 | AD61: CITRUS GROVE ELEMENTARY SCHOOL | AE61: 139 | AF61: 213 | AG61: 34 | AH61: 27 | AI61: 24 | AJ61: 10 | AK61: 4 | AL61: 39 | AM61: 11 | AN61: 5 | AO61: 7 | AQ61: 5043 | AR61: LINCOLN-MARTI SCHOOLS INTERNATIONAL | AS61: 3 | AT61: * | AU61: * | AV61: * | AW61: * | AX61: * | AY61: * | AZ61: * | BA61: * | BB61: * | BC61: * | BE61: 6011 | BF61: ALLAPATTAH MIDDLE SCHOOL | BG61: 215 | BH61: 217 | BI61: 52 | BJ61: 32 | BK61: 14 | BL61: 1 | BM61: 1 | BN61: 17 | BO61: 4 | BP61: 5 | BQ61: 4 | BR61: 3 | BT61: 6021 | BU61: ARVIDA MIDDLE SCHOOL | BV61: 446 | BW61: 252 | BX61: 9 | BY61: 17 | BZ61: 32 | CA61: 24 | CB61: 18 | CC61: 74 | CD61: 8 | CE61: 13 | CF61: 10 | CH61: 6028 | CI61: RENAISSANCE MIDDLE CHARTER SCHOOL | CJ61: 31 | CK61: 417 | CL61: 90 | CM61: 0 | CN61: 10 | CO61: 55 | CP61: 16 | CQ61: 19
A62: 801 | B62: CITRUS GROVE ELEMENTARY SCHOOL | C62: 164 | D62: 188 | E62: 40 | F62: 29 | G62: 19 | H62: 9 | I62: 3 | J62: 31 | K62: 11 | L62: 5 | M62: 8 | O62: 831 | P62: CLAUDE PEPPER ELEMENTARY SCHL | Q62: 116 | R62: 219 | S62: 13 | T62: 20 | U62: 27 | V62: 26 | W62: 15 | X62: 67 | Y62: 14 | Z62: 8 | AA62: 8 | AC62: 831 | AD62: CLAUDE PEPPER ELEMENTARY SCHL | AE62: 117 | AF62: 227 | AG62: 15 | AH62: 21 | AI62: 26 | AJ62: 23 | AK62: 15 | AL62: 63 | AM62: 14 | AN62: 6 | AO62: 9 | AQ62: 5044 | AR62: ACADEMY OF INTERNATIONAL EDUCATION | AS62: 36 | AT62: 226 | AU62: 33 | AV62: 19 | AW62: 19 | AX62: 17 | AY62: 11 | AZ62: 47 | BA62: 9 | BB62: 11 | BC62: 4 | BE62: 6012 | BF62: MATER ACADEMY CHARTER MIDDLE | BG62: 464 | BH62: 241 | BI62: 9 | BJ62: 22 | BK62: 35 | BL62: 22 | BM62: 12 | BN62: 69 | BO62: 7 | BP62: 8 | BQ62: 8 | BR62: 5 | BT62: 6022 | BU62: PINECREST ACADEMY CHARTER MIDDLE SC | BV62: 257 | BW62: 242 | BX62: 18 | BY62: 28 | BZ62: 39 | CA62: 11 | CB62: 5 | CC62: 55 | CD62: 7 | CE62: 11 | CF62: 8 | CH62: 6030 | CI62: DORAL ACADEMY CHARTER MIDDLE SCHOOL | CJ62: 176 | CK62: 430 | CL62: 96 | CM62: 1 | CN62: 3 | CO62: 31 | CP62: 35 | CQ62: 31
A63: 831 | B63: CLAUDE PEPPER ELEMENTARY SCHL | C63: 130 | D63: 204 | E63: 13 | F63: 25 | G63: 28 | H63: 23 | I63: 10 | J63: 62 | K63: 15 | L63: 7 | M63: 10 | O63: 841 | P63: COCONUT GROVE ELEMENTARY SCHL | Q63: 55 | R63: 223 | S63: 11 | T63: 13 | U63: 38 | V63: 16 | W63: 22 | X63: 76 | Y63: 14 | Z63: 8 | AA63: 9 | AC63: 841 | AD63: COCONUT GROVE ELEMENTARY SCHL | AE63: 52 | AF63: 227 | AG63: 12 | AH63: 17 | AI63: 27 | AJ63: 31 | AK63: 13 | AL63: 71 | AM63: 15 | AN63: 6 | AO63: 9 | AQ63: 5047 | AR63: MATER ACADEMY MIAMI BEACH | AS63: 77 | AT63: 231 | AU63: 12 | AV63: 29 | AW63: 30 | AX63: 22 | AY63: 8 | AZ63: 60 | BA63: 10 | BB63: 11 | BC63: 5 | BE63: 6013 | BF63: SOMERSET ACADEMY CHARTER MIDDLE S H | BG63: 38 | BH63: 237 | BI63: 21 | BJ63: 18 | BK63: 34 | BL63: 24 | BM63: 3 | BN63: 61 | BO63: 6 | BP63: 7 | BQ63: 7 | BR63: 5 | BT63: 6023 | BU63: ANDOVER MIDDLE SCHOOL | BV63: 406 | BW63: 239 | BX63: 23 | BY63: 29 | BZ63: 35 | CA63: 10 | CB63: 3 | CC63: 48 | CD63: 7 | CE63: 10 | CF63: 8 | CH63: 6031 | CI63: BROWNSVILLE MIDDLE SCHOOL | CJ63: 20 | CK63: 409 | CL63: 80 | CM63: 0 | CN63: 20 | CO63: 70 | CP63: 5 | CQ63: 5
A64: 841 | B64: COCONUT GROVE ELEMENTARY SCHL | C64: 61 | D64: 203 | E64: 15 | F64: 23 | G64: 30 | H64: 25 | I64: 8 | J64: 62 | K64: 15 | L64: 7 | M64: 10 | O64: 861 | P64: COLONIAL DRIVE ELEMENTARY SCHL | Q64: 42 | R64: 212 | S64: 21 | T64: 29 | U64: 29 | V64: 17 | W64: 5 | X64: 50 | Y64: 13 | Z64: 7 | AA64: 8 | AC64: 861 | AD64: COLONIAL DRIVE ELEMENTARY SCHL | AE64: 35 | AF64: 217 | AG64: 26 | AH64: 31 | AI64: 20 | AJ64: 17 | AK64: 6 | AL64: 43 | AM64: 11 | AN64: 5 | AO64: 8 | AQ64: 5049 | AR64: PINECREST COVE ACADEMY | AS64: 29 | AT64: 242 | AU64: 10 | AV64: 7 | AW64: 21 | AX64: 38 | AY64: 24 | AZ64: 83 | BA64: 12 | BB64: 14 | BC64: 6 | BE64: 6020 | BF64: ASPIRA RAUL ARNALDO MARTINEZ CHR SC | BG64: 191 | BH64: 224 | BI64: 35 | BJ64: 28 | BK64: 30 | BL64: 6 | BM64: 2 | BN64: 37 | BO64: 5 | BP64: 6 | BQ64: 5 | BR64: 4 | BT64: 6028 | BU64: RENAISSANCE MIDDLE CHARTER SCHOOL | BV64: 79 | BW64: 248 | BX64: 9 | BY64: 20 | BZ64: 42 | CA64: 22 | CB64: 8 | CC64: 71 | CD64: 8 | CE64: 12 | CF64: 10 | CH64: 6033 | CI64: MATER ACADEMY LAKES MIDDLE SCHOOL | CJ64: 69 | CK64: 429 | CL64: 97 | CM64: 0 | CN64: 3 | CO64: 45 | CP64: 22 | CQ64: 30
A65: 861 | B65: COLONIAL DRIVE ELEMENTARY SCHL | C65: 31 | D65: 196 | E65: 19 | F65: 32 | G65: 23 | H65: 23 | I65: 3 | J65: 48 | K65: 13 | L65: 6 | M65: 9 | O65: 881 | P65: COMSTOCK ELEMENTARY SCHOOL | Q65: 78 | R65: 212 | S65: 21 | T65: 22 | U65: 26 | V65: 23 | W65: 9 | X65: 58 | Y65: 13 | Z65: 8 | AA65: 7 | AC65: 881 | AD65: COMSTOCK ELEMENTARY SCHOOL | AE65: 79 | AF65: 212 | AG65: 28 | AH65: 32 | AI65: 27 | AJ65: 11 | AK65: 3 | AL65: 41 | AM65: 11 | AN65: 5 | AO65: 7 | AQ65: 5051 | AR65: ERNEST R. GRAHAM K-8 CENTER | AS65: 102 | AT65: 230 | AU65: 15 | AV65: 27 | AW65: 28 | AX65: 21 | AY65: 9 | AZ65: 58 | BA65: 10 | BB65: 11 | BC65: 5 | BE65: 6021 | BF65: ARVIDA MIDDLE SCHOOL | BG65: 440 | BH65: 244 | BI65: 9 | BJ65: 17 | BK65: 29 | BL65: 29 | BM65: 17 | BN65: 74 | BO65: 7 | BP65: 8 | BQ65: 8 | BR65: 5 | BT65: 6030 | BU65: DORAL ACADEMY CHARTER MIDDLE SCHOOL | BV65: 378 | BW65: 249 | BX65: 5 | BY65: 20 | BZ65: 45 | CA65: 21 | CB65: 9 | CC65: 75 | CD65: 8 | CE65: 13 | CF65: 9 | CH65: 6040 | CI65: DOCTORS CHARTER SCHOOL OF MIAMI SHO | CJ65: 73 | CK65: 425 | CL65: 93 | CM65: 1 | CN65: 5 | CO65: 37 | CP65: 30 | CQ65: 26
A66: 881 | B66: COMSTOCK ELEMENTARY SCHOOL | C66: 96 | D66: 198 | E66: 23 | F66: 27 | G66: 22 | H66: 25 | I66: 3 | J66: 50 | K66: 14 | L66: 6 | M66: 9 | O66: 950 | P66: AVENTURA CITY OF EXCELLENCE | Q66: 110 | R66: 227 | S66: 3 | T66: 15 | U66: 21 | V66: 35 | W66: 25 | X66: 82 | Y66: 15 | Z66: 9 | AA66: 9 | AC66: 950 | AD66: AVENTURA CITY OF EXCELLENCE | AE66: 110 | AF66: 239 | AG66: 0 | AH66: 6 | AI66: 30 | AJ66: 38 | AK66: 25 | AL66: 94 | AM66: 17 | AN66: 8 | AO66: 11 | AQ66: 5101 | AR66: JOHN I. SMITH K-8 CENTER | AS66: 132 | AT66: 226 | AU66: 23 | AV66: 23 | AW66: 30 | AX66: 20 | AY66: 4 | AZ66: 54 | BA66: 9 | BB66: 11 | BC66: 4 | BE66: 6022 | BF66: PINECREST ACADEMY CHARTER MIDDLE SC | BG66: 293 | BH66: 240 | BI66: 8 | BJ66: 20 | BK66: 43 | BL66: 22 | BM66: 6 | BN66: 71 | BO66: 7 | BP66: 8 | BQ66: 8 | BR66: 5 | BT66: 6031 | BU66: BROWNSVILLE MIDDLE SCHOOL | BV66: 200 | BW66: 232 | BX66: 40 | BY66: 31 | BZ66: 17 | CA66: 10 | CB66: 2 | CC66: 29 | CD66: 6 | CE66: 9 | CF66: 7 | CH66: 6041 | CI66: PAUL W. BELL MIDDLE SCHOOL | CJ66: 36 | CK66: 425 | CL66: 97 | CM66: 3 | CN66: 0 | CO66: 39 | CP66: 36 | CQ66: 22
A67: 950 | B67: AVENTURA CITY OF EXCELLENCE | C67: 109 | D67: 215 | E67: 3 | F67: 11 | G67: 36 | H67: 32 | I67: 18 | J67: 86 | K67: 18 | L67: 8 | M67: 11 | O67: 961 | P67: CORAL GABLES PREPARATORY ACADEMY | Q67: 90 | R67: 228 | S67: 8 | T67: 12 | U67: 24 | V67: 22 | W67: 33 | X67: 80 | Y67: 15 | Z67: 9 | AA67: 9 | AC67: 961 | AD67: CORAL GABLES PREPARATORY ACADEMY | AE67: 106 | AF67: 242 | AG67: 10 | AH67: 7 | AI67: 17 | AJ67: 22 | AK67: 44 | AL67: 83 | AM67: 17 | AN67: 8 | AO67: 10 | AQ67: 5141 | AR67: HUBERT O. SIBLEY K-8 CENTER | AS67: 97 | AT67: 214 | AU67: 44 | AV67: 20 | AW67: 18 | AX67: 15 | AY67: 3 | AZ67: 36 | BA67: 8 | BB67: 8 | BC67: 3 | BE67: 6023 | BF67: ANDOVER MIDDLE SCHOOL | BG67: 384 | BH67: 228 | BI67: 27 | BJ67: 38 | BK67: 26 | BL67: 7 | BM67: 3 | BN67: 36 | BO67: 5 | BP67: 6 | BQ67: 6 | BR67: 4 | BT67: 6033 | BU67: MATER ACADEMY LAKES MIDDLE SCHOOL | BV67: 195 | BW67: 243 | BX67: 17 | BY67: 23 | BZ67: 38 | CA67: 15 | CB67: 6 | CC67: 59 | CD67: 7 | CE67: 12 | CF67: 8 | CH67: 6042 | CI67: MATER GARDENS ACADEMY MIDDLE SCHOOL | CJ67: 49 | CK67: 425 | CL67: 100 | CM67: 0 | CN67: 0 | CO67: 49 | CP67: 37 | CQ67: 14
A68: 961 | B68: CORAL GABLES PREPARATORY ACADEMY | C68: 96 | D68: 213 | E68: 4 | F68: 10 | G68: 40 | H68: 29 | I68: 17 | J68: 85 | K68: 17 | L68: 8 | M68: 11 | O68: 1001 | P68: CORAL PARK ELEMENTARY SCHOOL | Q68: 201 | R68: 230 | S68: 7 | T68: 6 | U68: 20 | V68: 40 | W68: 26 | X68: 87 | Y68: 15 | Z68: 9 | AA68: 10 | AC68: 1001 | AD68: CORAL PARK ELEMENTARY SCHOOL | AE68: 188 | AF68: 235 | AG68: 4 | AH68: 13 | AI68: 26 | AJ68: 34 | AK68: 24 | AL68: 84 | AM68: 17 | AN68: 7 | AO68: 10 | AQ68: 5241 | AR68: SOUTH MIAMI K-8 CENTER | AS68: 74 | AT68: 228 | AU68: 18 | AV68: 31 | AW68: 23 | AX68: 16 | AY68: 12 | AZ68: 51 | BA68: 9 | BB68: 11 | BC68: 5 | BE68: 6028 | BF68: RENAISSANCE MIDDLE CHARTER SCHOOL | BG68: 154 | BH68: 243 | BI68: 5 | BJ68: 20 | BK68: 37 | BL68: 28 | BM68: 10 | BN68: 75 | BO68: 7 | BP68: 8 | BQ68: 8 | BR68: 5 | BT68: 6040 | BU68: DOCTORS CHARTER SCHOOL OF MIAMI SHO | BV68: 88 | BW68: 255 | BX68: 3 | BY68: 13 | BZ68: 36 | CA68: 30 | CB68: 18 | CC68: 84 | CD68: 9 | CE68: 13 | CF68: 11 | CH68: 6045 | CI68: INTERNATIONAL STUDIES CHARTER MIDDL | CJ68: 12 | CK68: 428 | CL68: 100 | CM68: 0 | CN68: 0 | CO68: 25 | CP68: 50 | CQ68: 25
A69: 1001 | B69: CORAL PARK ELEMENTARY SCHOOL | C69: 169 | D69: 217 | E69: 2 | F69: 8 | G69: 33 | H69: 33 | I69: 24 | J69: 90 | K69: 18 | L69: 8 | M69: 11 | O69: 1010 | P69: THE CHARTER SCHOOL AT WATERSTONE | Q69: 133 | R69: 215 | S69: 11 | T69: 18 | U69: 44 | V69: 22 | W69: 5 | X69: 71 | Y69: 13 | Z69: 8 | AA69: 8 | AC69: 1010 | AD69: THE CHARTER SCHOOL AT WATERSTONE | AE69: 142 | AF69: 226 | AG69: 11 | AH69: 20 | AI69: 41 | AJ69: 15 | AK69: 12 | AL69: 68 | AM69: 14 | AN69: 7 | AO69: 9 | AQ69: 5671 | AR69: VINELAND K-8 CENTER | AS69: 99 | AT69: 232 | AU69: 8 | AV69: 22 | AW69: 35 | AX69: 29 | AY69: 5 | AZ69: 70 | BA69: 10 | BB69: 11 | BC69: 5 | BE69: 6030 | BF69: DORAL ACADEMY CHARTER MIDDLE SCHOOL | BG69: 381 | BH69: 242 | BI69: 6 | BJ69: 15 | BK69: 44 | BL69: 27 | BM69: 8 | BN69: 79 | BO69: 7 | BP69: 8 | BQ69: 8 | BR69: 5 | BT69: 6041 | BU69: PAUL W. BELL MIDDLE SCHOOL | BV69: 233 | BW69: 234 | BX69: 35 | BY69: 31 | BZ69: 18 | CA69: 11 | CB69: 5 | CC69: 34 | CD69: 6 | CE69: 9 | CF69: 7 | CH69: 6048 | CI69: MIAMI COMMUNITY CHARTER MIDDLE SCHO | CJ69: 70 | CK69: 392 | CL69: 46 | CM69: 23 | CN69: 31 | CO69: 41 | CP69: 4 | CQ69: 0
A70: 1010 | B70: THE CHARTER SCHOOL AT WATERSTONE | C70: 118 | D70: 204 | E70: 6 | F70: 25 | G70: 45 | H70: 23 | I70: 2 | J70: 69 | K70: 16 | L70: 7 | M70: 10 | O70: 1014 | P70: ADVANCED LEARNING CHARTER SCHOOL | Q70: 64 | R70: 222 | S70: 8 | T70: 23 | U70: 19 | V70: 34 | W70: 16 | X70: 69 | Y70: 13 | Z70: 8 | AA70: 10 | AC70: 1014 | AD70: ADVANCED LEARNING CHARTER SCHOOL | AE70: 37 | AF70: 217 | AG70: 27 | AH70: 30 | AI70: 22 | AJ70: 16 | AK70: 5 | AL70: 43 | AM70: 12 | AN70: 5 | AO70: 8 | AQ70: 5861 | AR70: DR. HENRY W. MACK/WEST LITTLE RIVER | AS70: 40 | AT70: 220 | AU70: 33 | AV70: 28 | AW70: 25 | AX70: 8 | AY70: 8 | AZ70: 40 | BA70: 8 | BB70: 9 | BC70: 4 | BE70: 6031 | BF70: BROWNSVILLE MIDDLE SCHOOL | BG70: 216 | BH70: 222 | BI70: 44 | BJ70: 29 | BK70: 20 | BL70: 7 | BM70: 0 | BN70: 27 | BO70: 4 | BP70: 5 | BQ70: 5 | BR70: 3 | BT70: 6042 | BU70: MATER GARDENS ACADEMY MIDDLE SCHOOL | BV70: 73 | BW70: 255 | BX70: 5 | BY70: 14 | BZ70: 30 | CA70: 27 | CB70: 23 | CC70: 81 | CD70: 9 | CE70: 14 | CF70: 11 | CH70: 6049 | CI70: RIVER CITIES COMMUNITY CHARTER SCHO | CJ70: 8 | CK70: * | CL70: * | CM70: * | CN70: * | CO70: * | CP70: * | CQ70: *
A71: 1014 | B71: ADVANCED LEARNING CHARTER SCHOOL | C71: 73 | D71: 204 | E71: 7 | F71: 27 | G71: 41 | H71: 14 | I71: 11 | J71: 66 | K71: 15 | L71: 7 | M71: 10 | O71: 1017 | P71: MATER ACADEMY OF INTERNATIONAL STUD | Q71: 53 | R71: 210 | S71: 19 | T71: 30 | U71: 32 | V71: 11 | W71: 8 | X71: 51 | Y71: 12 | Z71: 7 | AA71: 7 | AC71: 1017 | AD71: MATER ACADEMY OF INTERNATIONAL STUD | AE71: 42 | AF71: 222 | AG71: 10 | AH71: 38 | AI71: 33 | AJ71: 10 | AK71: 10 | AL71: 52 | AM71: 13 | AN71: 6 | AO71: 7 | AQ71: 5901 | AR71: CARRIE P. MEEK/WESTVIEW K-8 CENTER | AS71: 60 | AT71: 224 | AU71: 23 | AV71: 30 | AW71: 13 | AX71: 32 | AY71: 2 | AZ71: 47 | BA71: 9 | BB71: 9 | BC71: 5 | BE71: 6033 | BF71: MATER ACADEMY LAKES MIDDLE SCHOOL | BG71: 185 | BH71: 237 | BI71: 11 | BJ71: 29 | BK71: 36 | BL71: 19 | BM71: 5 | BN71: 60 | BO71: 6 | BP71: 7 | BQ71: 7 | BR71: 5 | BT71: 6045 | BU71: INTERNATIONAL STUDIES CHARTER MIDDL | BV71: 66 | BW71: 244 | BX71: 14 | BY71: 21 | BZ71: 44 | CA71: 15 | CB71: 6 | CC71: 65 | CD71: 8 | CE71: 11 | CF71: 8 | CH71: 6051 | CI71: CAROL CITY MIDDLE SCHOOL | CJ71: 14 | CK71: 401 | CL71: 57 | CM71: 7 | CN71: 36 | CO71: 57 | CP71: 0 | CQ71: 0
A72: 1017 | B72: MATER ACADEMY OF INTERNATIONAL STUD | C72: 53 | D72: 203 | E72: 11 | F72: 34 | G72: 25 | H72: 19 | I72: 11 | J72: 55 | K72: 15 | L72: 7 | M72: 10 | O72: 1020 | P72: YOUTH CO-OP CHARTER SCHOOL | Q72: 43 | R72: 218 | S72: 7 | T72: 33 | U72: 23 | V72: 23 | W72: 14 | X72: 60 | Y72: 13 | Z72: 8 | AA72: 9 | AC72: 1020 | AD72: YOUTH CO-OP CHARTER SCHOOL | AE72: 50 | AF72: 228 | AG72: 2 | AH72: 28 | AI72: 32 | AJ72: 34 | AK72: 4 | AL72: 70 | AM72: 15 | AN72: 7 | AO72: 9 | AQ72: 5961 | AR72: WINSTON PARK K-8 CENTER | AS72: 162 | AT72: 231 | AU72: 12 | AV72: 23 | AW72: 33 | AX72: 22 | AY72: 10 | AZ72: 65 | BA72: 10 | BB72: 11 | BC72: 5 | BE72: 6040 | BF72: DOCTORS CHARTER SCHOOL OF MIAMI SHO | BG72: 88 | BH72: 246 | BI72: 3 | BJ72: 18 | BK72: 32 | BL72: 28 | BM72: 18 | BN72: 78 | BO72: 7 | BP72: 8 | BQ72: 9 | BR72: 6 | BT72: 6047 | BU72: MATER ACAD MIDDLE SCHOOL INTERNAT S | BV72: 35 | BW72: 246 | BX72: 6 | BY72: 29 | BZ72: 43 | CA72: 23 | CB72: 0 | CC72: 66 | CD72: 8 | CE72: 12 | CF72: 9 | CH72: 6052 | CI72: ZELDA GLAZER MIDDLE SCHOOL | CJ72: 155 | CK72: 421 | CL72: 93 | CM72: 2 | CN72: 5 | CO72: 41 | CP72: 35 | CQ72: 17
A73: 1020 | B73: YOUTH CO-OP CHARTER SCHOOL | C73: 37 | D73: 207 | E73: 11 | F73: 27 | G73: 30 | H73: 19 | I73: 14 | J73: 62 | K73: 15 | L73: 7 | M73: 10 | O73: 1041 | P73: CORAL REEF ELEMENTARY SCHOOL | Q73: 146 | R73: 230 | S73: 9 | T73: 10 | U73: 21 | V73: 25 | W73: 35 | X73: 82 | Y73: 15 | Z73: 9 | AA73: 10 | AC73: 1041 | AD73: CORAL REEF ELEMENTARY SCHOOL | AE73: 146 | AF73: 232 | AG73: 10 | AH73: 16 | AI73: 19 | AJ73: 32 | AK73: 23 | AL73: 74 | AM73: 15 | AN73: 7 | AO73: 10 | AQ73: 6001 | AR73: HERBERT A. AMMONS MIDDLE SCHL | AS73: 420 | AT73: 243 | AU73: 1 | AV73: 9 | AW73: 34 | AX73: 33 | AY73: 23 | AZ73: 90 | BA73: 13 | BB73: 14 | BC73: 6 | BE73: 6041 | BF73: PAUL W. BELL MIDDLE SCHOOL | BG73: 250 | BH73: 225 | BI73: 38 | BJ73: 24 | BK73: 22 | BL73: 12 | BM73: 3 | BN73: 37 | BO73: 5 | BP73: 6 | BQ73: 6 | BR73: 4 | BT73: 6048 | BU73: MIAMI COMMUNITY CHARTER MIDDLE SCHO | BV73: 66 | BW73: 235 | BX73: 27 | BY73: 35 | BZ73: 38 | CA73: 0 | CB73: 0 | CC73: 38 | CD73: 6 | CE73: 10 | CF73: 7 | CH73: 6053 | CI73: SOMERSET ACADEMY CHARTER MIDDLE SOU | CJ73: 19 | CK73: 412 | CL73: 84 | CM73: 0 | CN73: 16 | CO73: 68 | CP73: 16 | CQ73: 0
A74: 1041 | B74: CORAL REEF ELEMENTARY SCHOOL | C74: 154 | D74: 213 | E74: 5 | F74: 19 | G74: 28 | H74: 31 | I74: 17 | J74: 75 | K74: 17 | L74: 7 | M74: 11 | O74: 1081 | P74: CORAL TERRACE ELEMENTARY SCHL | Q74: 91 | R74: 209 | S74: 26 | T74: 25 | U74: 27 | V74: 16 | W74: 4 | X74: 48 | Y74: 12 | Z74: 8 | AA74: 7 | AC74: 1081 | AD74: CORAL TERRACE ELEMENTARY SCHL | AE74: 101 | AF74: 216 | AG74: 29 | AH74: 28 | AI74: 22 | AJ74: 17 | AK74: 5 | AL74: 44 | AM74: 12 | AN74: 5 | AO74: 7 | AQ74: 6003 | AR74: PINECREST ACADEMY MIDDLE SCHOOL/NOR | AS74: 15 | AT74: 236 | AU74: 7 | AV74: 13 | AW74: 40 | AX74: 20 | AY74: 20 | AZ74: 80 | BA74: 12 | BB74: 12 | BC74: 5 | BE74: 6042 | BF74: MATER GARDENS ACADEMY MIDDLE SCHOOL | BG74: 85 | BH74: 243 | BI74: 9 | BJ74: 24 | BK74: 20 | BL74: 35 | BM74: 12 | BN74: 67 | BO74: 7 | BP74: 8 | BQ74: 8 | BR74: 5 | BT74: 6049 | BU74: RIVER CITIES COMMUNITY CHARTER SCHO | BV74: 20 | BW74: 231 | BX74: 40 | BY74: 25 | BZ74: 35 | CA74: 0 | CB74: 0 | CC74: 35 | CD74: 6 | CE74: 9 | CF74: 6 | CH74: 6060 | CI74: ASPIRA SOUTH YOUTH LEADERSHIP CHART | CJ74: 61 | CK74: 423 | CL74: 93 | CM74: 0 | CN74: 7 | CO74: 44 | CP74: 30 | CQ74: 20
A75: 1081 | B75: CORAL TERRACE ELEMENTARY SCHL | C75: 92 | D75: 199 | E75: 20 | F75: 27 | G75: 33 | H75: 16 | I75: 4 | J75: 53 | K75: 14 | L75: 6 | M75: 10 | O75: 1121 | P75: CORAL WAY K-8 CENTER | Q75: 192 | R75: 210 | S75: 22 | T75: 18 | U75: 32 | V75: 21 | W75: 7 | X75: 60 | Y75: 12 | Z75: 7 | AA75: 8 | AC75: 1121 | AD75: CORAL WAY K-8 CENTER | AE75: 190 | AF75: 222 | AG75: 16 | AH75: 26 | AI75: 31 | AJ75: 20 | AK75: 7 | AL75: 58 | AM75: 13 | AN75: 6 | AO75: 8 | AQ75: 6004 | AR75: SOMERSET ACADEMY CHARTER MIDDLE SCH | AS75: 102 | AT75: 241 | AU75: 4 | AV75: 19 | AW75: 22 | AX75: 29 | AY75: 26 | AZ75: 77 | BA75: 13 | BB75: 13 | BC75: 6 | BE75: 6043 | BF75: SOMERSET ACADEMY MIDDLE COUNTRY PAL | BG75: 4 | BH75: * | BI75: * | BJ75: * | BK75: * | BL75: * | BM75: * | BN75: * | BO75: * | BP75: * | BQ75: * | BR75: * | BT75: 6051 | BU75: CAROL CITY MIDDLE SCHOOL | BV75: 228 | BW75: 230 | BX75: 40 | BY75: 36 | BZ75: 18 | CA75: 4 | CB75: 2 | CC75: 24 | CD75: 6 | CE75: 8 | CF75: 6 | CH75: 6061 | CI75: CAMPBELL DRIVE MIDDLE SCHOOL | CJ75: 22 | CK75: 412 | CL75: 82 | CM75: 0 | CN75: 18 | CO75: 64 | CP75: 9 | CQ75: 9
A76: 1121 | B76: CORAL WAY K-8 CENTER | C76: 177 | D76: 199 | E76: 17 | F76: 29 | G76: 31 | H76: 19 | I76: 5 | J76: 54 | K76: 14 | L76: 6 | M76: 10 | O76: 1161 | P76: CRESTVIEW ELEMENTARY SCHOOL | Q76: 113 | R76: 208 | S76: 20 | T76: 33 | U76: 35 | V76: 8 | W76: 4 | X76: 47 | Y76: 12 | Z76: 7 | AA76: 7 | AC76: 1161 | AD76: CRESTVIEW ELEMENTARY SCHOOL | AE76: 115 | AF76: 220 | AG76: 23 | AH76: 28 | AI76: 22 | AJ76: 17 | AK76: 10 | AL76: 50 | AM76: 13 | AN76: 6 | AO76: 8 | AQ76: 6006 | AR76: ARCHIMEDEAN MIDDLE CONSERVATORY | AS76: 120 | AT76: 250 | AU76: 1 | AV76: 7 | AW76: 18 | AX76: 34 | AY76: 41 | AZ76: 93 | BA76: 14 | BB76: 14 | BC76: 7 | BE76: 6045 | BF76: INTERNATIONAL STUDIES CHARTER MIDDL | BG76: 80 | BH76: 241 | BI76: 9 | BJ76: 25 | BK76: 29 | BL76: 28 | BM76: 10 | BN76: 66 | BO76: 7 | BP76: 8 | BQ76: 8 | BR76: 5 | BT76: 6052 | BU76: ZELDA GLAZER MIDDLE SCHOOL | BV76: 508 | BW76: 245 | BX76: 16 | BY76: 23 | BZ76: 36 | CA76: 16 | CB76: 9 | CC76: 61 | CD76: 8 | CE76: 12 | CF76: 9 | CH76: 6070 | CI76: ASPIRA EUGENIO MARIA DE HOSTOS CHAR | CJ76: 26 | CK76: 424 | CL76: 100 | CM76: 0 | CN76: 0 | CO76: 58 | CP76: 27 | CQ76: 15
A77: 1161 | B77: CRESTVIEW ELEMENTARY SCHOOL | C77: 77 | D77: 190 | E77: 30 | F77: 34 | G77: 30 | H77: 6 | I77: 0 | J77: 36 | K77: 12 | L77: 6 | M77: 8 | O77: 1241 | P77: CUTLER RIDGE ELEMENTARY SCHOOL | Q77: 139 | R77: 222 | S77: 4 | T77: 19 | U77: 34 | V77: 27 | W77: 17 | X77: 77 | Y77: 14 | Z77: 9 | AA77: 9 | AC77: 1241 | AD77: CUTLER RIDGE ELEMENTARY SCHOOL | AE77: 125 | AF77: 226 | AG77: 14 | AH77: 24 | AI77: 22 | AJ77: 24 | AK77: 15 | AL77: 62 | AM77: 14 | AN77: 6 | AO77: 9 | AQ77: 6008 | AR77: LAWRENCE ACADEMY | AS77: 44 | AT77: 229 | AU77: 11 | AV77: 34 | AW77: 36 | AX77: 16 | AY77: 2 | AZ77: 55 | BA77: 10 | BB77: 11 | BC77: 4 | BE77: 6047 | BF77: MATER ACAD MIDDLE SCHOOL INTERNAT S | BG77: 47 | BH77: 240 | BI77: 6 | BJ77: 23 | BK77: 43 | BL77: 21 | BM77: 6 | BN77: 70 | BO77: 6 | BP77: 8 | BQ77: 7 | BR77: 5 | BT77: 6053 | BU77: SOMERSET ACADEMY CHARTER MIDDLE SOU | BV77: 19 | BW77: 251 | BX77: 0 | BY77: 21 | BZ77: 37 | CA77: 42 | CB77: 0 | CC77: 79 | CD77: 8 | CE77: 14 | CF77: 9 | CH77: 6071 | CI77: GEORGE WASHINGTON CARVER MIDDLE SCH | CJ77: 316 | CK77: 430 | CL77: 98 | CM77: 0 | CN77: 2 | CO77: 29 | CP77: 37 | CQ77: 32
A78: 1241 | B78: CUTLER RIDGE ELEMENTARY SCHOOL | C78: 167 | D78: 201 | E78: 17 | F78: 29 | G78: 26 | H78: 20 | I78: 8 | J78: 54 | K78: 15 | L78: 6 | M78: 10 | O78: 1281 | P78: CYPRESS ELEMENTARY SCHOOL | Q78: 69 | R78: 215 | S78: 17 | T78: 26 | U78: 29 | V78: 17 | W78: 10 | X78: 57 | Y78: 12 | Z78: 8 | AA78: 8 | AC78: 1281 | AD78: CYPRESS ELEMENTARY SCHOOL | AE78: 52 | AF78: 226 | AG78: 10 | AH78: 25 | AI78: 25 | AJ78: 27 | AK78: 13 | AL78: 65 | AM78: 14 | AN78: 7 | AO78: 9 | AQ78: 6009 | AR78: MATER EAST ACADEMY MIDDLE SCHOOL | AS78: 103 | AT78: 220 | AU78: 26 | AV78: 38 | AW78: 27 | AX78: 8 | AY78: 1 | AZ78: 36 | BA78: 8 | BB78: 9 | BC78: 3 | BE78: 6048 | BF78: MIAMI COMMUNITY CHARTER MIDDLE SCHO | BG78: 90 | BH78: 232 | BI78: 14 | BJ78: 39 | BK78: 32 | BL78: 12 | BM78: 2 | BN78: 47 | BO78: 6 | BP78: 6 | BQ78: 7 | BR78: 4 | BT78: 6060 | BU78: ASPIRA SOUTH YOUTH LEADERSHIP CHART | BV78: 103 | BW78: 250 | BX78: 6 | BY78: 16 | BZ78: 41 | CA78: 26 | CB78: 12 | CC78: 79 | CD78: 8 | CE78: 12 | CF78: 10 | CH78: 6081 | CI78: CENTENNIAL MIDDLE SCHOOL | CJ78: 29 | CK78: 423 | CL78: 93 | CM78: 0 | CN78: 7 | CO78: 45 | CP78: 38 | CQ78: 10
A79: 1281 | B79: CYPRESS ELEMENTARY SCHOOL | C79: 65 | D79: 205 | E79: 11 | F79: 26 | G79: 34 | H79: 15 | I79: 14 | J79: 63 | K79: 15 | L79: 7 | M79: 10 | O79: 1331 | P79: DEVON AIRE K-8 CENTER | Q79: 166 | R79: 225 | S79: 11 | T79: 11 | U79: 28 | V79: 27 | W79: 23 | X79: 78 | Y79: 14 | Z79: 8 | AA79: 9 | AC79: 1331 | AD79: DEVON AIRE K-8 CENTER | AE79: 189 | AF79: 231 | AG79: 8 | AH79: 16 | AI79: 29 | AJ79: 29 | AK79: 19 | AL79: 76 | AM79: 15 | AN79: 7 | AO79: 10 | AQ79: 6010 | AR79: FLORIDA INT'L ACADEMY CHARTER | AS79: 129 | AT79: 226 | AU79: 16 | AV79: 33 | AW79: 35 | AX79: 14 | AY79: 3 | AZ79: 52 | BA79: 9 | BB79: 10 | BC79: 4 | BE79: 6049 | BF79: RIVER CITIES COMMUNITY CHARTER SCHO | BG79: 31 | BH79: 224 | BI79: 39 | BJ79: 32 | BK79: 23 | BL79: 6 | BM79: 0 | BN79: 29 | BO79: 5 | BP79: 5 | BQ79: 6 | BR79: 4 | BT79: 6061 | BU79: CAMPBELL DRIVE MIDDLE SCHOOL | BV79: 219 | BW79: 231 | BX79: 42 | BY79: 22 | BZ79: 29 | CA79: 4 | CB79: 3 | CC79: 35 | CD79: 6 | CE79: 8 | CF79: 7 | CH79: 6091 | CI79: CITRUS GROVE MIDDLE SCHOOL | CJ79: 38 | CK79: 411 | CL79: 79 | CM79: 3 | CN79: 18 | CO79: 63 | CP79: 13 | CQ79: 3
A80: 1331 | B80: DEVON AIRE K-8 CENTER | C80: 170 | D80: 209 | E80: 7 | F80: 23 | G80: 32 | H80: 19 | I80: 19 | J80: 70 | K80: 16 | L80: 7 | M80: 11 | O80: 1361 | P80: FREDERICK R. DOUGLASS ELEM. | Q80: 40 | R80: 200 | S80: 43 | T80: 25 | U80: 15 | V80: 15 | W80: 3 | X80: 33 | Y80: 10 | Z80: 6 | AA80: 7 | AC80: 1361 | AD80: FREDERICK R. DOUGLASS ELEM. | AE80: 48 | AF80: 209 | AG80: 33 | AH80: 38 | AI80: 25 | AJ80: 4 | AK80: 0 | AL80: 29 | AM80: 10 | AN80: 4 | AO80: 7 | AQ80: 6011 | AR80: ALLAPATTAH MIDDLE SCHOOL | AS80: 192 | AT80: 206 | AU80: 57 | AV80: 29 | AW80: 13 | AX80: 1 | AY80: 1 | AZ80: 15 | BA80: 6 | BB80: 6 | BC80: 3 | BE80: 6051 | BF80: CAROL CITY MIDDLE SCHOOL | BG80: 223 | BH80: 220 | BI80: 44 | BJ80: 34 | BK80: 18 | BL80: 4 | BM80: 0 | BN80: 22 | BO80: 4 | BP80: 5 | BQ80: 5 | BR80: 4 | BT80: 6070 | BU80: ASPIRA EUGENIO MARIA DE HOSTOS CHAR | BV80: 127 | BW80: 245 | BX80: 10 | BY80: 26 | BZ80: 42 | CA80: 19 | CB80: 3 | CC80: 64 | CD80: 7 | CE80: 11 | CF80: 10 | CH80: 6111 | CI80: CUTLER RIDGE MIDDLE SCHOOL | CJ80: 79 | CK80: 398 | CL80: 49 | CM80: 8 | CN80: 43 | CO80: 39 | CP80: 9 | CQ80: 1
A81: 1361 | B81: FREDERICK R. DOUGLASS ELEM. | C81: 67 | D81: 189 | E81: 37 | F81: 33 | G81: 22 | H81: 6 | I81: 1 | J81: 30 | K81: 11 | L81: 5 | M81: 8 | O81: 1371 | P81: MARJORY STONEMAN DOUGLAS ELEM | Q81: 211 | R81: 218 | S81: 13 | T81: 15 | U81: 32 | V81: 26 | W81: 14 | X81: 72 | Y81: 14 | Z81: 8 | AA81: 8 | AC81: 1371 | AD81: MARJORY STONEMAN DOUGLAS ELEM | AE81: 177 | AF81: 234 | AG81: 10 | AH81: 14 | AI81: 21 | AJ81: 23 | AK81: 32 | AL81: 76 | AM81: 16 | AN81: 7 | AO81: 10 | AQ81: 6012 | AR81: MATER ACADEMY CHARTER MIDDLE | AS81: 492 | AT81: 235 | AU81: 5 | AV81: 22 | AW81: 34 | AX81: 27 | AY81: 11 | AZ81: 72 | BA81: 11 | BB81: 12 | BC81: 5 | BE81: 6052 | BF81: ZELDA GLAZER MIDDLE SCHOOL | BG81: 534 | BH81: 237 | BI81: 15 | BJ81: 24 | BK81: 31 | BL81: 22 | BM81: 9 | BN81: 62 | BO81: 6 | BP81: 7 | BQ81: 7 | BR81: 5 | BT81: 6071 | BU81: GEORGE WASHINGTON CARVER MIDDLE SCH | BV81: 341 | BW81: 267 | BX81: 0 | BY81: 1 | BZ81: 19 | CA81: 32 | CB81: 48 | CC81: 99 | CD81: 10 | CE81: 17 | CF81: 13 | CH81: 6121 | CI81: RUBEN DARIO MIDDLE SCHOOL | CJ81: 13 | CK81: 425 | CL81: 100 | CM81: 0 | CN81: 0 | CO81: 46 | CP81: 31 | CQ81: 23
A82: 1371 | B82: MARJORY STONEMAN DOUGLAS ELEM | C82: 181 | D82: 203 | E82: 18 | F82: 20 | G82: 27 | H82: 25 | I82: 10 | J82: 62 | K82: 15 | L82: 6 | M82: 10 | O82: 1401 | P82: CHARLES R DREW ELEMENTARY SCHL | Q82: 37 | R82: 209 | S82: 30 | T82: 24 | U82: 30 | V82: 11 | W82: 5 | X82: 46 | Y82: 11 | Z82: 8 | AA82: 7 | AC82: 1401 | AD82: CHARLES R DREW ELEMENTARY SCHL | AE82: 40 | AF82: 222 | AG82: 18 | AH82: 25 | AI82: 38 | AJ82: 15 | AK82: 5 | AL82: 58 | AM82: 13 | AN82: 6 | AO82: 9 | AQ82: 6013 | AR82: SOMERSET ACADEMY CHARTER MIDDLE S H | AS82: 41 | AT82: 220 | AU82: 24 | AV82: 46 | AW82: 22 | AX82: 5 | AY82: 2 | AZ82: 29 | BA82: 8 | BB82: 9 | BC82: 3 | BE82: 6053 | BF82: SOMERSET ACADEMY CHARTER MIDDLE SOU | BG82: 43 | BH82: 239 | BI82: 9 | BJ82: 21 | BK82: 42 | BL82: 26 | BM82: 2 | BN82: 70 | BO82: 7 | BP82: 8 | BQ82: 7 | BR82: 5 | BT82: 6081 | BU82: CENTENNIAL MIDDLE SCHOOL | BV82: 279 | BW82: 232 | BX82: 42 | BY82: 24 | BZ82: 20 | CA82: 11 | CB82: 3 | CC82: 34 | CD82: 6 | CE82: 9 | CF82: 7 | CH82: 6141 | CI82: CHARLES R. DREW MIDDLE SCHOOL | CJ82: 5 | CK82: * | CL82: * | CM82: * | CN82: * | CO82: * | CP82: * | CQ82: *
A83: 1401 | B83: CHARLES R DREW ELEMENTARY SCHL | C83: 35 | D83: 198 | E83: 26 | F83: 11 | G83: 40 | H83: 17 | I83: 6 | J83: 63 | K83: 14 | L83: 7 | M83: 9 | O83: 1441 | P83: PAUL LAURENCE DUNBAR ELEM.SCHL | Q83: 55 | R83: 200 | S83: 47 | T83: 22 | U83: 24 | V83: 5 | W83: 2 | X83: 31 | Y83: 10 | Z83: 6 | AA83: 6 | AC83: 1441 | AD83: PAUL LAURENCE DUNBAR ELEM.SCHL | AE83: 48 | AF83: 209 | AG83: 38 | AH83: 33 | AI83: 23 | AJ83: 6 | AK83: 0 | AL83: 29 | AM83: 10 | AN83: 5 | AO83: 6 | AQ83: 6020 | AR83: ASPIRA RAUL ARNALDO MARTINEZ CHR SC | AS83: 203 | AT83: 218 | AU83: 35 | AV83: 30 | AW83: 22 | AX83: 10 | AY83: 2 | AZ83: 34 | BA83: 8 | BB83: 9 | BC83: 3 | BE83: 6060 | BF83: ASPIRA SOUTH YOUTH LEADERSHIP CHART | BG83: 113 | BH83: 233 | BI83: 12 | BJ83: 40 | BK83: 31 | BL83: 15 | BM83: 2 | BN83: 48 | BO83: 6 | BP83: 7 | BQ83: 6 | BR83: 4 | BT83: 6091 | BU83: CITRUS GROVE MIDDLE SCHOOL | BV83: 331 | BW83: 228 | BX83: 51 | BY83: 23 | BZ83: 17 | CA83: 8 | CB83: 2 | CC83: 26 | CD83: 6 | CE83: 8 | CF83: 6 | CH83: 6151 | CI83: DORAL MIDDLE SCHOOL | CJ83: 68 | CK83: 433 | CL83: 99 | CM83: 1 | CN83: 0 | CO83: 29 | CP83: 22 | CQ83: 47
A84: 1441 | B84: PAUL LAURENCE DUNBAR ELEM.SCHL | C84: 55 | D84: 188 | E84: 45 | F84: 22 | G84: 27 | H84: 5 | I84: 0 | J84: 33 | K84: 12 | L84: 4 | M84: 8 | O84: 1481 | P84: JOHN G. DUPUIS ELEMENTARY SCHL | Q84: 134 | R84: 218 | S84: 12 | T84: 24 | U84: 28 | V84: 23 | W84: 13 | X84: 64 | Y84: 13 | Z84: 8 | AA84: 9 | AC84: 1481 | AD84: JOHN G. DUPUIS ELEMENTARY SCHL | AE84: 123 | AF84: 223 | AG84: 20 | AH84: 23 | AI84: 29 | AJ84: 17 | AK84: 11 | AL84: 58 | AM84: 13 | AN84: 6 | AO84: 9 | AQ84: 6021 | AR84: ARVIDA MIDDLE SCHOOL | AS84: 389 | AT84: 236 | AU84: 11 | AV84: 15 | AW84: 28 | AX84: 28 | AY84: 19 | AZ84: 74 | BA84: 11 | BB84: 12 | BC84: 5 | BE84: 6061 | BF84: CAMPBELL DRIVE MIDDLE SCHOOL | BG84: 252 | BH84: 223 | BI84: 42 | BJ84: 28 | BK84: 19 | BL84: 11 | BM84: 1 | BN84: 31 | BO84: 4 | BP84: 6 | BQ84: 5 | BR84: 4 | BT84: 6111 | BU84: CUTLER RIDGE MIDDLE SCHOOL | BV84: 212 | BW84: 232 | BX84: 33 | BY84: 36 | BZ84: 23 | CA84: 5 | CB84: 2 | CC84: 30 | CD84: 6 | CE84: 9 | CF84: 6 | CH84: 6161 | CI84: LAWTON CHILES MIDDLE SCHOOL | CJ84: 42 | CK84: 421 | CL84: 98 | CM84: 2 | CN84: 0 | CO84: 64 | CP84: 24 | CQ84: 10
A85: 1481 | B85: JOHN G. DUPUIS ELEMENTARY SCHL | C85: 108 | D85: 208 | E85: 8 | F85: 25 | G85: 32 | H85: 19 | I85: 15 | J85: 67 | K85: 16 | L85: 7 | M85: 10 | O85: 1521 | P85: AMELIA EARHART ELEMENTARY SCHL | Q85: 73 | R85: 217 | S85: 12 | T85: 21 | U85: 32 | V85: 26 | W85: 10 | X85: 67 | Y85: 12 | Z85: 8 | AA85: 9 | AC85: 1521 | AD85: AMELIA EARHART ELEMENTARY SCHL | AE85: 85 | AF85: 210 | AG85: 36 | AH85: 34 | AI85: 21 | AJ85: 8 | AK85: 0 | AL85: 29 | AM85: 10 | AN85: 5 | AO85: 7 | AQ85: 6022 | AR85: PINECREST ACADEMY CHARTER MIDDLE SC | AS85: 218 | AT85: 231 | AU85: 10 | AV85: 28 | AW85: 29 | AX85: 26 | AY85: 7 | AZ85: 62 | BA85: 10 | BB85: 12 | BC85: 4 | BE85: 6070 | BF85: ASPIRA EUGENIO MARIA DE HOSTOS CHAR | BG85: 153 | BH85: 229 | BI85: 26 | BJ85: 34 | BK85: 27 | BL85: 11 | BM85: 1 | BN85: 40 | BO85: 5 | BP85: 6 | BQ85: 6 | BR85: 4 | BT85: 6121 | BU85: RUBEN DARIO MIDDLE SCHOOL | BV85: 288 | BW85: 243 | BX85: 19 | BY85: 21 | BZ85: 36 | CA85: 17 | CB85: 7 | CC85: 60 | CD85: 7 | CE85: 11 | CF85: 9 | CH85: 6171 | CI85: HENRY H. FILER MIDDLE SCHOOL | CJ85: 101 | CK85: 431 | CL85: 97 | CM85: 0 | CN85: 3 | CO85: 31 | CP85: 28 | CQ85: 39
A86: 1521 | B86: AMELIA EARHART ELEMENTARY SCHL | C86: 76 | D86: 195 | E86: 33 | F86: 20 | G86: 26 | H86: 17 | I86: 4 | J86: 47 | K86: 13 | L86: 6 | M86: 9 | O86: 1561 | P86: EARLINGTON HEIGHTS ELEM. SCHL | Q86: 58 | R86: 209 | S86: 24 | T86: 29 | U86: 24 | V86: 17 | W86: 5 | X86: 47 | Y86: 11 | Z86: 8 | AA86: 7 | AC86: 1561 | AD86: EARLINGTON HEIGHTS ELEM. SCHL | AE86: 80 | AF86: 213 | AG86: 31 | AH86: 29 | AI86: 25 | AJ86: 11 | AK86: 4 | AL86: 40 | AM86: 11 | AN86: 5 | AO86: 7 | AQ86: 6023 | AR86: ANDOVER MIDDLE SCHOOL | AS86: 377 | AT86: 223 | AU86: 27 | AV86: 29 | AW86: 29 | AX86: 12 | AY86: 4 | AZ86: 45 | BA86: 9 | BB86: 10 | BC86: 3 | BE86: 6071 | BF86: GEORGE WASHINGTON CARVER MIDDLE SCH | BG86: 318 | BH86: 258 | BI86: 1 | BJ86: 2 | BK86: 19 | BL86: 36 | BM86: 43 | BN86: 97 | BO86: 9 | BP86: 10 | BQ86: 10 | BR86: 6 | BT86: 6141 | BU86: CHARLES R. DREW MIDDLE SCHOOL | BV86: 127 | BW86: 227 | BX86: 51 | BY86: 28 | BZ86: 18 | CA86: 3 | CB86: 0 | CC86: 21 | CD86: 5 | CE86: 8 | CF86: 6 | CH86: 6211 | CI86: GLADES MIDDLE SCHOOL | CJ86: 86 | CK86: 426 | CL86: 99 | CM86: 1 | CN86: 0 | CO86: 42 | CP86: 36 | CQ86: 21
A87: 1561 | B87: EARLINGTON HEIGHTS ELEM. SCHL | C87: 78 | D87: 191 | E87: 35 | F87: 26 | G87: 29 | H87: 10 | I87: 0 | J87: 40 | K87: 13 | L87: 5 | M87: 8 | O87: 1601 | P87: EDISON PARK ELEMENTARY SCHOOL | Q87: 40 | R87: 208 | S87: 25 | T87: 28 | U87: 28 | V87: 18 | W87: 3 | X87: 48 | Y87: 12 | Z87: 7 | AA87: 7 | AC87: 1601 | AD87: EDISON PARK ELEMENTARY SCHOOL | AE87: 38 | AF87: 211 | AG87: 32 | AH87: 34 | AI87: 21 | AJ87: 11 | AK87: 3 | AL87: 34 | AM87: 10 | AN87: 5 | AO87: 7 | AQ87: 6028 | AR87: RENAISSANCE MIDDLE CHARTER SCHOOL | AS87: 138 | AT87: 233 | AU87: 8 | AV87: 25 | AW87: 36 | AX87: 20 | AY87: 12 | AZ87: 67 | BA87: 11 | BB87: 12 | BC87: 5 | BE87: 6081 | BF87: CENTENNIAL MIDDLE SCHOOL | BG87: 289 | BH87: 223 | BI87: 40 | BJ87: 26 | BK87: 21 | BL87: 11 | BM87: 1 | BN87: 34 | BO87: 5 | BP87: 6 | BQ87: 6 | BR87: 4 | BT87: 6151 | BU87: DORAL MIDDLE SCHOOL | BV87: 262 | BW87: 245 | BX87: 19 | BY87: 21 | BZ87: 30 | CA87: 20 | CB87: 11 | CC87: 60 | CD87: 8 | CE87: 12 | CF87: 9 | CH87: 6221 | CI87: HAMMOCKS MIDDLE SCHOOL | CJ87: 90 | CK87: 429 | CL87: 99 | CM87: 0 | CN87: 1 | CO87: 42 | CP87: 22 | CQ87: 34
A88: 1601 | B88: EDISON PARK ELEMENTARY SCHOOL | C88: 52 | D88: 190 | E88: 33 | F88: 25 | G88: 27 | H88: 15 | I88: 0 | J88: 42 | K88: 12 | L88: 5 | M88: 8 | O88: 1641 | P88: EMERSON ELEMENTARY SCHOOL | Q88: 64 | R88: 218 | S88: 9 | T88: 17 | U88: 38 | V88: 27 | W88: 9 | X88: 73 | Y88: 14 | Z88: 8 | AA88: 8 | AC88: 1641 | AD88: EMERSON ELEMENTARY SCHOOL | AE88: 65 | AF88: 220 | AG88: 17 | AH88: 31 | AI88: 31 | AJ88: 17 | AK88: 5 | AL88: 52 | AM88: 13 | AN88: 6 | AO88: 8 | AQ88: 6030 | AR88: DORAL ACADEMY CHARTER MIDDLE SCHOOL | AS88: 477 | AT88: 233 | AU88: 10 | AV88: 23 | AW88: 32 | AX88: 24 | AY88: 11 | AZ88: 67 | BA88: 11 | BB88: 12 | BC88: 5 | BE88: 6091 | BF88: CITRUS GROVE MIDDLE SCHOOL | BG88: 334 | BH88: 217 | BI88: 53 | BJ88: 24 | BK88: 16 | BL88: 4 | BM88: 3 | BN88: 23 | BO88: 4 | BP88: 5 | BQ88: 4 | BR88: 3 | BT88: 6161 | BU88: LAWTON CHILES MIDDLE SCHOOL | BV88: 323 | BW88: 233 | BX88: 40 | BY88: 23 | BZ88: 25 | CA88: 7 | CB88: 4 | CC88: 37 | CD88: 6 | CE88: 9 | CF88: 7 | CH88: 6231 | CI88: HIALEAH MIDDLE SCHOOL | CJ88: 56 | CK88: 388 | CL88: 27 | CM88: 14 | CN88: 59 | CO88: 27 | CP88: 0 | CQ88: 0
A89: 1641 | B89: EMERSON ELEMENTARY SCHOOL | C89: 63 | D89: 202 | E89: 11 | F89: 32 | G89: 30 | H89: 19 | I89: 8 | J89: 57 | K89: 15 | L89: 6 | M89: 10 | O89: 1681 | P89: LILLIE C. EVANS K-8 CENTER | Q89: 48 | R89: 211 | S89: 19 | T89: 21 | U89: 38 | V89: 19 | W89: 4 | X89: 60 | Y89: 12 | Z89: 8 | AA89: 7 | AC89: 1681 | AD89: LILLIE C. EVANS K-8 CENTER | AE89: 51 | AF89: 218 | AG89: 16 | AH89: 29 | AI89: 41 | AJ89: 12 | AK89: 2 | AL89: 55 | AM89: 12 | AN89: 5 | AO89: 8 | AQ89: 6031 | AR89: BROWNSVILLE MIDDLE SCHOOL | AS89: 203 | AT89: 211 | AU89: 52 | AV89: 28 | AW89: 16 | AX89: 4 | AY89: 0 | AZ89: 20 | BA89: 7 | BB89: 7 | BC89: 3 | BE89: 6111 | BF89: CUTLER RIDGE MIDDLE SCHOOL | BG89: 259 | BH89: 220 | BI89: 48 | BJ89: 25 | BK89: 18 | BL89: 7 | BM89: 2 | BN89: 27 | BO89: 4 | BP89: 5 | BQ89: 5 | BR89: 4 | BT89: 6171 | BU89: HENRY H. FILER MIDDLE SCHOOL | BV89: 427 | BW89: 240 | BX89: 27 | BY89: 20 | BZ89: 30 | CA89: 16 | CB89: 7 | CC89: 54 | CD89: 7 | CE89: 11 | CF89: 8 | CH89: 6241 | CI89: HIGHLAND OAKS MIDDLE SCHOOL | CJ89: 153 | CK89: 420 | CL89: 84 | CM89: 3 | CN89: 13 | CO89: 39 | CP89: 22 | CQ89: 23
A90: 1681 | B90: LILLIE C. EVANS K-8 CENTER | C90: 60 | D90: 190 | E90: 27 | F90: 30 | G90: 42 | H90: 2 | I90: 0 | J90: 43 | K90: 12 | L90: 5 | M90: 8 | O90: 1691 | P90: CHRISTINA M. EVE ELEM. SCHOOL | Q90: 110 | R90: 226 | S90: 8 | T90: 13 | U90: 25 | V90: 32 | W90: 23 | X90: 79 | Y90: 15 | Z90: 8 | AA90: 9 | AC90: 1691 | AD90: CHRISTINA M. EVE ELEM. SCHOOL | AE90: 124 | AF90: 230 | AG90: 6 | AH90: 23 | AI90: 32 | AJ90: 27 | AK90: 13 | AL90: 72 | AM90: 15 | AN90: 7 | AO90: 9 | AQ90: 6033 | AR90: MATER ACADEMY LAKES MIDDLE SCHOOL | AS90: 195 | AT90: 238 | AU90: 4 | AV90: 16 | AW90: 31 | AX90: 33 | AY90: 16 | AZ90: 80 | BA90: 12 | BB90: 13 | BC90: 6 | BE90: 6121 | BF90: RUBEN DARIO MIDDLE SCHOOL | BG90: 269 | BH90: 232 | BI90: 25 | BJ90: 26 | BK90: 29 | BL90: 14 | BM90: 6 | BN90: 49 | BO90: 6 | BP90: 7 | BQ90: 7 | BR90: 4 | BT90: 6211 | BU90: GLADES MIDDLE SCHOOL | BV90: 405 | BW90: 244 | BX90: 20 | BY90: 20 | BZ90: 33 | CA90: 17 | CB90: 10 | CC90: 60 | CD90: 8 | CE90: 11 | CF90: 9 | CH90: 6251 | CI90: HOMESTEAD MIDDLE SCHOOL | CJ90: 22 | CK90: 423 | CL90: 100 | CM90: 0 | CN90: 0 | CO90: 73 | CP90: 9 | CQ90: 18
A91: 1691 | B91: CHRISTINA M. EVE ELEM. SCHOOL | C91: 107 | D91: 219 | E91: 3 | F91: 7 | G91: 31 | H91: 37 | I91: 22 | J91: 91 | K91: 18 | L91: 8 | M91: 11 | O91: 1721 | P91: EVERGLADES K-8 CENTER | Q91: 119 | R91: 223 | S91: 6 | T91: 17 | U91: 27 | V91: 35 | W91: 15 | X91: 77 | Y91: 14 | Z91: 8 | AA91: 9 | AC91: 1721 | AD91: EVERGLADES K-8 CENTER | AE91: 121 | AF91: 230 | AG91: 4 | AH91: 21 | AI91: 36 | AJ91: 24 | AK91: 16 | AL91: 75 | AM91: 15 | AN91: 7 | AO91: 9 | AQ91: 6040 | AR91: DOCTORS CHARTER SCHOOL OF MIAMI SHO | AS91: 86 | AT91: 238 | AU91: 6 | AV91: 20 | AW91: 21 | AX91: 35 | AY91: 19 | AZ91: 74 | BA91: 12 | BB91: 12 | BC91: 6 | BE91: 6141 | BF91: CHARLES R. DREW MIDDLE SCHOOL | BG91: 153 | BH91: 217 | BI91: 53 | BJ91: 29 | BK91: 13 | BL91: 4 | BM91: 1 | BN91: 18 | BO91: 4 | BP91: 4 | BQ91: 4 | BR91: 3 | BT91: 6221 | BU91: HAMMOCKS MIDDLE SCHOOL | BV91: 439 | BW91: 239 | BX91: 28 | BY91: 23 | BZ91: 30 | CA91: 12 | CB91: 7 | CC91: 49 | CD91: 7 | CE91: 10 | CF91: 8 | CH91: 6281 | CI91: THOMAS JEFFERSON MIDDLE SCHOOL | CJ91: 26 | CK91: 421 | CL91: 96 | CM91: 4 | CN91: 0 | CO91: 46 | CP91: 35 | CQ91: 15
A92: 1721 | B92: EVERGLADES K-8 CENTER | C92: 106 | D92: 208 | E92: 7 | F92: 25 | G92: 31 | H92: 22 | I92: 15 | J92: 68 | K92: 16 | L92: 7 | M92: 11 | O92: 1761 | P92: DAVID FAIRCHILD ELEMENTARY SCHOOL | Q92: 87 | R92: 220 | S92: 11 | T92: 17 | U92: 24 | V92: 29 | W92: 18 | X92: 71 | Y92: 14 | Z92: 8 | AA92: 9 | AC92: 1761 | AD92: DAVID FAIRCHILD ELEMENTARY SCHOOL | AE92: 97 | AF92: 230 | AG92: 12 | AH92: 20 | AI92: 26 | AJ92: 23 | AK92: 20 | AL92: 68 | AM92: 14 | AN92: 7 | AO92: 9 | AQ92: 6041 | AR92: PAUL W. BELL MIDDLE SCHOOL | AS92: 176 | AT92: 221 | AU92: 28 | AV92: 31 | AW92: 31 | AX92: 7 | AY92: 3 | AZ92: 41 | BA92: 8 | BB92: 9 | BC92: 4 | BE92: 6151 | BF92: DORAL MIDDLE SCHOOL | BG92: 242 | BH92: 229 | BI92: 35 | BJ92: 23 | BK92: 22 | BL92: 12 | BM92: 7 | BN92: 42 | BO92: 5 | BP92: 6 | BQ92: 6 | BR92: 4 | BT92: 6231 | BU92: HIALEAH MIDDLE SCHOOL | BV92: 270 | BW92: 232 | BX92: 41 | BY92: 25 | BZ92: 27 | CA92: 7 | CB92: 1 | CC92: 34 | CD92: 6 | CE92: 9 | CF92: 7 | CH92: 6301 | CI92: JOHN F. KENNEDY MIDDLE SCHOOL | CJ92: 166 | CK92: 424 | CL92: 97 | CM92: 0 | CN92: 3 | CO92: 52 | CP92: 29 | CQ92: 16
A93: 1761 | B93: DAVID FAIRCHILD ELEMENTARY SCHOOL | C93: 93 | D93: 213 | E93: 4 | F93: 16 | G93: 34 | H93: 26 | I93: 19 | J93: 80 | K93: 17 | L93: 8 | M93: 11 | O93: 1801 | P93: FAIRLAWN ELEMENTARY SCHOOL | Q93: 117 | R93: 217 | S93: 17 | T93: 15 | U93: 26 | V93: 26 | W93: 15 | X93: 68 | Y93: 13 | Z93: 8 | AA93: 8 | AC93: 1801 | AD93: FAIRLAWN ELEMENTARY SCHOOL | AE93: 131 | AF93: 221 | AG93: 16 | AH93: 34 | AI93: 29 | AJ93: 12 | AK93: 9 | AL93: 50 | AM93: 13 | AN93: 6 | AO93: 8 | AQ93: 6042 | AR93: MATER GARDENS ACADEMY MIDDLE SCHOOL | AS93: 93 | AT93: 236 | AU93: 8 | AV93: 14 | AW93: 37 | AX93: 28 | AY93: 14 | AZ93: 78 | BA93: 11 | BB93: 13 | BC93: 5 | BE93: 6161 | BF93: LAWTON CHILES MIDDLE SCHOOL | BG93: 337 | BH93: 225 | BI93: 35 | BJ93: 29 | BK93: 24 | BL93: 9 | BM93: 2 | BN93: 36 | BO93: 5 | BP93: 6 | BQ93: 5 | BR93: 4 | BT93: 6241 | BU93: HIGHLAND OAKS MIDDLE SCHOOL | BV93: 406 | BW93: 244 | BX93: 19 | BY93: 22 | BZ93: 34 | CA93: 13 | CB93: 12 | CC93: 59 | CD93: 8 | CE93: 11 | CF93: 9 | CH93: 6331 | CI93: KINLOCH PARK MIDDLE SCHOOL | CJ93: 43 | CK93: 432 | CL93: 98 | CM93: 0 | CN93: 2 | CO93: 23 | CP93: 37 | CQ93: 37
A94: 1801 | B94: FAIRLAWN ELEMENTARY SCHOOL | C94: 111 | D94: 204 | E94: 10 | F94: 22 | G94: 41 | H94: 25 | I94: 3 | J94: 68 | K94: 15 | L94: 7 | M94: 10 | O94: 1811 | P94: DANTE B. FASCELL ELEM. SCHOOL | Q94: 89 | R94: 222 | S94: 9 | T94: 24 | U94: 25 | V94: 19 | W94: 24 | X94: 67 | Y94: 14 | Z94: 8 | AA94: 9 | AC94: 1811 | AD94: DANTE B. FASCELL ELEM. SCHOOL | AE94: 93 | AF94: 227 | AG94: 11 | AH94: 18 | AI94: 30 | AJ94: 26 | AK94: 15 | AL94: 71 | AM94: 14 | AN94: 7 | AO94: 9 | AQ94: 6043 | AR94: SOMERSET ACADEMY MIDDLE COUNTRY PAL | AS94: 14 | AT94: 223 | AU94: 29 | AV94: 29 | AW94: 21 | AX94: 21 | AY94: 0 | AZ94: 43 | BA94: 9 | BB94: 9 | BC94: 4 | BE94: 6171 | BF94: HENRY H. FILER MIDDLE SCHOOL | BG94: 379 | BH94: 231 | BI94: 24 | BJ94: 26 | BK94: 29 | BL94: 16 | BM94: 5 | BN94: 50 | BO94: 6 | BP94: 7 | BQ94: 6 | BR94: 4 | BT94: 6251 | BU94: HOMESTEAD MIDDLE SCHOOL | BV94: 209 | BW94: 234 | BX94: 33 | BY94: 32 | BZ94: 24 | CA94: 10 | CB94: 1 | CC94: 36 | CD94: 6 | CE94: 9 | CF94: 7 | CH94: 6351 | CI94: LAKE STEVENS MIDDLE SCHOOL | CJ94: 13 | CK94: 430 | CL94: 100 | CM94: 0 | CN94: 0 | CO94: 23 | CP94: 54 | CQ94: 23
A95: 1811 | B95: DANTE B. FASCELL ELEM. SCHOOL | C95: 79 | D95: 204 | E95: 9 | F95: 34 | G95: 28 | H95: 16 | I95: 13 | J95: 57 | K95: 15 | L95: 6 | M95: 10 | O95: 1841 | P95: FLAGAMI ELEMENTARY SCHOOL | Q95: 86 | R95: 211 | S95: 26 | T95: 24 | U95: 24 | V95: 14 | W95: 12 | X95: 50 | Y95: 12 | Z95: 7 | AA95: 8 | AC95: 1841 | AD95: FLAGAMI ELEMENTARY SCHOOL | AE95: 71 | AF95: 224 | AG95: 11 | AH95: 28 | AI95: 38 | AJ95: 14 | AK95: 8 | AL95: 61 | AM95: 14 | AN95: 6 | AO95: 9 | AQ95: 6045 | AR95: INTERNATIONAL STUDIES CHARTER MIDDL | AS95: 77 | AT95: 228 | AU95: 16 | AV95: 29 | AW95: 27 | AX95: 19 | AY95: 9 | AZ95: 56 | BA95: 10 | BB95: 11 | BC95: 4 | BE95: 6211 | BF95: GLADES MIDDLE SCHOOL | BG95: 379 | BH95: 238 | BI95: 14 | BJ95: 23 | BK95: 30 | BL95: 24 | BM95: 8 | BN95: 63 | BO95: 7 | BP95: 7 | BQ95: 7 | BR95: 5 | BT95: 6281 | BU95: THOMAS JEFFERSON MIDDLE SCHOOL | BV95: 170 | BW95: 233 | BX95: 35 | BY95: 24 | BZ95: 29 | CA95: 11 | CB95: 1 | CC95: 41 | CD95: 6 | CE95: 9 | CF95: 7 | CH95: 6361 | CI95: JOSE DE DIEGO MIDDLE SCHOOL | CJ95: 18 | CK95: 428 | CL95: 100 | CM95: 0 | CN95: 0 | CO95: 44 | CP95: 39 | CQ95: 17
A96: 1841 | B96: FLAGAMI ELEMENTARY SCHOOL | C96: 71 | D96: 201 | E96: 11 | F96: 31 | G96: 38 | H96: 15 | I96: 4 | J96: 58 | K96: 15 | L96: 6 | M96: 10 | O96: 1881 | P96: HENRY M. FLAGLER ELEM. SCHOOL | Q96: 150 | R96: 210 | S96: 24 | T96: 21 | U96: 33 | V96: 15 | W96: 7 | X96: 55 | Y96: 13 | Z96: 7 | AA96: 7 | AC96: 1881 | AD96: HENRY M. FLAGLER ELEM. SCHOOL | AE96: 157 | AF96: 219 | AG96: 30 | AH96: 16 | AI96: 26 | AJ96: 17 | AK96: 11 | AL96: 54 | AM96: 13 | AN96: 6 | AO96: 7 | AQ96: 6047 | AR96: MATER ACAD MIDDLE SCHOOL INTERNAT S | AS96: 41 | AT96: 228 | AU96: 17 | AV96: 27 | AW96: 32 | AX96: 20 | AY96: 5 | AZ96: 56 | BA96: 9 | BB96: 11 | BC96: 4 | BE96: 6221 | BF96: HAMMOCKS MIDDLE SCHOOL | BG96: 388 | BH96: 236 | BI96: 19 | BJ96: 24 | BK96: 28 | BL96: 19 | BM96: 10 | BN96: 57 | BO96: 6 | BP96: 7 | BQ96: 7 | BR96: 5 | BT96: 6301 | BU96: JOHN F. KENNEDY MIDDLE SCHOOL | BV96: 475 | BW96: 241 | BX96: 27 | BY96: 24 | BZ96: 23 | CA96: 14 | CB96: 13 | CC96: 49 | CD96: 7 | CE96: 11 | CF96: 8 | CH96: 6391 | CI96: MADISON MIDDLE SCHOOL | CJ96: 19 | CK96: 396 | CL96: 53 | CM96: 11 | CN96: 37 | CO96: 53 | CP96: 0 | CQ96: 0
A97: 1881 | B97: HENRY M. FLAGLER ELEM. SCHOOL | C97: 143 | D97: 202 | E97: 22 | F97: 18 | G97: 29 | H97: 16 | I97: 15 | J97: 60 | K97: 15 | L97: 6 | M97: 10 | O97: 1921 | P97: FLAMINGO ELEMENTARY SCHOOL | Q97: 153 | R97: 203 | S97: 38 | T97: 21 | U97: 21 | V97: 15 | W97: 5 | X97: 41 | Y97: 11 | Z97: 6 | AA97: 7 | AC97: 1921 | AD97: FLAMINGO ELEMENTARY SCHOOL | AE97: 139 | AF97: 215 | AG97: 32 | AH97: 24 | AI97: 21 | AJ97: 12 | AK97: 10 | AL97: 43 | AM97: 11 | AN97: 6 | AO97: 7 | AQ97: 6048 | AR97: MIAMI COMMUNITY CHARTER MIDDLE SCHO | AS97: 96 | AT97: 216 | AU97: 40 | AV97: 30 | AW97: 19 | AX97: 10 | AY97: 1 | AZ97: 30 | BA97: 7 | BB97: 8 | BC97: 3 | BE97: 6231 | BF97: HIALEAH MIDDLE SCHOOL | BG97: 274 | BH97: 224 | BI97: 39 | BJ97: 29 | BK97: 22 | BL97: 9 | BM97: 1 | BN97: 32 | BO97: 5 | BP97: 5 | BQ97: 5 | BR97: 4 | BT97: 6331 | BU97: KINLOCH PARK MIDDLE SCHOOL | BV97: 385 | BW97: 236 | BX97: 29 | BY97: 27 | BZ97: 26 | CA97: 13 | CB97: 5 | CC97: 44 | CD97: 6 | CE97: 10 | CF97: 8 | CH97: 6411 | CI97: HORACE MANN MIDDLE SCHOOL | CJ97: 58 | CK97: 412 | CL97: 83 | CM97: 3 | CN97: 14 | CO97: 60 | CP97: 16 | CQ97: 7
A98: 1921 | B98: FLAMINGO ELEMENTARY SCHOOL | C98: 149 | D98: 195 | E98: 28 | F98: 27 | G98: 26 | H98: 13 | I98: 6 | J98: 45 | K98: 13 | L98: 5 | M98: 9 | O98: 2001 | P98: FLORIDA CITY ELEMENTARY SCHOOL | Q98: 100 | R98: 209 | S98: 20 | T98: 28 | U98: 29 | V98: 19 | W98: 4 | X98: 52 | Y98: 11 | Z98: 8 | AA98: 8 | AC98: 2001 | AD98: FLORIDA CITY ELEMENTARY SCHOOL | AE98: 135 | AF98: 213 | AG98: 24 | AH98: 41 | AI98: 27 | AJ98: 7 | AK98: 1 | AL98: 35 | AM98: 11 | AN98: 5 | AO98: 7 | AQ98: 6049 | AR98: RIVER CITIES COMMUNITY CHARTER SCHO | AS98: 56 | AT98: 208 | AU98: 59 | AV98: 27 | AW98: 14 | AX98: 0 | AY98: 0 | AZ98: 14 | BA98: 5 | BB98: 7 | BC98: 3 | BE98: 6241 | BF98: HIGHLAND OAKS MIDDLE SCHOOL | BG98: 396 | BH98: 232 | BI98: 24 | BJ98: 27 | BK98: 26 | BL98: 17 | BM98: 7 | BN98: 49 | BO98: 6 | BP98: 7 | BQ98: 6 | BR98: 5 | BT98: 6351 | BU98: LAKE STEVENS MIDDLE SCHOOL | BV98: 181 | BW98: 240 | BX98: 22 | BY98: 20 | BZ98: 39 | CA98: 17 | CB98: 2 | CC98: 59 | CD98: 7 | CE98: 11 | CF98: 9 | CH98: 6421 | CI98: JOSE MARTI MIDDLE SCHOOL | CJ98: 13 | CK98: 437 | CL98: 100 | CM98: 0 | CN98: 0 | CO98: 8 | CP98: 54 | CQ98: 38
A99: 2001 | B99: FLORIDA CITY ELEMENTARY SCHOOL | C99: 133 | D99: 194 | E99: 26 | F99: 25 | G99: 30 | H99: 19 | I99: 0 | J99: 49 | K99: 13 | L99: 6 | M99: 9 | O99: 2003 | P99: BRIDGEPOINT ACADEMY | Q99: 37 | R99: 224 | S99: 5 | T99: 16 | U99: 32 | V99: 24 | W99: 22 | X99: 78 | Y99: 14 | Z99: 8 | AA99: 9 | AC99: 2003 | AD99: BRIDGEPOINT ACADEMY | AE99: 33 | AF99: 222 | AG99: 9 | AH99: 30 | AI99: 48 | AJ99: 9 | AK99: 3 | AL99: 61 | AM99: 13 | AN99: 6 | AO99: 8 | AQ99: 6051 | AR99: CAROL CITY MIDDLE SCHOOL | AS99: 212 | AT99: 211 | AU99: 47 | AV99: 33 | AW99: 16 | AX99: 3 | AY99: 0 | AZ99: 20 | BA99: 6 | BB99: 7 | BC99: 3 | BE99: 6251 | BF99: HOMESTEAD MIDDLE SCHOOL | BG99: 200 | BH99: 226 | BI99: 32 | BJ99: 30 | BK99: 26 | BL99: 13 | BM99: 1 | BN99: 39 | BO99: 5 | BP99: 6 | BQ99: 6 | BR99: 4 | BT99: 6361 | BU99: JOSE DE DIEGO MIDDLE SCHOOL | BV99: 168 | BW99: 234 | BX99: 32 | BY99: 25 | BZ99: 35 | CA99: 4 | CB99: 4 | CC99: 43 | CD99: 6 | CE99: 9 | CF99: 8 | CH99: 6431 | CI99: MAYS COMMUNITY MIDDLE SCHOOL | CJ99: 21 | CK99: 418 | CL99: 90 | CM99: 0 | CN99: 10 | CO99: 62 | CP99: 19 | CQ99: 10
A100: 2003 | B100: BRIDGEPOINT ACADEMY | C100: 57 | D100: 215 | E100: 2 | F100: 7 | G100: 42 | H100: 32 | I100: 18 | J100: 91 | K100: 18 | L100: 8 | M100: 11 | O100: 2006 | P100: RICHARD ALLEN LEADERSHIP ACADEMY | Q100: 16 | R100: 209 | S100: 25 | T100: 19 | U100: 50 | V100: 0 | W100: 6 | X100: 56 | Y100: 11 | Z100: 8 | AA100: 7 | AC100: 2006 | AD100: RICHARD ALLEN LEADERSHIP ACADEMY | AE100: 16 | AF100: 209 | AG100: 44 | AH100: 38 | AI100: 6 | AJ100: 13 | AK100: 0 | AL100: 19 | AM100: 10 | AN100: 5 | AO100: 6 | AQ100: 6052 | AR100: ZELDA GLAZER MIDDLE SCHOOL | AS100: 413 | AT100: 228 | AU100: 15 | AV100: 27 | AW100: 33 | AX100: 21 | AY100: 4 | AZ100: 58 | BA100: 9 | BB100: 11 | BC100: 4 | BE100: 6281 | BF100: THOMAS JEFFERSON MIDDLE SCHOOL | BG100: 138 | BH100: 223 | BI100: 38 | BJ100: 28 | BK100: 25 | BL100: 8 | BM100: 0 | BN100: 33 | BO100: 5 | BP100: 6 | BQ100: 5 | BR100: 4 | BT100: 6391 | BU100: MADISON MIDDLE SCHOOL | BV100: 209 | BW100: 233 | BX100: 33 | BY100: 30 | BZ100: 32 | CA100: 4 | CB100: 0 | CC100: 36 | CD100: 6 | CE100: 9 | CF100: 7 | CH100: 6441 | CI100: HOWARD D. MCMILLAN MIDDLE SCHOOL | CJ100: 90 | CK100: 424 | CL100: 94 | CM100: 0 | CN100: 6 | CO100: 47 | CP100: 29 | CQ100: 19
